Workbook

Sheet WELCOME
J2: Financial Planning . Investment Management . Fiduciary . Independent . Fee-Only | T2: 560 First Street, Suite B-203
T3: Benicia, CA 94510
T4: Tel: (707) 745-8756
R5: www.GrossmanFinancial.com
B12: Welcome to GFM's Personal Financial Calculating Program™ (PFCP™) Version 2017-01.
B14: The PFCP™ is a robust calculator, but not a crystal ball. For a given set of assumptions that the user specifies, it calculates among other things estimates of current and forward period cashflows and balance sheet values for financial models of individuals presumed to reside in the United States during the year 2016. Individuals and families may find the PFCP™ to be a useful "template": It is user-friendly, provides essential and comprehensible forecasts, strikes a practical balance between detail and workability, and offers flexibility to accomodate "beyond the template" needs.
B16: To start, enter data and assumptions on the Green Tab sheets in any cell with a yellow background. The calculations based on the inputs are presented on the Blue Tap sheets. The last sheet with the Yellow Tab is a "Notes" sheet, for calculations as well as notes, which can be linked to other sheets to provide additional flexibility and capacity.
E17: Data entry cells in the program have "comments" to facilitate correct use. We also offer a more detailed User Manual for the PFCP™ via Amazon.com ($2.99) - "Personal Financial Planning - By the Numbers", written by the designer of this program, Lawrence I. Grossman (M.B.A., Certified Financial Planner™, Registered Investment Advisor, Accredited Investment Fiduciary®).
B19: Please Note: (1) The PFCP™ does not provide advice. (2) You may download and use the PFCP™ for personal and noncommercial use only. (3) The PFCP™ comes with no warranty. See details below.
B20: NOT INVESTMENT ADVICE --- GFM OFFERS WITHOUT CHARGE TO THE PUBLIC THE RIGHT TO THE NON-COMMERCIAL PERSONAL USE OF THIS VERSION THE PFCP™ , AND IT IS OFFERED WITHOUT ANY ADVICE ON HOW TO USE IT. THE PUBLIC'S USE OF THE PFCP™ AT NO CHARGE, AND OUR OFFERING OF THE PFCP™ FOR PUBLIC USE WITHOUT COST, DOES NOT INVOLVE INVESTMENT ADVISORY OR ANY OTHER SERVICES FROM GROSSMAN FINANCIAL MANAGEMENT. THE FINANCIAL CALCULATIONS HERE ARE OFTEN SUBJECT TO JUDGEMENT AND POSSIBLE IMPRECISION, AND CALCULATING ESTIMATES OF FUTURE FINANCIAL VALUES IS SUBJECT TO INNUMERABLE FACTORS, MANY OF WHICH INVOLVE GREAT UNCERTAINTY AND/OR ARE UNKNOWN. FOR THE KIND OF CALCULATIONS DONE BY THE PFCP™, THERE ARE TODAY NO PROFESSIONAL OR REGULATORY STANDARDS. IN THIS CONTEXT, GFM BELIEVES THAT PFCP™ CALCULATIONS ARE REASONABLE AND MAY BE USEFUL, BUT GFM PROVIDES NO CLAIMS OR ASSURANCES OF UTILITY OR VALUE OR ACCURACY AS MAY BE DETERMINED BY OTHERS.
B21: LICENSE AGREEMENT (PERSONAL USE ONLY) --- THE PFCP™ IS CONSIDERED A COPYRIGHTED WORK UNDER THE UNITES STATES AND OTHER COPYRIGHT LAWS AND IS THE PROPERTY OF GROSSMAN FINANCIAL MANAGEMENT (GFM). YOU MAY DOWNLOAD AND USE THE PFCP™ FOR PERSONAL AND NONCOMMERCIAL USE ONLY. THE PFCP™ OR ANY DOCUMENT INCLUDING OR DERIVED FROM THE PFCP™ MAY NOT BE SOLD, DISTRIBUTED, PUBLISHED OR PLACED ON A PUBLIC SERVER SUCH AS THE INTERNET WITHOUT THE EXPRESS WRITTEN PERMISSION OF GFM. YOU MAY NOT REMOVE OR ALTER ANY LOGO, TRADEMARK, COPYRIGHT, DISCLAIMER, BRAND, HYPERLINK, TERMS OF USE, ATTRIBUTION, OR OTHER PROPRIETARY NOTICES OR MARKS WITHIN THE PFCP™. WE DEFINE "PERSONAL USE" AS NON-COMMERCIAL USE BY YOU, YOUR FAMILY, OR BY YOUR CLOSE PERSONAL FRIENDS, ON YOUR OWN COMPUTER. WE DEFINE "COMMERCIAL USE" AS ANY USE IN WHICH A CORPORATION OR BUSINESS OR COMMERCIAL ENTITY DERIVES OR ATTEMPTS TO DERIVE MONETARY GAIN AND BENEFIT, EITHER DIRECTLY OR INDIRECTLY, FROM THE USE OF THE PFCP™. THIS INCLUDES GOVERNMENT AND MILITARY ENTITIES, CORPORATIONS, LLCS, SOLE-PROPRIETORSHIPS, HOME-BASED BUSINESSES, AND INTERNET-BASED BUSINESSES.
B22: NO WARRANTIES --- THE PFCP™ AND ANY RELATED DOCUMENTATION ARE PROVIDED TO YOU "AS IS." GFM MAKES NO WARRANTIES, EXPRESS OR IMPLIED, AND EXPRESSLY DISCLAIMS ALL REPRESENTATIONS, ORAL OR WRITTEN, TERMS, CONDITIONS, AND WARRANTIES. WITHOUT LIMITING THE ABOVE, YOU ACCEPT THAT THE SOFTWARE MAY NOT MEET YOUR REQUIREMENTS AND OPERATE ERROR FREE OR ACCURATELY. IN NO EVENT SHALL GFM BE LIABLE TO YOU, FOR ANY DAMAGES, INCLUDING ANY LOST PROFITS, LOST SAVINGS, OR ANY OTHER DIRECT, INDIRECT, SPECIAL, INCIDENTAL, OR CONSEQUENTIAL DAMAGES ARISING FROM THE USE OR THE INABILITY TO USE THE PFCP™ OR ANY MISTAKES AND NEGLIGENCE IN DEVELOPING THE PFCP™ OR FOR ANY CLAIM BY ANY OTHER PARTY. THE ORGANIZATION, BUSINESS, OR PERSON USING THE PFCP™ BEARS ALL RISKS AND RESPONSIBILITY FOR USING OF THE PFCP™.
B25: © 2016 Grossman Financial Management

Sheet control lists (hidden)
A1: GENERAL ASSUMPTIONS | O1: INVESTMENT ASSETS | X1: OTHER ASSETS | AC1: DEBT | AJ1: CASHFLOWS | AR1: tax table
A2: SCENARIO | B2: PERSON 1, 2 | C2: BIRTH DATE 1,2 | D2: inflation | E2: status | F2: FED | G2: ALT TAX | H2: STATE | I2: ALT TAX | J2: PER EX B,L | K2: LATER YR | L2: QP TAX % | M2: S TAX PD | N2: SOC SEC | O2: RMD12 | P2: account | Q2: IA | R2: returns | S2: expenses | T2: scenario | U2: ALT PERIODS 1 | V2: ALT PERIOD 2 | W2: ALT returns,risk | X2: OA NAME | Y2: OA value | Z2: FIRST YR | AA2: LAST YR | AB2: OA appreciation | AC2: DEBT NAME | AD2: PRINCPLE | AE2: loan date | AF2: yr remain | AG2: int rate | AH2: deductable | AI2: early pay | AJ2: ACCOUNT NAME | AK2: amount | AL2: first last yr | AM2: cf inflate | AN2: FICA | AO2: SS AGE | AP2: PRTAX SAVE | AR2: None
A3: 50 | B3: 50 | C3: 1900-01-01 | D3: 0 | E3: S | F3: T | G3: 0 | H3: C | I3: 0 | J3: 0 | K3: ='GENERAL ASSUMPTIONS+'!C36 -> 2016 | L3: 0 | M3: 0 | N3: 0 | O3: 1 | P3: 30 | Q3: -99000000 | R3: 0 | S3: 0 | T3: C | U3: 1 | V3: =IF(('INVESTMENTS+'!P47+1)>60,60,'INVESTMENTS+'!P47+1) -> 2 | W3: 0.0001 | X3: 32 | Y3: 0 | Z3: ='GENERAL ASSUMPTIONS+'!C36 -> 2016 | AA3: ='GENERAL ASSUMPTIONS+'!C36 -> 2016 | AB3: -0.99 | AC3: 32 | AD3: 0 | AE3: 1980 | AF3: 0 | AG3: 0 | AH3: YES | AI3: ='GENERAL ASSUMPTIONS+'!$C$36 -> 2016 | AJ3: 25 | AK3: -1000000 | AL3: ='GENERAL ASSUMPTIONS+'!$C$36 -> 2016 | AM3: -0.1 | AN3: 0 | AO3: 62 | AP3: 0 | AR3: Ala. - Single
C4: 2015-12-31 | D4: =D3+0.001 -> 0.001 | E4: M | F4: M | G4: 0.01 | H4: A | I4: 0.01 | J4: =1+J3 -> 1 | K4: =1+K3 -> 2017 | L4: =0.01+L3 -> 0.01 | M4: 9999999 | N4: 4000 | O4: 2 | Q4: 99000000 | R4: =0.001+R3 -> 0.001 | S4: =0.0005+S3 -> 0.0005 | T4: A | U4: =1+U3 -> 2 | V4: =IF((V3+1)>60,60,V3+1) -> 3 | W4: =0.01-0.0001+W3 -> 0.01 | Z4: =1+Z3 -> 2017 | AA4: =1+AA3 -> 2017 | AB4: 1 | AE4: 2075 | AF4: 1000 | AG4: 0.1 | AH4: NO | AI4: 2100 | AK4: 20000000 | AL4: 2077 | AM4: 0.2 | AN4: -1 | AO4: =1+AO3 -> 63 | AR4: Ala. - Married
D5: =D4+0.001 -> 0.002 | G5: =0.01+G4 -> 0.02 | I5: 0.02 | J5: =1+J4 -> 2 | K5: =1+K4 -> 2018 | L5: =0.01+L4 -> 0.02 | R5: =0.001+R4 -> 0.002 | S5: =0.0005+S4 -> 0.001 | T5: MC | U5: =1+U4 -> 3 | V5: =IF((V4+1)>60,60,V4+1) -> 4 | W5: =0.01+W4 -> 0.02 | Z5: =1+Z4 -> 2018 | AA5: 2018 | AN5: -2 | AO5: =1+AO4 -> 64 | AR5: Alaska - Single
D6: 0.003 | G6: 0.03 | I6: 0.03 | J6: 3 | K6: 2019 | L6: 0.03 | R6: 0.003 | S6: 0.0015 | U6: 4 | V6: 5 | W6: 0.03 | Z6: 2019 | AA6: 2019 | AO6: 65 | AR6: Alaska - Married
D7: 0.004 | G7: 0.04 | I7: 0.04 | J7: 4 | K7: 2020 | L7: 0.04 | R7: 0.004 | S7: 0.002 | U7: 5 | V7: 6 | W7: 0.04 | Z7: 2020 | AA7: 2020 | AO7: 66 | AR7: Ariz. - Single
D8: 0.005 | G8: 0.05 | I8: 0.05 | J8: 5 | K8: 2021 | L8: 0.05 | R8: 0.005 | S8: 0.0025 | U8: 6 | V8: 7 | W8: 0.05 | Z8: 2021 | AA8: 2021 | AO8: 67 | AR8: Ariz. - Married
D9: 0.006 | G9: 0.06 | I9: 0.06 | J9: 6 | K9: 2022 | L9: 0.06 | R9: 0.006 | S9: 0.003 | U9: 7 | V9: 8 | W9: 0.06 | Z9: 2022 | AA9: 2022 | AO9: 68 | AR9: Ark. - Single
D10: 0.007 | G10: 0.07 | I10: 0.07 | J10: 7 | K10: 2023 | L10: 0.07 | R10: 0.007 | S10: 0.0035 | U10: 8 | V10: 9 | W10: 0.07 | Z10: 2023 | AA10: 2023 | AO10: 69 | AR10: Ark. - Married
D11: 0.008 | G11: 0.08 | I11: 0.08 | J11: 8 | K11: 2024 | L11: 0.08 | R11: 0.008 | S11: 0.004 | U11: 9 | V11: 10 | W11: 0.08 | Z11: 2024 | AA11: 2024 | AO11: =1+AO10 -> 70 | AR11: Calif. - Single
D12: 0.009 | G12: 0.09 | I12: 0.09 | J12: 9 | K12: 2025 | L12: 0.09 | R12: 0.009 | S12: 0.0045 | U12: 10 | V12: 11 | W12: 0.09 | Z12: 2025 | AA12: 2025 | AR12: Calif. - Married
D13: 0.01 | G13: 0.1 | I13: 0.1 | K13: 2026 | L13: 0.1 | R13: 0.01 | S13: 0.005 | U13: 11 | V13: 12 | W13: 0.1 | Z13: 2026 | AA13: 2026 | AR13: Colo. - Single
D14: 0.011 | G14: 0.11 | I14: 0.11 | K14: 2027 | L14: 0.11 | R14: 0.011 | S14: 0.0055 | U14: 12 | V14: 13 | W14: 0.11 | Z14: 2027 | AA14: 2027 | AR14: Colo. - Married
D15: 0.012 | G15: 0.12 | I15: 0.12 | K15: 2028 | L15: 0.12 | R15: 0.012 | S15: 0.006 | U15: 13 | V15: 14 | W15: 0.12 | Z15: 2028 | AA15: 2028 | AR15: Conn. - Single
D16: 0.013 | G16: 0.13 | I16: 0.13 | K16: 2029 | L16: 0.13 | R16: 0.013 | S16: 0.0065 | U16: 14 | V16: 15 | W16: 0.13 | Z16: 2029 | AA16: 2029 | AR16: Conn. - Married
D17: 0.014 | G17: 0.14 | I17: 0.14 | K17: 2030 | L17: 0.14 | R17: 0.014 | S17: 0.007 | U17: 15 | V17: 16 | W17: 0.14 | Z17: 2030 | AA17: 2030 | AR17: Del. - Single
D18: 0.015 | G18: 0.15 | I18: 0.15 | K18: 2031 | L18: 0.15 | R18: 0.015 | S18: 0.0075 | U18: 16 | V18: 17 | W18: 0.15 | Z18: 2031 | AA18: 2031 | AR18: Del. - Married
D19: 0.016 | G19: =0.01+G18 -> 0.16 | I19: =0.01+I18 -> 0.16 | K19: 2032 | L19: 0.16 | R19: 0.016 | S19: 0.008 | U19: 17 | V19: 18 | W19: 0.16 | Z19: 2032 | AA19: 2032 | AR19: Fla. - Single
D20: 0.017 | G20: =0.01+G19 -> 0.17 | I20: =0.01+I19 -> 0.17 | K20: 2033 | L20: 0.17 | R20: 0.017 | S20: 0.0085 | U20: 18 | V20: 19 | W20: 0.17 | Z20: 2033 | AA20: 2033 | AR20: Fla. - Married
D21: 0.018 | G21: =0.01+G20 -> 0.18 | I21: =0.01+I20 -> 0.18 | K21: 2034 | L21: 0.18 | R21: 0.018 | S21: 0.009 | U21: 19 | V21: 20 | W21: 0.18 | Z21: 2034 | AA21: 2034 | AR21: Ga. - Single
D22: 0.019 | G22: =0.01+G21 -> 0.19 | I22: =0.01+I21 -> 0.19 | K22: 2035 | L22: 0.19 | R22: 0.019 | S22: 0.0095 | U22: 20 | V22: 21 | W22: 0.19 | Z22: 2035 | AA22: 2035 | AR22: Ga. - Married
D23: 0.02 | G23: =0.01+G22 -> 0.2 | I23: =0.01+I22 -> 0.2 | K23: 2036 | L23: 0.2 | R23: 0.02 | S23: 0.01 | U23: 21 | V23: 22 | W23: 0.2 | Z23: 2036 | AA23: 2036 | AR23: Hawaii - Single
D24: 0.021 | G24: =0.01+G23 -> 0.21 | I24: =0.01+I23 -> 0.21 | K24: 2037 | L24: 0.21 | R24: 0.021 | S24: 0.0105 | U24: 22 | V24: 23 | W24: 0.21 | Z24: 2037 | AA24: 2037 | AR24: Hawaii - Married
D25: 0.022 | G25: =0.01+G24 -> 0.22 | I25: =0.01+I24 -> 0.22 | K25: 2038 | L25: 0.22 | R25: 0.022 | S25: 0.011 | U25: 23 | V25: 24 | W25: 0.22 | Z25: 2038 | AA25: 2038 | AR25: Idaho - Single
D26: 0.023 | G26: =0.01+G25 -> 0.23 | I26: =0.01+I25 -> 0.23 | K26: 2039 | L26: 0.23 | R26: 0.023 | S26: 0.0115 | U26: 24 | V26: 25 | W26: 0.23 | Z26: 2039 | AA26: 2039 | AR26: Idaho - Married
D27: 0.024 | G27: =0.01+G26 -> 0.24 | I27: =0.01+I26 -> 0.24 | K27: 2040 | L27: 0.24 | R27: 0.024 | S27: 0.012 | U27: 25 | V27: 26 | W27: 0.24 | Z27: 2040 | AA27: 2040 | AR27: Ill. - Single
D28: 0.025 | G28: =0.01+G27 -> 0.25 | I28: =0.01+I27 -> 0.25 | K28: 2041 | L28: 0.25 | R28: 0.025 | S28: 0.0125 | U28: 26 | V28: 27 | W28: 0.25 | Z28: 2041 | AA28: 2041 | AR28: Ill. - Married
D29: 0.026 | G29: =0.01+G28 -> 0.26 | K29: 2042 | L29: 0.26 | R29: 0.026 | S29: 0.013 | U29: 27 | V29: 28 | Z29: 2042 | AA29: 2042 | AR29: Ind. - Single
D30: 0.027 | G30: =0.01+G29 -> 0.27 | K30: 2043 | L30: 0.27 | R30: 0.027 | S30: 0.0135 | U30: 28 | V30: 29 | Z30: 2043 | AA30: 2043 | AR30: Ind. - Married
D31: 0.028 | G31: =0.01+G30 -> 0.28 | K31: 2044 | L31: 0.28 | R31: 0.028 | S31: 0.014 | U31: 29 | V31: 30 | Z31: 2044 | AA31: 2044 | AR31: Iowa - Single
D32: 0.029 | G32: =0.01+G31 -> 0.29 | K32: 2045 | L32: 0.29 | R32: 0.029 | S32: 0.0145 | U32: 30 | V32: 31 | Z32: 2045 | AA32: 2045 | AR32: Iowa - Married
D33: 0.03 | G33: =0.01+G32 -> 0.3 | K33: 2046 | L33: 0.3 | R33: 0.03 | S33: 0.015 | U33: 31 | V33: 32 | Z33: 2046 | AA33: 2046 | AR33: Kans. - Single
D34: 0.031 | G34: =0.01+G33 -> 0.31 | K34: 2047 | L34: 0.31 | R34: 0.031 | S34: 0.0155 | U34: 32 | V34: 33 | Z34: 2047 | AA34: 2047 | AR34: Kans. - Married
D35: 0.032 | G35: =0.01+G34 -> 0.32 | K35: 2048 | L35: 0.32 | R35: 0.032 | S35: 0.016 | U35: 33 | V35: 34 | Z35: 2048 | AA35: 2048 | AR35: Ky. - Single
D36: 0.033 | G36: =0.01+G35 -> 0.33 | K36: 2049 | L36: 0.33 | R36: 0.033 | S36: 0.0165 | U36: 34 | V36: 35 | Z36: 2049 | AA36: 2049 | AR36: Ky. - Married
D37: 0.034 | G37: =0.01+G36 -> 0.34 | K37: 2050 | L37: 0.34 | R37: 0.034 | S37: 0.017 | U37: 35 | V37: 36 | Z37: 2050 | AA37: 2050 | AR37: La. - Single
D38: 0.035 | G38: =0.01+G37 -> 0.35 | K38: 2051 | L38: 0.35 | R38: 0.035 | S38: 0.0175 | U38: 36 | V38: 37 | Z38: 2051 | AA38: 2051 | AR38: La. - Married
D39: 0.036 | G39: =0.01+G38 -> 0.36 | K39: 2052 | L39: 0.36 | R39: 0.036 | S39: 0.018 | U39: 37 | V39: 38 | Z39: 2052 | AA39: 2052 | AR39: Maine - Single
D40: 0.037 | G40: =0.01+G39 -> 0.37 | K40: 2053 | L40: 0.37 | R40: 0.037 | S40: 0.0185 | U40: 38 | V40: 39 | Z40: 2053 | AA40: 2053 | AR40: Maine - Married
D41: 0.038 | G41: =0.01+G40 -> 0.38 | K41: 2054 | L41: 0.38 | R41: 0.038 | S41: 0.019 | U41: 39 | V41: 40 | Z41: 2054 | AA41: 2054 | AR41: Md. - Single
D42: 0.039 | G42: =0.01+G41 -> 0.39 | K42: 2055 | L42: 0.39 | R42: 0.039 | S42: 0.0195 | U42: 40 | V42: 41 | Z42: 2055 | AA42: 2055 | AR42: Md. - Married
D43: 0.04 | G43: =0.01+G42 -> 0.4 | K43: 2056 | L43: 0.4 | R43: 0.04 | S43: 0.02 | U43: 41 | V43: 42 | Z43: 2056 | AA43: 2056 | AR43: Mass.-Single
D44: 0.041 | G44: =0.01+G43 -> 0.41 | K44: 2057 | L44: 0.41 | R44: 0.041 | U44: 42 | V44: 43 | Z44: 2057 | AA44: 2057 | AR44: Mass. - Married
D45: 0.042 | G45: =0.01+G44 -> 0.42 | K45: 2058 | L45: 0.42 | R45: 0.042 | U45: 43 | V45: 44 | Z45: 2058 | AA45: 2058 | AR45: Mich. - Single
D46: 0.043 | G46: =0.01+G45 -> 0.43 | K46: 2059 | L46: 0.43 | R46: 0.043 | U46: 44 | V46: 45 | Z46: 2059 | AA46: 2059 | AR46: Mich. - Married
D47: 0.044 | G47: =0.01+G46 -> 0.44 | K47: 2060 | L47: 0.44 | R47: 0.044 | U47: 45 | V47: 46 | Z47: 2060 | AA47: 2060 | AR47: Minn. - Single
D48: 0.045 | G48: =0.01+G47 -> 0.45 | K48: 2061 | L48: 0.45 | R48: 0.045 | U48: 46 | V48: 47 | Z48: 2061 | AA48: 2061 | AR48: Minn. - Married
D49: 0.046 | G49: =0.01+G48 -> 0.46 | K49: 2062 | L49: 0.46 | R49: 0.046 | U49: 47 | V49: 48 | Z49: 2062 | AA49: 2062 | AR49: Miss. - Single
D50: 0.047 | G50: =0.01+G49 -> 0.47 | K50: 2063 | L50: 0.47 | R50: 0.047 | U50: 48 | V50: 49 | Z50: 2063 | AA50: 2063 | AR50: Miss. - Married
D51: 0.048 | G51: =0.01+G50 -> 0.48 | K51: 2064 | L51: 0.48 | R51: 0.048 | U51: 49 | V51: 50 | Z51: 2064 | AA51: 2064 | AR51: Mo. - Single
D52: 0.049 | G52: =0.01+G51 -> 0.49 | K52: 2065 | L52: 0.49 | R52: 0.049 | U52: 50 | V52: 51 | Z52: 2065 | AA52: 2065 | AR52: Mo. - Married
D53: 0.05 | G53: =0.01+G52 -> 0.5 | K53: 2066 | L53: 0.5 | R53: 0.05 | U53: 51 | V53: 52 | Z53: =1+Z52 -> 2066 | AA53: 2066 | AR53: Mont. - Single
D54: 0.051 | G54: =0.01+G53 -> 0.51 | K54: 2067 | R54: 0.051 | U54: 52 | V54: 53 | Z54: =1+Z53 -> 2067 | AA54: 2067 | AR54: Mont. - Married
D55: 0.052 | G55: =0.01+G54 -> 0.52 | K55: 2068 | R55: 0.052 | U55: 53 | V55: 54 | Z55: =1+Z54 -> 2068 | AA55: 2068 | AR55: Nebr. - Single
D56: 0.053 | G56: =0.01+G55 -> 0.53 | K56: 2069 | R56: 0.053 | U56: 54 | V56: 55 | Z56: =1+Z55 -> 2069 | AA56: 2069 | AR56: Nebr. - Married
D57: 0.054 | G57: =0.01+G56 -> 0.54 | K57: 2070 | R57: 0.054 | U57: 55 | V57: 56 | Z57: =1+Z56 -> 2070 | AA57: 2070 | AR57: Nev. - Single
D58: 0.055 | G58: =0.01+G57 -> 0.55 | K58: 2071 | R58: 0.055 | U58: 56 | V58: 57 | Z58: =1+Z57 -> 2071 | AA58: 2071 | AR58: Nev. - Married
D59: 0.056 | G59: =0.01+G58 -> 0.56 | K59: 2072 | R59: 0.056 | U59: 57 | V59: 58 | Z59: =1+Z58 -> 2072 | AA59: 2072 | AR59: N.H. - Single
D60: 0.057 | G60: =0.01+G59 -> 0.57 | K60: 2073 | R60: 0.057 | U60: 58 | V60: 59 | Z60: =1+Z59 -> 2073 | AA60: 2073 | AR60: N.H. - Married
D61: 0.058 | G61: =0.01+G60 -> 0.58 | K61: 2074 | R61: 0.058 | U61: 59 | V61: 60 | Z61: =1+Z60 -> 2074 | AA61: 2074 | AR61: N.J. - Single
D62: 0.059 | G62: =0.01+G61 -> 0.59 | K62: 2075 | R62: 0.059 | U62: 60 | V62: 60 | Z62: =1+Z61 -> 2075 | AA62: 2075 | AR62: N.J. - Married
D63: 0.06 | G63: =0.01+G62 -> 0.6 | R63: 0.06 | AR63: N.M. - Single
D64: 0.061 | G64: =0.01+G63 -> 0.61 | R64: 0.061 | AR64: N.M. - Married
D65: 0.062 | G65: =0.01+G64 -> 0.62 | R65: 0.062 | AR65: N.Y. - Single
D66: 0.063 | G66: =0.01+G65 -> 0.63 | R66: 0.063 | AR66: N.Y. - Married
D67: 0.064 | G67: =0.01+G66 -> 0.64 | R67: 0.064 | AR67: N.C. - Single
D68: 0.065 | G68: =0.01+G67 -> 0.65 | R68: 0.065 | AR68: N.C. - Married
D69: =D68+0.001 -> 0.066 | G69: =0.01+G68 -> 0.66 | R69: =0.001+R68 -> 0.066 | AR69: N.D. - Single
D70: 0.067 | G70: =0.01+G69 -> 0.67 | R70: 0.067 | AR70: N.D. - Married
D71: 0.068 | G71: =0.01+G70 -> 0.68 | R71: 0.068 | AR71: Ohio - Single
D72: 0.069 | G72: =0.01+G71 -> 0.69 | R72: 0.069 | AR72: Ohio - Married
D73: 0.07 | G73: =0.01+G72 -> 0.7 | R73: 0.07 | AR73: Okla. - Single
D74: 0.071 | G74: =0.01+G73 -> 0.71 | R74: 0.071 | AR74: Okla. - Married
D75: 0.072 | G75: =0.01+G74 -> 0.72 | R75: 0.072 | AR75: Ore. - Single
D76: 0.073 | G76: =0.01+G75 -> 0.73 | R76: 0.073 | AR76: Ore. - Married
D77: 0.074 | G77: =0.01+G76 -> 0.74 | R77: 0.074 | AR77: Pa. - Single
D78: 0.075 | G78: =0.01+G77 -> 0.75 | R78: 0.075 | AR78: Pa. - Married
D79: 0.076 | G79: =0.01+G78 -> 0.76 | R79: 0.076 | AR79: R.I. - Single
D80: 0.077 | G80: =0.01+G79 -> 0.77 | R80: 0.077 | AR80: R.I. - Married
D81: 0.078 | G81: =0.01+G80 -> 0.78 | R81: 0.078 | AR81: S.C. - Single
D82: 0.079 | G82: =0.01+G81 -> 0.79 | R82: 0.079 | AR82: S.C. - Married
D83: 0.08 | G83: =0.01+G82 -> 0.8 | R83: 0.08 | AR83: S.D. - Single
D84: 0.081 | G84: =0.01+G83 -> 0.81 | R84: 0.081 | AR84: S.D. - Married
D85: 0.082 | G85: =0.01+G84 -> 0.82 | R85: 0.082 | AR85: Tenn. - Single
D86: 0.083 | G86: =0.01+G85 -> 0.83 | R86: 0.083 | AR86: Tenn. - Married
D87: 0.084 | G87: =0.01+G86 -> 0.84 | R87: 0.084 | AR87: Tex.. - Single
D88: 0.085 | G88: =0.01+G87 -> 0.85 | R88: 0.085 | AR88: Tex. - Married
D89: 0.086 | G89: =0.01+G88 -> 0.86 | R89: 0.086 | AR89: Utah - Single
D90: 0.087 | G90: =0.01+G89 -> 0.87 | R90: 0.087 | AR90: Utah - Married
D91: 0.088 | G91: =0.01+G90 -> 0.88 | R91: 0.088 | AR91: Vt. - Single
D92: 0.089 | G92: =0.01+G91 -> 0.89 | R92: 0.089 | AR92: Vt. - Married
D93: 0.09 | G93: =0.01+G92 -> 0.9 | R93: 0.09 | AR93: Va. - Single
D94: 0.091 | G94: =0.01+G93 -> 0.91 | R94: 0.091 | AR94: Va. - Married
D95: 0.092 | G95: =0.01+G94 -> 0.92 | R95: 0.092 | AR95: Wash. - Single
D96: 0.093 | G96: =0.01+G95 -> 0.93 | R96: 0.093 | AR96: Wash. - Married
D97: 0.094 | G97: =0.01+G96 -> 0.94 | R97: 0.094 | AR97: W.Va. - Single
D98: 0.095 | G98: =0.01+G97 -> 0.95 | R98: 0.095 | AR98: W.Va. - Married
D99: 0.096 | G99: =0.01+G98 -> 0.96 | R99: 0.096 | AR99: Wis. - Single
D100: 0.097 | G100: =0.01+G99 -> 0.97 | R100: 0.097 | AR100: Wis. - Married
D101: 0.098 | G101: 0.98 | R101: 0.098 | AR101: Wyo. - Single
D102: 0.099 | G102: 0.99 | R102: 0.099 | AR102: Wyo. - Married
D103: =D102+0.001 -> 0.1 | R103: 0.1 | AR103: D.C. - Single
R104: 0.101 | AR104: D.C. - Married
R105: 0.102
R106: 0.103
R107: 0.104
R108: 0.105
R109: 0.106
R110: 0.107
R111: 0.108
R112: 0.109
R113: 0.11
R114: 0.111
R115: 0.112
R116: 0.113
R117: 0.114
R118: 0.115
R119: 0.116
R120: 0.117
R121: 0.118
R122: 0.119
R123: 0.12
R124: 0.121
R125: 0.122
R126: 0.123
R127: 0.124
R128: 0.125
R129: 0.126
R130: 0.127
R131: 0.128
R132: 0.129
R133: =0.001+R132 -> 0.13
R134: 0.131
R135: 0.132
R136: 0.133
R137: 0.134
R138: 0.135
R139: 0.136
R140: 0.137
R141: 0.138
R142: 0.139
R143: 0.14
R144: 0.141
R145: 0.142
R146: 0.143
R147: 0.144
R148: 0.145
R149: 0.146
R150: 0.147
R151: 0.148
R152: 0.149
R153: 0.15

Sheet GENERAL ASSUMPTIONS+
A1: =C10 -> BETA 05142017 - FOR TESTING ONLY
A5: GENERAL ASSUMPTIONS
A10: SCENARIO | C10: BETA 05142017 - FOR TESTING ONLY
C13: © 2016 GROSSMAN FINANCIAL MANAGEMENT
C16: PERSONAL FINANCIAL CALCULATING PROGRAM™
A18: PERSON1 NAME (older) | B18: =IF(C22-C23>0,"age","") ->  | C18: PERSON1
A19: PERSON2 NAME | B19: =IF(C22-C23>0,"error","") ->  | C19: PERSON2 | M19: MEDICAL AGI THRESHOLD =f(BIRTHDATE)
M20: MAT BIRTHDATE | O20: DAYS OLDER(YOUNGER | P20: OLDER? | Q20: EITHER?
A22: PERSON1 BIRTH DATE | B22: =IF(E22=TRUE,"","error") ->  | C22: 2000-01-01 | E22: =ISNUMBER(C22) -> TRUE | M22: 1949-01-01 | N22: =-C22-M22 -> -54425 | O22: =M22-C22 -> -18627 | P22: =IF(O22>0,1,0) -> 0
A23: PERSON2 BIRTH DATE | B23: =IF(E23=TRUE,"","error") ->  | C23: =C22 -> 2000-01-01 | E23: =ISNUMBER(C23) -> TRUE | M23: 1949-01-01 | N23: =-C23-M23 -> -54425 | O23: =M23-C23 -> -18627 | P23: =IF(O23>0,1,0) -> 0 | Q23: =IF((P23+P22)>0,1,0) -> 0
A26: INFLATION | C26: 0
A28: FED TAX FILING STATUS (S=single; M=married) | B28: =IF(C28="S","",IF(C28="M","","error: enter S or M")) ->  | C28: S
A30: USE FEDERAL TAX TABLE OR SET MANUALLY (T=tax table, M=manual) | C30: T
A31: SET MANUAL AVERAGE FED TAX RATE (if applicable) | C31: 0 | D31: =ISNUMBER(C31) -> TRUE
A32: TAX FILING STATE
A33: ONLY CALIFORNIA TAX TABLES CURRENTLY AVAILABLE
A34: SELECT STATE TAX CATEGORY,TO USE TAX TABLE | C34: Calif. - Single
A35: SET MANUAL AVERAGE STATE TAX RATE (if applicable) | C35: 0 | D35: =ISNUMBER(C35) -> TRUE
A36: BASE YEAR | B36: =IF(D36=TRUE,"","error ->") ->  | C36: 2016 | D36: TRUE
A37: NUMBER OF PERSONAL EXEMPTIONS - BASE YEAR | B37: =IF(D37=TRUE,"","error") ->  | C37: 0 | D37: TRUE
A38: LATER YEAR | C38: 2076 | D38: TRUE
A39: NUMBER OF PERSONAL EXEMPTIONS - LATER YEAR | C39: 0 | D39: TRUE
A40: QUALIFIED/IRA TAX RATE | C40: 0.25 | D40: TRUE
A41: STATE TAX PAID THE YEAR BEFORE BASE YEAR | C41: 0
A46: SOCIAL SECURITY OPTIONS - MONTHLY BENEFIT | C46: age 62 | D46: age 63 | E46: age 64 | F46: age 65 | G46: age 66 | H46: age 67 | I46: age 68 | J46: age 69 | K46: age 70
A47: =IF(C18="","",C18) -> PERSON1 | C47: 0 | D47: 0 | E47: 0 | F47: 0 | G47: 0 | H47: 0 | I47: 0 | J47: 0 | K47: 0
A48: =IF(C19="","",C19) -> PERSON2 | C48: 0 | D48: 0 | E48: 0 | F48: 0 | G48: 0 | H48: 0 | I48: 0 | J48: 0 | K48: 0
C49: =IF(C50=TRUE,IF(C51=TRUE,"","error: enter number"),"error: enter number") ->  | D49: =IF(D50=TRUE,IF(D51=TRUE,"","error: enter number"),"error: enter number") -> 
C50: =ISNUMBER(C47) -> TRUE | D50: =ISNUMBER(D47) -> TRUE | E50: TRUE | F50: TRUE | G50: TRUE | H50: TRUE | I50: TRUE | J50: TRUE | K50: TRUE
A51: cfm-ver-pub-082016 | C51: =ISNUMBER(C48) -> TRUE | D51: TRUE | E51: TRUE | F51: TRUE | G51: TRUE | H51: TRUE | I51: TRUE | J51: TRUE | K51: TRUE

Sheet GENERAL ASSUMPTIONS (hidden)
A1: =C10 -> BETA 05142017 - FOR TESTING ONLY
A5: GENERAL ASSUMPTIONS
A10: CLIENT TITLE | C10: ='GENERAL ASSUMPTIONS+'!C10 -> BETA 05142017 - FOR TESTING ONLY
A13: SCENARIO | C13: © 2016 GROSSMAN FINANCIAL MANAGEMENT
A16: VERSION (DATE) | C16: PERSONAL FINANCIAL CALCULATING PROGRAM™
A19: CLIENT 1 NAME (older) | C19: ='GENERAL ASSUMPTIONS+'!C18 -> PERSON1
A20: CLIENT 2 NAME | C20: ='GENERAL ASSUMPTIONS+'!C19 -> PERSON2 | M20: MEDICAL AGI THRESHOLD =f(BIRTHDATE)
M21: MAT BIRTHDATE | O21: DAYS OLDER(YOUNGER | P21: OLDER? | Q21: EITHER?
A23: CLIENT 1 BIRTH DATE | C23: ='GENERAL ASSUMPTIONS+'!C22 -> 2000-01-01 | M23: 1949-01-01 | N23: =-C23-M23 -> -54425 | O23: =M23-C23 -> -18627 | P23: =IF(O23>0,1,0) -> 0
A24: CLIENT 2 BIRTH DATE | C24: ='GENERAL ASSUMPTIONS+'!C23 -> 2000-01-01 | M24: 1949-01-01 | N24: =-C24-M24 -> -54425 | O24: =M24-C24 -> -18627 | P24: =IF(O24>0,1,0) -> 0 | Q24: =IF((P24+P23)>0,1,0) -> 0
A27: CLIENT AGE | C27: =(baseyear*365.25-C23)/365.25-1900 -> 15.99726215
A28: CLIENT 2 AGE | C28: =IF(C24>0,(baseyear*365.25-C24)/365.25-1900,"need 2nd birthdate") -> 15.99726215
A30: FORECAST YEARS | C30: 60
A32: INFLATION | C32: ='GENERAL ASSUMPTIONS+'!C26 -> 0
A34: TAX FILING STATUS (S=single; M=married) | C34: =IF('GENERAL ASSUMPTIONS+'!C28="S","S",IF('GENERAL ASSUMPTIONS+'!C28="M","M","error")) -> S
A35: USE FEDERAL TAX TABLE OR SET MANUALLY (T=tax table, M=manual) | C35: ='GENERAL ASSUMPTIONS+'!C30 -> T
A36: SET MANUAL AVERAGE FED TAX RATE (if applicable) | C36: ='GENERAL ASSUMPTIONS+'!C31 -> 0 | D36: =ISNUMBER(C36) -> TRUE
A38: TAX FILING STATE | C38: ONLY CALIFORNIA TAX TABLES CURRENTLY AVAILABLE
A39: USE CALIFORNIA OR STATE TAX ALTERNATIVE (ENTER A OR C)? | C39: ='GENERAL ASSUMPTIONS+'!C34 -> Calif. - Single
A40: SET ALTERNATIVE STATE TAX AVERAGE RATE (%) | C40: ='GENERAL ASSUMPTIONS+'!C35 -> 0
A41: TAX RATE CHANGE (% POINTS UP/DOWN)
A42: BASE YEAR | C42: ='GENERAL ASSUMPTIONS+'!C36 -> 2016
A43: NUMBER OF PERSONAL EXEMPTIONS - BASE | C43: ='GENERAL ASSUMPTIONS+'!C37 -> 0
A44: LATER YEAR | C44: ='GENERAL ASSUMPTIONS+'!C38 -> 2076
A45: NUMBER OF PERSONAL EXEMPTIONS - LATER | C45: ='GENERAL ASSUMPTIONS+'!C39 -> 0
A46: STATE TAX PAID YEAR BEFORE BASE YEAR | C46: ='GENERAL ASSUMPTIONS+'!C41 -> 0
A49: RMD BEGINNING YEAR - CLIENT 1 (older) | C49: =ROUNDDOWN(1900+C23/365.25+70.5,0) -> 2070
A50: RMD BEGINNING YEAR - CLIENT 2 | C50: =ROUNDDOWN(1900+C24/365.25+70.5,0) -> 2070
A51: DRAW TRADITIONAL OR ROTH IRA FIRST? ("T" or "R") | C51: R
A53: Social Security Options - Monthly Benefit | C53: age 62 | D53: age 63 | E53: age 64 | F53: age 65 | G53: age 66 | H53: age 67 | I53: age 68 | J53: age 69 | K53: age 70
A54: =IF(C19="","",C19) -> PERSON1 | C54: ='GENERAL ASSUMPTIONS+'!C47 -> 0 | D54: ='GENERAL ASSUMPTIONS+'!D47 -> 0 | E54: ='GENERAL ASSUMPTIONS+'!E47 -> 0 | F54: ='GENERAL ASSUMPTIONS+'!F47 -> 0 | G54: ='GENERAL ASSUMPTIONS+'!G47 -> 0 | H54: ='GENERAL ASSUMPTIONS+'!H47 -> 0 | I54: ='GENERAL ASSUMPTIONS+'!I47 -> 0 | J54: ='GENERAL ASSUMPTIONS+'!J47 -> 0 | K54: ='GENERAL ASSUMPTIONS+'!K47 -> 0
A55: =IF(C20="","",C20) -> PERSON2 | C55: ='GENERAL ASSUMPTIONS+'!C48 -> 0 | D55: ='GENERAL ASSUMPTIONS+'!D48 -> 0 | E55: ='GENERAL ASSUMPTIONS+'!E48 -> 0 | F55: ='GENERAL ASSUMPTIONS+'!F48 -> 0 | G55: ='GENERAL ASSUMPTIONS+'!G48 -> 0 | H55: ='GENERAL ASSUMPTIONS+'!H48 -> 0 | I55: ='GENERAL ASSUMPTIONS+'!I48 -> 0 | J55: ='GENERAL ASSUMPTIONS+'!J48 -> 0 | K55: ='GENERAL ASSUMPTIONS+'!K48 -> 0
A57: ESTATE ASSUMPTIONS
A58: TAXABLE LIFE INSURANCE
A59: QUALIFIED/IRA TAX RATE | C59: ='GENERAL ASSUMPTIONS+'!C40 -> 0.25
A60: USE 2ND APPLICABLE EXCLUSION AMOUNT
A61: LIVING TRUST ESTATE COST(0.5%)
A62: PROBATE ESTATE COST (2.0%)
A63: ESTATE DOCUMENTATION
C64: Will | D64: Trust | E64: POA-Health | F64: POA-Finance | G64: Health Directive | H64: letter | I64: other | J64: other
A66: cfm-ver-04012016

Sheet INVESTMENTS+
B1: ='GENERAL ASSUMPTIONS'!C10 -> BETA 05142017 - FOR TESTING ONLY
B3: INVESTMENT ASSETS
D6: ='GENERAL ASSUMPTIONS'!$C$13 -> © 2016 GROSSMAN FINANCIAL MANAGEMENT | G6: INVESTMENT CHARACTERISTICS
D8: ='GENERAL ASSUMPTIONS'!$C$16 -> PERSONAL FINANCIAL CALCULATING PROGRAM™ | G8: TAXABLE PORTFOLIO | K8: ROTH IRA | O8: TRADITIONAL IRA / QUAL PLAN
B9: ACCOUNT | D9: RMD PERSON (1 or 2) | E9: AMOUNT | G9: Cash | H9: Bonds | I9: Stocks | J9: Alternates | K9: =G9 -> Cash | L9: Bonds | M9: Stocks | N9: Alternates | O9: Cash | P9: Bonds | Q9: Stocks | R9: Alternates
B11: TOTALS -> | E11: =SUM(E12:E33) -> 0.01 | G11: =SUM(G12:G33) -> 0.0008333333333 | H11: 0.0008333333333 | I11: 0.0008333333333 | J11: 0.0008333333333 | K11: 0.0008333333333 | L11: 0.0008333333333 | M11: 0.0008333333333 | N11: 0.0008333333333 | O11: 0.0008333333333 | P11: 0.0008333333333 | Q11: 0.0008333333333 | R11: 0.0008333333333 | T11: client 1 | U11: client 2
B12: IA1 | C12: =IF(SUM(O12:R12)>0,IF(D12=1,"",IF(D12=2,"","enter ->")),"") ->  | E12: =SUM(G12:R12) -> 0 | T12: =IF(D12=1,E12,0) -> 0 | U12: =IF(D12=2,E12,0) -> 0
B13: IA2 | E13: =SUM(G13:R13) -> 0 | T13: 0 | U13: 0
B14: IA3 | E14: 0 | T14: 0 | U14: 0
B15: IA4 | E15: 0 | T15: 0 | U15: 0
B16: IA5 | E16: 0 | T16: 0 | U16: 0
B17: IA6 | E17: 0 | T17: 0 | U17: 0
B18: IA7 | E18: 0 | T18: 0 | U18: 0
B19: IA8 | E19: 0 | T19: 0 | U19: 0
B20: IA9 | E20: 0 | T20: 0 | U20: 0
B21: IA10 | C21: =IF(SUM(O21:R21)>0,IF(D21=1,"",IF(D21=2,"","enter ->")),"") ->  | E21: 0 | T21: 0 | U21: 0
B22: IA11 | C22: =IF(SUM(O22:R22)>0,IF(D22=1,"",IF(D22=2,"","enter ->")),"") ->  | E22: 0 | T22: 0 | U22: 0
B23: IA12 | E23: 0 | T23: 0 | U23: 0
B24: IA13 | E24: 0 | T24: 0 | U24: 0
B25: IA14 | E25: 0 | T25: 0 | U25: 0
B26: IA15 | E26: 0 | T26: 0 | U26: 0
B27: IA16 | E27: 0 | T27: 0 | U27: 0
B28: IA17 | E28: 0 | T28: 0 | U28: 0
B29: IA18 | E29: 0 | T29: 0 | U29: 0
B30: IA19 | E30: 0 | T30: 0 | U30: 0
B31: IA20 | E31: 0 | T31: 0 | U31: 0
E32: 0 | F32: =IF((SUM(G32:R32)-E32)<0.1,IF((SUM(G32:R32)-E32)>-0.1,"","ERROR")) ->  | T32: 0 | U32: 0
E33: =0.01*1 -> 0.01 | F33: =IF((SUM(G33:R33)-E33)=0,"","ERROR") ->  | G33: =E33/12 -> 0.0008333333333 | H33: =G33 -> 0.0008333333333 | I33: 0.0008333333333 | J33: 0.0008333333333 | K33: 0.0008333333333 | L33: 0.0008333333333 | M33: 0.0008333333333 | N33: 0.0008333333333 | O33: 0.0008333333333 | P33: 0.0008333333333 | Q33: 0.0008333333333 | R33: 0.0008333333333
B37: CURRENT ASSET ALLOCATION | G37: ASSET CLASS RETURN ASSUMPTIONS (before expenses) | N37: INVESTMENT | P37: SCENARIO
G38: =INVESTMENTS!F39 ->  | H38: =INVESTMENTS!G39 ->  | I38: =G9 -> Cash | J38: =H9 -> Bonds | K38: =I9 -> Stocks | L38: =J9 -> Alternates | N38: EXPENSES | P38: SCENARIO: CURRENT (C), ALTERNATE (A) OR MONTE CARLO (MC). | R38: C
G39: INFLATION PLUS ('real return") | I39: 0 | J39: 0 | K39: 0 | L39: 0 | N39: PERCENT AUM
G40: INFLATION AT | I40: ='GENERAL ASSUMPTIONS'!C32 -> 0 | J40: =I40 -> 0 | K40: =J40 -> 0 | L40: =K40 -> 0 | N40: 0
G41: TOTAL RETURN | I41: =I40+I39 -> 0 | J41: =J40+J39 -> 0 | K41: =K40+K39 -> 0 | L41: =L40+L39 -> 0
G43: TOTALS %
G45: PORTFOLIO EXPECTED RETURN (net expenses) | L45: SCENARIO | O45: ALTERNATE PERIODS - PORTFOLIO EXPECTED RETURNS (net expenses)
I46: CURRENT | L46: =INVESTMENTS!L47 -> CURRENT | P46: THRU | Q46: THRU | R46: LATER
G47: TAXABLE PORTFOLIO | I47: =INVESTMENTS!H48 -> 0 | L47: =INVESTMENTS!L48 -> 0 | O47: YEAR | P47: 1 | Q47: 2 | R47: =Q47+1 -> 3
G48: ROTH IRA | I48: =INVESTMENTS!H49 -> 0 | L48: =INVESTMENTS!L49 -> 0 | O48: RATE | P48: 0.0001 | Q48: 0.0001 | R48: 0.0001
G49: TRADITIONAL IRA | I49: =INVESTMENTS!H50 -> 0 | L49: =INVESTMENTS!L50 -> 0 | O49: RISK | P49: 0.0001 | Q49: 0.0001 | R49: 0.0001
Q50: =IF((Q47-P47)<1,"error - year","") -> 

Sheet INVESTMENTS (hidden)
B1: ='GENERAL ASSUMPTIONS'!C10 -> BETA 05142017 - FOR TESTING ONLY
B3: INVESTMENT ASSETS & ASSUMPTIONS
D6: ='GENERAL ASSUMPTIONS'!$C$13 -> © 2016 GROSSMAN FINANCIAL MANAGEMENT | F6: INVESTMENT CHARACTERISTICS
D8: ='GENERAL ASSUMPTIONS'!$C$16 -> PERSONAL FINANCIAL CALCULATING PROGRAM™ | F8: TAXABLE PORTFOLIO | J8: ROTH IRA | N8: TRADITIONAL IRA / QUAL PLAN
B9: ACCOUNT | C9: RMD CLIENT? (1 or 2) | D9: AMOUNT | F9: Cash | G9: Bonds | H9: Stocks | I9: Alternates | J9: =F9 -> Cash | K9: =G9 -> Bonds | L9: Stocks | M9: Alternates | N9: Cash | O9: Bonds | P9: Stocks | Q9: Alternates
E10: =IF((SUM(F10:Q10)-D10)=0,"","ERROR") -> 
B11: TOTALS | D11: =SUM(D12:D33) -> 0.01 | E11: =IF((SUM(F11:Q11)-D11)<1,IF((SUM(F11:Q11)-D11)>-1,"","ERROR"),"ERROR") ->  | F11: =SUM(F12:F33) -> 0.0008333333333 | G11: 0.0008333333333 | H11: 0.0008333333333 | I11: 0.0008333333333 | J11: 0.0008333333333 | K11: 0.0008333333333 | L11: 0.0008333333333 | M11: 0.0008333333333 | N11: 0.0008333333333 | O11: 0.0008333333333 | P11: 0.0008333333333 | Q11: 0.0008333333333 | S11: client 1 | T11: client 2
B12: ='INVESTMENTS+'!B12 -> IA1 | C12: ='INVESTMENTS+'!D12 -> 0 | D12: ='INVESTMENTS+'!E12 -> 0 | E12: =IF((SUM(F12:Q12)-D12)=0,"","ERROR") ->  | F12: ='INVESTMENTS+'!G12 -> 0 | G12: ='INVESTMENTS+'!H12 -> 0 | H12: ='INVESTMENTS+'!I12 -> 0 | I12: ='INVESTMENTS+'!J12 -> 0 | J12: ='INVESTMENTS+'!K12 -> 0 | K12: ='INVESTMENTS+'!L12 -> 0 | L12: ='INVESTMENTS+'!M12 -> 0 | M12: ='INVESTMENTS+'!N12 -> 0 | N12: ='INVESTMENTS+'!O12 -> 0 | O12: ='INVESTMENTS+'!P12 -> 0 | P12: ='INVESTMENTS+'!Q12 -> 0 | Q12: ='INVESTMENTS+'!R12 -> 0 | S12: =IF(C12=1,D12,0) -> 0 | T12: =IF(C12=2,D12,0) -> 0
B13: ='INVESTMENTS+'!B13 -> IA2 | C13: ='INVESTMENTS+'!D13 -> 0 | D13: ='INVESTMENTS+'!E13 -> 0 | F13: ='INVESTMENTS+'!G13 -> 0 | G13: ='INVESTMENTS+'!H13 -> 0 | H13: ='INVESTMENTS+'!I13 -> 0 | I13: ='INVESTMENTS+'!J13 -> 0 | J13: ='INVESTMENTS+'!K13 -> 0 | K13: ='INVESTMENTS+'!L13 -> 0 | L13: ='INVESTMENTS+'!M13 -> 0 | M13: ='INVESTMENTS+'!N13 -> 0 | N13: ='INVESTMENTS+'!O13 -> 0 | O13: ='INVESTMENTS+'!P13 -> 0 | P13: ='INVESTMENTS+'!Q13 -> 0 | Q13: ='INVESTMENTS+'!R13 -> 0 | S13: =IF(C13=1,D13,0) -> 0 | T13: =IF(C13=2,D13,0) -> 0
B14: ='INVESTMENTS+'!B14 -> IA3 | C14: ='INVESTMENTS+'!D14 -> 0 | D14: ='INVESTMENTS+'!E14 -> 0 | F14: ='INVESTMENTS+'!G14 -> 0 | G14: ='INVESTMENTS+'!H14 -> 0 | H14: ='INVESTMENTS+'!I14 -> 0 | I14: ='INVESTMENTS+'!J14 -> 0 | J14: ='INVESTMENTS+'!K14 -> 0 | K14: ='INVESTMENTS+'!L14 -> 0 | L14: ='INVESTMENTS+'!M14 -> 0 | M14: ='INVESTMENTS+'!N14 -> 0 | N14: ='INVESTMENTS+'!O14 -> 0 | O14: ='INVESTMENTS+'!P14 -> 0 | P14: ='INVESTMENTS+'!Q14 -> 0 | Q14: ='INVESTMENTS+'!R14 -> 0 | S14: 0 | T14: =IF(C14=2,D14,0) -> 0
B15: ='INVESTMENTS+'!B15 -> IA4 | C15: ='INVESTMENTS+'!D15 -> 0 | D15: ='INVESTMENTS+'!E15 -> 0 | F15: ='INVESTMENTS+'!G15 -> 0 | G15: ='INVESTMENTS+'!H15 -> 0 | H15: ='INVESTMENTS+'!I15 -> 0 | I15: ='INVESTMENTS+'!J15 -> 0 | J15: ='INVESTMENTS+'!K15 -> 0 | K15: ='INVESTMENTS+'!L15 -> 0 | L15: ='INVESTMENTS+'!M15 -> 0 | M15: ='INVESTMENTS+'!N15 -> 0 | N15: ='INVESTMENTS+'!O15 -> 0 | O15: ='INVESTMENTS+'!P15 -> 0 | P15: ='INVESTMENTS+'!Q15 -> 0 | Q15: ='INVESTMENTS+'!R15 -> 0 | S15: 0 | T15: 0
B16: ='INVESTMENTS+'!B16 -> IA5 | C16: ='INVESTMENTS+'!D16 -> 0 | D16: ='INVESTMENTS+'!E16 -> 0 | F16: ='INVESTMENTS+'!G16 -> 0 | G16: ='INVESTMENTS+'!H16 -> 0 | H16: ='INVESTMENTS+'!I16 -> 0 | I16: ='INVESTMENTS+'!J16 -> 0 | J16: ='INVESTMENTS+'!K16 -> 0 | K16: ='INVESTMENTS+'!L16 -> 0 | L16: ='INVESTMENTS+'!M16 -> 0 | M16: ='INVESTMENTS+'!N16 -> 0 | N16: ='INVESTMENTS+'!O16 -> 0 | O16: ='INVESTMENTS+'!P16 -> 0 | P16: ='INVESTMENTS+'!Q16 -> 0 | Q16: ='INVESTMENTS+'!R16 -> 0 | S16: 0 | T16: 0
B17: ='INVESTMENTS+'!B17 -> IA6 | C17: ='INVESTMENTS+'!D17 -> 0 | D17: ='INVESTMENTS+'!E17 -> 0 | F17: ='INVESTMENTS+'!G17 -> 0 | G17: ='INVESTMENTS+'!H17 -> 0 | H17: ='INVESTMENTS+'!I17 -> 0 | I17: ='INVESTMENTS+'!J17 -> 0 | J17: ='INVESTMENTS+'!K17 -> 0 | K17: ='INVESTMENTS+'!L17 -> 0 | L17: ='INVESTMENTS+'!M17 -> 0 | M17: ='INVESTMENTS+'!N17 -> 0 | N17: ='INVESTMENTS+'!O17 -> 0 | O17: ='INVESTMENTS+'!P17 -> 0 | P17: ='INVESTMENTS+'!Q17 -> 0 | Q17: ='INVESTMENTS+'!R17 -> 0 | S17: 0 | T17: 0
B18: ='INVESTMENTS+'!B18 -> IA7 | C18: ='INVESTMENTS+'!D18 -> 0 | D18: ='INVESTMENTS+'!E18 -> 0 | F18: ='INVESTMENTS+'!G18 -> 0 | G18: ='INVESTMENTS+'!H18 -> 0 | H18: ='INVESTMENTS+'!I18 -> 0 | I18: ='INVESTMENTS+'!J18 -> 0 | J18: ='INVESTMENTS+'!K18 -> 0 | K18: ='INVESTMENTS+'!L18 -> 0 | L18: ='INVESTMENTS+'!M18 -> 0 | M18: ='INVESTMENTS+'!N18 -> 0 | N18: ='INVESTMENTS+'!O18 -> 0 | O18: ='INVESTMENTS+'!P18 -> 0 | P18: ='INVESTMENTS+'!Q18 -> 0 | Q18: ='INVESTMENTS+'!R18 -> 0 | S18: 0 | T18: 0
B19: ='INVESTMENTS+'!B19 -> IA8 | C19: ='INVESTMENTS+'!D19 -> 0 | D19: ='INVESTMENTS+'!E19 -> 0 | F19: ='INVESTMENTS+'!G19 -> 0 | G19: ='INVESTMENTS+'!H19 -> 0 | H19: ='INVESTMENTS+'!I19 -> 0 | I19: ='INVESTMENTS+'!J19 -> 0 | J19: ='INVESTMENTS+'!K19 -> 0 | K19: ='INVESTMENTS+'!L19 -> 0 | L19: ='INVESTMENTS+'!M19 -> 0 | M19: ='INVESTMENTS+'!N19 -> 0 | N19: ='INVESTMENTS+'!O19 -> 0 | O19: ='INVESTMENTS+'!P19 -> 0 | P19: ='INVESTMENTS+'!Q19 -> 0 | Q19: ='INVESTMENTS+'!R19 -> 0 | S19: 0 | T19: 0
B20: ='INVESTMENTS+'!B20 -> IA9 | C20: ='INVESTMENTS+'!D20 -> 0 | D20: ='INVESTMENTS+'!E20 -> 0 | F20: ='INVESTMENTS+'!G20 -> 0 | G20: ='INVESTMENTS+'!H20 -> 0 | H20: ='INVESTMENTS+'!I20 -> 0 | I20: ='INVESTMENTS+'!J20 -> 0 | J20: ='INVESTMENTS+'!K20 -> 0 | K20: ='INVESTMENTS+'!L20 -> 0 | L20: ='INVESTMENTS+'!M20 -> 0 | M20: ='INVESTMENTS+'!N20 -> 0 | N20: ='INVESTMENTS+'!O20 -> 0 | O20: ='INVESTMENTS+'!P20 -> 0 | P20: ='INVESTMENTS+'!Q20 -> 0 | Q20: ='INVESTMENTS+'!R20 -> 0 | S20: 0 | T20: 0
B21: ='INVESTMENTS+'!B21 -> IA10 | C21: ='INVESTMENTS+'!D21 -> 0 | D21: ='INVESTMENTS+'!E21 -> 0 | F21: ='INVESTMENTS+'!G21 -> 0 | G21: ='INVESTMENTS+'!H21 -> 0 | H21: ='INVESTMENTS+'!I21 -> 0 | I21: ='INVESTMENTS+'!J21 -> 0 | J21: ='INVESTMENTS+'!K21 -> 0 | K21: ='INVESTMENTS+'!L21 -> 0 | L21: ='INVESTMENTS+'!M21 -> 0 | M21: ='INVESTMENTS+'!N21 -> 0 | N21: ='INVESTMENTS+'!O21 -> 0 | O21: ='INVESTMENTS+'!P21 -> 0 | P21: ='INVESTMENTS+'!Q21 -> 0 | Q21: ='INVESTMENTS+'!R21 -> 0 | S21: 0 | T21: 0
B22: ='INVESTMENTS+'!B22 -> IA11 | C22: ='INVESTMENTS+'!D22 -> 0 | D22: ='INVESTMENTS+'!E22 -> 0 | F22: ='INVESTMENTS+'!G22 -> 0 | G22: ='INVESTMENTS+'!H22 -> 0 | H22: ='INVESTMENTS+'!I22 -> 0 | I22: ='INVESTMENTS+'!J22 -> 0 | J22: ='INVESTMENTS+'!K22 -> 0 | K22: ='INVESTMENTS+'!L22 -> 0 | L22: ='INVESTMENTS+'!M22 -> 0 | M22: ='INVESTMENTS+'!N22 -> 0 | N22: ='INVESTMENTS+'!O22 -> 0 | O22: ='INVESTMENTS+'!P22 -> 0 | P22: ='INVESTMENTS+'!Q22 -> 0 | Q22: ='INVESTMENTS+'!R22 -> 0 | S22: 0 | T22: 0
B23: ='INVESTMENTS+'!B23 -> IA12 | C23: ='INVESTMENTS+'!D23 -> 0 | D23: ='INVESTMENTS+'!E23 -> 0 | F23: ='INVESTMENTS+'!G23 -> 0 | G23: ='INVESTMENTS+'!H23 -> 0 | H23: ='INVESTMENTS+'!I23 -> 0 | I23: ='INVESTMENTS+'!J23 -> 0 | J23: ='INVESTMENTS+'!K23 -> 0 | K23: ='INVESTMENTS+'!L23 -> 0 | L23: ='INVESTMENTS+'!M23 -> 0 | M23: ='INVESTMENTS+'!N23 -> 0 | N23: ='INVESTMENTS+'!O23 -> 0 | O23: ='INVESTMENTS+'!P23 -> 0 | P23: ='INVESTMENTS+'!Q23 -> 0 | Q23: ='INVESTMENTS+'!R23 -> 0 | S23: 0 | T23: 0
B24: ='INVESTMENTS+'!B24 -> IA13 | C24: ='INVESTMENTS+'!D24 -> 0 | D24: ='INVESTMENTS+'!E24 -> 0 | F24: ='INVESTMENTS+'!G24 -> 0 | G24: ='INVESTMENTS+'!H24 -> 0 | H24: ='INVESTMENTS+'!I24 -> 0 | I24: ='INVESTMENTS+'!J24 -> 0 | J24: ='INVESTMENTS+'!K24 -> 0 | K24: ='INVESTMENTS+'!L24 -> 0 | L24: ='INVESTMENTS+'!M24 -> 0 | M24: ='INVESTMENTS+'!N24 -> 0 | N24: ='INVESTMENTS+'!O24 -> 0 | O24: ='INVESTMENTS+'!P24 -> 0 | P24: ='INVESTMENTS+'!Q24 -> 0 | Q24: ='INVESTMENTS+'!R24 -> 0 | S24: 0 | T24: 0
B25: ='INVESTMENTS+'!B25 -> IA14 | C25: ='INVESTMENTS+'!D25 -> 0 | D25: ='INVESTMENTS+'!E25 -> 0 | F25: ='INVESTMENTS+'!G25 -> 0 | G25: ='INVESTMENTS+'!H25 -> 0 | H25: ='INVESTMENTS+'!I25 -> 0 | I25: ='INVESTMENTS+'!J25 -> 0 | J25: ='INVESTMENTS+'!K25 -> 0 | K25: ='INVESTMENTS+'!L25 -> 0 | L25: ='INVESTMENTS+'!M25 -> 0 | M25: ='INVESTMENTS+'!N25 -> 0 | N25: ='INVESTMENTS+'!O25 -> 0 | O25: ='INVESTMENTS+'!P25 -> 0 | P25: ='INVESTMENTS+'!Q25 -> 0 | Q25: ='INVESTMENTS+'!R25 -> 0 | S25: 0 | T25: 0
B26: ='INVESTMENTS+'!B26 -> IA15 | C26: ='INVESTMENTS+'!D26 -> 0 | D26: ='INVESTMENTS+'!E26 -> 0 | F26: ='INVESTMENTS+'!G26 -> 0 | G26: ='INVESTMENTS+'!H26 -> 0 | H26: ='INVESTMENTS+'!I26 -> 0 | I26: ='INVESTMENTS+'!J26 -> 0 | J26: ='INVESTMENTS+'!K26 -> 0 | K26: ='INVESTMENTS+'!L26 -> 0 | L26: ='INVESTMENTS+'!M26 -> 0 | M26: ='INVESTMENTS+'!N26 -> 0 | N26: ='INVESTMENTS+'!O26 -> 0 | O26: ='INVESTMENTS+'!P26 -> 0 | P26: ='INVESTMENTS+'!Q26 -> 0 | Q26: ='INVESTMENTS+'!R26 -> 0 | S26: 0 | T26: 0
B27: ='INVESTMENTS+'!B27 -> IA16 | C27: ='INVESTMENTS+'!D27 -> 0 | D27: ='INVESTMENTS+'!E27 -> 0 | F27: ='INVESTMENTS+'!G27 -> 0 | G27: ='INVESTMENTS+'!H27 -> 0 | H27: ='INVESTMENTS+'!I27 -> 0 | I27: ='INVESTMENTS+'!J27 -> 0 | J27: ='INVESTMENTS+'!K27 -> 0 | K27: ='INVESTMENTS+'!L27 -> 0 | L27: ='INVESTMENTS+'!M27 -> 0 | M27: ='INVESTMENTS+'!N27 -> 0 | N27: ='INVESTMENTS+'!O27 -> 0 | O27: ='INVESTMENTS+'!P27 -> 0 | P27: ='INVESTMENTS+'!Q27 -> 0 | Q27: ='INVESTMENTS+'!R27 -> 0 | S27: 0 | T27: 0
B28: ='INVESTMENTS+'!B28 -> IA17 | C28: ='INVESTMENTS+'!D28 -> 0 | D28: ='INVESTMENTS+'!E28 -> 0 | F28: ='INVESTMENTS+'!G28 -> 0 | G28: ='INVESTMENTS+'!H28 -> 0 | H28: ='INVESTMENTS+'!I28 -> 0 | I28: ='INVESTMENTS+'!J28 -> 0 | J28: ='INVESTMENTS+'!K28 -> 0 | K28: ='INVESTMENTS+'!L28 -> 0 | L28: ='INVESTMENTS+'!M28 -> 0 | M28: ='INVESTMENTS+'!N28 -> 0 | N28: ='INVESTMENTS+'!O28 -> 0 | O28: ='INVESTMENTS+'!P28 -> 0 | P28: ='INVESTMENTS+'!Q28 -> 0 | Q28: ='INVESTMENTS+'!R28 -> 0 | S28: 0 | T28: 0
B29: ='INVESTMENTS+'!B29 -> IA18 | C29: ='INVESTMENTS+'!D29 -> 0 | D29: ='INVESTMENTS+'!E29 -> 0 | F29: ='INVESTMENTS+'!G29 -> 0 | G29: ='INVESTMENTS+'!H29 -> 0 | H29: ='INVESTMENTS+'!I29 -> 0 | I29: ='INVESTMENTS+'!J29 -> 0 | J29: ='INVESTMENTS+'!K29 -> 0 | K29: ='INVESTMENTS+'!L29 -> 0 | L29: ='INVESTMENTS+'!M29 -> 0 | M29: ='INVESTMENTS+'!N29 -> 0 | N29: ='INVESTMENTS+'!O29 -> 0 | O29: ='INVESTMENTS+'!P29 -> 0 | P29: ='INVESTMENTS+'!Q29 -> 0 | Q29: ='INVESTMENTS+'!R29 -> 0 | S29: 0 | T29: 0
B30: ='INVESTMENTS+'!B30 -> IA19 | C30: ='INVESTMENTS+'!D30 -> 0 | D30: ='INVESTMENTS+'!E30 -> 0 | F30: ='INVESTMENTS+'!G30 -> 0 | G30: ='INVESTMENTS+'!H30 -> 0 | H30: ='INVESTMENTS+'!I30 -> 0 | I30: ='INVESTMENTS+'!J30 -> 0 | J30: ='INVESTMENTS+'!K30 -> 0 | K30: ='INVESTMENTS+'!L30 -> 0 | L30: ='INVESTMENTS+'!M30 -> 0 | M30: ='INVESTMENTS+'!N30 -> 0 | N30: ='INVESTMENTS+'!O30 -> 0 | O30: ='INVESTMENTS+'!P30 -> 0 | P30: ='INVESTMENTS+'!Q30 -> 0 | Q30: ='INVESTMENTS+'!R30 -> 0 | S30: 0 | T30: 0
B31: ='INVESTMENTS+'!B31 -> IA20 | C31: ='INVESTMENTS+'!D31 -> 0 | D31: ='INVESTMENTS+'!E31 -> 0 | F31: ='INVESTMENTS+'!G31 -> 0 | G31: ='INVESTMENTS+'!H31 -> 0 | H31: ='INVESTMENTS+'!I31 -> 0 | I31: ='INVESTMENTS+'!J31 -> 0 | J31: ='INVESTMENTS+'!K31 -> 0 | K31: ='INVESTMENTS+'!L31 -> 0 | L31: ='INVESTMENTS+'!M31 -> 0 | M31: ='INVESTMENTS+'!N31 -> 0 | N31: ='INVESTMENTS+'!O31 -> 0 | O31: ='INVESTMENTS+'!P31 -> 0 | P31: ='INVESTMENTS+'!Q31 -> 0 | Q31: ='INVESTMENTS+'!R31 -> 0 | S31: 0 | T31: 0
S32: 0 | T32: 0
D33: =0.01*1 -> 0.01 | F33: =D33/12 -> 0.0008333333333 | G33: =F33 -> 0.0008333333333 | H33: =G33 -> 0.0008333333333 | I33: 0.0008333333333 | J33: 0.0008333333333 | K33: 0.0008333333333 | L33: 0.0008333333333 | M33: 0.0008333333333 | N33: 0.0008333333333 | O33: 0.0008333333333 | P33: 0.0008333333333 | Q33: 0.0008333333333
S36: =SUM(S12:S35) -> 0 | T36: =SUM(T12:T35) -> 0
F37: ASSET CLASS RETURN ASSUMPTIONS (before expenses) | S37: =(S36+0.0001)/(S36+T36+0.0001) -> 1
B39: CURRENT ASSET ALLOCATION | F39: =IF(H41='GENERAL ASSUMPTIONS'!C32,"","error") ->  | G39: =IF(H41='GENERAL ASSUMPTIONS'!C32,"",'GENERAL ASSUMPTIONS'!C32) ->  | H39: =F9 -> Cash | I39: =G9 -> Bonds | J39: =H9 -> Stocks | K39: =I9 -> Alternates | M39: INVESTMENT | O39: SCENARIO: CURRENT (C), ALTERNATE (A) OR MONTE CARLO (MC). | Q39: ='INVESTMENTS+'!R38 -> C
F40: INFLATION PLUS | H40: ='INVESTMENTS+'!I39 -> 0 | I40: ='INVESTMENTS+'!J39 -> 0 | J40: ='INVESTMENTS+'!K39 -> 0 | K40: ='INVESTMENTS+'!L39 -> 0 | M40: EXPENSES | Q40: ='INVESTMENTS+'!R39 -> 0
F41: INFLATION AT | H41: ='GENERAL ASSUMPTIONS'!C32 -> 0 | I41: =H41 -> 0 | J41: =I41 -> 0 | K41: =J41 -> 0 | M41: PERCENT AUM | Q41: ='INVESTMENTS+'!R40 -> 0
F42: TOTAL RETURN | H42: =H41+H40 -> 0 | I42: =I41+I40 -> 0 | J42: =J41+J40 -> 0 | K42: =K41+K40 -> 0 | M42: ='INVESTMENTS+'!N40 -> 0 | Q42: ='INVESTMENTS+'!R41 -> 0
F44: TOTALS % | H44: =(F11+J11+N11)/$D$11 -> 0.25 | I44: =(G11+K11+O11)/$D$11 -> 0.25 | J44: =(H11+L11+P11)/$D$11 -> 0.25 | K44: =(I11+M11+Q11)/$D$11 -> 0.25
F46: PORTFOLIO EXPECTED RETURN (net expenses) | L46: SCENARIO | N46: ALTERNATE PERIODS - PORTFOLIO EXPECTED RETURNS (net expenses)
H47: CURRENT | J47: ALTERNATE | L47: =IF(Q39="A","ALTERNATE",IF(Q39="MC","MONTE CARLO",IF(Q39="C","CURRENT","ERROR"))) -> CURRENT | O47: THRU | P47: THRU | Q47: LATER
F48: TAXABLE PORTFOLIO | H48: =$H$71/$H$75*$H$42+$H$72/$H$75*$I$42+$H$73/$H$75*$J$42+$H$74/$H$75*$K$42-M42 -> 0 | J48: =$H$88 -> 0 | L48: =IF($Q$39="A",$H$88,IF($Q$39="MC",$H$88,IF($Q$39="C",H48,"ERROR"))) -> 0 | N48: YEAR | O48: ='INVESTMENTS+'!P47 -> 1 | P48: ='INVESTMENTS+'!Q47 -> 2 | Q48: =P48+1 -> 3
F49: ROTH IRA | H49: =$K$71/$K$75*$H$42+$K$72/$K$75*$I$42+$K$73/$K$75*$J$42+$K$74/$K$75*$K$42-M42 -> 0 | J49: =$H$88 -> 0 | L49: =IF($Q$39="A",$H$88,IF($Q$39="MC",$H$88,IF($Q$39="C",H49,"ERROR"))) -> 0 | N49: RATE | O49: ='INVESTMENTS+'!P48 -> 0.0001 | P49: ='INVESTMENTS+'!Q48 -> 0.0001 | Q49: ='INVESTMENTS+'!R48 -> 0.0001
F50: TRADITIONAL IRA | H50: =O71/O75*H42+O72/O75*I42+O73/O75*J42+O74/O75*K42-M42 -> 0 | J50: 0 | L50: 0 | N50: RISK | O50: ='INVESTMENTS+'!P49 -> 0.0001 | P50: ='INVESTMENTS+'!Q49 -> 0.0001 | Q50: ='INVESTMENTS+'!R49 -> 0.0001
H70: TAXABLE | K70: ROTH | O70: PENSION/IRA | R70: NOW
F71: CASH | H71: =F11 -> 0.0008333333333 | K71: =J11 -> 0.0008333333333 | O71: =N11 -> 0.0008333333333 | R71: =(O71+H71)/($H$75+$O$75) -> 0.25
F72: INCOME | H72: =G11 -> 0.0008333333333 | K72: =K11 -> 0.0008333333333 | O72: =O11 -> 0.0008333333333 | R72: =(O72+H72)/($H$75+$O$75) -> 0.25
F73: GROWTH | H73: =H11 -> 0.0008333333333 | K73: =L11 -> 0.0008333333333 | O73: =P11 -> 0.0008333333333 | R73: =(O73+H73)/($H$75+$O$75) -> 0.25
F74: AGGRESSIVE | H74: =I11 -> 0.0008333333333 | K74: =M11 -> 0.0008333333333 | O74: =Q11 -> 0.0008333333333 | R74: =(O74+H74)/($H$75+$O$75) -> 0.25
E75: =O75+H75-D11 -> -0.003333333333 | H75: =SUM(H71:H74) -> 0.003333333333 | K75: =SUM(K71:K74) -> 0.003333333333 | O75: =SUM(O71:O74) -> 0.003333333333
D80: FORMULA | E80: =IF(q39="a",'GENERAL ASSUMPTIONS'!C32,(IF(q39="c",'GENERAL ASSUMPTIONS'!C32,IF(q39="mc",gen_Normal('GENERAL ASSUMPTIONS'!C32,0.005),"error"))))
E81: inflation
D82: INFLATION VARIABLE CALCULATOR | E82: =IF(Q39="a",'GENERAL ASSUMPTIONS+'!C26,(IF(Q39="c",'GENERAL ASSUMPTIONS+'!C26,IF(Q39="mc",NORMINV(RAND(),'GENERAL ASSUMPTIONS+'!C26,0.005),"error")))) -> 0
B83: randomly generated returns from above | D83: FORMULA | E83: =IF($q$39="A",C85,IF($q$39="C",$O$83,IF($q$39="MC",gen_Normal(C85,D85),"Error"))) | H83: =H75+O75+K75 -> 0.01 | O83: =H48*H75/H83+H50*O75/H83+H49*K75/H83 -> 0 | P83: AVERAGE CURRENT RETURN | R83: =1-SUM(R71:R74) -> 0
B84: 1-TIME 40 year arithmetic average annual return | C84: RETURN | D84: STANDARD DEV | E84: year | N84: 5 year avg | O84: trigger | P84: economize | Q84: 10 year avg | R84: trigger | S84: economize
B85: =AVERAGE(E85:E124) -> 0 | C85: =IF($F85<=$O$48,$O$49,IF($F85>=$Q$48,$Q$49,$P$49)) -> 0.0001 | D85: =IF($F85<=$O$48,$O$50,IF($F85>=$Q$48,$Q$50,$P$50)) -> 0.0001 | E85: =IF($Q$39="A",C85,IF($Q$39="C",$O$83,IF($Q$39="MC",NORMINV(RAND(),C85,D85),"Error"))) -> 0 | F85: 1 | G85: =1+E85 -> 1
B86: 1-TIME 40 year standard deviation | C86: =IF($F86<=$O$48,$O$49,IF($F86>=$Q$48,$Q$49,$P$49)) -> 0.0001 | D86: =IF($F86<=$O$48,$O$50,IF($F86>=$Q$48,$Q$50,$P$50)) -> 0.0001 | E86: =IF($Q$39="A",C86,IF($Q$39="C",$O$83,IF($Q$39="MC",NORMINV(RAND(),C86,D86),"Error"))) -> 0 | F86: =F85+1 -> 2 | G86: =G85*(1+E86) -> 1 | P86: =IF($Q$39="MC",IF(N86<O86,-'CF ASSUMPTIONS'!$D$122*(1+'GENERAL ASSUMPTIONS'!$C$32)^$F86,""),0) -> 0
B87: =STDEV(E85:E124) -> 0 | C87: 0.0001 | D87: 0.0001 | E87: 0 | F87: =F86+1 -> 3 | G87: 1 | I87: =B85-H89 -> 0 | J87: compounding reduction of return due to volatility | P87: =IF($Q$39="MC",IF(N87<O87,-'CF ASSUMPTIONS'!$D$122*(1+'GENERAL ASSUMPTIONS'!$C$32)^$F87,""),0) -> 0
C88: 0.0001 | D88: 0.0001 | E88: 0 | F88: 4 | G88: 1 | H88: =G144^(1/60)-1 -> 0 | I88: 1-TIME 60 year geometric average annual return | P88: =IF($Q$39="MC",IF(N88<O88,-'CF ASSUMPTIONS'!$D$122*(1+'GENERAL ASSUMPTIONS'!$C$32)^$F88,""),0) -> 0
C89: 0.0001 | D89: 0.0001 | E89: 0 | F89: 5 | G89: 1 | H89: =G124^(1/40)-1 -> 0 | I89: 1-TIME 40 year geometric average annual return | P89: =IF($Q$39="MC",IF(N89<O89,-'CF ASSUMPTIONS'!$D$122*(1+'GENERAL ASSUMPTIONS'!$C$32)^$F89,""),0) -> 0
C90: 0.0001 | D90: 0.0001 | E90: 0 | F90: 6 | G90: 1 | N90: =AVERAGE(E85:E89) -> 0 | O90: =AVERAGE(C85:C89)-'CF ASSUMPTIONS'!$D$123 -> 0.0001 | P90: =IF($Q$39="MC",IF(N90<O90,-'CF ASSUMPTIONS'!$D$122*(1+'GENERAL ASSUMPTIONS'!$C$32)^$F90,""),0) -> 0
C91: 0.0001 | D91: 0.0001 | E91: 0 | F91: 7 | G91: 1 | H91: =G114^(1/30)-1 -> 0 | I91: 1-TIME 30 year geometric average annual return | N91: 0 | O91: =AVERAGE(C86:C90)-'CF ASSUMPTIONS'!$D$123 -> 0.0001 | P91: =IF($Q$39="MC",IF(N91<O91,-'CF ASSUMPTIONS'!$D$122*(1+'GENERAL ASSUMPTIONS'!$C$32)^$F91,""),0) -> 0
C92: 0.0001 | D92: 0.0001 | E92: 0 | F92: 8 | G92: 1 | N92: 0 | O92: =AVERAGE(C87:C91)-'CF ASSUMPTIONS'!$D$123 -> 0.0001 | P92: =IF($Q$39="MC",IF(N92<O92,-'CF ASSUMPTIONS'!$D$122*(1+'GENERAL ASSUMPTIONS'!$C$32)^$F92,""),0) -> 0
C93: 0.0001 | D93: 0.0001 | E93: 0 | F93: 9 | G93: 1 | H93: =G104^(1/20)-1 -> 0 | I93: 1-TIME 20 year geometric average annual return | N93: 0 | O93: =AVERAGE(C88:C92)-'CF ASSUMPTIONS'!$D$123 -> 0.0001 | P93: =IF($Q$39="MC",IF(N93<O93,-'CF ASSUMPTIONS'!$D$122*(1+'GENERAL ASSUMPTIONS'!$C$32)^$F93,""),0) -> 0
C94: 0.0001 | D94: 0.0001 | E94: 0 | F94: 10 | G94: 1 | N94: 0 | O94: =AVERAGE(C89:C93)-'CF ASSUMPTIONS'!$D$123 -> 0.0001 | P94: =IF($Q$39="MC",IF(N94<O94,-'CF ASSUMPTIONS'!$D$122*(1+'GENERAL ASSUMPTIONS'!$C$32)^$F94,""),0) -> 0
C95: 0.0001 | D95: 0.0001 | E95: 0 | F95: 11 | G95: 1 | H95: =G94^(1/10)-1 -> 0 | I95: 1-TIME 10 year geometric average annual return | N95: 0 | O95: =AVERAGE(C90:C94)-'CF ASSUMPTIONS'!$D$123 -> 0.0001 | P95: =IF($Q$39="MC",IF(N95<O95,-'CF ASSUMPTIONS'!$D$122*(1+'GENERAL ASSUMPTIONS'!$C$32)^$F95,""),0) -> 0 | Q95: =AVERAGE(E85:E94) -> 0 | R95: =AVERAGE(C85:C94)-'CF ASSUMPTIONS'!$D$123 -> 0.0001 | S95: =IF($Q$39="MC",IF(Q95<R95,-'CF ASSUMPTIONS'!$D$124*(1+'GENERAL ASSUMPTIONS'!$C$32)^$F95,""),0) -> 0
C96: 0.0001 | D96: 0.0001 | E96: 0 | F96: 12 | G96: 1 | N96: 0 | O96: =AVERAGE(C91:C95)-'CF ASSUMPTIONS'!$D$123 -> 0.0001 | P96: =IF($Q$39="MC",IF(N96<O96,-'CF ASSUMPTIONS'!$D$122*(1+'GENERAL ASSUMPTIONS'!$C$32)^$F96,""),0) -> 0 | Q96: 0 | R96: =AVERAGE(C86:C95)-'CF ASSUMPTIONS'!$D$123 -> 0.0001 | S96: =IF($Q$39="MC",IF(Q96<R96,-'CF ASSUMPTIONS'!$D$124*(1+'GENERAL ASSUMPTIONS'!$C$32)^$F96,""),0) -> 0
C97: 0.0001 | D97: 0.0001 | E97: 0 | F97: 13 | G97: 1 | H97: =G85^(1/1)-1 -> 0 | I97: 1-TIME 1 year geometric average annual return | N97: 0 | O97: =AVERAGE(C92:C96)-'CF ASSUMPTIONS'!$D$123 -> 0.0001 | P97: =IF($Q$39="MC",IF(N97<O97,-'CF ASSUMPTIONS'!$D$122*(1+'GENERAL ASSUMPTIONS'!$C$32)^$F97,""),0) -> 0 | Q97: 0 | R97: =AVERAGE(C87:C96)-'CF ASSUMPTIONS'!$D$123 -> 0.0001 | S97: =IF($Q$39="MC",IF(Q97<R97,-'CF ASSUMPTIONS'!$D$124*(1+'GENERAL ASSUMPTIONS'!$C$32)^$F97,""),0) -> 0
C98: 0.0001 | D98: 0.0001 | E98: 0 | F98: 14 | G98: 1 | N98: 0 | O98: =AVERAGE(C93:C97)-'CF ASSUMPTIONS'!$D$123 -> 0.0001 | P98: =IF($Q$39="MC",IF(N98<O98,-'CF ASSUMPTIONS'!$D$122*(1+'GENERAL ASSUMPTIONS'!$C$32)^$F98,""),0) -> 0 | Q98: 0 | R98: =AVERAGE(C88:C97)-'CF ASSUMPTIONS'!$D$123 -> 0.0001 | S98: =IF($Q$39="MC",IF(Q98<R98,-'CF ASSUMPTIONS'!$D$124*(1+'GENERAL ASSUMPTIONS'!$C$32)^$F98,""),0) -> 0
C99: 0.0001 | D99: 0.0001 | E99: 0 | F99: 15 | G99: 1 | N99: 0 | O99: =AVERAGE(C94:C98)-'CF ASSUMPTIONS'!$D$123 -> 0.0001 | P99: =IF($Q$39="MC",IF(N99<O99,-'CF ASSUMPTIONS'!$D$122*(1+'GENERAL ASSUMPTIONS'!$C$32)^$F99,""),0) -> 0 | Q99: 0 | R99: =AVERAGE(C89:C98)-'CF ASSUMPTIONS'!$D$123 -> 0.0001 | S99: =IF($Q$39="MC",IF(Q99<R99,-'CF ASSUMPTIONS'!$D$124*(1+'GENERAL ASSUMPTIONS'!$C$32)^$F99,""),0) -> 0
C100: 0.0001 | D100: 0.0001 | E100: 0 | F100: 16 | G100: 1 | N100: 0 | O100: =AVERAGE(C95:C99)-'CF ASSUMPTIONS'!$D$123 -> 0.0001 | P100: =IF($Q$39="MC",IF(N100<O100,-'CF ASSUMPTIONS'!$D$122*(1+'GENERAL ASSUMPTIONS'!$C$32)^$F100,""),0) -> 0 | Q100: 0 | R100: =AVERAGE(C90:C99)-'CF ASSUMPTIONS'!$D$123 -> 0.0001 | S100: =IF($Q$39="MC",IF(Q100<R100,-'CF ASSUMPTIONS'!$D$124*(1+'GENERAL ASSUMPTIONS'!$C$32)^$F100,""),0) -> 0
C101: 0.0001 | D101: 0.0001 | E101: 0 | F101: 17 | G101: 1 | N101: 0 | O101: =AVERAGE(C96:C100)-'CF ASSUMPTIONS'!$D$123 -> 0.0001 | P101: =IF($Q$39="MC",IF(N101<O101,-'CF ASSUMPTIONS'!$D$122*(1+'GENERAL ASSUMPTIONS'!$C$32)^$F101,""),0) -> 0 | Q101: 0 | R101: =AVERAGE(C91:C100)-'CF ASSUMPTIONS'!$D$123 -> 0.0001 | S101: =IF($Q$39="MC",IF(Q101<R101,-'CF ASSUMPTIONS'!$D$124*(1+'GENERAL ASSUMPTIONS'!$C$32)^$F101,""),0) -> 0
C102: 0.0001 | D102: 0.0001 | E102: 0 | F102: 18 | G102: 1 | N102: 0 | O102: =AVERAGE(C97:C101)-'CF ASSUMPTIONS'!$D$123 -> 0.0001 | P102: =IF($Q$39="MC",IF(N102<O102,-'CF ASSUMPTIONS'!$D$122*(1+'GENERAL ASSUMPTIONS'!$C$32)^$F102,""),0) -> 0 | Q102: 0 | R102: =AVERAGE(C92:C101)-'CF ASSUMPTIONS'!$D$123 -> 0.0001 | S102: =IF($Q$39="MC",IF(Q102<R102,-'CF ASSUMPTIONS'!$D$124*(1+'GENERAL ASSUMPTIONS'!$C$32)^$F102,""),0) -> 0
C103: 0.0001 | D103: 0.0001 | E103: 0 | F103: 19 | G103: 1 | N103: 0 | O103: =AVERAGE(C98:C102)-'CF ASSUMPTIONS'!$D$123 -> 0.0001 | P103: =IF($Q$39="MC",IF(N103<O103,-'CF ASSUMPTIONS'!$D$122*(1+'GENERAL ASSUMPTIONS'!$C$32)^$F103,""),0) -> 0 | Q103: 0 | R103: =AVERAGE(C93:C102)-'CF ASSUMPTIONS'!$D$123 -> 0.0001 | S103: =IF($Q$39="MC",IF(Q103<R103,-'CF ASSUMPTIONS'!$D$124*(1+'GENERAL ASSUMPTIONS'!$C$32)^$F103,""),0) -> 0
C104: 0.0001 | D104: 0.0001 | E104: 0 | F104: 20 | G104: 1 | N104: 0 | O104: =AVERAGE(C99:C103)-'CF ASSUMPTIONS'!$D$123 -> 0.0001 | P104: =IF($Q$39="MC",IF(N104<O104,-'CF ASSUMPTIONS'!$D$122*(1+'GENERAL ASSUMPTIONS'!$C$32)^$F104,""),0) -> 0 | Q104: 0 | R104: =AVERAGE(C94:C103)-'CF ASSUMPTIONS'!$D$123 -> 0.0001 | S104: =IF($Q$39="MC",IF(Q104<R104,-'CF ASSUMPTIONS'!$D$124*(1+'GENERAL ASSUMPTIONS'!$C$32)^$F104,""),0) -> 0
C105: 0.0001 | D105: 0.0001 | E105: 0 | F105: 21 | G105: 1 | N105: 0 | O105: =AVERAGE(C100:C104)-'CF ASSUMPTIONS'!$D$123 -> 0.0001 | P105: =IF($Q$39="MC",IF(N105<O105,-'CF ASSUMPTIONS'!$D$122*(1+'GENERAL ASSUMPTIONS'!$C$32)^$F105,""),0) -> 0 | Q105: 0 | R105: =AVERAGE(C95:C104)-'CF ASSUMPTIONS'!$D$123 -> 0.0001 | S105: =IF($Q$39="MC",IF(Q105<R105,-'CF ASSUMPTIONS'!$D$124*(1+'GENERAL ASSUMPTIONS'!$C$32)^$F105,""),0) -> 0
C106: 0.0001 | D106: 0.0001 | E106: 0 | F106: 22 | G106: 1 | N106: 0 | O106: =AVERAGE(C101:C105)-'CF ASSUMPTIONS'!$D$123 -> 0.0001 | P106: =IF($Q$39="MC",IF(N106<O106,-'CF ASSUMPTIONS'!$D$122*(1+'GENERAL ASSUMPTIONS'!$C$32)^$F106,""),0) -> 0 | Q106: 0 | R106: =AVERAGE(C96:C105)-'CF ASSUMPTIONS'!$D$123 -> 0.0001 | S106: =IF($Q$39="MC",IF(Q106<R106,-'CF ASSUMPTIONS'!$D$124*(1+'GENERAL ASSUMPTIONS'!$C$32)^$F106,""),0) -> 0
C107: 0.0001 | D107: 0.0001 | E107: 0 | F107: 23 | G107: 1 | N107: 0 | O107: =AVERAGE(C102:C106)-'CF ASSUMPTIONS'!$D$123 -> 0.0001 | P107: =IF($Q$39="MC",IF(N107<O107,-'CF ASSUMPTIONS'!$D$122*(1+'GENERAL ASSUMPTIONS'!$C$32)^$F107,""),0) -> 0 | Q107: 0 | R107: =AVERAGE(C97:C106)-'CF ASSUMPTIONS'!$D$123 -> 0.0001 | S107: =IF($Q$39="MC",IF(Q107<R107,-'CF ASSUMPTIONS'!$D$124*(1+'GENERAL ASSUMPTIONS'!$C$32)^$F107,""),0) -> 0
C108: 0.0001 | D108: 0.0001 | E108: 0 | F108: 24 | G108: 1 | N108: 0 | O108: =AVERAGE(C103:C107)-'CF ASSUMPTIONS'!$D$123 -> 0.0001 | P108: =IF($Q$39="MC",IF(N108<O108,-'CF ASSUMPTIONS'!$D$122*(1+'GENERAL ASSUMPTIONS'!$C$32)^$F108,""),0) -> 0 | Q108: 0 | R108: =AVERAGE(C98:C107)-'CF ASSUMPTIONS'!$D$123 -> 0.0001 | S108: =IF($Q$39="MC",IF(Q108<R108,-'CF ASSUMPTIONS'!$D$124*(1+'GENERAL ASSUMPTIONS'!$C$32)^$F108,""),0) -> 0
C109: 0.0001 | D109: 0.0001 | E109: 0 | F109: 25 | G109: 1 | N109: 0 | O109: =AVERAGE(C104:C108)-'CF ASSUMPTIONS'!$D$123 -> 0.0001 | P109: =IF($Q$39="MC",IF(N109<O109,-'CF ASSUMPTIONS'!$D$122*(1+'GENERAL ASSUMPTIONS'!$C$32)^$F109,""),0) -> 0 | Q109: 0 | R109: =AVERAGE(C99:C108)-'CF ASSUMPTIONS'!$D$123 -> 0.0001 | S109: =IF($Q$39="MC",IF(Q109<R109,-'CF ASSUMPTIONS'!$D$124*(1+'GENERAL ASSUMPTIONS'!$C$32)^$F109,""),0) -> 0
C110: 0.0001 | D110: 0.0001 | E110: 0 | F110: 26 | G110: 1 | N110: 0 | O110: =AVERAGE(C105:C109)-'CF ASSUMPTIONS'!$D$123 -> 0.0001 | P110: =IF($Q$39="MC",IF(N110<O110,-'CF ASSUMPTIONS'!$D$122*(1+'GENERAL ASSUMPTIONS'!$C$32)^$F110,""),0) -> 0 | Q110: 0 | R110: =AVERAGE(C100:C109)-'CF ASSUMPTIONS'!$D$123 -> 0.0001 | S110: =IF($Q$39="MC",IF(Q110<R110,-'CF ASSUMPTIONS'!$D$124*(1+'GENERAL ASSUMPTIONS'!$C$32)^$F110,""),0) -> 0
C111: 0.0001 | D111: 0.0001 | E111: 0 | F111: 27 | G111: 1 | N111: 0 | O111: =AVERAGE(C106:C110)-'CF ASSUMPTIONS'!$D$123 -> 0.0001 | P111: =IF($Q$39="MC",IF(N111<O111,-'CF ASSUMPTIONS'!$D$122*(1+'GENERAL ASSUMPTIONS'!$C$32)^$F111,""),0) -> 0 | Q111: 0 | R111: =AVERAGE(C101:C110)-'CF ASSUMPTIONS'!$D$123 -> 0.0001 | S111: =IF($Q$39="MC",IF(Q111<R111,-'CF ASSUMPTIONS'!$D$124*(1+'GENERAL ASSUMPTIONS'!$C$32)^$F111,""),0) -> 0
C112: 0.0001 | D112: 0.0001 | E112: 0 | F112: 28 | G112: 1 | N112: 0 | O112: =AVERAGE(C107:C111)-'CF ASSUMPTIONS'!$D$123 -> 0.0001 | P112: =IF($Q$39="MC",IF(N112<O112,-'CF ASSUMPTIONS'!$D$122*(1+'GENERAL ASSUMPTIONS'!$C$32)^$F112,""),0) -> 0 | Q112: 0 | R112: =AVERAGE(C102:C111)-'CF ASSUMPTIONS'!$D$123 -> 0.0001 | S112: =IF($Q$39="MC",IF(Q112<R112,-'CF ASSUMPTIONS'!$D$124*(1+'GENERAL ASSUMPTIONS'!$C$32)^$F112,""),0) -> 0
C113: 0.0001 | D113: 0.0001 | E113: 0 | F113: 29 | G113: 1 | N113: 0 | O113: =AVERAGE(C108:C112)-'CF ASSUMPTIONS'!$D$123 -> 0.0001 | P113: =IF($Q$39="MC",IF(N113<O113,-'CF ASSUMPTIONS'!$D$122*(1+'GENERAL ASSUMPTIONS'!$C$32)^$F113,""),0) -> 0 | Q113: 0 | R113: =AVERAGE(C103:C112)-'CF ASSUMPTIONS'!$D$123 -> 0.0001 | S113: =IF($Q$39="MC",IF(Q113<R113,-'CF ASSUMPTIONS'!$D$124*(1+'GENERAL ASSUMPTIONS'!$C$32)^$F113,""),0) -> 0
C114: 0.0001 | D114: 0.0001 | E114: 0 | F114: 30 | G114: 1 | N114: 0 | O114: =AVERAGE(C109:C113)-'CF ASSUMPTIONS'!$D$123 -> 0.0001 | P114: =IF($Q$39="MC",IF(N114<O114,-'CF ASSUMPTIONS'!$D$122*(1+'GENERAL ASSUMPTIONS'!$C$32)^$F114,""),0) -> 0 | Q114: 0 | R114: =AVERAGE(C104:C113)-'CF ASSUMPTIONS'!$D$123 -> 0.0001 | S114: =IF($Q$39="MC",IF(Q114<R114,-'CF ASSUMPTIONS'!$D$124*(1+'GENERAL ASSUMPTIONS'!$C$32)^$F114,""),0) -> 0
C115: 0.0001 | D115: 0.0001 | E115: 0 | F115: 31 | G115: 1 | N115: 0 | O115: =AVERAGE(C110:C114)-'CF ASSUMPTIONS'!$D$123 -> 0.0001 | P115: =IF($Q$39="MC",IF(N115<O115,-'CF ASSUMPTIONS'!$D$122*(1+'GENERAL ASSUMPTIONS'!$C$32)^$F115,""),0) -> 0 | Q115: 0 | R115: =AVERAGE(C105:C114)-'CF ASSUMPTIONS'!$D$123 -> 0.0001 | S115: =IF($Q$39="MC",IF(Q115<R115,-'CF ASSUMPTIONS'!$D$124*(1+'GENERAL ASSUMPTIONS'!$C$32)^$F115,""),0) -> 0
C116: 0.0001 | D116: 0.0001 | E116: 0 | F116: 32 | G116: 1 | N116: 0 | O116: =AVERAGE(C111:C115)-'CF ASSUMPTIONS'!$D$123 -> 0.0001 | P116: =IF($Q$39="MC",IF(N116<O116,-'CF ASSUMPTIONS'!$D$122*(1+'GENERAL ASSUMPTIONS'!$C$32)^$F116,""),0) -> 0 | Q116: 0 | R116: =AVERAGE(C106:C115)-'CF ASSUMPTIONS'!$D$123 -> 0.0001 | S116: =IF($Q$39="MC",IF(Q116<R116,-'CF ASSUMPTIONS'!$D$124*(1+'GENERAL ASSUMPTIONS'!$C$32)^$F116,""),0) -> 0
C117: 0.0001 | D117: 0.0001 | E117: 0 | F117: 33 | G117: 1 | N117: 0 | O117: =AVERAGE(C112:C116)-'CF ASSUMPTIONS'!$D$123 -> 0.0001 | P117: =IF($Q$39="MC",IF(N117<O117,-'CF ASSUMPTIONS'!$D$122*(1+'GENERAL ASSUMPTIONS'!$C$32)^$F117,""),0) -> 0 | Q117: 0 | R117: =AVERAGE(C107:C116)-'CF ASSUMPTIONS'!$D$123 -> 0.0001 | S117: =IF($Q$39="MC",IF(Q117<R117,-'CF ASSUMPTIONS'!$D$124*(1+'GENERAL ASSUMPTIONS'!$C$32)^$F117,""),0) -> 0
C118: 0.0001 | D118: 0.0001 | E118: 0 | F118: 34 | G118: 1 | N118: 0 | O118: =AVERAGE(C113:C117)-'CF ASSUMPTIONS'!$D$123 -> 0.0001 | P118: =IF($Q$39="MC",IF(N118<O118,-'CF ASSUMPTIONS'!$D$122*(1+'GENERAL ASSUMPTIONS'!$C$32)^$F118,""),0) -> 0 | Q118: 0 | R118: =AVERAGE(C108:C117)-'CF ASSUMPTIONS'!$D$123 -> 0.0001 | S118: =IF($Q$39="MC",IF(Q118<R118,-'CF ASSUMPTIONS'!$D$124*(1+'GENERAL ASSUMPTIONS'!$C$32)^$F118,""),0) -> 0
C119: 0.0001 | D119: 0.0001 | E119: 0 | F119: 35 | G119: 1 | N119: 0 | O119: =AVERAGE(C114:C118)-'CF ASSUMPTIONS'!$D$123 -> 0.0001 | P119: =IF($Q$39="MC",IF(N119<O119,-'CF ASSUMPTIONS'!$D$122*(1+'GENERAL ASSUMPTIONS'!$C$32)^$F119,""),0) -> 0 | Q119: 0 | R119: =AVERAGE(C109:C118)-'CF ASSUMPTIONS'!$D$123 -> 0.0001 | S119: =IF($Q$39="MC",IF(Q119<R119,-'CF ASSUMPTIONS'!$D$124*(1+'GENERAL ASSUMPTIONS'!$C$32)^$F119,""),0) -> 0
C120: 0.0001 | D120: 0.0001 | E120: 0 | F120: 36 | G120: 1 | N120: 0 | O120: =AVERAGE(C115:C119)-'CF ASSUMPTIONS'!$D$123 -> 0.0001 | P120: =IF($Q$39="MC",IF(N120<O120,-'CF ASSUMPTIONS'!$D$122*(1+'GENERAL ASSUMPTIONS'!$C$32)^$F120,""),0) -> 0 | Q120: 0 | R120: =AVERAGE(C110:C119)-'CF ASSUMPTIONS'!$D$123 -> 0.0001 | S120: =IF($Q$39="MC",IF(Q120<R120,-'CF ASSUMPTIONS'!$D$124*(1+'GENERAL ASSUMPTIONS'!$C$32)^$F120,""),0) -> 0
C121: 0.0001 | D121: 0.0001 | E121: 0 | F121: 37 | G121: 1 | N121: 0 | O121: =AVERAGE(C116:C120)-'CF ASSUMPTIONS'!$D$123 -> 0.0001 | P121: =IF($Q$39="MC",IF(N121<O121,-'CF ASSUMPTIONS'!$D$122*(1+'GENERAL ASSUMPTIONS'!$C$32)^$F121,""),0) -> 0 | Q121: 0 | R121: =AVERAGE(C111:C120)-'CF ASSUMPTIONS'!$D$123 -> 0.0001 | S121: =IF($Q$39="MC",IF(Q121<R121,-'CF ASSUMPTIONS'!$D$124*(1+'GENERAL ASSUMPTIONS'!$C$32)^$F121,""),0) -> 0
C122: 0.0001 | D122: 0.0001 | E122: 0 | F122: 38 | G122: 1 | N122: 0 | O122: =AVERAGE(C117:C121)-'CF ASSUMPTIONS'!$D$123 -> 0.0001 | P122: =IF($Q$39="MC",IF(N122<O122,-'CF ASSUMPTIONS'!$D$122*(1+'GENERAL ASSUMPTIONS'!$C$32)^$F122,""),0) -> 0 | Q122: 0 | R122: =AVERAGE(C112:C121)-'CF ASSUMPTIONS'!$D$123 -> 0.0001 | S122: =IF($Q$39="MC",IF(Q122<R122,-'CF ASSUMPTIONS'!$D$124*(1+'GENERAL ASSUMPTIONS'!$C$32)^$F122,""),0) -> 0
C123: 0.0001 | D123: 0.0001 | E123: 0 | F123: 39 | G123: 1 | N123: 0 | O123: =AVERAGE(C118:C122)-'CF ASSUMPTIONS'!$D$123 -> 0.0001 | P123: =IF($Q$39="MC",IF(N123<O123,-'CF ASSUMPTIONS'!$D$122*(1+'GENERAL ASSUMPTIONS'!$C$32)^$F123,""),0) -> 0 | Q123: 0 | R123: =AVERAGE(C113:C122)-'CF ASSUMPTIONS'!$D$123 -> 0.0001 | S123: =IF($Q$39="MC",IF(Q123<R123,-'CF ASSUMPTIONS'!$D$124*(1+'GENERAL ASSUMPTIONS'!$C$32)^$F123,""),0) -> 0
C124: 0.0001 | D124: 0.0001 | E124: 0 | F124: 40 | G124: =G123*(1+E124) -> 1 | N124: 0 | O124: =AVERAGE(C119:C123)-'CF ASSUMPTIONS'!$D$123 -> 0.0001 | P124: =IF($Q$39="MC",IF(N124<O124,-'CF ASSUMPTIONS'!$D$122*(1+'GENERAL ASSUMPTIONS'!$C$32)^$F124,""),0) -> 0 | Q124: 0 | R124: =AVERAGE(C114:C123)-'CF ASSUMPTIONS'!$D$123 -> 0.0001 | S124: =IF($Q$39="MC",IF(Q124<R124,-'CF ASSUMPTIONS'!$D$124*(1+'GENERAL ASSUMPTIONS'!$C$32)^$F124,""),0) -> 0
C125: 0.0001 | D125: 0.0001 | E125: 0 | F125: 41 | G125: 1 | N125: 0 | O125: =AVERAGE(C120:C124)-'CF ASSUMPTIONS'!$D$123 -> 0.0001 | P125: =IF($Q$39="MC",IF(N125<O125,-'CF ASSUMPTIONS'!$D$122*(1+'GENERAL ASSUMPTIONS'!$C$32)^$F125,""),0) -> 0 | Q125: 0 | R125: =AVERAGE(C115:C124)-'CF ASSUMPTIONS'!$D$123 -> 0.0001 | S125: =IF($Q$39="MC",IF(Q125<R125,-'CF ASSUMPTIONS'!$D$124*(1+'GENERAL ASSUMPTIONS'!$C$32)^$F125,""),0) -> 0
C126: 0.0001 | D126: 0.0001 | E126: 0 | F126: 42 | G126: 1 | N126: 0 | O126: =AVERAGE(C121:C125)-'CF ASSUMPTIONS'!$D$123 -> 0.0001 | P126: =IF($Q$39="MC",IF(N126<O126,-'CF ASSUMPTIONS'!$D$122*(1+'GENERAL ASSUMPTIONS'!$C$32)^$F126,""),0) -> 0 | Q126: 0 | R126: =AVERAGE(C116:C125)-'CF ASSUMPTIONS'!$D$123 -> 0.0001 | S126: =IF($Q$39="MC",IF(Q126<R126,-'CF ASSUMPTIONS'!$D$124*(1+'GENERAL ASSUMPTIONS'!$C$32)^$F126,""),0) -> 0
C127: 0.0001 | D127: 0.0001 | E127: 0 | F127: 43 | G127: 1 | N127: 0 | O127: =AVERAGE(C122:C126)-'CF ASSUMPTIONS'!$D$123 -> 0.0001 | P127: =IF($Q$39="MC",IF(N127<O127,-'CF ASSUMPTIONS'!$D$122*(1+'GENERAL ASSUMPTIONS'!$C$32)^$F127,""),0) -> 0 | Q127: 0 | R127: =AVERAGE(C117:C126)-'CF ASSUMPTIONS'!$D$123 -> 0.0001 | S127: =IF($Q$39="MC",IF(Q127<R127,-'CF ASSUMPTIONS'!$D$124*(1+'GENERAL ASSUMPTIONS'!$C$32)^$F127,""),0) -> 0
C128: 0.0001 | D128: 0.0001 | E128: 0 | F128: 44 | G128: 1 | N128: 0 | O128: =AVERAGE(C123:C127)-'CF ASSUMPTIONS'!$D$123 -> 0.0001 | P128: =IF($Q$39="MC",IF(N128<O128,-'CF ASSUMPTIONS'!$D$122*(1+'GENERAL ASSUMPTIONS'!$C$32)^$F128,""),0) -> 0 | Q128: 0 | R128: =AVERAGE(C118:C127)-'CF ASSUMPTIONS'!$D$123 -> 0.0001 | S128: =IF($Q$39="MC",IF(Q128<R128,-'CF ASSUMPTIONS'!$D$124*(1+'GENERAL ASSUMPTIONS'!$C$32)^$F128,""),0) -> 0
C129: 0.0001 | D129: 0.0001 | E129: 0 | F129: 45 | G129: 1 | N129: 0 | O129: =AVERAGE(C124:C128)-'CF ASSUMPTIONS'!$D$123 -> 0.0001 | P129: =IF($Q$39="MC",IF(N129<O129,-'CF ASSUMPTIONS'!$D$122*(1+'GENERAL ASSUMPTIONS'!$C$32)^$F129,""),0) -> 0 | Q129: 0 | R129: =AVERAGE(C119:C128)-'CF ASSUMPTIONS'!$D$123 -> 0.0001 | S129: =IF($Q$39="MC",IF(Q129<R129,-'CF ASSUMPTIONS'!$D$124*(1+'GENERAL ASSUMPTIONS'!$C$32)^$F129,""),0) -> 0
C130: 0.0001 | D130: 0.0001 | E130: 0 | F130: 46 | G130: 1 | N130: 0 | O130: =AVERAGE(C125:C129)-'CF ASSUMPTIONS'!$D$123 -> 0.0001 | P130: =IF($Q$39="MC",IF(N130<O130,-'CF ASSUMPTIONS'!$D$122*(1+'GENERAL ASSUMPTIONS'!$C$32)^$F130,""),0) -> 0 | Q130: 0 | R130: =AVERAGE(C120:C129)-'CF ASSUMPTIONS'!$D$123 -> 0.0001 | S130: =IF($Q$39="MC",IF(Q130<R130,-'CF ASSUMPTIONS'!$D$124*(1+'GENERAL ASSUMPTIONS'!$C$32)^$F130,""),0) -> 0
C131: 0.0001 | D131: 0.0001 | E131: 0 | F131: 47 | G131: 1 | N131: 0 | O131: =AVERAGE(C126:C130)-'CF ASSUMPTIONS'!$D$123 -> 0.0001 | P131: =IF($Q$39="MC",IF(N131<O131,-'CF ASSUMPTIONS'!$D$122*(1+'GENERAL ASSUMPTIONS'!$C$32)^$F131,""),0) -> 0 | Q131: 0 | R131: =AVERAGE(C121:C130)-'CF ASSUMPTIONS'!$D$123 -> 0.0001 | S131: =IF($Q$39="MC",IF(Q131<R131,-'CF ASSUMPTIONS'!$D$124*(1+'GENERAL ASSUMPTIONS'!$C$32)^$F131,""),0) -> 0
C132: 0.0001 | D132: 0.0001 | E132: 0 | F132: 48 | G132: 1 | N132: 0 | O132: =AVERAGE(C127:C131)-'CF ASSUMPTIONS'!$D$123 -> 0.0001 | P132: =IF($Q$39="MC",IF(N132<O132,-'CF ASSUMPTIONS'!$D$122*(1+'GENERAL ASSUMPTIONS'!$C$32)^$F132,""),0) -> 0 | Q132: 0 | R132: =AVERAGE(C122:C131)-'CF ASSUMPTIONS'!$D$123 -> 0.0001 | S132: =IF($Q$39="MC",IF(Q132<R132,-'CF ASSUMPTIONS'!$D$124*(1+'GENERAL ASSUMPTIONS'!$C$32)^$F132,""),0) -> 0
C133: 0.0001 | D133: 0.0001 | E133: 0 | F133: 49 | G133: 1 | N133: 0 | O133: =AVERAGE(C128:C132)-'CF ASSUMPTIONS'!$D$123 -> 0.0001 | P133: =IF($Q$39="MC",IF(N133<O133,-'CF ASSUMPTIONS'!$D$122*(1+'GENERAL ASSUMPTIONS'!$C$32)^$F133,""),0) -> 0 | Q133: 0 | R133: =AVERAGE(C123:C132)-'CF ASSUMPTIONS'!$D$123 -> 0.0001 | S133: =IF($Q$39="MC",IF(Q133<R133,-'CF ASSUMPTIONS'!$D$124*(1+'GENERAL ASSUMPTIONS'!$C$32)^$F133,""),0) -> 0
C134: 0.0001 | D134: 0.0001 | E134: 0 | F134: 50 | G134: 1 | N134: 0 | O134: =AVERAGE(C129:C133)-'CF ASSUMPTIONS'!$D$123 -> 0.0001 | P134: =IF($Q$39="MC",IF(N134<O134,-'CF ASSUMPTIONS'!$D$122*(1+'GENERAL ASSUMPTIONS'!$C$32)^$F134,""),0) -> 0 | Q134: 0 | R134: =AVERAGE(C124:C133)-'CF ASSUMPTIONS'!$D$123 -> 0.0001 | S134: =IF($Q$39="MC",IF(Q134<R134,-'CF ASSUMPTIONS'!$D$124*(1+'GENERAL ASSUMPTIONS'!$C$32)^$F134,""),0) -> 0
C135: 0.0001 | D135: 0.0001 | E135: 0 | F135: 51 | G135: 1 | N135: 0 | O135: =AVERAGE(C130:C134)-'CF ASSUMPTIONS'!$D$123 -> 0.0001 | P135: =IF($Q$39="MC",IF(N135<O135,-'CF ASSUMPTIONS'!$D$122*(1+'GENERAL ASSUMPTIONS'!$C$32)^$F135,""),0) -> 0 | Q135: 0 | R135: =AVERAGE(C125:C134)-'CF ASSUMPTIONS'!$D$123 -> 0.0001 | S135: =IF($Q$39="MC",IF(Q135<R135,-'CF ASSUMPTIONS'!$D$124*(1+'GENERAL ASSUMPTIONS'!$C$32)^$F135,""),0) -> 0
C136: 0.0001 | D136: 0.0001 | E136: 0 | F136: 52 | G136: 1 | N136: 0 | O136: =AVERAGE(C131:C135)-'CF ASSUMPTIONS'!$D$123 -> 0.0001 | P136: =IF($Q$39="MC",IF(N136<O136,-'CF ASSUMPTIONS'!$D$122*(1+'GENERAL ASSUMPTIONS'!$C$32)^$F136,""),0) -> 0 | Q136: 0 | R136: =AVERAGE(C126:C135)-'CF ASSUMPTIONS'!$D$123 -> 0.0001 | S136: =IF($Q$39="MC",IF(Q136<R136,-'CF ASSUMPTIONS'!$D$124*(1+'GENERAL ASSUMPTIONS'!$C$32)^$F136,""),0) -> 0
C137: 0.0001 | D137: 0.0001 | E137: 0 | F137: 53 | G137: 1 | N137: 0 | O137: =AVERAGE(C132:C136)-'CF ASSUMPTIONS'!$D$123 -> 0.0001 | P137: =IF($Q$39="MC",IF(N137<O137,-'CF ASSUMPTIONS'!$D$122*(1+'GENERAL ASSUMPTIONS'!$C$32)^$F137,""),0) -> 0 | Q137: 0 | R137: =AVERAGE(C127:C136)-'CF ASSUMPTIONS'!$D$123 -> 0.0001 | S137: =IF($Q$39="MC",IF(Q137<R137,-'CF ASSUMPTIONS'!$D$124*(1+'GENERAL ASSUMPTIONS'!$C$32)^$F137,""),0) -> 0
C138: 0.0001 | D138: 0.0001 | E138: 0 | F138: 54 | G138: 1 | N138: 0 | O138: =AVERAGE(C133:C137)-'CF ASSUMPTIONS'!$D$123 -> 0.0001 | P138: =IF($Q$39="MC",IF(N138<O138,-'CF ASSUMPTIONS'!$D$122*(1+'GENERAL ASSUMPTIONS'!$C$32)^$F138,""),0) -> 0 | Q138: 0 | R138: =AVERAGE(C128:C137)-'CF ASSUMPTIONS'!$D$123 -> 0.0001 | S138: =IF($Q$39="MC",IF(Q138<R138,-'CF ASSUMPTIONS'!$D$124*(1+'GENERAL ASSUMPTIONS'!$C$32)^$F138,""),0) -> 0
C139: 0.0001 | D139: 0.0001 | E139: 0 | F139: 55 | G139: 1 | N139: 0 | O139: =AVERAGE(C134:C138)-'CF ASSUMPTIONS'!$D$123 -> 0.0001 | P139: =IF($Q$39="MC",IF(N139<O139,-'CF ASSUMPTIONS'!$D$122*(1+'GENERAL ASSUMPTIONS'!$C$32)^$F139,""),0) -> 0 | Q139: 0 | R139: =AVERAGE(C129:C138)-'CF ASSUMPTIONS'!$D$123 -> 0.0001 | S139: =IF($Q$39="MC",IF(Q139<R139,-'CF ASSUMPTIONS'!$D$124*(1+'GENERAL ASSUMPTIONS'!$C$32)^$F139,""),0) -> 0
C140: 0.0001 | D140: 0.0001 | E140: 0 | F140: 56 | G140: 1 | N140: 0 | O140: =AVERAGE(C135:C139)-'CF ASSUMPTIONS'!$D$123 -> 0.0001 | P140: =IF($Q$39="MC",IF(N140<O140,-'CF ASSUMPTIONS'!$D$122*(1+'GENERAL ASSUMPTIONS'!$C$32)^$F140,""),0) -> 0 | Q140: 0 | R140: =AVERAGE(C130:C139)-'CF ASSUMPTIONS'!$D$123 -> 0.0001 | S140: =IF($Q$39="MC",IF(Q140<R140,-'CF ASSUMPTIONS'!$D$124*(1+'GENERAL ASSUMPTIONS'!$C$32)^$F140,""),0) -> 0
C141: 0.0001 | D141: 0.0001 | E141: 0 | F141: 57 | G141: 1 | N141: 0 | O141: =AVERAGE(C136:C140)-'CF ASSUMPTIONS'!$D$123 -> 0.0001 | P141: =IF($Q$39="MC",IF(N141<O141,-'CF ASSUMPTIONS'!$D$122*(1+'GENERAL ASSUMPTIONS'!$C$32)^$F141,""),0) -> 0 | Q141: 0 | R141: =AVERAGE(C131:C140)-'CF ASSUMPTIONS'!$D$123 -> 0.0001 | S141: =IF($Q$39="MC",IF(Q141<R141,-'CF ASSUMPTIONS'!$D$124*(1+'GENERAL ASSUMPTIONS'!$C$32)^$F141,""),0) -> 0
C142: 0.0001 | D142: 0.0001 | E142: 0 | F142: 58 | G142: 1 | N142: 0 | O142: =AVERAGE(C137:C141)-'CF ASSUMPTIONS'!$D$123 -> 0.0001 | P142: =IF($Q$39="MC",IF(N142<O142,-'CF ASSUMPTIONS'!$D$122*(1+'GENERAL ASSUMPTIONS'!$C$32)^$F142,""),0) -> 0 | Q142: 0 | R142: =AVERAGE(C132:C141)-'CF ASSUMPTIONS'!$D$123 -> 0.0001 | S142: =IF($Q$39="MC",IF(Q142<R142,-'CF ASSUMPTIONS'!$D$124*(1+'GENERAL ASSUMPTIONS'!$C$32)^$F142,""),0) -> 0
C143: 0.0001 | D143: 0.0001 | E143: 0 | F143: 59 | G143: 1 | N143: 0 | O143: =AVERAGE(C138:C142)-'CF ASSUMPTIONS'!$D$123 -> 0.0001 | P143: =IF($Q$39="MC",IF(N143<O143,-'CF ASSUMPTIONS'!$D$122*(1+'GENERAL ASSUMPTIONS'!$C$32)^$F143,""),0) -> 0 | Q143: 0 | R143: =AVERAGE(C133:C142)-'CF ASSUMPTIONS'!$D$123 -> 0.0001 | S143: =IF($Q$39="MC",IF(Q143<R143,-'CF ASSUMPTIONS'!$D$124*(1+'GENERAL ASSUMPTIONS'!$C$32)^$F143,""),0) -> 0
C144: 0.0001 | D144: 0.0001 | E144: 0 | F144: 60 | G144: 1 | N144: 0 | O144: =AVERAGE(C139:C143)-'CF ASSUMPTIONS'!$D$123 -> 0.0001 | P144: =IF($Q$39="MC",IF(N144<O144,-'CF ASSUMPTIONS'!$D$122*(1+'GENERAL ASSUMPTIONS'!$C$32)^$F144,""),0) -> 0 | Q144: 0 | R144: =AVERAGE(C134:C143)-'CF ASSUMPTIONS'!$D$123 -> 0.0001 | S144: =IF($Q$39="MC",IF(Q144<R144,-'CF ASSUMPTIONS'!$D$124*(1+'GENERAL ASSUMPTIONS'!$C$32)^$F144,""),0) -> 0
C145: 0.0001 | D145: 0.0001 | E145: 0 | F145: 61 | G145: 1 | N145: 0 | O145: =AVERAGE(C140:C144)-'CF ASSUMPTIONS'!$D$123 -> 0.0001 | P145: =IF($Q$39="MC",IF(N145<O145,-'CF ASSUMPTIONS'!$D$122*(1+'GENERAL ASSUMPTIONS'!$C$32)^$F145,""),0) -> 0 | Q145: 0 | R145: =AVERAGE(C135:C144)-'CF ASSUMPTIONS'!$D$123 -> 0.0001 | S145: =IF($Q$39="MC",IF(Q145<R145,-'CF ASSUMPTIONS'!$D$124*(1+'GENERAL ASSUMPTIONS'!$C$32)^$F145,""),0) -> 0
C146: 0.0001 | D146: 0.0001 | E146: 0 | F146: 62 | G146: 1 | N146: 0 | O146: =AVERAGE(C141:C145)-'CF ASSUMPTIONS'!$D$123 -> 0.0001 | P146: =IF($Q$39="MC",IF(N146<O146,-'CF ASSUMPTIONS'!$D$122*(1+'GENERAL ASSUMPTIONS'!$C$32)^$F146,""),0) -> 0 | Q146: 0 | R146: =AVERAGE(C136:C145)-'CF ASSUMPTIONS'!$D$123 -> 0.0001 | S146: =IF($Q$39="MC",IF(Q146<R146,-'CF ASSUMPTIONS'!$D$124*(1+'GENERAL ASSUMPTIONS'!$C$32)^$F146,""),0) -> 0
C147: 0.0001 | D147: 0.0001 | E147: 0 | F147: 63 | G147: =G146*(1+E147) -> 1

Sheet OTHER ASSETS+
B1: ='GENERAL ASSUMPTIONS'!C10 -> BETA 05142017 - FOR TESTING ONLY
B2: Other Assets
B4: ='GENERAL ASSUMPTIONS'!$C$13 -> © 2016 GROSSMAN FINANCIAL MANAGEMENT
B6: ='GENERAL ASSUMPTIONS'!$C$16 -> PERSONAL FINANCIAL CALCULATING PROGRAM™
C7: OTHER 1 | D7: OTHER 2 | E7: OTHER 3 | F7: OTHER 4 | G7: OTHER 5 | H7: OTHER 6 | I7: OTHER 7 | J7: OTHER 8
B8: Asset Name | C8: O1 | D8: O2 | E8: O3 | F8: O4 | G8: O5 | H8: O6 | I8: O7 | J8: O8
B10: Ownership Titling
B12: Basis
B14: Fair Market Value Now | C14: 0 | D14: 0 | E14: 0 | F14: 0 | G14: 0 | H14: 0 | I14: 0 | J14: 0
B16: First Year of Ownership | C16: =baseyear -> 2016 | D16: =baseyear -> 2016 | E16: =baseyear -> 2016 | F16: 2016 | G16: 2016 | H16: 2016 | I16: 2016 | J16: 2016
B18: Last Year of Ownership | C18: =C16+60 -> 2076 | D18: 2076 | E18: 2076 | F18: 2076 | G18: 2076 | H18: 2076 | I18: 2076 | J18: 2076
B20: Appreciation Rate Relative to Inflation | C20: 0 | D20: 0 | E20: 0 | F20: 0 | G20: 0 | H20: 0 | I20: 0 | J20: 0
B22: Appreciation Rate | C22: =inflate+C20 -> 0 | D22: 0 | E22: 0 | F22: 0 | G22: 0 | H22: 0 | I22: 0 | J22: 0
B26: YEAR | C26: =IF(C16<=baseyear, C14,0) -> 0 | D26: 0 | E26: 0 | F26: 0 | G26: 0 | H26: 0 | I26: 0 | J26: 0 | L26: year counter
B27: ='[1]FULL VIEW'!H12 ->  | C27: =IF(C$18>=$B27,IF(C$16<=$B27,C$14*(1+C$22)^$L27,0),0) ->  | L27: 1
B28: ='[1]FULL VIEW'!H13 ->  | L28: =L27+1 -> 2
B29: ='[1]FULL VIEW'!H14 ->  | L29: 3
B30: ='[1]FULL VIEW'!H15 ->  | L30: 4
B31: ='[1]FULL VIEW'!H16 ->  | L31: 5
B32: ='[1]FULL VIEW'!H17 ->  | L32: 6
B33: ='[1]FULL VIEW'!H18 ->  | L33: 7
B34: ='[1]FULL VIEW'!H19 ->  | L34: 8
B35: ='[1]FULL VIEW'!H20 ->  | L35: 9
B36: ='[1]FULL VIEW'!H21 ->  | L36: 10
B37: ='[1]FULL VIEW'!H22 ->  | C37: =IF(C$18>=$B37,IF(C$16<=$B37,C$14*(1+C$22)^$L37,0),0) ->  | L37: 11
B38: ='[1]FULL VIEW'!H23 ->  | L38: 12
B39: ='[1]FULL VIEW'!H24 ->  | L39: 13
B40: ='[1]FULL VIEW'!H25 ->  | L40: 14
B41: ='[1]FULL VIEW'!H26 ->  | L41: 15
B42: ='[1]FULL VIEW'!H27 ->  | L42: 16
B43: ='[1]FULL VIEW'!H28 ->  | L43: 17
B44: ='[1]FULL VIEW'!H29 ->  | L44: 18
B45: ='[1]FULL VIEW'!H30 ->  | L45: 19
B46: ='[1]FULL VIEW'!H31 ->  | L46: 20
B47: ='[1]FULL VIEW'!H32 ->  | C47: =IF(C$18>=$B47,IF(C$16<=$B47,C$14*(1+C$22)^$L47,0),0) ->  | L47: 21
B48: ='[1]FULL VIEW'!H33 ->  | L48: 22
B49: ='[1]FULL VIEW'!H34 ->  | L49: 23
B50: ='[1]FULL VIEW'!H35 ->  | L50: 24
B51: ='[1]FULL VIEW'!H36 ->  | L51: 25
B52: ='[1]FULL VIEW'!H37 ->  | L52: 26
B53: ='[1]FULL VIEW'!H38 ->  | L53: 27
B54: ='[1]FULL VIEW'!H39 ->  | L54: 28
B55: ='[1]FULL VIEW'!H40 ->  | L55: 29
B56: ='[1]FULL VIEW'!H41 ->  | L56: 30
B57: ='[1]FULL VIEW'!H42 ->  | C57: =IF(C$18>=$B57,IF(C$16<=$B57,C$14*(1+C$22)^$L57,0),0) ->  | L57: 31
B58: ='[1]FULL VIEW'!H43 ->  | L58: 32
B59: ='[1]FULL VIEW'!H44 ->  | L59: 33
B60: ='[1]FULL VIEW'!H45 ->  | L60: =L59+1 -> 34
B61: ='[1]FULL VIEW'!H46 ->  | L61: 35
B62: ='[1]FULL VIEW'!H47 ->  | L62: 36
B63: ='[1]FULL VIEW'!H48 ->  | L63: 37
B64: ='[1]FULL VIEW'!H49 ->  | L64: 38
B65: ='[1]FULL VIEW'!H50 ->  | L65: 39
B66: ='[1]FULL VIEW'!H51 ->  | L66: 40
B67: ='[1]FULL VIEW'!H52 ->  | C67: =IF(C$18>=$B67,IF(C$16<=$B67,C$14*(1+C$22)^$L67,0),0) ->  | L67: 41
B68: ='[1]FULL VIEW'!H53 ->  | L68: 42
B69: ='[1]FULL VIEW'!H54 ->  | L69: 43
B70: ='[1]FULL VIEW'!H55 ->  | L70: 44
B71: ='[1]FULL VIEW'!H56 ->  | L71: 45
B72: ='[1]FULL VIEW'!H57 ->  | L72: 46
B73: ='[1]FULL VIEW'!H58 ->  | L73: 47
B74: ='[1]FULL VIEW'!H59 ->  | L74: 48
B75: ='[1]FULL VIEW'!H60 ->  | L75: 49
B76: ='[1]FULL VIEW'!H61 ->  | L76: 50
B77: ='[1]FULL VIEW'!H62 ->  | C77: =IF(C$18>=$B77,IF(C$16<=$B77,C$14*(1+C$22)^$L77,0),0) ->  | L77: 51
B78: ='[1]FULL VIEW'!H63 ->  | L78: 52
B79: ='[1]FULL VIEW'!H64 ->  | L79: 53
B80: ='[1]FULL VIEW'!H65 ->  | L80: 54
B81: ='[1]FULL VIEW'!H66 ->  | L81: 55
B82: ='[1]FULL VIEW'!H67 ->  | L82: 56
B83: ='[1]FULL VIEW'!H68 ->  | L83: 57
B84: ='[1]FULL VIEW'!H69 ->  | L84: 58
B85: ='[1]FULL VIEW'!H70 ->  | L85: 59
B86: ='[1]FULL VIEW'!H71 ->  | L86: 60
B87: ='[1]FULL VIEW'!H72 ->  | L87: 61

Sheet OTHER ASSETS (hidden)
B1: ='GENERAL ASSUMPTIONS'!A1 -> BETA 05142017 - FOR TESTING ONLY
B2: Other Assets
B4: ='GENERAL ASSUMPTIONS'!$C$13 -> © 2016 GROSSMAN FINANCIAL MANAGEMENT
B6: ='GENERAL ASSUMPTIONS'!$C$16 -> PERSONAL FINANCIAL CALCULATING PROGRAM™
C7: PERSONAL 1 | D7: PERSONAL 2 | E7: PERSONAL 3 | F7: PERSONAL 4 | G7: OTHER 1 | H7: OTHER 2 | I7: OTHER 3 | J7: OTHER 4 | K7: LIFE INSURANCE 1 | L7: LIFE INSURANCE 2 | M7: LIFE INSURANCE 3 | N7: LIFE INSURANCE 4
B8: Asset Name | C8: ='OTHER ASSETS+'!C8 -> O1 | D8: ='OTHER ASSETS+'!D8 -> O2 | E8: ='OTHER ASSETS+'!E8 -> O3 | F8: ='OTHER ASSETS+'!F8 -> O4 | G8: ='OTHER ASSETS+'!G8 -> O5 | H8: ='OTHER ASSETS+'!H8 -> O6 | I8: ='OTHER ASSETS+'!I8 -> O7 | J8: ='OTHER ASSETS+'!J8 -> O8 | K8: L1 | L8: L2 | M8: L3 | N8: L4
B10: Ownership Titling | C10: ='OTHER ASSETS+'!C10 -> 0 | D10: ='OTHER ASSETS+'!D10 -> 0 | E10: ='OTHER ASSETS+'!E10 -> 0 | F10: ='OTHER ASSETS+'!F10 -> 0 | G10: ='OTHER ASSETS+'!G10 -> 0 | H10: ='OTHER ASSETS+'!H10 -> 0 | I10: ='OTHER ASSETS+'!I10 -> 0 | J10: ='OTHER ASSETS+'!J10 -> 0
B12: Basis | C12: ='OTHER ASSETS+'!C12 -> 0 | D12: ='OTHER ASSETS+'!D12 -> 0 | E12: ='OTHER ASSETS+'!E12 -> 0 | F12: ='OTHER ASSETS+'!F12 -> 0 | G12: ='OTHER ASSETS+'!G12 -> 0 | H12: ='OTHER ASSETS+'!H12 -> 0 | I12: ='OTHER ASSETS+'!I12 -> 0 | J12: ='OTHER ASSETS+'!J12 -> 0
B14: Fair Market Value | C14: ='OTHER ASSETS+'!C14 -> 0 | D14: ='OTHER ASSETS+'!D14 -> 0 | E14: ='OTHER ASSETS+'!E14 -> 0 | F14: ='OTHER ASSETS+'!F14 -> 0 | G14: ='OTHER ASSETS+'!G14 -> 0 | H14: ='OTHER ASSETS+'!H14 -> 0 | I14: ='OTHER ASSETS+'!I14 -> 0 | J14: ='OTHER ASSETS+'!J14 -> 0
B16: First Year | C16: ='OTHER ASSETS+'!C16 -> 2016 | D16: ='OTHER ASSETS+'!D16 -> 2016 | E16: ='OTHER ASSETS+'!E16 -> 2016 | F16: ='OTHER ASSETS+'!F16 -> 2016 | G16: ='OTHER ASSETS+'!G16 -> 2016 | H16: ='OTHER ASSETS+'!H16 -> 2016 | I16: ='OTHER ASSETS+'!I16 -> 2016 | J16: ='OTHER ASSETS+'!J16 -> 2016 | K16: =baseyear -> 2016 | L16: 2016 | M16: =baseyear -> 2016 | N16: 2016
B18: Last Year | C18: ='OTHER ASSETS+'!C18 -> 2076 | D18: ='OTHER ASSETS+'!D18 -> 2076 | E18: ='OTHER ASSETS+'!E18 -> 2076 | F18: ='OTHER ASSETS+'!F18 -> 2076 | G18: ='OTHER ASSETS+'!G18 -> 2076 | H18: ='OTHER ASSETS+'!H18 -> 2076 | I18: ='OTHER ASSETS+'!I18 -> 2076 | J18: ='OTHER ASSETS+'!J18 -> 2076 | K18: =K16+60 -> 2076 | L18: 2076 | M18: 2076 | N18: 2076
B20: Appreciation Rate Relative to Inflation | C20: ='OTHER ASSETS+'!C20 -> 0 | D20: ='OTHER ASSETS+'!D20 -> 0 | E20: ='OTHER ASSETS+'!E20 -> 0 | F20: ='OTHER ASSETS+'!F20 -> 0 | G20: ='OTHER ASSETS+'!G20 -> 0 | H20: ='OTHER ASSETS+'!H20 -> 0 | I20: ='OTHER ASSETS+'!I20 -> 0 | J20: ='OTHER ASSETS+'!J20 -> 0 | K20: 0 | L20: 0 | M20: 0 | N20: 0
B22: Appreciation Rate | C22: =inflate+C20 -> 0 | D22: 0 | E22: 0 | F22: 0 | G22: 0 | H22: 0 | I22: 0 | J22: 0 | K22: 0 | L22: 0 | M22: 0 | N22: 0
B25: Life Insurance - Notes
B26: Disability Insurance - Notes
B27: Long Term Care Insurance - Notes
B28: Other Insurance - Notes
B30: YEAR | C30: =IF(C16<=baseyear, C14,0) -> 0 | D30: 0 | E30: 0 | F30: 0 | G30: 0 | H30: 0 | I30: 0 | J30: 0 | K30: opening balance values for balance sheet | P30: year counter
B31: ='FULL VIEW'!H12 -> 2016 | C31: =IF(C$18>=$B31,IF(C$16<=$B31,C$14*(1+C$22)^$P31,0),0) -> 0 | D31: =IF(D$18>=$B31,IF(D$16<=$B31,D$14*(1+D$22)^$P31,0),0) -> 0 | E31: 0 | F31: 0 | G31: 0 | H31: 0 | I31: 0 | J31: 0 | K31: 0 | L31: 0 | M31: 0 | N31: 0 | P31: 1
B32: ='FULL VIEW'!H13 -> 2017 | C32: 0 | D32: 0 | E32: 0 | F32: 0 | G32: 0 | H32: 0 | I32: 0 | J32: 0 | K32: 0 | L32: 0 | M32: 0 | N32: 0 | P32: =P31+1 -> 2
B33: ='FULL VIEW'!H14 -> 2018 | C33: 0 | D33: 0 | E33: 0 | F33: 0 | G33: 0 | H33: 0 | I33: 0 | J33: 0 | K33: 0 | L33: 0 | M33: 0 | N33: 0 | P33: =P32+1 -> 3
B34: ='FULL VIEW'!H15 -> 2019 | C34: 0 | D34: 0 | E34: 0 | F34: 0 | G34: 0 | H34: 0 | I34: 0 | J34: 0 | K34: 0 | L34: 0 | M34: 0 | N34: 0 | P34: 4
B35: ='FULL VIEW'!H16 -> 2020 | C35: 0 | D35: 0 | E35: 0 | F35: 0 | G35: 0 | H35: 0 | I35: 0 | J35: 0 | K35: 0 | L35: 0 | M35: 0 | N35: 0 | P35: 5
B36: ='FULL VIEW'!H17 -> 2021 | C36: 0 | D36: 0 | E36: 0 | F36: 0 | G36: 0 | H36: 0 | I36: 0 | J36: 0 | K36: 0 | L36: 0 | M36: 0 | N36: 0 | P36: 6
B37: ='FULL VIEW'!H18 -> 2022 | C37: 0 | D37: 0 | E37: 0 | F37: 0 | G37: 0 | H37: 0 | I37: 0 | J37: 0 | K37: 0 | L37: 0 | M37: 0 | N37: 0 | P37: 7
B38: ='FULL VIEW'!H19 -> 2023 | C38: 0 | D38: 0 | E38: 0 | F38: 0 | G38: 0 | H38: 0 | I38: 0 | J38: 0 | K38: 0 | L38: 0 | M38: 0 | N38: 0 | P38: 8
B39: ='FULL VIEW'!H20 -> 2024 | C39: 0 | D39: 0 | E39: 0 | F39: 0 | G39: 0 | H39: 0 | I39: 0 | J39: 0 | K39: 0 | L39: 0 | M39: 0 | N39: 0 | P39: 9
B40: ='FULL VIEW'!H21 -> 2025 | C40: 0 | D40: 0 | E40: 0 | F40: 0 | G40: 0 | H40: 0 | I40: 0 | J40: 0 | K40: 0 | L40: 0 | M40: 0 | N40: 0 | P40: 10
B41: ='FULL VIEW'!H22 -> 2026 | C41: 0 | D41: 0 | E41: 0 | F41: 0 | G41: 0 | H41: 0 | I41: 0 | J41: 0 | K41: 0 | L41: 0 | M41: 0 | N41: 0 | P41: 11
B42: ='FULL VIEW'!H23 -> 2027 | C42: 0 | D42: 0 | E42: 0 | F42: 0 | G42: 0 | H42: 0 | I42: 0 | J42: 0 | K42: 0 | L42: 0 | M42: 0 | N42: 0 | P42: 12
B43: ='FULL VIEW'!H24 -> 2028 | C43: 0 | D43: 0 | E43: 0 | F43: 0 | G43: 0 | H43: 0 | I43: 0 | J43: 0 | K43: 0 | L43: 0 | M43: 0 | N43: 0 | P43: 13
B44: ='FULL VIEW'!H25 -> 2029 | C44: 0 | D44: 0 | E44: 0 | F44: 0 | G44: 0 | H44: 0 | I44: 0 | J44: 0 | K44: 0 | L44: 0 | M44: 0 | N44: 0 | P44: 14
B45: ='FULL VIEW'!H26 -> 2030 | C45: 0 | D45: 0 | E45: 0 | F45: 0 | G45: 0 | H45: 0 | I45: 0 | J45: 0 | K45: 0 | L45: 0 | M45: 0 | N45: 0 | P45: 15
B46: ='FULL VIEW'!H27 -> 2031 | C46: 0 | D46: 0 | E46: 0 | F46: 0 | G46: 0 | H46: 0 | I46: 0 | J46: 0 | K46: 0 | L46: 0 | M46: 0 | N46: 0 | P46: 16
B47: ='FULL VIEW'!H28 -> 2032 | C47: 0 | D47: =IF(D$18>=$B47,IF(D$16<=$B47,D$14*(1+D$22)^$P47,0),0) -> 0 | E47: 0 | F47: 0 | G47: 0 | H47: 0 | I47: 0 | J47: 0 | K47: 0 | L47: 0 | M47: 0 | N47: 0 | P47: 17
B48: ='FULL VIEW'!H29 -> 2033 | C48: =IF(C$18>=$B48,IF(C$16<=$B48,C$14*(1+C$22)^$P48,0),0) -> 0 | D48: 0 | E48: 0 | F48: 0 | G48: 0 | H48: 0 | I48: 0 | J48: 0 | K48: 0 | L48: 0 | M48: 0 | N48: 0 | P48: 18
B49: ='FULL VIEW'!H30 -> 2034 | C49: 0 | D49: 0 | E49: 0 | F49: 0 | G49: 0 | H49: 0 | I49: 0 | J49: 0 | K49: 0 | L49: 0 | M49: 0 | N49: 0 | P49: =P48+1 -> 19
B50: ='FULL VIEW'!H31 -> 2035 | C50: 0 | D50: 0 | E50: 0 | F50: 0 | G50: 0 | H50: 0 | I50: 0 | J50: 0 | K50: 0 | L50: 0 | M50: 0 | N50: 0 | P50: 20
B51: ='FULL VIEW'!H32 -> 2036 | C51: 0 | D51: 0 | E51: 0 | F51: 0 | G51: 0 | H51: 0 | I51: 0 | J51: 0 | K51: 0 | L51: 0 | M51: 0 | N51: 0 | P51: 21
B52: ='FULL VIEW'!H33 -> 2037 | C52: 0 | D52: 0 | E52: 0 | F52: 0 | G52: 0 | H52: 0 | I52: 0 | J52: 0 | K52: 0 | L52: 0 | M52: 0 | N52: 0 | P52: 22
B53: ='FULL VIEW'!H34 -> 2038 | C53: 0 | D53: 0 | E53: 0 | F53: 0 | G53: 0 | H53: 0 | I53: 0 | J53: 0 | K53: 0 | L53: 0 | M53: 0 | N53: 0 | P53: 23
B54: ='FULL VIEW'!H35 -> 2039 | C54: 0 | D54: 0 | E54: 0 | F54: 0 | G54: 0 | H54: 0 | I54: 0 | J54: 0 | K54: 0 | L54: 0 | M54: 0 | N54: 0 | P54: 24
B55: ='FULL VIEW'!H36 -> 2040 | C55: 0 | D55: 0 | E55: 0 | F55: 0 | G55: 0 | H55: 0 | I55: 0 | J55: 0 | K55: 0 | L55: 0 | M55: 0 | N55: 0 | P55: 25
B56: ='FULL VIEW'!H37 -> 2041 | C56: 0 | D56: 0 | E56: 0 | F56: 0 | G56: 0 | H56: 0 | I56: 0 | J56: 0 | K56: 0 | L56: 0 | M56: 0 | N56: 0 | P56: 26
B57: ='FULL VIEW'!H38 -> 2042 | C57: 0 | D57: 0 | E57: 0 | F57: 0 | G57: 0 | H57: 0 | I57: 0 | J57: 0 | K57: 0 | L57: 0 | M57: 0 | N57: 0 | P57: 27
B58: ='FULL VIEW'!H39 -> 2043 | C58: 0 | D58: 0 | E58: 0 | F58: 0 | G58: 0 | H58: 0 | I58: 0 | J58: 0 | K58: 0 | L58: 0 | M58: 0 | N58: 0 | P58: 28
B59: ='FULL VIEW'!H40 -> 2044 | C59: 0 | D59: 0 | E59: 0 | F59: 0 | G59: 0 | H59: 0 | I59: 0 | J59: 0 | K59: 0 | L59: 0 | M59: 0 | N59: 0 | P59: 29
B60: ='FULL VIEW'!H41 -> 2045 | C60: 0 | D60: 0 | E60: 0 | F60: 0 | G60: 0 | H60: 0 | I60: 0 | J60: 0 | K60: 0 | L60: 0 | M60: 0 | N60: 0 | P60: 30
B61: ='FULL VIEW'!H42 -> 2046 | C61: 0 | D61: 0 | E61: 0 | F61: 0 | G61: 0 | H61: 0 | I61: 0 | J61: 0 | K61: 0 | L61: 0 | M61: 0 | N61: 0 | P61: 31
B62: ='FULL VIEW'!H43 -> 2047 | C62: 0 | D62: 0 | E62: 0 | F62: 0 | G62: 0 | H62: 0 | I62: 0 | J62: 0 | K62: 0 | L62: 0 | M62: 0 | N62: 0 | P62: 32
B63: ='FULL VIEW'!H44 -> 2048 | C63: 0 | D63: 0 | E63: 0 | F63: 0 | G63: 0 | H63: 0 | I63: 0 | J63: 0 | K63: 0 | L63: 0 | M63: 0 | N63: 0 | P63: 33
B64: ='FULL VIEW'!H45 -> 2049 | C64: =IF(C$18>=$B64,IF(C$16<=$B64,C$14*(1+C$22)^$P64,0),0) -> 0 | D64: 0 | E64: 0 | F64: 0 | G64: 0 | H64: 0 | I64: 0 | J64: 0 | K64: 0 | L64: 0 | M64: 0 | N64: 0 | P64: 34
B65: ='FULL VIEW'!H46 -> 2050 | C65: 0 | D65: 0 | E65: 0 | F65: 0 | G65: 0 | H65: 0 | I65: 0 | J65: 0 | K65: 0 | L65: 0 | M65: 0 | N65: 0 | P65: =P64+1 -> 35
B66: ='FULL VIEW'!H47 -> 2051 | C66: 0 | D66: 0 | E66: 0 | F66: 0 | G66: 0 | H66: 0 | I66: 0 | J66: 0 | K66: 0 | L66: 0 | M66: 0 | N66: 0 | P66: 36
B67: ='FULL VIEW'!H48 -> 2052 | C67: 0 | D67: 0 | E67: 0 | F67: 0 | G67: 0 | H67: 0 | I67: 0 | J67: 0 | K67: 0 | L67: 0 | M67: 0 | N67: 0 | P67: 37
B68: ='FULL VIEW'!H49 -> 2053 | C68: 0 | D68: 0 | E68: 0 | F68: 0 | G68: 0 | H68: 0 | I68: 0 | J68: 0 | K68: 0 | L68: 0 | M68: 0 | N68: 0 | P68: 38
B69: ='FULL VIEW'!H50 -> 2054 | C69: 0 | D69: 0 | E69: 0 | F69: 0 | G69: 0 | H69: 0 | I69: 0 | J69: 0 | K69: 0 | L69: 0 | M69: 0 | N69: 0 | P69: 39
B70: ='FULL VIEW'!H51 -> 2055 | C70: 0 | D70: 0 | E70: 0 | F70: 0 | G70: 0 | H70: 0 | I70: 0 | J70: 0 | K70: 0 | L70: 0 | M70: 0 | N70: 0 | P70: 40
B71: ='FULL VIEW'!H52 -> 2056 | C71: 0 | D71: 0 | E71: 0 | F71: 0 | G71: 0 | H71: 0 | I71: 0 | J71: 0 | K71: 0 | L71: 0 | M71: 0 | N71: 0 | P71: 41
B72: ='FULL VIEW'!H53 -> 2057 | C72: 0 | D72: 0 | E72: 0 | F72: 0 | G72: 0 | H72: 0 | I72: 0 | J72: 0 | K72: 0 | L72: 0 | M72: 0 | N72: 0 | P72: 42
B73: ='FULL VIEW'!H54 -> 2058 | C73: 0 | D73: 0 | E73: 0 | F73: 0 | G73: 0 | H73: 0 | I73: 0 | J73: 0 | K73: 0 | L73: 0 | M73: 0 | N73: 0 | P73: 43
B74: ='FULL VIEW'!H55 -> 2059 | C74: 0 | D74: 0 | E74: 0 | F74: 0 | G74: 0 | H74: 0 | I74: 0 | J74: 0 | K74: 0 | L74: 0 | M74: 0 | N74: 0 | P74: 44
B75: ='FULL VIEW'!H56 -> 2060 | C75: 0 | D75: 0 | E75: 0 | F75: 0 | G75: 0 | H75: 0 | I75: 0 | J75: 0 | K75: 0 | L75: 0 | M75: 0 | N75: 0 | P75: 45
B76: ='FULL VIEW'!H57 -> 2061 | C76: 0 | D76: 0 | E76: 0 | F76: 0 | G76: 0 | H76: 0 | I76: 0 | J76: 0 | K76: 0 | L76: 0 | M76: 0 | N76: 0 | P76: 46
B77: ='FULL VIEW'!H58 -> 2062 | C77: 0 | D77: 0 | E77: 0 | F77: 0 | G77: 0 | H77: 0 | I77: 0 | J77: 0 | K77: 0 | L77: 0 | M77: 0 | N77: 0 | P77: 47
B78: ='FULL VIEW'!H59 -> 2063 | C78: 0 | D78: 0 | E78: 0 | F78: 0 | G78: 0 | H78: 0 | I78: 0 | J78: 0 | K78: 0 | L78: 0 | M78: 0 | N78: 0 | P78: 48
B79: ='FULL VIEW'!H60 -> 2064 | C79: 0 | D79: 0 | E79: 0 | F79: 0 | G79: 0 | H79: 0 | I79: 0 | J79: 0 | K79: 0 | L79: 0 | M79: 0 | N79: 0 | P79: 49
B80: ='FULL VIEW'!H61 -> 2065 | C80: =IF(C$18>=$B80,IF(C$16<=$B80,C$14*(1+C$22)^$P80,0),0) -> 0 | D80: 0 | E80: 0 | F80: 0 | G80: 0 | H80: 0 | I80: 0 | J80: 0 | K80: 0 | L80: 0 | M80: 0 | N80: 0 | P80: 50
B81: ='FULL VIEW'!H62 -> 2066 | C81: 0 | D81: 0 | E81: 0 | F81: 0 | G81: 0 | H81: 0 | I81: 0 | J81: 0 | K81: 0 | L81: 0 | M81: 0 | N81: 0 | P81: =P80+1 -> 51
B82: ='FULL VIEW'!H63 -> 2067 | C82: 0 | D82: 0 | E82: 0 | F82: 0 | G82: 0 | H82: 0 | I82: 0 | J82: 0 | K82: 0 | L82: 0 | M82: 0 | N82: 0 | P82: 52
B83: ='FULL VIEW'!H64 -> 2068 | C83: 0 | D83: 0 | E83: 0 | F83: 0 | G83: 0 | H83: 0 | I83: 0 | J83: 0 | K83: 0 | L83: 0 | M83: 0 | N83: 0 | P83: 53
B84: ='FULL VIEW'!H65 -> 2069 | C84: 0 | D84: 0 | E84: 0 | F84: 0 | G84: 0 | H84: 0 | I84: 0 | J84: 0 | K84: 0 | L84: 0 | M84: 0 | N84: 0 | P84: 54
B85: ='FULL VIEW'!H66 -> 2070 | C85: 0 | D85: 0 | E85: 0 | F85: 0 | G85: 0 | H85: 0 | I85: 0 | J85: 0 | K85: 0 | L85: 0 | M85: 0 | N85: 0 | P85: 55
B86: ='FULL VIEW'!H67 -> 2071 | C86: 0 | D86: 0 | E86: 0 | F86: 0 | G86: 0 | H86: 0 | I86: 0 | J86: 0 | K86: 0 | L86: 0 | M86: 0 | N86: 0 | P86: 56
B87: ='FULL VIEW'!H68 -> 2072 | C87: 0 | D87: 0 | E87: 0 | F87: 0 | G87: 0 | H87: 0 | I87: 0 | J87: 0 | K87: 0 | L87: 0 | M87: 0 | N87: 0 | P87: 57
B88: ='FULL VIEW'!H69 -> 2073 | C88: 0 | D88: 0 | E88: 0 | F88: 0 | G88: 0 | H88: 0 | I88: 0 | J88: 0 | K88: 0 | L88: 0 | M88: 0 | N88: 0 | P88: 58
B89: ='FULL VIEW'!H70 -> 2074 | C89: 0 | D89: 0 | E89: 0 | F89: 0 | G89: 0 | H89: 0 | I89: 0 | J89: 0 | K89: 0 | L89: 0 | M89: 0 | N89: 0 | P89: 59
B90: ='FULL VIEW'!H71 -> 2075 | C90: 0 | D90: 0 | E90: 0 | F90: 0 | G90: 0 | H90: 0 | I90: 0 | J90: 0 | K90: 0 | L90: 0 | M90: 0 | N90: 0 | P90: 60
B91: ='FULL VIEW'!H72 -> 2076 | C91: 0 | D91: 0 | E91: 0 | F91: 0 | G91: 0 | H91: 0 | I91: 0 | J91: 0 | K91: 0 | L91: 0 | M91: 0 | N91: 0 | P91: 61

Sheet DEBT+
C1: ='GENERAL ASSUMPTIONS'!C10 -> BETA 05142017 - FOR TESTING ONLY
C3: ='GENERAL ASSUMPTIONS'!$C$13 -> © 2016 GROSSMAN FINANCIAL MANAGEMENT
C4: ='GENERAL ASSUMPTIONS'!$C$16 -> PERSONAL FINANCIAL CALCULATING PROGRAM™
C5: DEBT & DEBT SERVICE
D7: NAME | E7: A | G7: . | H7: . | I7: . | J7: B | L7: . | M7: . | N7: . | O7: C | Q7: . | S7: . | T7: D | V7: . | X7: . | Y7: E | AA7: . | AC7: . | AD7: F | AF7: . | AH7: . | AI7: G | AK7: . | AM7: . | AN7: H | AP7: . | AQ7: =F6
D10: CURRENT PRINCIPAL | E10: 0 | F10: . | G10: . | H10: . | I10: . | J10: 0 | K10: . | L10: . | M10: . | N10: . | O10: 0 | P10: . | Q10: . | R10: . | S10: . | T10: 0 | U10: . | V10: . | W10: . | X10: . | Y10: 0 | Z10: . | AA10: . | AB10: . | AC10: . | AD10: 0 | AE10: . | AF10: . | AG10: . | AH10: . | AI10: 0 | AJ10: . | AK10: . | AL10: . | AM10: . | AN10: 0 | AO10: . | AP10: . | AQ10: . | AR10: .
F11: . | G11: . | H11: . | I11: . | K11: . | L11: . | M11: . | N11: . | P11: . | Q11: . | R11: . | S11: . | U11: . | V11: . | W11: . | X11: . | Z11: . | AA11: . | AB11: . | AC11: . | AE11: . | AF11: . | AG11: . | AH11: . | AJ11: . | AK11: . | AL11: . | AM11: . | AO11: . | AP11: . | AQ11: . | AR11: .
D12: LOAN ORIGINATION DATE | E12: =baseyear -> 2016 | F12: . | G12: . | H12: . | I12: . | J12: =baseyear -> 2016 | K12: . | L12: . | M12: . | N12: . | O12: =baseyear -> 2016 | P12: . | Q12: . | R12: . | S12: . | T12: =baseyear -> 2016 | U12: . | V12: . | W12: . | X12: . | Y12: =baseyear -> 2016 | Z12: . | AA12: . | AB12: . | AC12: . | AD12: =baseyear -> 2016 | AE12: . | AF12: . | AG12: . | AH12: . | AI12: =baseyear -> 2016 | AJ12: . | AK12: . | AL12: . | AM12: . | AN12: 2017 | AO12: . | AP12: . | AQ12: . | AR12: .
F13: . | G13: . | H13: . | I13: . | K13: . | L13: . | M13: . | N13: . | P13: . | Q13: . | R13: . | S13: . | U13: . | V13: . | W13: . | X13: . | Z13: . | AA13: . | AB13: . | AC13: . | AE13: . | AF13: . | AG13: . | AH13: . | AJ13: . | AK13: . | AL13: . | AM13: . | AO13: . | AP13: . | AQ13: . | AR13: .
D14: YEARS REMAINING | E14: 1 | F14: . | G14: . | H14: . | I14: . | J14: 1 | K14: . | L14: . | M14: . | N14: . | O14: 1 | P14: . | Q14: . | R14: . | S14: . | T14: 1 | U14: . | V14: . | W14: . | X14: . | Y14: 1 | Z14: . | AA14: . | AB14: . | AC14: . | AD14: 1 | AE14: . | AF14: . | AG14: . | AH14: . | AI14: 1 | AJ14: . | AK14: . | AL14: . | AM14: . | AN14: 1 | AO14: . | AP14: . | AQ14: . | AR14: .
F15: . | G15: . | H15: . | I15: . | K15: . | L15: . | M15: . | N15: . | P15: . | Q15: . | R15: . | S15: . | U15: . | V15: . | W15: . | X15: . | Z15: . | AA15: . | AB15: . | AC15: . | AE15: . | AF15: . | AG15: . | AH15: . | AJ15: . | AK15: . | AL15: . | AM15: . | AO15: . | AP15: . | AQ15: . | AR15: .
D16: INTEREST RATE | E16: 0 | F16: . | G16: . | H16: . | I16: . | J16: 0 | K16: . | L16: . | M16: . | N16: . | O16: 0 | P16: . | Q16: . | R16: . | S16: . | T16: 0 | U16: . | V16: . | W16: . | X16: . | Y16: 0 | Z16: . | AA16: . | AB16: . | AC16: . | AD16: 0 | AE16: . | AF16: . | AG16: . | AH16: . | AI16: 0 | AJ16: . | AK16: . | AL16: . | AM16: . | AN16: 0 | AO16: . | AP16: . | AQ16: . | AR16: .
F17: . | G17: . | H17: . | I17: . | K17: . | L17: . | M17: . | N17: . | P17: . | Q17: . | R17: . | S17: . | U17: . | V17: . | W17: . | X17: . | Z17: . | AA17: . | AB17: . | AC17: . | AE17: . | AF17: . | AG17: . | AH17: . | AJ17: . | AK17: . | AL17: . | AM17: . | AO17: . | AP17: . | AQ17: . | AR17: .
D18: INTEREST DEDUCTIBLE | E18: NO | F18: . | G18: . | H18: . | I18: . | J18: NO | K18: . | L18: . | M18: . | N18: . | O18: NO | P18: . | Q18: . | R18: . | S18: . | T18: NO | U18: . | V18: . | W18: . | X18: . | Y18: NO | Z18: . | AA18: . | AB18: . | AC18: . | AD18: NO | AE18: . | AF18: . | AG18: . | AH18: . | AI18: NO | AJ18: . | AK18: . | AL18: . | AM18: . | AN18: NO | AO18: . | AP18: . | AQ18: . | AR18: .
E19: =IF(E18="yes","",IF(E18="no","","error")) ->  | F19: . | G19: . | H19: . | I19: . | J19: =IF(J18="yes","",IF(J18="no","","error")) ->  | K19: . | L19: . | M19: . | N19: . | O19: =IF(O18="yes","",IF(O18="no","","error")) ->  | P19: . | Q19: . | R19: . | S19: . | T19: =IF(T18="yes","",IF(T18="no","","error")) ->  | U19: . | V19: . | W19: . | X19: . | Y19: =IF(Y18="yes","",IF(Y18="no","","error")) ->  | Z19: . | AA19: . | AB19: . | AC19: . | AD19: =IF(AD18="yes","",IF(AD18="no","","error")) ->  | AE19: . | AF19: . | AG19: . | AH19: . | AI19: =IF(AI18="yes","",IF(AI18="no","","error")) ->  | AJ19: . | AK19: . | AL19: . | AM19: . | AN19: =IF(AN18="yes","",IF(AN18="no","","error")) ->  | AO19: . | AP19: . | AQ19: . | AR19: .
D20: PAYMENT YEARLY | E20: =-PPMT(E16,1,E14,E10,0)-IPMT(E16,1,E14,E10,0) -> 0 | F20: . | G20: . | H20: . | I20: . | J20: =-PPMT(J16,1,J14,J10,0)-IPMT(J16,1,J14,J10,0) -> 0 | K20: . | L20: . | M20: . | N20: . | O20: =-PPMT(O16,1,O14,O10,0)-IPMT(O16,1,O14,O10,0) -> 0 | P20: . | Q20: . | R20: . | S20: . | T20: =-PPMT(T16,1,T14,T10,0)-IPMT(T16,1,T14,T10,0) -> 0 | U20: . | V20: . | W20: . | X20: . | Y20: =-PPMT(Y16,1,Y14,Y10,0)-IPMT(Y16,1,Y14,Y10,0) -> 0 | Z20: . | AA20: . | AB20: . | AC20: . | AD20: =-PPMT(AD16,1,AD14,AD10,0)-IPMT(AD16,1,AD14,AD10,0) -> 0 | AE20: . | AF20: . | AG20: . | AH20: . | AI20: =-PPMT(AI16,1,AI14,AI10,0)-IPMT(AI16,1,AI14,AI10,0) -> 0 | AJ20: . | AK20: . | AL20: . | AM20: . | AN20: =-PPMT(AN16,1,AN14,AN10,0)-IPMT(AN16,1,AN14,AN10,0) -> 0 | AO20: . | AP20: . | AQ20: . | AR20: .
F21: . | G21: . | H21: . | I21: . | K21: . | L21: . | M21: . | N21: . | P21: . | Q21: . | R21: . | S21: . | U21: . | V21: . | W21: . | X21: . | Z21: . | AA21: . | AB21: . | AC21: . | AE21: . | AF21: . | AG21: . | AH21: . | AJ21: . | AK21: . | AL21: . | AM21: . | AO21: . | AP21: . | AQ21: . | AR21: .
D22: PAYMENT MONTHLY | E22: =-PPMT(E16/12,1,E14*12,E10,0)-IPMT(E16/12,1,E14*12,E10,0) -> 0 | F22: . | G22: . | H22: . | I22: . | J22: =-PPMT(J16/12,1,J14*12,J10,0)-IPMT(J16/12,1,J14*12,J10,0) -> 0 | K22: . | L22: . | M22: . | N22: . | O22: =-PPMT(O16/12,1,O14*12,O10,0)-IPMT(O16/12,1,O14*12,O10,0) -> 0 | P22: . | Q22: . | R22: . | S22: . | T22: =-PPMT(T16/12,1,T14*12,T10,0)-IPMT(T16/12,1,T14*12,T10,0) -> 0 | U22: . | V22: . | W22: . | X22: . | Y22: =-PPMT(Y16/12,1,Y14*12,Y10,0)-IPMT(Y16/12,1,Y14*12,Y10,0) -> 0 | Z22: . | AA22: . | AB22: . | AC22: . | AD22: =-PPMT(AD16/12,1,AD14*12,AD10,0)-IPMT(AD16/12,1,AD14*12,AD10,0) -> 0 | AE22: . | AF22: . | AG22: . | AH22: . | AI22: =-PPMT(AI16/12,1,AI14*12,AI10,0)-IPMT(AI16/12,1,AI14*12,AI10,0) -> 0 | AJ22: . | AK22: . | AL22: . | AM22: . | AN22: =-PPMT(AN16/12,1,AN14*12,AN10,0)-IPMT(AN16/12,1,AN14*12,AN10,0) -> 0 | AO22: . | AP22: . | AQ22: . | AR22: .
F23: . | G23: . | H23: . | I23: . | K23: . | L23: . | M23: . | N23: . | P23: . | Q23: . | R23: . | S23: . | U23: . | V23: . | W23: . | X23: . | Z23: . | AA23: . | AB23: . | AC23: . | AE23: . | AF23: . | AG23: . | AH23: . | AJ23: . | AK23: . | AL23: . | AM23: . | AO23: . | AP23: . | AQ23: . | AR23: .
D24: EARLY PAY-OFF YEAR | E24: 2100 | F24: . | G24: . | H24: . | I24: . | J24: 2100 | K24: . | L24: . | M24: . | N24: . | O24: 2100 | P24: . | Q24: . | R24: . | S24: . | T24: 2100 | U24: . | V24: . | W24: . | X24: . | Y24: 2100 | Z24: . | AA24: . | AB24: . | AC24: . | AD24: 2100 | AE24: . | AF24: . | AG24: . | AH24: . | AI24: 2100 | AJ24: . | AK24: . | AL24: . | AM24: . | AN24: 2100 | AO24: . | AP24: . | AQ24: . | AR24: .
A26: START YEAR | E26: =IF(E12<=baseyear,baseyear,E12) -> 2016 | J26: =IF(J12<=baseyear,baseyear,J12) -> 2016 | O26: =IF(O12<=baseyear,baseyear,O12) -> 2016 | T26: =IF(T12<=baseyear,baseyear,T12) -> 2016 | Y26: =IF(Y12<=baseyear,baseyear,Y12) -> 2016 | AD26: =IF(AD12<=baseyear,baseyear,AD12) -> 2016 | AI26: =IF(AI12<=baseyear,baseyear,AI12) -> 2016 | AN26: =IF(AN12<=baseyear,baseyear,AN12) -> 2017
A27: STOP YEAR | E27: =E26+E14-1 -> 2016 | J27: =J26+J14-1 -> 2016 | O27: =O26+O14-1 -> 2016 | T27: =T26+T14-1 -> 2016 | Y27: =Y26+Y14-1 -> 2016 | AD27: =AD26+AD14-1 -> 2016 | AI27: =AI26+AI14-1 -> 2016 | AN27: =AN26+AN14-1 -> 2017
AS29: opening indebtedness | AV29: A | AW29: B | AX29: C | AY29: D | AZ29: E | BA29: F | BB29: G | BC29: H
C30: TOTALS | E30: =IF(E26<=baseyear, E10,0) -> 0 | J30: =IF(J26<=baseyear, J10,0) -> 0 | O30: =IF(O26<=baseyear, O10,0) -> 0 | T30: =IF(T26<=baseyear, T10,0) -> 0 | Y30: =IF(Y26<=baseyear, Y10,0) -> 0 | AD30: =IF(AD26<=baseyear, AD10,0) -> 0 | AI30: =IF(AI26<=baseyear, AI10,0) -> 0 | AN30: =IF(AN26<=baseyear, AN10,0) -> 0 | AS30: =AN30+AI30+AD30+Y30+T30+O30+J30+E30 -> 0
A31: YEAR | C31: DEBT | D31: PAYMENTS | E31: END BALANCE | F31: early pay-off | G31: PAYMENT | H31: INTEREST | J31: END BALANCE | K31: early pay-off | L31: PAYMENT | M31: INTEREST | O31: END BALANCE | P31: early pay-off | Q31: PAYMENT | R31: INTEREST | T31: END BALANCE | U31: early pay-off | V31: PAYMENT | W31: INTEREST | Y31: END BALANCE | Z31: early pay-off | AA31: PAYMENT | AB31: INTEREST | AD31: END BALANCE | AE31: early pay-off | AF31: PAYMENT | AG31: INTEREST | AI31: END BALANCE | AJ31: early pay-off | AK31: PAYMENT | AL31: INTEREST | AN31: END BALANCE | AO31: early pay-off | AP31: PAYMENT | AQ31: INTEREST | AS31: TOTAL INTEREST | AU31: TOTAL | AV31: LOAN ADJUSTMENTS RE FIRST YEAR IF DELAYED START
A32: =A33-1 ->  | C32: =E32+Y32+AD32+AI32+AN32+AU32*0+J32+O32+T32 ->  | D32: =G32+AA32+AF32+AK32+AP32+AV32*0+L32+Q32+V32 -> 0 | E32: =IF(E26=($A32+1),E10,0) ->  | J32: =IF(J26=($A32+1),J10,0) ->  | O32: =IF(O26=($A32+1),O10,0) ->  | T32: =IF(T26=($A32+1),T10,0) ->  | Y32: =IF(Y26=($A32+1),Y10,0) ->  | AD32: =IF(AD26=($A32+1),AD10,0) ->  | AI32: =IF(AI26=($A32+1),AI10,0) ->  | AN32: =IF(AN26=($A32+1),AN10,0) -> 
A33: ='[1]FULL VIEW'!H12 ->  | E33: =IF(E$26=($A33+1),E$10,IF(E$24<($A34),0,IF(E$26>($A33+1),0,E32*(1+E$16)-G33))) ->  | F33: =IF($A33=E$24,E32-G32+H32,0) ->  | G33: =IF($A33>=E$26,IF($A33<=E$27,IF($A32<E$24,E$20,0),0))+F33 ->  | H33: =IF(G33>0,IF(E$18="YES",E$16*E32,0),0) ->  | J33: =IF(J$26=($A33+1),J$10,IF(J$24<($A34),0,IF(J$26>($A33+1),0,J32*(1+J$16)-L33))) ->  | K33: =IF($A33=J$24,J32-L32+M32,0) ->  | L33: =IF($A33>=J$26,IF($A33<=J$27,IF($A32<J$24,J$20,0),0))+K33 ->  | M33: =IF(L33>0,IF(J$18="YES",J$16*J32,0),0) ->  | O33: =IF(O$26=($A33+1),O$10,IF(O$24<($A34),0,IF(O$26>($A33+1),0,O32*(1+O$16)-Q33))) ->  | P33: =IF($A33=O$24,O32-Q32+R32,0) ->  | Q33: =IF($A33>=O$26,IF($A33<=O$27,IF($A32<O$24,O$20,0),0))+P33 ->  | R33: =IF(Q33>0,IF(O$18="YES",O$16*O32,0),0) ->  | T33: =IF(T$26=($A33+1),T$10,IF(T$24<($A34),0,IF(T$26>($A33+1),0,T32*(1+T$16)-V33))) ->  | U33: =IF($A33=T$24,T32-V32+W32,0) ->  | V33: =IF($A33>=T$26,IF($A33<=T$27,IF($A32<T$24,T$20,0),0))+U33 ->  | W33: =IF(V33>0,IF(T$18="YES",T$16*T32,0),0) ->  | Y33: =IF(Y$26=($A33+1),Y$10,IF(Y$24<($A34),0,IF(Y$26>($A33+1),0,Y32*(1+Y$16)-AA33))) ->  | Z33: =IF($A33=Y$24,Y32-AA32+AB32,0) ->  | AA33: =IF($A33>=Y$26,IF($A33<=Y$27,IF($A32<Y$24,Y$20,0),0))+Z33 ->  | AB33: =IF(AA33>0,IF(Y$18="YES",Y$16*Y32,0),0) ->  | AD33: =IF(AD$26=($A33+1),AD$10,IF(AD$24<($A34),0,IF(AD$26>($A33+1),0,AD32*(1+AD$16)-AF33))) ->  | AE33: =IF($A33=AD$24,AD32-AF32+AG32,0) ->  | AF33: =IF($A33>=AD$26,IF($A33<=AD$27,IF($A32<AD$24,AD$20,0),0))+AE33 ->  | AG33: =IF(AF33>0,IF(AD$18="YES",AD$16*AD32,0),0) ->  | AI33: =IF(AI$26=($A33+1),AI$10,IF(AI$24<($A34),0,IF(AI$26>($A33+1),0,AI32*(1+AI$16)-AK33))) ->  | AJ33: =IF($A33=AI$24,AI32-AK32+AL32,0) ->  | AK33: =IF($A33>=AI$26,IF($A33<=AI$27,IF($A32<AI$24,AI$20,0),0))+AJ33 ->  | AL33: =IF(AK33>0,IF(AI$18="YES",AI$16*AI32,0),0) ->  | AN33: =IF(AN$26=($A33+1),AN$10,IF(AN$24<($A34),0,IF(AN$26>($A33+1),0,AN32*(1+AN$16)-AP33))) ->  | AO33: =IF($A33=AN$24,AN32-AP32+AQ32,0) ->  | AP33: =IF($A33>=AN$26,IF($A33<=AN$27,IF($A32<AN$24,AN$20,0),0))+AO33 ->  | AQ33: =IF(AP33>0,IF(AN$18="YES",AN$16*AN32,0),0) ->  | AS33: =AQ33+AL33+AG33+AB33+H33+W33+R33+M33 ->  | AU33: =SUM(AV33:BC33) ->  | AV33: =-IF(E$26=($A33+1),E$10,0) ->  | AW33: =-IF(J$26=($A33+1),J$10,0) ->  | AX33: =-IF(O$26=($A33+1),O$10,0) ->  | AY33: =-IF(T$26=($A33+1),T$10,0) ->  | AZ33: =-IF(Y$26=($A33+1),Y$10,0) ->  | BA33: =-IF(AD$26=($A33+1),AD$10,0) ->  | BB33: =-IF(AI$26=($A33+1),AI$10,0) ->  | BC33: =-IF(AN$26=($A33+1),AN$10,0) -> 
A34: ='[1]FULL VIEW'!H13 -> 
A35: ='[1]FULL VIEW'!H14 -> 
A36: ='[1]FULL VIEW'!H15 -> 
A37: ='[1]FULL VIEW'!H16 -> 
A38: ='[1]FULL VIEW'!H17 -> 
A39: ='[1]FULL VIEW'!H18 -> 
A40: ='[1]FULL VIEW'!H19 -> 
A41: ='[1]FULL VIEW'!H20 -> 
A42: ='[1]FULL VIEW'!H21 -> 
A43: ='[1]FULL VIEW'!H22 -> 
A44: ='[1]FULL VIEW'!H23 -> 
A45: ='[1]FULL VIEW'!H24 -> 
A46: ='[1]FULL VIEW'!H25 -> 
A47: ='[1]FULL VIEW'!H26 -> 
A48: ='[1]FULL VIEW'!H27 -> 
A49: ='[1]FULL VIEW'!H28 -> 
A50: ='[1]FULL VIEW'!H29 -> 
A51: ='[1]FULL VIEW'!H30 -> 
A52: ='[1]FULL VIEW'!H31 -> 
A53: ='[1]FULL VIEW'!H32 -> 
A54: ='[1]FULL VIEW'!H33 -> 
A55: ='[1]FULL VIEW'!H34 -> 
A56: ='[1]FULL VIEW'!H35 -> 
A57: ='[1]FULL VIEW'!H36 -> 
A58: ='[1]FULL VIEW'!H37 -> 
A59: ='[1]FULL VIEW'!H38 -> 
A60: ='[1]FULL VIEW'!H39 -> 
A61: ='[1]FULL VIEW'!H40 -> 
A62: ='[1]FULL VIEW'!H41 -> 
A63: ='[1]FULL VIEW'!H42 -> 
A64: ='[1]FULL VIEW'!H43 ->  | C64: =E64+Y64+AD64+AI64+AN64+AU64*0+J64+O64+T64 ->  | D64: =G64+AA64+AF64+AK64+AP64+AV64*0+L64+Q64+V64 -> 
A65: ='[1]FULL VIEW'!H44 ->  | E65: =IF(E$26=($A65+1),E$10,IF(E$24<($A66),0,IF(E$26>($A65+1),0,E64*(1+E$16)-G65))) ->  | F65: =IF($A65=E$24,E64-G64+H64,0) ->  | G65: =IF($A65>=E$26,IF($A65<=E$27,IF($A64<E$24,E$20,0),0))+F65 ->  | H65: =IF(G65>0,IF(E$18="YES",E$16*E64,0),0) ->  | J65: =IF(J$26=($A65+1),J$10,IF(J$24<($A66),0,IF(J$26>($A65+1),0,J64*(1+J$16)-L65))) ->  | K65: =IF($A65=J$24,J64-L64+M64,0) ->  | L65: =IF($A65>=J$26,IF($A65<=J$27,IF($A64<J$24,J$20,0),0))+K65 ->  | M65: =IF(L65>0,IF(J$18="YES",J$16*J64,0),0) ->  | O65: =IF(O$26=($A65+1),O$10,IF(O$24<($A66),0,IF(O$26>($A65+1),0,O64*(1+O$16)-Q65))) ->  | P65: =IF($A65=O$24,O64-Q64+R64,0) ->  | Q65: =IF($A65>=O$26,IF($A65<=O$27,IF($A64<O$24,O$20,0),0))+P65 ->  | R65: =IF(Q65>0,IF(O$18="YES",O$16*O64,0),0) ->  | T65: =IF(T$26=($A65+1),T$10,IF(T$24<($A66),0,IF(T$26>($A65+1),0,T64*(1+T$16)-V65))) ->  | U65: =IF($A65=T$24,T64-V64+W64,0) ->  | V65: =IF($A65>=T$26,IF($A65<=T$27,IF($A64<T$24,T$20,0),0))+U65 ->  | W65: =IF(V65>0,IF(T$18="YES",T$16*T64,0),0) ->  | Y65: =IF(Y$26=($A65+1),Y$10,IF(Y$24<($A66),0,IF(Y$26>($A65+1),0,Y64*(1+Y$16)-AA65))) ->  | Z65: =IF($A65=Y$24,Y64-AA64+AB64,0) ->  | AA65: =IF($A65>=Y$26,IF($A65<=Y$27,IF($A64<Y$24,Y$20,0),0))+Z65 ->  | AB65: =IF(AA65>0,IF(Y$18="YES",Y$16*Y64,0),0) ->  | AD65: =IF(AD$26=($A65+1),AD$10,IF(AD$24<($A66),0,IF(AD$26>($A65+1),0,AD64*(1+AD$16)-AF65))) ->  | AE65: =IF($A65=AD$24,AD64-AF64+AG64,0) ->  | AF65: =IF($A65>=AD$26,IF($A65<=AD$27,IF($A64<AD$24,AD$20,0),0))+AE65 ->  | AG65: =IF(AF65>0,IF(AD$18="YES",AD$16*AD64,0),0) ->  | AI65: =IF(AI$26=($A65+1),AI$10,IF(AI$24<($A66),0,IF(AI$26>($A65+1),0,AI64*(1+AI$16)-AK65))) ->  | AJ65: =IF($A65=AI$24,AI64-AK64+AL64,0) ->  | AK65: =IF($A65>=AI$26,IF($A65<=AI$27,IF($A64<AI$24,AI$20,0),0))+AJ65 ->  | AL65: =IF(AK65>0,IF(AI$18="YES",AI$16*AI64,0),0) ->  | AN65: =IF(AN$26=($A65+1),AN$10,IF(AN$24<($A66),0,IF(AN$26>($A65+1),0,AN64*(1+AN$16)-AP65))) ->  | AO65: =IF($A65=AN$24,AN64-AP64+AQ64,0) ->  | AP65: =IF($A65>=AN$26,IF($A65<=AN$27,IF($A64<AN$24,AN$20,0),0))+AO65 ->  | AQ65: =IF(AP65>0,IF(AN$18="YES",AN$16*AN64,0),0) ->  | AS65: =AQ65+AL65+AG65+AB65+H65+W65+R65+M65 ->  | AU65: =SUM(AV65:BC65) ->  | AV65: =-IF(E$26=($A65+1),E$10,0) ->  | AW65: =-IF(J$26=($A65+1),J$10,0) ->  | AX65: =-IF(O$26=($A65+1),O$10,0) ->  | AY65: =-IF(T$26=($A65+1),T$10,0) ->  | AZ65: =-IF(Y$26=($A65+1),Y$10,0) ->  | BA65: =-IF(AD$26=($A65+1),AD$10,0) ->  | BB65: =-IF(AI$26=($A65+1),AI$10,0) ->  | BC65: =-IF(AN$26=($A65+1),AN$10,0) -> 
A66: ='[1]FULL VIEW'!H45 -> 
A67: ='[1]FULL VIEW'!H46 -> 
A68: ='[1]FULL VIEW'!H47 -> 
A69: ='[1]FULL VIEW'!H48 -> 
A70: ='[1]FULL VIEW'!H49 -> 
A71: ='[1]FULL VIEW'!H50 -> 
A72: ='[1]FULL VIEW'!H51 -> 
A73: ='[1]FULL VIEW'!H52 -> 
A74: ='[1]FULL VIEW'!H53 -> 
A75: ='[1]FULL VIEW'!H54 -> 
A76: ='[1]FULL VIEW'!H55 -> 
A77: ='[1]FULL VIEW'!H56 -> 
A78: ='[1]FULL VIEW'!H57 -> 
A79: ='[1]FULL VIEW'!H58 -> 
A80: ='[1]FULL VIEW'!H59 -> 
A81: ='[1]FULL VIEW'!H60 -> 
A82: ='[1]FULL VIEW'!H61 -> 
A83: ='[1]FULL VIEW'!H62 -> 
A84: ='[1]FULL VIEW'!H63 -> 
A85: ='[1]FULL VIEW'!H64 -> 
A86: ='[1]FULL VIEW'!H65 -> 
A87: ='[1]FULL VIEW'!H66 -> 
A88: ='[1]FULL VIEW'!H67 -> 
A89: ='[1]FULL VIEW'!H68 -> 
A90: ='[1]FULL VIEW'!H69 -> 
A91: ='[1]FULL VIEW'!H70 -> 
A92: ='[1]FULL VIEW'!H71 -> 
A93: ='[1]FULL VIEW'!H72 -> 

Sheet DEBT (hidden)
C1: ='GENERAL ASSUMPTIONS'!C10 -> BETA 05142017 - FOR TESTING ONLY
C3: ='GENERAL ASSUMPTIONS'!$C$13 -> © 2016 GROSSMAN FINANCIAL MANAGEMENT
C4: ='GENERAL ASSUMPTIONS'!$C$16 -> PERSONAL FINANCIAL CALCULATING PROGRAM™
C5: DEBT & DEBT SERVICE
D7: NAME | E7: ='DEBT+'!E7 -> A | G7: . | H7: . | I7: . | J7: ='DEBT+'!J7 -> B | L7: . | M7: . | N7: . | O7: ='DEBT+'!O7 -> C | Q7: . | S7: . | T7: ='DEBT+'!T7 -> D | V7: . | X7: . | Y7: ='DEBT+'!Y7 -> E | AA7: . | AC7: . | AD7: ='DEBT+'!AD7 -> F | AF7: . | AH7: . | AI7: ='DEBT+'!AI7 -> G | AK7: . | AM7: . | AN7: ='DEBT+'!AN7 -> H | AP7: . | AQ7: =F6
D10: CURRENT PRINCIPAL | E10: ='DEBT+'!E10 -> 0 | F10: . | G10: . | H10: . | I10: . | J10: ='DEBT+'!J10 -> 0 | K10: . | L10: . | M10: . | N10: . | O10: ='DEBT+'!O10 -> 0 | P10: . | Q10: . | R10: . | S10: . | T10: ='DEBT+'!T10 -> 0 | U10: . | V10: . | W10: . | X10: . | Y10: ='DEBT+'!Y10 -> 0 | Z10: . | AA10: . | AB10: . | AC10: . | AD10: ='DEBT+'!AD10 -> 0 | AE10: . | AF10: . | AG10: . | AH10: . | AI10: ='DEBT+'!AI10 -> 0 | AJ10: . | AK10: . | AL10: . | AM10: . | AN10: ='DEBT+'!AN10 -> 0 | AO10: . | AP10: . | AQ10: . | AR10: .
F11: . | G11: . | H11: . | I11: . | K11: . | L11: . | M11: . | N11: . | P11: . | Q11: . | R11: . | S11: . | U11: . | V11: . | W11: . | X11: . | Z11: . | AA11: . | AB11: . | AC11: . | AE11: . | AF11: . | AG11: . | AH11: . | AJ11: . | AK11: . | AL11: . | AM11: . | AO11: . | AP11: . | AQ11: . | AR11: .
D12: LOAN ORIGINATION DATE | E12: ='DEBT+'!E12 -> 2016 | F12: . | G12: . | H12: . | I12: . | J12: ='DEBT+'!J12 -> 2016 | K12: . | L12: . | M12: . | N12: . | O12: ='DEBT+'!O12 -> 2016 | P12: . | Q12: . | R12: . | S12: . | T12: ='DEBT+'!T12 -> 2016 | U12: . | V12: . | W12: . | X12: . | Y12: ='DEBT+'!Y12 -> 2016 | Z12: . | AA12: . | AB12: . | AC12: . | AD12: ='DEBT+'!AD12 -> 2016 | AE12: . | AF12: . | AG12: . | AH12: . | AI12: ='DEBT+'!AI12 -> 2016 | AJ12: . | AK12: . | AL12: . | AM12: . | AN12: ='DEBT+'!AN12 -> 2017 | AO12: . | AP12: . | AQ12: . | AR12: .
F13: . | G13: . | H13: . | I13: . | K13: . | L13: . | M13: . | N13: . | P13: . | Q13: . | R13: . | S13: . | U13: . | V13: . | W13: . | X13: . | Z13: . | AA13: . | AB13: . | AC13: . | AE13: . | AF13: . | AG13: . | AH13: . | AJ13: . | AK13: . | AL13: . | AM13: . | AO13: . | AP13: . | AQ13: . | AR13: .
D14: YEARS REMAINING | E14: ='DEBT+'!E14 -> 1 | F14: . | G14: . | H14: . | I14: . | J14: ='DEBT+'!J14 -> 1 | K14: . | L14: . | M14: . | N14: . | O14: ='DEBT+'!O14 -> 1 | P14: . | Q14: . | R14: . | S14: . | T14: ='DEBT+'!T14 -> 1 | U14: . | V14: . | W14: . | X14: . | Y14: ='DEBT+'!Y14 -> 1 | Z14: . | AA14: . | AB14: . | AC14: . | AD14: ='DEBT+'!AD14 -> 1 | AE14: . | AF14: . | AG14: . | AH14: . | AI14: ='DEBT+'!AI14 -> 1 | AJ14: . | AK14: . | AL14: . | AM14: . | AN14: ='DEBT+'!AN14 -> 1 | AO14: . | AP14: . | AQ14: . | AR14: .
F15: . | G15: . | H15: . | I15: . | K15: . | L15: . | M15: . | N15: . | P15: . | Q15: . | R15: . | S15: . | U15: . | V15: . | W15: . | X15: . | Z15: . | AA15: . | AB15: . | AC15: . | AE15: . | AF15: . | AG15: . | AH15: . | AJ15: . | AK15: . | AL15: . | AM15: . | AO15: . | AP15: . | AQ15: . | AR15: .
D16: INTEREST RATE | E16: ='DEBT+'!E16 -> 0 | F16: . | G16: . | H16: . | I16: . | J16: ='DEBT+'!J16 -> 0 | K16: . | L16: . | M16: . | N16: . | O16: ='DEBT+'!O16 -> 0 | P16: . | Q16: . | R16: . | S16: . | T16: ='DEBT+'!T16 -> 0 | U16: . | V16: . | W16: . | X16: . | Y16: ='DEBT+'!Y16 -> 0 | Z16: . | AA16: . | AB16: . | AC16: . | AD16: ='DEBT+'!AD16 -> 0 | AE16: . | AF16: . | AG16: . | AH16: . | AI16: ='DEBT+'!AI16 -> 0 | AJ16: . | AK16: . | AL16: . | AM16: . | AN16: ='DEBT+'!AN16 -> 0 | AO16: . | AP16: . | AQ16: . | AR16: .
F17: . | G17: . | H17: . | I17: . | K17: . | L17: . | M17: . | N17: . | P17: . | Q17: . | R17: . | S17: . | U17: . | V17: . | W17: . | X17: . | Z17: . | AA17: . | AB17: . | AC17: . | AE17: . | AF17: . | AG17: . | AH17: . | AJ17: . | AK17: . | AL17: . | AM17: . | AO17: . | AP17: . | AQ17: . | AR17: .
D18: INTEREST DEDUCTIBLE | E18: ='DEBT+'!E18 -> NO | F18: . | G18: . | H18: . | I18: . | J18: ='DEBT+'!J18 -> NO | K18: . | L18: . | M18: . | N18: . | O18: ='DEBT+'!O18 -> NO | P18: . | Q18: . | R18: . | S18: . | T18: ='DEBT+'!T18 -> NO | U18: . | V18: . | W18: . | X18: . | Y18: ='DEBT+'!Y18 -> NO | Z18: . | AA18: . | AB18: . | AC18: . | AD18: ='DEBT+'!AD18 -> NO | AE18: . | AF18: . | AG18: . | AH18: . | AI18: ='DEBT+'!AI18 -> NO | AJ18: . | AK18: . | AL18: . | AM18: . | AN18: ='DEBT+'!AN18 -> NO | AO18: . | AP18: . | AQ18: . | AR18: .
E19: =IF(E18="yes","",IF(E18="no","","error")) ->  | F19: . | G19: . | H19: . | I19: . | J19: =IF(J18="yes","",IF(J18="no","","error")) ->  | K19: . | L19: . | M19: . | N19: . | O19: =IF(O18="yes","",IF(O18="no","","error")) ->  | P19: . | Q19: . | R19: . | S19: . | T19: =IF(T18="yes","",IF(T18="no","","error")) ->  | U19: . | V19: . | W19: . | X19: . | Y19: =IF(Y18="yes","",IF(Y18="no","","error")) ->  | Z19: . | AA19: . | AB19: . | AC19: . | AD19: =IF(AD18="yes","",IF(AD18="no","","error")) ->  | AE19: . | AF19: . | AG19: . | AH19: . | AI19: =IF(AI18="yes","",IF(AI18="no","","error")) ->  | AJ19: . | AK19: . | AL19: . | AM19: . | AN19: =IF(AN18="yes","",IF(AN18="no","","error")) ->  | AO19: . | AP19: . | AQ19: . | AR19: .
D20: PAYMENT YEARLY | E20: =-PPMT(E16,1,E14,E10,0)-IPMT(E16,1,E14,E10,0) -> 0 | F20: . | G20: . | H20: . | I20: . | J20: =-PPMT(J16,1,J14,J10,0)-IPMT(J16,1,J14,J10,0) -> 0 | K20: . | L20: . | M20: . | N20: . | O20: =-PPMT(O16,1,O14,O10,0)-IPMT(O16,1,O14,O10,0) -> 0 | P20: . | Q20: . | R20: . | S20: . | T20: =-PPMT(T16,1,T14,T10,0)-IPMT(T16,1,T14,T10,0) -> 0 | U20: . | V20: . | W20: . | X20: . | Y20: =-PPMT(Y16,1,Y14,Y10,0)-IPMT(Y16,1,Y14,Y10,0) -> 0 | Z20: . | AA20: . | AB20: . | AC20: . | AD20: =-PPMT(AD16,1,AD14,AD10,0)-IPMT(AD16,1,AD14,AD10,0) -> 0 | AE20: . | AF20: . | AG20: . | AH20: . | AI20: =-PPMT(AI16,1,AI14,AI10,0)-IPMT(AI16,1,AI14,AI10,0) -> 0 | AJ20: . | AK20: . | AL20: . | AM20: . | AN20: =-PPMT(AN16,1,AN14,AN10,0)-IPMT(AN16,1,AN14,AN10,0) -> 0 | AO20: . | AP20: . | AQ20: . | AR20: .
F21: . | G21: . | H21: . | I21: . | K21: . | L21: . | M21: . | N21: . | P21: . | Q21: . | R21: . | S21: . | U21: . | V21: . | W21: . | X21: . | Z21: . | AA21: . | AB21: . | AC21: . | AE21: . | AF21: . | AG21: . | AH21: . | AJ21: . | AK21: . | AL21: . | AM21: . | AO21: . | AP21: . | AQ21: . | AR21: .
D22: PAYMENT MONTHLY | E22: =-PPMT(E16/12,1,E14*12,E10,0)-IPMT(E16/12,1,E14*12,E10,0) -> 0 | F22: . | G22: . | H22: . | I22: . | J22: =-PPMT(J16/12,1,J14*12,J10,0)-IPMT(J16/12,1,J14*12,J10,0) -> 0 | K22: . | L22: . | M22: . | N22: . | O22: =-PPMT(O16/12,1,O14*12,O10,0)-IPMT(O16/12,1,O14*12,O10,0) -> 0 | P22: . | Q22: . | R22: . | S22: . | T22: =-PPMT(T16/12,1,T14*12,T10,0)-IPMT(T16/12,1,T14*12,T10,0) -> 0 | U22: . | V22: . | W22: . | X22: . | Y22: =-PPMT(Y16/12,1,Y14*12,Y10,0)-IPMT(Y16/12,1,Y14*12,Y10,0) -> 0 | Z22: . | AA22: . | AB22: . | AC22: . | AD22: =-PPMT(AD16/12,1,AD14*12,AD10,0)-IPMT(AD16/12,1,AD14*12,AD10,0) -> 0 | AE22: . | AF22: . | AG22: . | AH22: . | AI22: =-PPMT(AI16/12,1,AI14*12,AI10,0)-IPMT(AI16/12,1,AI14*12,AI10,0) -> 0 | AJ22: . | AK22: . | AL22: . | AM22: . | AN22: =-PPMT(AN16/12,1,AN14*12,AN10,0)-IPMT(AN16/12,1,AN14*12,AN10,0) -> 0 | AO22: . | AP22: . | AQ22: . | AR22: .
F23: . | G23: . | H23: . | I23: . | K23: . | L23: . | M23: . | N23: . | P23: . | Q23: . | R23: . | S23: . | U23: . | V23: . | W23: . | X23: . | Z23: . | AA23: . | AB23: . | AC23: . | AE23: . | AF23: . | AG23: . | AH23: . | AJ23: . | AK23: . | AL23: . | AM23: . | AO23: . | AP23: . | AQ23: . | AR23: .
D24: EARLY PAY-OFF YEAR | E24: ='DEBT+'!E24 -> 2100 | F24: . | G24: . | H24: . | I24: . | J24: ='DEBT+'!J24 -> 2100 | K24: . | L24: . | M24: . | N24: . | O24: ='DEBT+'!O24 -> 2100 | P24: . | Q24: . | R24: . | S24: . | T24: ='DEBT+'!T24 -> 2100 | U24: . | V24: . | W24: . | X24: . | Y24: ='DEBT+'!Y24 -> 2100 | Z24: . | AA24: . | AB24: . | AC24: . | AD24: ='DEBT+'!AD24 -> 2100 | AE24: . | AF24: . | AG24: . | AH24: . | AI24: ='DEBT+'!AI24 -> 2100 | AJ24: . | AK24: . | AL24: . | AM24: . | AN24: ='DEBT+'!AN24 -> 2100 | AO24: . | AP24: . | AQ24: . | AR24: .
A26: START YEAR | E26: =IF(E12<=baseyear,baseyear,E12) -> 2016 | J26: =IF(J12<=baseyear,baseyear,J12) -> 2016 | O26: =IF(O12<=baseyear,baseyear,O12) -> 2016 | T26: =IF(T12<=baseyear,baseyear,T12) -> 2016 | Y26: =IF(Y12<=baseyear,baseyear,Y12) -> 2016 | AD26: =IF(AD12<=baseyear,baseyear,AD12) -> 2016 | AI26: =IF(AI12<=baseyear,baseyear,AI12) -> 2016 | AN26: =IF(AN12<=baseyear,baseyear,AN12) -> 2017
A27: STOP YEAR | E27: =E26+E14-1 -> 2016 | J27: =J26+J14-1 -> 2016 | O27: =O26+O14-1 -> 2016 | T27: =T26+T14-1 -> 2016 | Y27: =Y26+Y14-1 -> 2016 | AD27: =AD26+AD14-1 -> 2016 | AI27: =AI26+AI14-1 -> 2016 | AN27: =AN26+AN14-1 -> 2017
AS29: opening indebtedness | AV29: A | AW29: B | AX29: C | AY29: D | AZ29: E | BA29: F | BB29: G | BC29: H
C30: TOTALS | E30: =IF(E26<=baseyear, E10,0) -> 0 | J30: =IF(J26<=baseyear, J10,0) -> 0 | O30: =IF(O26<=baseyear, O10,0) -> 0 | T30: =IF(T26<=baseyear, T10,0) -> 0 | Y30: =IF(Y26<=baseyear, Y10,0) -> 0 | AD30: =IF(AD26<=baseyear, AD10,0) -> 0 | AI30: =IF(AI26<=baseyear, AI10,0) -> 0 | AN30: =IF(AN26<=baseyear, AN10,0) -> 0 | AS30: =AN30+AI30+AD30+Y30+T30+O30+J30+E30 -> 0
A31: YEAR | C31: DEBT | D31: PAYMENTS | E31: END BALANCE | F31: early pay-off | G31: PAYMENT | H31: INTEREST | J31: END BALANCE | K31: early pay-off | L31: PAYMENT | M31: INTEREST | O31: END BALANCE | P31: early pay-off | Q31: PAYMENT | R31: INTEREST | T31: END BALANCE | U31: early pay-off | V31: PAYMENT | W31: INTEREST | Y31: END BALANCE | Z31: early pay-off | AA31: PAYMENT | AB31: INTEREST | AD31: END BALANCE | AE31: early pay-off | AF31: PAYMENT | AG31: INTEREST | AI31: END BALANCE | AJ31: early pay-off | AK31: PAYMENT | AL31: INTEREST | AN31: END BALANCE | AO31: early pay-off | AP31: PAYMENT | AQ31: INTEREST | AS31: TOTAL INTEREST | AU31: TOTAL | AV31: LOAN ADJUSTMENTS RE FIRST YEAR IF DELAYED START
A32: =A33-1 -> 2015 | C32: =E32+Y32+AD32+AI32+AN32+AU32*0+J32+O32+T32 -> 0 | D32: =G32+AA32+AF32+AK32+AP32+AV32*0+L32+Q32+V32 -> 0 | E32: =IF(E$26=($A32+1),E$10,IF(E$24<($A33),0,IF(E$26>($A32+1),0,E31*(1+E$16)-G32))) -> 0 | J32: =IF(J26=($A32+1),J10,0) -> 0 | O32: =IF(O26=($A32+1),O10,0) -> 0 | T32: =IF(T26=($A32+1),T10,0) -> 0 | Y32: =IF(Y26=($A32+1),Y10,0) -> 0 | AD32: =IF(AD26=($A32+1),AD10,0) -> 0 | AI32: =IF(AI26=($A32+1),AI10,0) -> 0 | AN32: =IF(AN26=($A32+1),AN10,0) -> 0
A33: ='FULL VIEW'!H12 -> 2016 | C33: =E33+Y33+AD33+AI33+AN33+AU33*0+J33+O33+T33 -> 0 | D33: =G33+AA33+AF33+AK33+AP33+AV33*0+L33+Q33+V33 -> 0 | E33: 0 | F33: =IF($A33=E$24,E32-G32+H32,0) -> 0 | G33: =IF($A33>=E$26,IF($A33<=E$27,IF($A32<E$24,E$20,0),0))+F33 -> 0 | H33: =IF(G33>0,IF(E$18="YES",E$16*E32,0),0) -> 0 | J33: =IF(J$26=($A33+1),J$10,IF(J$24<($A34),0,IF(J$26>($A33+1),0,J32*(1+J$16)-L33))) -> 0 | K33: =IF($A33=J$24,J32-L32+M32,0) -> 0 | L33: =IF($A33>=J$26,IF($A33<=J$27,IF($A32<J$24,J$20,0),0))+K33 -> 0 | M33: =IF(L33>0,IF(J$18="YES",J$16*J32,0),0) -> 0 | O33: =IF(O$26=($A33+1),O$10,IF(O$24<($A34),0,IF(O$26>($A33+1),0,O32*(1+O$16)-Q33))) -> 0 | P33: =IF($A33=O$24,O32-Q32+R32,0) -> 0 | Q33: =IF($A33>=O$26,IF($A33<=O$27,IF($A32<O$24,O$20,0),0))+P33 -> 0 | R33: =IF(Q33>0,IF(O$18="YES",O$16*O32,0),0) -> 0 | T33: =IF(T$26=($A33+1),T$10,IF(T$24<($A34),0,IF(T$26>($A33+1),0,T32*(1+T$16)-V33))) -> 0 | U33: =IF($A33=T$24,T32-V32+W32,0) -> 0 | V33: =IF($A33>=T$26,IF($A33<=T$27,IF($A32<T$24,T$20,0),0))+U33 -> 0 | W33: =IF(V33>0,IF(T$18="YES",T$16*T32,0),0) -> 0 | Y33: =IF(Y$26=($A33+1),Y$10,IF(Y$24<($A34),0,IF(Y$26>($A33+1),0,Y32*(1+Y$16)-AA33))) -> 0 | Z33: =IF($A33=Y$24,Y32-AA32+AB32,0) -> 0 | AA33: =IF($A33>=Y$26,IF($A33<=Y$27,IF($A32<Y$24,Y$20,0),0))+Z33 -> 0 | AB33: =IF(AA33>0,IF(Y$18="YES",Y$16*Y32,0),0) -> 0 | AD33: =IF(AD$26=($A33+1),AD$10,IF(AD$24<($A34),0,IF(AD$26>($A33+1),0,AD32*(1+AD$16)-AF33))) -> 0 | AE33: =IF($A33=AD$24,AD32-AF32+AG32,0) -> 0 | AF33: =IF($A33>=AD$26,IF($A33<=AD$27,IF($A32<AD$24,AD$20,0),0))+AE33 -> 0 | AG33: =IF(AF33>0,IF(AD$18="YES",AD$16*AD32,0),0) -> 0 | AI33: =IF(AI$26=($A33+1),AI$10,IF(AI$24<($A34),0,IF(AI$26>($A33+1),0,AI32*(1+AI$16)-AK33))) -> 0 | AJ33: =IF($A33=AI$24,AI32-AK32+AL32,0) -> 0 | AK33: =IF($A33>=AI$26,IF($A33<=AI$27,IF($A32<AI$24,AI$20,0),0))+AJ33 -> 0 | AL33: =IF(AK33>0,IF(AI$18="YES",AI$16*AI32,0),0) -> 0 | AN33: =IF(AN$26=($A33+1),AN$10,IF(AN$24<($A34),0,IF(AN$26>($A33+1),0,AN32*(1+AN$16)-AP33))) -> 0 | AO33: =IF($A33=AN$24,AN32-AP32+AQ32,0) -> 0 | AP33: =IF($A33>=AN$26,IF($A33<=AN$27,IF($A32<AN$24,AN$20,0),0))+AO33 -> 0 | AQ33: =IF(AP33>0,IF(AN$18="YES",AN$16*AN32,0),0) -> 0 | AS33: =AQ33+AL33+AG33+AB33+H33+W33+R33+M33 -> 0 | AU33: =SUM(AV33:BC33) -> 0 | AV33: =-IF(E$26=($A33+1),E$10,0) -> 0 | AW33: =-IF(J$26=($A33+1),J$10,0) -> 0 | AX33: =-IF(O$26=($A33+1),O$10,0) -> 0 | AY33: =-IF(T$26=($A33+1),T$10,0) -> 0 | AZ33: =-IF(Y$26=($A33+1),Y$10,0) -> 0 | BA33: =-IF(AD$26=($A33+1),AD$10,0) -> 0 | BB33: =-IF(AI$26=($A33+1),AI$10,0) -> 0 | BC33: =-IF(AN$26=($A33+1),AN$10,0) -> 0
A34: ='FULL VIEW'!H13 -> 2017 | C34: 0 | D34: =G34+AA34+AF34+AK34+AP34+AV34*0+L34+Q34+V34 -> 0 | E34: 0 | F34: 0 | G34: 0 | H34: =IF(G34>0,IF(E$18="YES",E$16*E33,0),0) -> 0 | J34: 0 | K34: 0 | L34: 0 | M34: =IF(L34>0,IF(J$18="YES",J$16*J33,0),0) -> 0 | O34: 0 | P34: 0 | Q34: 0 | R34: =IF(Q34>0,IF(O$18="YES",O$16*O33,0),0) -> 0 | T34: 0 | U34: 0 | V34: 0 | W34: 0 | Y34: 0 | Z34: 0 | AA34: 0 | AB34: 0 | AD34: 0 | AE34: 0 | AF34: 0 | AG34: 0 | AI34: 0 | AJ34: 0 | AK34: 0 | AL34: 0 | AN34: 0 | AO34: 0 | AP34: 0 | AQ34: 0 | AS34: =AQ34+AL34+AG34+AB34+H34+W34+R34+M34 -> 0 | AU34: 0 | AV34: 0 | AW34: 0 | AX34: 0 | AY34: 0 | AZ34: 0 | BA34: 0 | BB34: 0 | BC34: 0
A35: ='FULL VIEW'!H14 -> 2018 | C35: 0 | D35: 0 | E35: 0 | F35: 0 | G35: 0 | H35: 0 | J35: 0 | K35: 0 | L35: 0 | M35: 0 | O35: 0 | P35: 0 | Q35: 0 | R35: 0 | T35: 0 | U35: 0 | V35: 0 | W35: 0 | Y35: 0 | Z35: 0 | AA35: 0 | AB35: 0 | AD35: 0 | AE35: 0 | AF35: 0 | AG35: 0 | AI35: 0 | AJ35: 0 | AK35: 0 | AL35: 0 | AN35: 0 | AO35: 0 | AP35: 0 | AQ35: 0 | AS35: 0 | AU35: 0 | AV35: 0 | AW35: 0 | AX35: 0 | AY35: 0 | AZ35: 0 | BA35: 0 | BB35: 0 | BC35: 0
A36: ='FULL VIEW'!H15 -> 2019 | C36: 0 | D36: 0 | E36: 0 | F36: 0 | G36: 0 | H36: 0 | J36: 0 | K36: 0 | L36: 0 | M36: 0 | O36: 0 | P36: 0 | Q36: 0 | R36: 0 | T36: 0 | U36: 0 | V36: 0 | W36: 0 | Y36: 0 | Z36: 0 | AA36: 0 | AB36: 0 | AD36: 0 | AE36: 0 | AF36: 0 | AG36: 0 | AI36: 0 | AJ36: 0 | AK36: 0 | AL36: 0 | AN36: 0 | AO36: 0 | AP36: 0 | AQ36: 0 | AS36: 0 | AU36: 0 | AV36: 0 | AW36: 0 | AX36: 0 | AY36: 0 | AZ36: 0 | BA36: 0 | BB36: 0 | BC36: 0
A37: ='FULL VIEW'!H16 -> 2020 | C37: 0 | D37: 0 | E37: 0 | F37: 0 | G37: 0 | H37: 0 | J37: 0 | K37: 0 | L37: 0 | M37: 0 | O37: 0 | P37: 0 | Q37: 0 | R37: 0 | T37: 0 | U37: 0 | V37: 0 | W37: 0 | Y37: 0 | Z37: 0 | AA37: 0 | AB37: 0 | AD37: 0 | AE37: 0 | AF37: 0 | AG37: 0 | AI37: 0 | AJ37: 0 | AK37: 0 | AL37: 0 | AN37: 0 | AO37: 0 | AP37: 0 | AQ37: 0 | AS37: 0 | AU37: 0 | AV37: 0 | AW37: 0 | AX37: 0 | AY37: 0 | AZ37: 0 | BA37: 0 | BB37: 0 | BC37: 0
A38: ='FULL VIEW'!H17 -> 2021 | C38: 0 | D38: 0 | E38: 0 | F38: 0 | G38: 0 | H38: 0 | J38: 0 | K38: 0 | L38: 0 | M38: 0 | O38: 0 | P38: 0 | Q38: 0 | R38: 0 | T38: 0 | U38: 0 | V38: 0 | W38: 0 | Y38: 0 | Z38: 0 | AA38: 0 | AB38: 0 | AD38: 0 | AE38: 0 | AF38: 0 | AG38: 0 | AI38: 0 | AJ38: 0 | AK38: 0 | AL38: 0 | AN38: 0 | AO38: 0 | AP38: 0 | AQ38: 0 | AS38: 0 | AU38: 0 | AV38: 0 | AW38: 0 | AX38: 0 | AY38: 0 | AZ38: 0 | BA38: 0 | BB38: 0 | BC38: 0
A39: ='FULL VIEW'!H18 -> 2022 | C39: 0 | D39: 0 | E39: 0 | F39: 0 | G39: 0 | H39: 0 | J39: 0 | K39: 0 | L39: 0 | M39: 0 | O39: 0 | P39: 0 | Q39: 0 | R39: 0 | T39: 0 | U39: 0 | V39: 0 | W39: 0 | Y39: 0 | Z39: 0 | AA39: 0 | AB39: 0 | AD39: 0 | AE39: 0 | AF39: 0 | AG39: 0 | AI39: 0 | AJ39: 0 | AK39: 0 | AL39: 0 | AN39: 0 | AO39: 0 | AP39: 0 | AQ39: 0 | AS39: 0 | AU39: 0 | AV39: 0 | AW39: 0 | AX39: 0 | AY39: 0 | AZ39: 0 | BA39: 0 | BB39: 0 | BC39: 0
A40: ='FULL VIEW'!H19 -> 2023 | C40: 0 | D40: 0 | E40: 0 | F40: 0 | G40: 0 | H40: 0 | J40: 0 | K40: 0 | L40: 0 | M40: 0 | O40: 0 | P40: 0 | Q40: 0 | R40: 0 | T40: 0 | U40: 0 | V40: 0 | W40: 0 | Y40: 0 | Z40: 0 | AA40: 0 | AB40: 0 | AD40: 0 | AE40: 0 | AF40: 0 | AG40: 0 | AI40: 0 | AJ40: 0 | AK40: 0 | AL40: 0 | AN40: 0 | AO40: 0 | AP40: 0 | AQ40: 0 | AS40: 0 | AU40: 0 | AV40: 0 | AW40: 0 | AX40: 0 | AY40: 0 | AZ40: 0 | BA40: 0 | BB40: 0 | BC40: 0
A41: ='FULL VIEW'!H20 -> 2024 | C41: 0 | D41: 0 | E41: 0 | F41: 0 | G41: 0 | H41: 0 | J41: 0 | K41: 0 | L41: 0 | M41: 0 | O41: 0 | P41: 0 | Q41: 0 | R41: 0 | T41: 0 | U41: 0 | V41: 0 | W41: 0 | Y41: 0 | Z41: 0 | AA41: 0 | AB41: 0 | AD41: 0 | AE41: 0 | AF41: 0 | AG41: 0 | AI41: 0 | AJ41: 0 | AK41: 0 | AL41: 0 | AN41: 0 | AO41: 0 | AP41: 0 | AQ41: 0 | AS41: 0 | AU41: 0 | AV41: 0 | AW41: 0 | AX41: 0 | AY41: 0 | AZ41: 0 | BA41: 0 | BB41: 0 | BC41: 0
A42: ='FULL VIEW'!H21 -> 2025 | C42: 0 | D42: 0 | E42: 0 | F42: 0 | G42: 0 | H42: 0 | J42: 0 | K42: 0 | L42: 0 | M42: 0 | O42: 0 | P42: 0 | Q42: 0 | R42: 0 | T42: 0 | U42: 0 | V42: 0 | W42: 0 | Y42: 0 | Z42: 0 | AA42: 0 | AB42: 0 | AD42: 0 | AE42: 0 | AF42: 0 | AG42: 0 | AI42: 0 | AJ42: 0 | AK42: 0 | AL42: 0 | AN42: 0 | AO42: 0 | AP42: 0 | AQ42: 0 | AS42: 0 | AU42: 0 | AV42: 0 | AW42: 0 | AX42: 0 | AY42: 0 | AZ42: 0 | BA42: 0 | BB42: 0 | BC42: 0
A43: ='FULL VIEW'!H22 -> 2026 | C43: 0 | D43: 0 | E43: 0 | F43: 0 | G43: 0 | H43: 0 | J43: 0 | K43: 0 | L43: 0 | M43: 0 | O43: 0 | P43: 0 | Q43: 0 | R43: 0 | T43: 0 | U43: 0 | V43: 0 | W43: 0 | Y43: 0 | Z43: 0 | AA43: 0 | AB43: 0 | AD43: 0 | AE43: 0 | AF43: 0 | AG43: 0 | AI43: 0 | AJ43: 0 | AK43: 0 | AL43: 0 | AN43: 0 | AO43: 0 | AP43: 0 | AQ43: 0 | AS43: 0 | AU43: 0 | AV43: 0 | AW43: 0 | AX43: 0 | AY43: 0 | AZ43: 0 | BA43: 0 | BB43: 0 | BC43: 0
A44: ='FULL VIEW'!H23 -> 2027 | C44: 0 | D44: 0 | E44: 0 | F44: 0 | G44: 0 | H44: 0 | J44: 0 | K44: 0 | L44: 0 | M44: 0 | O44: 0 | P44: 0 | Q44: 0 | R44: 0 | T44: 0 | U44: 0 | V44: 0 | W44: 0 | Y44: 0 | Z44: 0 | AA44: 0 | AB44: 0 | AD44: 0 | AE44: 0 | AF44: 0 | AG44: 0 | AI44: 0 | AJ44: 0 | AK44: 0 | AL44: 0 | AN44: 0 | AO44: 0 | AP44: 0 | AQ44: 0 | AS44: 0 | AU44: 0 | AV44: 0 | AW44: 0 | AX44: 0 | AY44: 0 | AZ44: 0 | BA44: 0 | BB44: 0 | BC44: 0
A45: ='FULL VIEW'!H24 -> 2028 | C45: 0 | D45: 0 | E45: 0 | F45: 0 | G45: 0 | H45: 0 | J45: 0 | K45: 0 | L45: 0 | M45: 0 | O45: 0 | P45: 0 | Q45: 0 | R45: 0 | T45: 0 | U45: 0 | V45: 0 | W45: 0 | Y45: 0 | Z45: 0 | AA45: 0 | AB45: 0 | AD45: 0 | AE45: 0 | AF45: 0 | AG45: 0 | AI45: 0 | AJ45: 0 | AK45: 0 | AL45: 0 | AN45: 0 | AO45: 0 | AP45: 0 | AQ45: 0 | AS45: 0 | AU45: 0 | AV45: 0 | AW45: 0 | AX45: 0 | AY45: 0 | AZ45: 0 | BA45: 0 | BB45: 0 | BC45: 0
A46: ='FULL VIEW'!H25 -> 2029 | C46: 0 | D46: 0 | E46: 0 | F46: 0 | G46: 0 | H46: 0 | J46: 0 | K46: 0 | L46: 0 | M46: 0 | O46: 0 | P46: 0 | Q46: 0 | R46: 0 | T46: 0 | U46: 0 | V46: 0 | W46: 0 | Y46: 0 | Z46: 0 | AA46: 0 | AB46: 0 | AD46: 0 | AE46: 0 | AF46: 0 | AG46: 0 | AI46: 0 | AJ46: 0 | AK46: 0 | AL46: 0 | AN46: 0 | AO46: 0 | AP46: 0 | AQ46: 0 | AS46: 0 | AU46: 0 | AV46: 0 | AW46: 0 | AX46: 0 | AY46: 0 | AZ46: 0 | BA46: 0 | BB46: 0 | BC46: 0
A47: ='FULL VIEW'!H26 -> 2030 | C47: 0 | D47: 0 | E47: 0 | F47: 0 | G47: 0 | H47: 0 | J47: 0 | K47: 0 | L47: 0 | M47: 0 | O47: 0 | P47: 0 | Q47: 0 | R47: 0 | T47: 0 | U47: 0 | V47: 0 | W47: 0 | Y47: 0 | Z47: 0 | AA47: 0 | AB47: 0 | AD47: 0 | AE47: 0 | AF47: 0 | AG47: 0 | AI47: 0 | AJ47: 0 | AK47: 0 | AL47: 0 | AN47: 0 | AO47: 0 | AP47: 0 | AQ47: 0 | AS47: 0 | AU47: 0 | AV47: 0 | AW47: 0 | AX47: 0 | AY47: 0 | AZ47: 0 | BA47: 0 | BB47: 0 | BC47: 0
A48: ='FULL VIEW'!H27 -> 2031 | C48: 0 | D48: 0 | E48: 0 | F48: 0 | G48: 0 | H48: 0 | J48: 0 | K48: 0 | L48: 0 | M48: 0 | O48: 0 | P48: 0 | Q48: 0 | R48: 0 | T48: 0 | U48: 0 | V48: 0 | W48: 0 | Y48: 0 | Z48: 0 | AA48: 0 | AB48: 0 | AD48: 0 | AE48: 0 | AF48: 0 | AG48: 0 | AI48: 0 | AJ48: 0 | AK48: 0 | AL48: 0 | AN48: 0 | AO48: 0 | AP48: 0 | AQ48: 0 | AS48: 0 | AU48: 0 | AV48: 0 | AW48: 0 | AX48: 0 | AY48: 0 | AZ48: 0 | BA48: 0 | BB48: 0 | BC48: 0
A49: ='FULL VIEW'!H28 -> 2032 | C49: 0 | D49: 0 | E49: 0 | F49: 0 | G49: 0 | H49: 0 | J49: 0 | K49: 0 | L49: 0 | M49: 0 | O49: 0 | P49: 0 | Q49: 0 | R49: 0 | T49: 0 | U49: 0 | V49: 0 | W49: 0 | Y49: 0 | Z49: 0 | AA49: 0 | AB49: 0 | AD49: 0 | AE49: 0 | AF49: 0 | AG49: 0 | AI49: 0 | AJ49: 0 | AK49: 0 | AL49: 0 | AN49: 0 | AO49: 0 | AP49: 0 | AQ49: 0 | AS49: 0 | AU49: 0 | AV49: 0 | AW49: 0 | AX49: 0 | AY49: 0 | AZ49: 0 | BA49: 0 | BB49: 0 | BC49: 0
A50: ='FULL VIEW'!H29 -> 2033 | C50: 0 | D50: 0 | E50: 0 | F50: 0 | G50: 0 | H50: 0 | J50: 0 | K50: 0 | L50: 0 | M50: 0 | O50: 0 | P50: 0 | Q50: 0 | R50: 0 | T50: 0 | U50: 0 | V50: 0 | W50: 0 | Y50: 0 | Z50: 0 | AA50: 0 | AB50: 0 | AD50: 0 | AE50: 0 | AF50: 0 | AG50: 0 | AI50: 0 | AJ50: 0 | AK50: 0 | AL50: 0 | AN50: 0 | AO50: 0 | AP50: 0 | AQ50: 0 | AS50: 0 | AU50: 0 | AV50: 0 | AW50: 0 | AX50: 0 | AY50: 0 | AZ50: 0 | BA50: 0 | BB50: 0 | BC50: 0
A51: ='FULL VIEW'!H30 -> 2034 | C51: 0 | D51: 0 | E51: 0 | F51: 0 | G51: 0 | H51: 0 | J51: 0 | K51: 0 | L51: 0 | M51: 0 | O51: 0 | P51: 0 | Q51: 0 | R51: 0 | T51: 0 | U51: 0 | V51: 0 | W51: 0 | Y51: 0 | Z51: 0 | AA51: 0 | AB51: 0 | AD51: 0 | AE51: 0 | AF51: 0 | AG51: 0 | AI51: 0 | AJ51: 0 | AK51: 0 | AL51: 0 | AN51: 0 | AO51: 0 | AP51: 0 | AQ51: 0 | AS51: 0 | AU51: 0 | AV51: 0 | AW51: 0 | AX51: 0 | AY51: 0 | AZ51: 0 | BA51: 0 | BB51: 0 | BC51: 0
A52: ='FULL VIEW'!H31 -> 2035 | C52: 0 | D52: 0 | E52: 0 | F52: 0 | G52: 0 | H52: 0 | J52: 0 | K52: 0 | L52: 0 | M52: 0 | O52: 0 | P52: 0 | Q52: 0 | R52: 0 | T52: 0 | U52: 0 | V52: 0 | W52: 0 | Y52: 0 | Z52: 0 | AA52: 0 | AB52: 0 | AD52: 0 | AE52: 0 | AF52: 0 | AG52: 0 | AI52: 0 | AJ52: 0 | AK52: 0 | AL52: 0 | AN52: 0 | AO52: 0 | AP52: 0 | AQ52: 0 | AS52: 0 | AU52: 0 | AV52: 0 | AW52: 0 | AX52: 0 | AY52: 0 | AZ52: 0 | BA52: 0 | BB52: 0 | BC52: 0
A53: ='FULL VIEW'!H32 -> 2036 | C53: 0 | D53: 0 | E53: 0 | F53: 0 | G53: 0 | H53: 0 | J53: 0 | K53: 0 | L53: 0 | M53: 0 | O53: 0 | P53: 0 | Q53: 0 | R53: 0 | T53: 0 | U53: 0 | V53: 0 | W53: 0 | Y53: 0 | Z53: 0 | AA53: 0 | AB53: 0 | AD53: 0 | AE53: 0 | AF53: 0 | AG53: 0 | AI53: 0 | AJ53: 0 | AK53: 0 | AL53: 0 | AN53: 0 | AO53: 0 | AP53: 0 | AQ53: 0 | AS53: 0 | AU53: 0 | AV53: 0 | AW53: 0 | AX53: 0 | AY53: 0 | AZ53: 0 | BA53: 0 | BB53: 0 | BC53: 0
A54: ='FULL VIEW'!H33 -> 2037 | C54: 0 | D54: 0 | E54: 0 | F54: 0 | G54: 0 | H54: 0 | J54: 0 | K54: 0 | L54: 0 | M54: 0 | O54: 0 | P54: 0 | Q54: 0 | R54: 0 | T54: 0 | U54: 0 | V54: 0 | W54: 0 | Y54: 0 | Z54: 0 | AA54: 0 | AB54: 0 | AD54: 0 | AE54: 0 | AF54: 0 | AG54: 0 | AI54: 0 | AJ54: 0 | AK54: 0 | AL54: 0 | AN54: 0 | AO54: 0 | AP54: 0 | AQ54: 0 | AS54: 0 | AU54: 0 | AV54: 0 | AW54: 0 | AX54: 0 | AY54: 0 | AZ54: 0 | BA54: 0 | BB54: 0 | BC54: 0
A55: ='FULL VIEW'!H34 -> 2038 | C55: 0 | D55: 0 | E55: 0 | F55: 0 | G55: 0 | H55: 0 | J55: 0 | K55: 0 | L55: 0 | M55: 0 | O55: 0 | P55: 0 | Q55: 0 | R55: 0 | T55: 0 | U55: 0 | V55: 0 | W55: 0 | Y55: 0 | Z55: 0 | AA55: 0 | AB55: 0 | AD55: 0 | AE55: 0 | AF55: 0 | AG55: 0 | AI55: 0 | AJ55: 0 | AK55: 0 | AL55: 0 | AN55: 0 | AO55: 0 | AP55: 0 | AQ55: 0 | AS55: 0 | AU55: 0 | AV55: 0 | AW55: 0 | AX55: 0 | AY55: 0 | AZ55: 0 | BA55: 0 | BB55: 0 | BC55: 0
A56: ='FULL VIEW'!H35 -> 2039 | C56: 0 | D56: 0 | E56: 0 | F56: 0 | G56: 0 | H56: 0 | J56: 0 | K56: 0 | L56: 0 | M56: 0 | O56: 0 | P56: 0 | Q56: 0 | R56: 0 | T56: 0 | U56: 0 | V56: 0 | W56: 0 | Y56: 0 | Z56: 0 | AA56: 0 | AB56: 0 | AD56: 0 | AE56: 0 | AF56: 0 | AG56: 0 | AI56: 0 | AJ56: 0 | AK56: 0 | AL56: 0 | AN56: 0 | AO56: 0 | AP56: 0 | AQ56: 0 | AS56: 0 | AU56: 0 | AV56: 0 | AW56: 0 | AX56: 0 | AY56: 0 | AZ56: 0 | BA56: 0 | BB56: 0 | BC56: 0
A57: ='FULL VIEW'!H36 -> 2040 | C57: 0 | D57: 0 | E57: 0 | F57: 0 | G57: 0 | H57: 0 | J57: 0 | K57: 0 | L57: 0 | M57: 0 | O57: 0 | P57: 0 | Q57: 0 | R57: 0 | T57: 0 | U57: 0 | V57: 0 | W57: 0 | Y57: 0 | Z57: 0 | AA57: 0 | AB57: 0 | AD57: 0 | AE57: 0 | AF57: 0 | AG57: 0 | AI57: 0 | AJ57: 0 | AK57: 0 | AL57: 0 | AN57: 0 | AO57: 0 | AP57: 0 | AQ57: 0 | AS57: 0 | AU57: 0 | AV57: 0 | AW57: 0 | AX57: 0 | AY57: 0 | AZ57: 0 | BA57: 0 | BB57: 0 | BC57: 0
A58: ='FULL VIEW'!H37 -> 2041 | C58: 0 | D58: 0 | E58: 0 | F58: 0 | G58: 0 | H58: 0 | J58: 0 | K58: 0 | L58: 0 | M58: 0 | O58: 0 | P58: 0 | Q58: 0 | R58: 0 | T58: 0 | U58: 0 | V58: 0 | W58: 0 | Y58: 0 | Z58: 0 | AA58: 0 | AB58: 0 | AD58: 0 | AE58: 0 | AF58: 0 | AG58: 0 | AI58: 0 | AJ58: 0 | AK58: 0 | AL58: 0 | AN58: 0 | AO58: 0 | AP58: 0 | AQ58: 0 | AS58: 0 | AU58: 0 | AV58: 0 | AW58: 0 | AX58: 0 | AY58: 0 | AZ58: 0 | BA58: 0 | BB58: 0 | BC58: 0
A59: ='FULL VIEW'!H38 -> 2042 | C59: 0 | D59: 0 | E59: 0 | F59: 0 | G59: 0 | H59: 0 | J59: 0 | K59: 0 | L59: 0 | M59: 0 | O59: 0 | P59: 0 | Q59: 0 | R59: 0 | T59: 0 | U59: 0 | V59: 0 | W59: 0 | Y59: 0 | Z59: 0 | AA59: 0 | AB59: 0 | AD59: 0 | AE59: 0 | AF59: 0 | AG59: 0 | AI59: 0 | AJ59: 0 | AK59: 0 | AL59: 0 | AN59: 0 | AO59: 0 | AP59: 0 | AQ59: 0 | AS59: 0 | AU59: 0 | AV59: 0 | AW59: 0 | AX59: 0 | AY59: 0 | AZ59: 0 | BA59: 0 | BB59: 0 | BC59: 0
A60: ='FULL VIEW'!H39 -> 2043 | C60: 0 | D60: 0 | E60: 0 | F60: 0 | G60: 0 | H60: 0 | J60: 0 | K60: 0 | L60: 0 | M60: 0 | O60: 0 | P60: 0 | Q60: 0 | R60: 0 | T60: 0 | U60: 0 | V60: 0 | W60: 0 | Y60: 0 | Z60: 0 | AA60: 0 | AB60: 0 | AD60: 0 | AE60: 0 | AF60: 0 | AG60: 0 | AI60: 0 | AJ60: 0 | AK60: 0 | AL60: 0 | AN60: 0 | AO60: 0 | AP60: 0 | AQ60: 0 | AS60: 0 | AU60: 0 | AV60: 0 | AW60: 0 | AX60: 0 | AY60: 0 | AZ60: 0 | BA60: 0 | BB60: 0 | BC60: 0
A61: ='FULL VIEW'!H40 -> 2044 | C61: 0 | D61: 0 | E61: 0 | F61: 0 | G61: 0 | H61: 0 | J61: 0 | K61: 0 | L61: 0 | M61: 0 | O61: 0 | P61: 0 | Q61: 0 | R61: 0 | T61: 0 | U61: 0 | V61: 0 | W61: 0 | Y61: 0 | Z61: 0 | AA61: 0 | AB61: 0 | AD61: 0 | AE61: 0 | AF61: 0 | AG61: 0 | AI61: 0 | AJ61: 0 | AK61: 0 | AL61: 0 | AN61: 0 | AO61: 0 | AP61: 0 | AQ61: 0 | AS61: 0 | AU61: 0 | AV61: 0 | AW61: 0 | AX61: 0 | AY61: 0 | AZ61: 0 | BA61: 0 | BB61: 0 | BC61: 0
A62: ='FULL VIEW'!H41 -> 2045 | C62: 0 | D62: 0 | E62: 0 | F62: 0 | G62: 0 | H62: 0 | J62: 0 | K62: 0 | L62: 0 | M62: 0 | O62: 0 | P62: 0 | Q62: 0 | R62: 0 | T62: 0 | U62: 0 | V62: 0 | W62: 0 | Y62: 0 | Z62: 0 | AA62: 0 | AB62: 0 | AD62: 0 | AE62: 0 | AF62: 0 | AG62: 0 | AI62: 0 | AJ62: 0 | AK62: 0 | AL62: 0 | AN62: 0 | AO62: 0 | AP62: 0 | AQ62: 0 | AS62: 0 | AU62: 0 | AV62: 0 | AW62: 0 | AX62: 0 | AY62: 0 | AZ62: 0 | BA62: 0 | BB62: 0 | BC62: 0
A63: ='FULL VIEW'!H42 -> 2046 | C63: 0 | D63: 0 | E63: 0 | F63: 0 | G63: 0 | H63: 0 | J63: 0 | K63: 0 | L63: 0 | M63: 0 | O63: 0 | P63: 0 | Q63: 0 | R63: 0 | T63: 0 | U63: 0 | V63: 0 | W63: 0 | Y63: 0 | Z63: 0 | AA63: 0 | AB63: 0 | AD63: 0 | AE63: 0 | AF63: 0 | AG63: 0 | AI63: 0 | AJ63: 0 | AK63: 0 | AL63: 0 | AN63: 0 | AO63: 0 | AP63: 0 | AQ63: 0 | AS63: 0 | AU63: 0 | AV63: 0 | AW63: 0 | AX63: 0 | AY63: 0 | AZ63: 0 | BA63: 0 | BB63: 0 | BC63: 0
A64: ='FULL VIEW'!H43 -> 2047 | C64: 0 | D64: 0 | E64: 0 | F64: 0 | G64: 0 | H64: 0 | J64: 0 | K64: 0 | L64: 0 | M64: 0 | O64: 0 | P64: 0 | Q64: 0 | R64: 0 | T64: 0 | U64: 0 | V64: 0 | W64: 0 | Y64: 0 | Z64: 0 | AA64: 0 | AB64: 0 | AD64: 0 | AE64: 0 | AF64: 0 | AG64: 0 | AI64: 0 | AJ64: 0 | AK64: 0 | AL64: 0 | AN64: 0 | AO64: 0 | AP64: 0 | AQ64: 0 | AS64: 0 | AU64: 0 | AV64: 0 | AW64: 0 | AX64: 0 | AY64: 0 | AZ64: 0 | BA64: 0 | BB64: 0 | BC64: 0
A65: ='FULL VIEW'!H44 -> 2048 | C65: 0 | D65: 0 | E65: =IF(E$26=($A65+1),E$10,IF(E$24<($A66),0,IF(E$26>($A65+1),0,E64*(1+E$16)-G65))) -> 0 | F65: 0 | G65: =IF($A65>=E$26,IF($A65<=E$27,IF($A64<E$24,E$20,0),0))+F65 -> 0 | H65: 0 | J65: =IF(J$26=($A65+1),J$10,IF(J$24<($A66),0,IF(J$26>($A65+1),0,J64*(1+J$16)-L65))) -> 0 | K65: 0 | L65: =IF($A65>=J$26,IF($A65<=J$27,IF($A64<J$24,J$20,0),0))+K65 -> 0 | M65: 0 | O65: =IF(O$26=($A65+1),O$10,IF(O$24<($A66),0,IF(O$26>($A65+1),0,O64*(1+O$16)-Q65))) -> 0 | P65: 0 | Q65: =IF($A65>=O$26,IF($A65<=O$27,IF($A64<O$24,O$20,0),0))+P65 -> 0 | R65: 0 | T65: =IF(T$26=($A65+1),T$10,IF(T$24<($A66),0,IF(T$26>($A65+1),0,T64*(1+T$16)-V65))) -> 0 | U65: 0 | V65: =IF($A65>=T$26,IF($A65<=T$27,IF($A64<T$24,T$20,0),0))+U65 -> 0 | W65: 0 | Y65: =IF(Y$26=($A65+1),Y$10,IF(Y$24<($A66),0,IF(Y$26>($A65+1),0,Y64*(1+Y$16)-AA65))) -> 0 | Z65: 0 | AA65: =IF($A65>=Y$26,IF($A65<=Y$27,IF($A64<Y$24,Y$20,0),0))+Z65 -> 0 | AB65: 0 | AD65: =IF(AD$26=($A65+1),AD$10,IF(AD$24<($A66),0,IF(AD$26>($A65+1),0,AD64*(1+AD$16)-AF65))) -> 0 | AE65: 0 | AF65: =IF($A65>=AD$26,IF($A65<=AD$27,IF($A64<AD$24,AD$20,0),0))+AE65 -> 0 | AG65: 0 | AI65: =IF(AI$26=($A65+1),AI$10,IF(AI$24<($A66),0,IF(AI$26>($A65+1),0,AI64*(1+AI$16)-AK65))) -> 0 | AJ65: 0 | AK65: =IF($A65>=AI$26,IF($A65<=AI$27,IF($A64<AI$24,AI$20,0),0))+AJ65 -> 0 | AL65: 0 | AN65: =IF(AN$26=($A65+1),AN$10,IF(AN$24<($A66),0,IF(AN$26>($A65+1),0,AN64*(1+AN$16)-AP65))) -> 0 | AO65: 0 | AP65: =IF($A65>=AN$26,IF($A65<=AN$27,IF($A64<AN$24,AN$20,0),0))+AO65 -> 0 | AQ65: 0 | AS65: 0 | AU65: =SUM(AV65:BC65) -> 0 | AV65: =-IF(E$26=($A65+1),E$10,0) -> 0 | AW65: =-IF(J$26=($A65+1),J$10,0) -> 0 | AX65: =-IF(O$26=($A65+1),O$10,0) -> 0 | AY65: =-IF(T$26=($A65+1),T$10,0) -> 0 | AZ65: =-IF(Y$26=($A65+1),Y$10,0) -> 0 | BA65: =-IF(AD$26=($A65+1),AD$10,0) -> 0 | BB65: =-IF(AI$26=($A65+1),AI$10,0) -> 0 | BC65: =-IF(AN$26=($A65+1),AN$10,0) -> 0
A66: ='FULL VIEW'!H45 -> 2049 | C66: 0 | D66: 0 | E66: 0 | F66: 0 | G66: 0 | H66: 0 | J66: 0 | K66: 0 | L66: 0 | M66: 0 | O66: 0 | P66: 0 | Q66: 0 | R66: 0 | T66: 0 | U66: 0 | V66: 0 | W66: 0 | Y66: 0 | Z66: 0 | AA66: 0 | AB66: 0 | AD66: 0 | AE66: 0 | AF66: 0 | AG66: 0 | AI66: 0 | AJ66: 0 | AK66: 0 | AL66: 0 | AN66: 0 | AO66: 0 | AP66: 0 | AQ66: 0 | AS66: 0 | AU66: 0 | AV66: 0 | AW66: 0 | AX66: 0 | AY66: 0 | AZ66: 0 | BA66: 0 | BB66: 0 | BC66: 0
A67: ='FULL VIEW'!H46 -> 2050 | C67: 0 | D67: 0 | E67: 0 | F67: 0 | G67: 0 | H67: 0 | J67: 0 | K67: 0 | L67: 0 | M67: 0 | O67: 0 | P67: 0 | Q67: 0 | R67: 0 | T67: 0 | U67: 0 | V67: 0 | W67: 0 | Y67: 0 | Z67: 0 | AA67: 0 | AB67: 0 | AD67: 0 | AE67: 0 | AF67: 0 | AG67: 0 | AI67: 0 | AJ67: 0 | AK67: 0 | AL67: 0 | AN67: 0 | AO67: 0 | AP67: 0 | AQ67: 0 | AS67: 0 | AU67: 0 | AV67: 0 | AW67: 0 | AX67: 0 | AY67: 0 | AZ67: 0 | BA67: 0 | BB67: 0 | BC67: 0
A68: ='FULL VIEW'!H47 -> 2051 | C68: 0 | D68: 0 | E68: 0 | F68: 0 | G68: 0 | H68: 0 | J68: 0 | K68: 0 | L68: 0 | M68: 0 | O68: 0 | P68: 0 | Q68: 0 | R68: 0 | T68: 0 | U68: 0 | V68: 0 | W68: 0 | Y68: 0 | Z68: 0 | AA68: 0 | AB68: 0 | AD68: 0 | AE68: 0 | AF68: 0 | AG68: 0 | AI68: 0 | AJ68: 0 | AK68: 0 | AL68: 0 | AN68: 0 | AO68: 0 | AP68: 0 | AQ68: 0 | AS68: 0 | AU68: 0 | AV68: 0 | AW68: 0 | AX68: 0 | AY68: 0 | AZ68: 0 | BA68: 0 | BB68: 0 | BC68: 0
A69: ='FULL VIEW'!H48 -> 2052 | C69: 0 | D69: 0 | E69: 0 | F69: 0 | G69: 0 | H69: 0 | J69: 0 | K69: 0 | L69: 0 | M69: 0 | O69: 0 | P69: 0 | Q69: 0 | R69: 0 | T69: 0 | U69: 0 | V69: 0 | W69: 0 | Y69: 0 | Z69: 0 | AA69: 0 | AB69: 0 | AD69: 0 | AE69: 0 | AF69: 0 | AG69: 0 | AI69: 0 | AJ69: 0 | AK69: 0 | AL69: 0 | AN69: 0 | AO69: 0 | AP69: 0 | AQ69: 0 | AS69: 0 | AU69: 0 | AV69: 0 | AW69: 0 | AX69: 0 | AY69: 0 | AZ69: 0 | BA69: 0 | BB69: 0 | BC69: 0
A70: ='FULL VIEW'!H49 -> 2053 | C70: 0 | D70: 0 | E70: 0 | F70: 0 | G70: 0 | H70: 0 | J70: 0 | K70: 0 | L70: 0 | M70: 0 | O70: 0 | P70: 0 | Q70: 0 | R70: 0 | T70: 0 | U70: 0 | V70: 0 | W70: 0 | Y70: 0 | Z70: 0 | AA70: 0 | AB70: 0 | AD70: 0 | AE70: 0 | AF70: 0 | AG70: 0 | AI70: 0 | AJ70: 0 | AK70: 0 | AL70: 0 | AN70: 0 | AO70: 0 | AP70: 0 | AQ70: 0 | AS70: 0 | AU70: 0 | AV70: 0 | AW70: 0 | AX70: 0 | AY70: 0 | AZ70: 0 | BA70: 0 | BB70: 0 | BC70: 0
A71: ='FULL VIEW'!H50 -> 2054 | C71: 0 | D71: 0 | E71: 0 | F71: 0 | G71: 0 | H71: 0 | J71: 0 | K71: 0 | L71: 0 | M71: 0 | O71: 0 | P71: 0 | Q71: 0 | R71: 0 | T71: 0 | U71: 0 | V71: 0 | W71: 0 | Y71: 0 | Z71: 0 | AA71: 0 | AB71: 0 | AD71: 0 | AE71: 0 | AF71: 0 | AG71: 0 | AI71: 0 | AJ71: 0 | AK71: 0 | AL71: 0 | AN71: 0 | AO71: 0 | AP71: 0 | AQ71: 0 | AS71: 0 | AU71: 0 | AV71: 0 | AW71: 0 | AX71: 0 | AY71: 0 | AZ71: 0 | BA71: 0 | BB71: 0 | BC71: 0
A72: ='FULL VIEW'!H51 -> 2055 | C72: 0 | D72: 0 | E72: 0 | F72: 0 | G72: 0 | H72: 0 | J72: 0 | K72: 0 | L72: 0 | M72: 0 | O72: 0 | P72: 0 | Q72: 0 | R72: 0 | T72: 0 | U72: 0 | V72: 0 | W72: 0 | Y72: 0 | Z72: 0 | AA72: 0 | AB72: 0 | AD72: 0 | AE72: 0 | AF72: 0 | AG72: 0 | AI72: 0 | AJ72: 0 | AK72: 0 | AL72: 0 | AN72: 0 | AO72: 0 | AP72: 0 | AQ72: 0 | AS72: 0 | AU72: 0 | AV72: 0 | AW72: 0 | AX72: 0 | AY72: 0 | AZ72: 0 | BA72: 0 | BB72: 0 | BC72: 0
A73: ='FULL VIEW'!H52 -> 2056 | C73: 0 | D73: 0 | E73: 0 | F73: 0 | G73: 0 | H73: 0 | J73: 0 | K73: 0 | L73: 0 | M73: 0 | O73: 0 | P73: 0 | Q73: 0 | R73: 0 | T73: 0 | U73: 0 | V73: 0 | W73: 0 | Y73: 0 | Z73: 0 | AA73: 0 | AB73: 0 | AD73: 0 | AE73: 0 | AF73: 0 | AG73: 0 | AI73: 0 | AJ73: 0 | AK73: 0 | AL73: 0 | AN73: 0 | AO73: 0 | AP73: 0 | AQ73: 0 | AS73: 0 | AU73: 0 | AV73: 0 | AW73: 0 | AX73: 0 | AY73: 0 | AZ73: 0 | BA73: 0 | BB73: 0 | BC73: 0
A74: ='FULL VIEW'!H53 -> 2057 | C74: 0 | D74: 0 | E74: 0 | F74: 0 | G74: 0 | H74: 0 | J74: 0 | K74: 0 | L74: 0 | M74: 0 | O74: 0 | P74: 0 | Q74: 0 | R74: 0 | T74: 0 | U74: 0 | V74: 0 | W74: 0 | Y74: 0 | Z74: 0 | AA74: 0 | AB74: 0 | AD74: 0 | AE74: 0 | AF74: 0 | AG74: 0 | AI74: 0 | AJ74: 0 | AK74: 0 | AL74: 0 | AN74: 0 | AO74: 0 | AP74: 0 | AQ74: 0 | AS74: 0 | AU74: 0 | AV74: 0 | AW74: 0 | AX74: 0 | AY74: 0 | AZ74: 0 | BA74: 0 | BB74: 0 | BC74: 0
A75: ='FULL VIEW'!H54 -> 2058 | C75: 0 | D75: 0 | E75: 0 | F75: 0 | G75: 0 | H75: 0 | J75: 0 | K75: 0 | L75: 0 | M75: 0 | O75: 0 | P75: 0 | Q75: 0 | R75: 0 | T75: 0 | U75: 0 | V75: 0 | W75: 0 | Y75: 0 | Z75: 0 | AA75: 0 | AB75: 0 | AD75: 0 | AE75: 0 | AF75: 0 | AG75: 0 | AI75: 0 | AJ75: 0 | AK75: 0 | AL75: 0 | AN75: 0 | AO75: 0 | AP75: 0 | AQ75: 0 | AS75: 0 | AU75: 0 | AV75: 0 | AW75: 0 | AX75: 0 | AY75: 0 | AZ75: 0 | BA75: 0 | BB75: 0 | BC75: 0
A76: ='FULL VIEW'!H55 -> 2059 | C76: 0 | D76: 0 | E76: 0 | F76: 0 | G76: 0 | H76: 0 | J76: 0 | K76: 0 | L76: 0 | M76: 0 | O76: 0 | P76: 0 | Q76: 0 | R76: 0 | T76: 0 | U76: 0 | V76: 0 | W76: 0 | Y76: 0 | Z76: 0 | AA76: 0 | AB76: 0 | AD76: 0 | AE76: 0 | AF76: 0 | AG76: 0 | AI76: 0 | AJ76: 0 | AK76: 0 | AL76: 0 | AN76: 0 | AO76: 0 | AP76: 0 | AQ76: 0 | AS76: 0 | AU76: 0 | AV76: 0 | AW76: 0 | AX76: 0 | AY76: 0 | AZ76: 0 | BA76: 0 | BB76: 0 | BC76: 0
A77: ='FULL VIEW'!H56 -> 2060 | C77: 0 | D77: 0 | E77: 0 | F77: 0 | G77: 0 | H77: 0 | J77: 0 | K77: 0 | L77: 0 | M77: 0 | O77: 0 | P77: 0 | Q77: 0 | R77: 0 | T77: 0 | U77: 0 | V77: 0 | W77: 0 | Y77: 0 | Z77: 0 | AA77: 0 | AB77: 0 | AD77: 0 | AE77: 0 | AF77: 0 | AG77: 0 | AI77: 0 | AJ77: 0 | AK77: 0 | AL77: 0 | AN77: 0 | AO77: 0 | AP77: 0 | AQ77: 0 | AS77: 0 | AU77: 0 | AV77: 0 | AW77: 0 | AX77: 0 | AY77: 0 | AZ77: 0 | BA77: 0 | BB77: 0 | BC77: 0
A78: ='FULL VIEW'!H57 -> 2061 | C78: 0 | D78: 0 | E78: 0 | F78: 0 | G78: 0 | H78: 0 | J78: 0 | K78: 0 | L78: 0 | M78: 0 | O78: 0 | P78: 0 | Q78: 0 | R78: 0 | T78: 0 | U78: 0 | V78: 0 | W78: 0 | Y78: 0 | Z78: 0 | AA78: 0 | AB78: 0 | AD78: 0 | AE78: 0 | AF78: 0 | AG78: 0 | AI78: 0 | AJ78: 0 | AK78: 0 | AL78: 0 | AN78: 0 | AO78: 0 | AP78: 0 | AQ78: 0 | AS78: 0 | AU78: 0 | AV78: 0 | AW78: 0 | AX78: 0 | AY78: 0 | AZ78: 0 | BA78: 0 | BB78: 0 | BC78: 0
A79: ='FULL VIEW'!H58 -> 2062 | C79: 0 | D79: 0 | E79: 0 | F79: 0 | G79: 0 | H79: 0 | J79: 0 | K79: 0 | L79: 0 | M79: 0 | O79: 0 | P79: 0 | Q79: 0 | R79: 0 | T79: 0 | U79: 0 | V79: 0 | W79: 0 | Y79: 0 | Z79: 0 | AA79: 0 | AB79: 0 | AD79: 0 | AE79: 0 | AF79: 0 | AG79: 0 | AI79: 0 | AJ79: 0 | AK79: 0 | AL79: 0 | AN79: 0 | AO79: 0 | AP79: 0 | AQ79: 0 | AS79: 0 | AU79: 0 | AV79: 0 | AW79: 0 | AX79: 0 | AY79: 0 | AZ79: 0 | BA79: 0 | BB79: 0 | BC79: 0
A80: ='FULL VIEW'!H59 -> 2063 | C80: 0 | D80: 0 | E80: 0 | F80: 0 | G80: 0 | H80: 0 | J80: 0 | K80: 0 | L80: 0 | M80: 0 | O80: 0 | P80: 0 | Q80: 0 | R80: 0 | T80: 0 | U80: 0 | V80: 0 | W80: 0 | Y80: 0 | Z80: 0 | AA80: 0 | AB80: 0 | AD80: 0 | AE80: 0 | AF80: 0 | AG80: 0 | AI80: 0 | AJ80: 0 | AK80: 0 | AL80: 0 | AN80: 0 | AO80: 0 | AP80: 0 | AQ80: 0 | AS80: 0 | AU80: 0 | AV80: 0 | AW80: 0 | AX80: 0 | AY80: 0 | AZ80: 0 | BA80: 0 | BB80: 0 | BC80: 0
A81: ='FULL VIEW'!H60 -> 2064 | C81: 0 | D81: 0 | E81: 0 | F81: 0 | G81: 0 | H81: 0 | J81: 0 | K81: 0 | L81: 0 | M81: 0 | O81: 0 | P81: 0 | Q81: 0 | R81: 0 | T81: 0 | U81: 0 | V81: 0 | W81: 0 | Y81: 0 | Z81: 0 | AA81: 0 | AB81: 0 | AD81: 0 | AE81: 0 | AF81: 0 | AG81: 0 | AI81: 0 | AJ81: 0 | AK81: 0 | AL81: 0 | AN81: 0 | AO81: 0 | AP81: 0 | AQ81: 0 | AS81: 0 | AU81: 0 | AV81: 0 | AW81: 0 | AX81: 0 | AY81: 0 | AZ81: 0 | BA81: 0 | BB81: 0 | BC81: 0
A82: ='FULL VIEW'!H61 -> 2065 | C82: 0 | D82: 0 | E82: 0 | F82: 0 | G82: 0 | H82: 0 | J82: 0 | K82: 0 | L82: 0 | M82: 0 | O82: 0 | P82: 0 | Q82: 0 | R82: 0 | T82: 0 | U82: 0 | V82: 0 | W82: 0 | Y82: 0 | Z82: 0 | AA82: 0 | AB82: 0 | AD82: 0 | AE82: 0 | AF82: 0 | AG82: 0 | AI82: 0 | AJ82: 0 | AK82: 0 | AL82: 0 | AN82: 0 | AO82: 0 | AP82: 0 | AQ82: 0 | AS82: 0 | AU82: 0 | AV82: 0 | AW82: 0 | AX82: 0 | AY82: 0 | AZ82: 0 | BA82: 0 | BB82: 0 | BC82: 0
A83: ='FULL VIEW'!H62 -> 2066 | C83: 0 | D83: 0 | E83: 0 | F83: 0 | G83: 0 | H83: 0 | J83: 0 | K83: 0 | L83: 0 | M83: 0 | O83: 0 | P83: 0 | Q83: 0 | R83: 0 | T83: 0 | U83: 0 | V83: 0 | W83: 0 | Y83: 0 | Z83: 0 | AA83: 0 | AB83: 0 | AD83: 0 | AE83: 0 | AF83: 0 | AG83: 0 | AI83: 0 | AJ83: 0 | AK83: 0 | AL83: 0 | AN83: 0 | AO83: 0 | AP83: 0 | AQ83: 0 | AS83: 0 | AU83: 0 | AV83: 0 | AW83: 0 | AX83: 0 | AY83: 0 | AZ83: 0 | BA83: 0 | BB83: 0 | BC83: 0
A84: ='FULL VIEW'!H63 -> 2067 | C84: 0 | D84: 0 | E84: 0 | F84: 0 | G84: 0 | H84: 0 | J84: 0 | K84: 0 | L84: 0 | M84: 0 | O84: 0 | P84: 0 | Q84: 0 | R84: 0 | T84: 0 | U84: 0 | V84: 0 | W84: 0 | Y84: 0 | Z84: 0 | AA84: 0 | AB84: 0 | AD84: 0 | AE84: 0 | AF84: 0 | AG84: 0 | AI84: 0 | AJ84: 0 | AK84: 0 | AL84: 0 | AN84: 0 | AO84: 0 | AP84: 0 | AQ84: 0 | AS84: 0 | AU84: 0 | AV84: 0 | AW84: 0 | AX84: 0 | AY84: 0 | AZ84: 0 | BA84: 0 | BB84: 0 | BC84: 0
A85: ='FULL VIEW'!H64 -> 2068 | C85: 0 | D85: 0 | E85: 0 | F85: 0 | G85: 0 | H85: 0 | J85: 0 | K85: 0 | L85: 0 | M85: 0 | O85: 0 | P85: 0 | Q85: 0 | R85: 0 | T85: 0 | U85: 0 | V85: 0 | W85: 0 | Y85: 0 | Z85: 0 | AA85: 0 | AB85: 0 | AD85: 0 | AE85: 0 | AF85: 0 | AG85: 0 | AI85: 0 | AJ85: 0 | AK85: 0 | AL85: 0 | AN85: 0 | AO85: 0 | AP85: 0 | AQ85: 0 | AS85: 0 | AU85: 0 | AV85: 0 | AW85: 0 | AX85: 0 | AY85: 0 | AZ85: 0 | BA85: 0 | BB85: 0 | BC85: 0
A86: ='FULL VIEW'!H65 -> 2069 | C86: 0 | D86: 0 | E86: 0 | F86: 0 | G86: 0 | H86: 0 | J86: 0 | K86: 0 | L86: 0 | M86: 0 | O86: 0 | P86: 0 | Q86: 0 | R86: 0 | T86: 0 | U86: 0 | V86: 0 | W86: 0 | Y86: 0 | Z86: 0 | AA86: 0 | AB86: 0 | AD86: 0 | AE86: 0 | AF86: 0 | AG86: 0 | AI86: 0 | AJ86: 0 | AK86: 0 | AL86: 0 | AN86: 0 | AO86: 0 | AP86: 0 | AQ86: 0 | AS86: 0 | AU86: 0 | AV86: 0 | AW86: 0 | AX86: 0 | AY86: 0 | AZ86: 0 | BA86: 0 | BB86: 0 | BC86: 0
A87: ='FULL VIEW'!H66 -> 2070 | C87: 0 | D87: 0 | E87: 0 | F87: 0 | G87: 0 | H87: 0 | J87: 0 | K87: 0 | L87: 0 | M87: 0 | O87: 0 | P87: 0 | Q87: 0 | R87: 0 | T87: 0 | U87: 0 | V87: 0 | W87: 0 | Y87: 0 | Z87: 0 | AA87: 0 | AB87: 0 | AD87: 0 | AE87: 0 | AF87: 0 | AG87: 0 | AI87: 0 | AJ87: 0 | AK87: 0 | AL87: 0 | AN87: 0 | AO87: 0 | AP87: 0 | AQ87: 0 | AS87: 0 | AU87: 0 | AV87: 0 | AW87: 0 | AX87: 0 | AY87: 0 | AZ87: 0 | BA87: 0 | BB87: 0 | BC87: 0
A88: ='FULL VIEW'!H67 -> 2071 | C88: 0 | D88: 0 | E88: 0 | F88: 0 | G88: 0 | H88: 0 | J88: 0 | K88: 0 | L88: 0 | M88: 0 | O88: 0 | P88: 0 | Q88: 0 | R88: 0 | T88: 0 | U88: 0 | V88: 0 | W88: 0 | Y88: 0 | Z88: 0 | AA88: 0 | AB88: 0 | AD88: 0 | AE88: 0 | AF88: 0 | AG88: 0 | AI88: 0 | AJ88: 0 | AK88: 0 | AL88: 0 | AN88: 0 | AO88: 0 | AP88: 0 | AQ88: 0 | AS88: 0 | AU88: 0 | AV88: 0 | AW88: 0 | AX88: 0 | AY88: 0 | AZ88: 0 | BA88: 0 | BB88: 0 | BC88: 0
A89: ='FULL VIEW'!H68 -> 2072 | C89: 0 | D89: 0 | E89: 0 | F89: 0 | G89: 0 | H89: 0 | J89: 0 | K89: 0 | L89: 0 | M89: 0 | O89: 0 | P89: 0 | Q89: 0 | R89: 0 | T89: 0 | U89: 0 | V89: 0 | W89: 0 | Y89: 0 | Z89: 0 | AA89: 0 | AB89: 0 | AD89: 0 | AE89: 0 | AF89: 0 | AG89: 0 | AI89: 0 | AJ89: 0 | AK89: 0 | AL89: 0 | AN89: 0 | AO89: 0 | AP89: 0 | AQ89: 0 | AS89: 0 | AU89: 0 | AV89: 0 | AW89: 0 | AX89: 0 | AY89: 0 | AZ89: 0 | BA89: 0 | BB89: 0 | BC89: 0
A90: ='FULL VIEW'!H69 -> 2073 | C90: 0 | D90: 0 | E90: 0 | F90: 0 | G90: 0 | H90: 0 | J90: 0 | K90: 0 | L90: 0 | M90: 0 | O90: 0 | P90: 0 | Q90: 0 | R90: 0 | T90: 0 | U90: 0 | V90: 0 | W90: 0 | Y90: 0 | Z90: 0 | AA90: 0 | AB90: 0 | AD90: 0 | AE90: 0 | AF90: 0 | AG90: 0 | AI90: 0 | AJ90: 0 | AK90: 0 | AL90: 0 | AN90: 0 | AO90: 0 | AP90: 0 | AQ90: 0 | AS90: 0 | AU90: 0 | AV90: 0 | AW90: 0 | AX90: 0 | AY90: 0 | AZ90: 0 | BA90: 0 | BB90: 0 | BC90: 0
A91: ='FULL VIEW'!H70 -> 2074 | C91: 0 | D91: 0 | E91: 0 | F91: 0 | G91: 0 | H91: 0 | J91: 0 | K91: 0 | L91: 0 | M91: 0 | O91: 0 | P91: 0 | Q91: 0 | R91: 0 | T91: 0 | U91: 0 | V91: 0 | W91: 0 | Y91: 0 | Z91: 0 | AA91: 0 | AB91: 0 | AD91: 0 | AE91: 0 | AF91: 0 | AG91: 0 | AI91: 0 | AJ91: 0 | AK91: 0 | AL91: 0 | AN91: 0 | AO91: 0 | AP91: 0 | AQ91: 0 | AS91: 0 | AU91: 0 | AV91: 0 | AW91: 0 | AX91: 0 | AY91: 0 | AZ91: 0 | BA91: 0 | BB91: 0 | BC91: 0
A92: ='FULL VIEW'!H71 -> 2075 | C92: 0 | D92: 0 | E92: 0 | F92: 0 | G92: 0 | H92: 0 | J92: 0 | K92: 0 | L92: 0 | M92: 0 | O92: 0 | P92: 0 | Q92: 0 | R92: 0 | T92: 0 | U92: 0 | V92: 0 | W92: 0 | Y92: 0 | Z92: 0 | AA92: 0 | AB92: 0 | AD92: 0 | AE92: 0 | AF92: 0 | AG92: 0 | AI92: 0 | AJ92: 0 | AK92: 0 | AL92: 0 | AN92: 0 | AO92: 0 | AP92: 0 | AQ92: 0 | AS92: 0 | AU92: 0 | AV92: 0 | AW92: 0 | AX92: 0 | AY92: 0 | AZ92: 0 | BA92: 0 | BB92: 0 | BC92: 0
A93: ='FULL VIEW'!H72 -> 2076 | C93: 0 | D93: 0 | E93: 0 | F93: =IF($A93=E$24,E92-G92+H92,0) -> 0 | G93: 0 | H93: 0 | J93: 0 | K93: =IF($A93=J$24,J92-L92+M92,0) -> 0 | L93: 0 | M93: 0 | O93: 0 | P93: =IF($A93=O$24,O92-Q92+R92,0) -> 0 | Q93: 0 | R93: 0 | T93: 0 | U93: =IF($A93=T$24,T92-V92+W92,0) -> 0 | V93: 0 | W93: 0 | Y93: 0 | Z93: =IF($A93=Y$24,Y92-AA92+AB92,0) -> 0 | AA93: 0 | AB93: 0 | AD93: 0 | AE93: =IF($A93=AD$24,AD92-AF92+AG92,0) -> 0 | AF93: 0 | AG93: 0 | AI93: 0 | AJ93: =IF($A93=AI$24,AI92-AK92+AL92,0) -> 0 | AK93: 0 | AL93: 0 | AN93: 0 | AO93: =IF($A93=AN$24,AN92-AP92+AQ92,0) -> 0 | AP93: 0 | AQ93: 0 | AS93: 0 | AU93: 0 | AV93: 0 | AW93: 0 | AX93: 0 | AY93: 0 | AZ93: 0 | BA93: 0 | BB93: 0 | BC93: 0

Sheet CF ASSUMPTIONS+
B1: ='GENERAL ASSUMPTIONS'!C10 -> BETA 05142017 - FOR TESTING ONLY | N1: ='[1]INCOME TAXES'!G37 ->  | P1: ='[1]INCOME TAXES'!H37 ->  | Q1: =P1 ->  | AW1: =AV1 -> 
N2: client 1 - tax $$ over threshold | P2: =IF(SUM(P20:P23)>'[1]INCOME TAXES'!$I$37,(SUM(P20:P23)-'[1]INCOME TAXES'!$I$37)*P1,0)*IF('[1]GENERAL ASSUMPTIONS'!$C$34="m",1,0) ->  | Q2: =IF(SUM(Q20:Q23)>'[1]INCOME TAXES'!$I$37,(SUM(Q20:Q23)-'[1]INCOME TAXES'!$I$37)*Q1,0)*IF('[1]GENERAL ASSUMPTIONS'!$C$34="m",1,0) ->  | R2: =IF(SUM(R20:R23)>'[1]INCOME TAXES'!$I$37,(SUM(R20:R23)-'[1]INCOME TAXES'!$I$37)*R1,0)*IF('[1]GENERAL ASSUMPTIONS'!$C$34="m",1,0) ->  | S2: =IF(SUM(S20:S23)>'[1]INCOME TAXES'!$I$37,(SUM(S20:S23)-'[1]INCOME TAXES'!$I$37)*S1,0)*IF('[1]GENERAL ASSUMPTIONS'!$C$34="m",1,0) ->  | T2: =IF(SUM(T20:T23)>'[1]INCOME TAXES'!$I$37,(SUM(T20:T23)-'[1]INCOME TAXES'!$I$37)*T1,0)*IF('[1]GENERAL ASSUMPTIONS'!$C$34="m",1,0) ->  | U2: =IF(SUM(U20:U23)>'[1]INCOME TAXES'!$I$37,(SUM(U20:U23)-'[1]INCOME TAXES'!$I$37)*U1,0)*IF('[1]GENERAL ASSUMPTIONS'!$C$34="m",1,0) ->  | V2: =IF(SUM(V20:V23)>'[1]INCOME TAXES'!$I$37,(SUM(V20:V23)-'[1]INCOME TAXES'!$I$37)*V1,0)*IF('[1]GENERAL ASSUMPTIONS'!$C$34="m",1,0) ->  | W2: =IF(SUM(W20:W23)>'[1]INCOME TAXES'!$I$37,(SUM(W20:W23)-'[1]INCOME TAXES'!$I$37)*W1,0)*IF('[1]GENERAL ASSUMPTIONS'!$C$34="m",1,0) ->  | X2: =IF(SUM(X20:X23)>'[1]INCOME TAXES'!$I$37,(SUM(X20:X23)-'[1]INCOME TAXES'!$I$37)*X1,0)*IF('[1]GENERAL ASSUMPTIONS'!$C$34="m",1,0) ->  | Y2: =IF(SUM(Y20:Y23)>'[1]INCOME TAXES'!$I$37,(SUM(Y20:Y23)-'[1]INCOME TAXES'!$I$37)*Y1,0)*IF('[1]GENERAL ASSUMPTIONS'!$C$34="m",1,0) ->  | Z2: =IF(SUM(Z20:Z23)>'[1]INCOME TAXES'!$I$37,(SUM(Z20:Z23)-'[1]INCOME TAXES'!$I$37)*Z1,0)*IF('[1]GENERAL ASSUMPTIONS'!$C$34="m",1,0) ->  | AA2: =IF(SUM(AA20:AA23)>'[1]INCOME TAXES'!$I$37,(SUM(AA20:AA23)-'[1]INCOME TAXES'!$I$37)*AA1,0)*IF('[1]GENERAL ASSUMPTIONS'!$C$34="m",1,0) ->  | AB2: =IF(SUM(AB20:AB23)>'[1]INCOME TAXES'!$I$37,(SUM(AB20:AB23)-'[1]INCOME TAXES'!$I$37)*AB1,0)*IF('[1]GENERAL ASSUMPTIONS'!$C$34="m",1,0) ->  | AC2: =IF(SUM(AC20:AC23)>'[1]INCOME TAXES'!$I$37,(SUM(AC20:AC23)-'[1]INCOME TAXES'!$I$37)*AC1,0)*IF('[1]GENERAL ASSUMPTIONS'!$C$34="m",1,0) ->  | AD2: =IF(SUM(AD20:AD23)>'[1]INCOME TAXES'!$I$37,(SUM(AD20:AD23)-'[1]INCOME TAXES'!$I$37)*AD1,0)*IF('[1]GENERAL ASSUMPTIONS'!$C$34="m",1,0) ->  | AE2: =IF(SUM(AE20:AE23)>'[1]INCOME TAXES'!$I$37,(SUM(AE20:AE23)-'[1]INCOME TAXES'!$I$37)*AE1,0)*IF('[1]GENERAL ASSUMPTIONS'!$C$34="m",1,0) ->  | AF2: =IF(SUM(AF20:AF23)>'[1]INCOME TAXES'!$I$37,(SUM(AF20:AF23)-'[1]INCOME TAXES'!$I$37)*AF1,0)*IF('[1]GENERAL ASSUMPTIONS'!$C$34="m",1,0) ->  | AG2: =IF(SUM(AG20:AG23)>'[1]INCOME TAXES'!$I$37,(SUM(AG20:AG23)-'[1]INCOME TAXES'!$I$37)*AG1,0)*IF('[1]GENERAL ASSUMPTIONS'!$C$34="m",1,0) ->  | AH2: =IF(SUM(AH20:AH23)>'[1]INCOME TAXES'!$I$37,(SUM(AH20:AH23)-'[1]INCOME TAXES'!$I$37)*AH1,0)*IF('[1]GENERAL ASSUMPTIONS'!$C$34="m",1,0) ->  | AI2: =IF(SUM(AI20:AI23)>'[1]INCOME TAXES'!$I$37,(SUM(AI20:AI23)-'[1]INCOME TAXES'!$I$37)*AI1,0)*IF('[1]GENERAL ASSUMPTIONS'!$C$34="m",1,0) ->  | AJ2: =IF(SUM(AJ20:AJ23)>'[1]INCOME TAXES'!$I$37,(SUM(AJ20:AJ23)-'[1]INCOME TAXES'!$I$37)*AJ1,0)*IF('[1]GENERAL ASSUMPTIONS'!$C$34="m",1,0) ->  | AK2: =IF(SUM(AK20:AK23)>'[1]INCOME TAXES'!$I$37,(SUM(AK20:AK23)-'[1]INCOME TAXES'!$I$37)*AK1,0)*IF('[1]GENERAL ASSUMPTIONS'!$C$34="m",1,0) ->  | AL2: =IF(SUM(AL20:AL23)>'[1]INCOME TAXES'!$I$37,(SUM(AL20:AL23)-'[1]INCOME TAXES'!$I$37)*AL1,0)*IF('[1]GENERAL ASSUMPTIONS'!$C$34="m",1,0) ->  | AM2: =IF(SUM(AM20:AM23)>'[1]INCOME TAXES'!$I$37,(SUM(AM20:AM23)-'[1]INCOME TAXES'!$I$37)*AM1,0)*IF('[1]GENERAL ASSUMPTIONS'!$C$34="m",1,0) ->  | AN2: =IF(SUM(AN20:AN23)>'[1]INCOME TAXES'!$I$37,(SUM(AN20:AN23)-'[1]INCOME TAXES'!$I$37)*AN1,0)*IF('[1]GENERAL ASSUMPTIONS'!$C$34="m",1,0) ->  | AO2: =IF(SUM(AO20:AO23)>'[1]INCOME TAXES'!$I$37,(SUM(AO20:AO23)-'[1]INCOME TAXES'!$I$37)*AO1,0)*IF('[1]GENERAL ASSUMPTIONS'!$C$34="m",1,0) ->  | AP2: =IF(SUM(AP20:AP23)>'[1]INCOME TAXES'!$I$37,(SUM(AP20:AP23)-'[1]INCOME TAXES'!$I$37)*AP1,0)*IF('[1]GENERAL ASSUMPTIONS'!$C$34="m",1,0) ->  | AQ2: =IF(SUM(AQ20:AQ23)>'[1]INCOME TAXES'!$I$37,(SUM(AQ20:AQ23)-'[1]INCOME TAXES'!$I$37)*AQ1,0)*IF('[1]GENERAL ASSUMPTIONS'!$C$34="m",1,0) ->  | AR2: =IF(SUM(AR20:AR23)>'[1]INCOME TAXES'!$I$37,(SUM(AR20:AR23)-'[1]INCOME TAXES'!$I$37)*AR1,0)*IF('[1]GENERAL ASSUMPTIONS'!$C$34="m",1,0) ->  | AS2: =IF(SUM(AS20:AS23)>'[1]INCOME TAXES'!$I$37,(SUM(AS20:AS23)-'[1]INCOME TAXES'!$I$37)*AS1,0)*IF('[1]GENERAL ASSUMPTIONS'!$C$34="m",1,0) ->  | AT2: =IF(SUM(AT20:AT23)>'[1]INCOME TAXES'!$I$37,(SUM(AT20:AT23)-'[1]INCOME TAXES'!$I$37)*AT1,0)*IF('[1]GENERAL ASSUMPTIONS'!$C$34="m",1,0) ->  | AU2: =IF(SUM(AU20:AU23)>'[1]INCOME TAXES'!$I$37,(SUM(AU20:AU23)-'[1]INCOME TAXES'!$I$37)*AU1,0)*IF('[1]GENERAL ASSUMPTIONS'!$C$34="m",1,0) ->  | AV2: =IF(SUM(AV20:AV23)>'[1]INCOME TAXES'!$I$37,(SUM(AV20:AV23)-'[1]INCOME TAXES'!$I$37)*AV1,0)*IF('[1]GENERAL ASSUMPTIONS'!$C$34="m",1,0) ->  | AW2: =IF(SUM(AW20:AW23)>'[1]INCOME TAXES'!$I$37,(SUM(AW20:AW23)-'[1]INCOME TAXES'!$I$37)*AW1,0)*IF('[1]GENERAL ASSUMPTIONS'!$C$34="m",1,0) ->  | AX2: =IF(SUM(AX20:AX23)>'[1]INCOME TAXES'!$I$37,(SUM(AX20:AX23)-'[1]INCOME TAXES'!$I$37)*AX1,0)*IF('[1]GENERAL ASSUMPTIONS'!$C$34="m",1,0) ->  | AY2: =IF(SUM(AY20:AY23)>'[1]INCOME TAXES'!$I$37,(SUM(AY20:AY23)-'[1]INCOME TAXES'!$I$37)*AY1,0)*IF('[1]GENERAL ASSUMPTIONS'!$C$34="m",1,0) ->  | AZ2: =IF(SUM(AZ20:AZ23)>'[1]INCOME TAXES'!$I$37,(SUM(AZ20:AZ23)-'[1]INCOME TAXES'!$I$37)*AZ1,0)*IF('[1]GENERAL ASSUMPTIONS'!$C$34="m",1,0) ->  | BA2: =IF(SUM(BA20:BA23)>'[1]INCOME TAXES'!$I$37,(SUM(BA20:BA23)-'[1]INCOME TAXES'!$I$37)*BA1,0)*IF('[1]GENERAL ASSUMPTIONS'!$C$34="m",1,0) ->  | BB2: =IF(SUM(BB20:BB23)>'[1]INCOME TAXES'!$I$37,(SUM(BB20:BB23)-'[1]INCOME TAXES'!$I$37)*BB1,0)*IF('[1]GENERAL ASSUMPTIONS'!$C$34="m",1,0) ->  | BC2: =IF(SUM(BC20:BC23)>'[1]INCOME TAXES'!$I$37,(SUM(BC20:BC23)-'[1]INCOME TAXES'!$I$37)*BC1,0)*IF('[1]GENERAL ASSUMPTIONS'!$C$34="m",1,0) ->  | BD2: =IF(SUM(BD20:BD23)>'[1]INCOME TAXES'!$I$37,(SUM(BD20:BD23)-'[1]INCOME TAXES'!$I$37)*BD1,0)*IF('[1]GENERAL ASSUMPTIONS'!$C$34="m",1,0) ->  | BE2: =IF(SUM(BE20:BE23)>'[1]INCOME TAXES'!$I$37,(SUM(BE20:BE23)-'[1]INCOME TAXES'!$I$37)*BE1,0)*IF('[1]GENERAL ASSUMPTIONS'!$C$34="m",1,0) ->  | BF2: =IF(SUM(BF20:BF23)>'[1]INCOME TAXES'!$I$37,(SUM(BF20:BF23)-'[1]INCOME TAXES'!$I$37)*BF1,0)*IF('[1]GENERAL ASSUMPTIONS'!$C$34="m",1,0) ->  | BG2: =IF(SUM(BG20:BG23)>'[1]INCOME TAXES'!$I$37,(SUM(BG20:BG23)-'[1]INCOME TAXES'!$I$37)*BG1,0)*IF('[1]GENERAL ASSUMPTIONS'!$C$34="m",1,0) ->  | BH2: =IF(SUM(BH20:BH23)>'[1]INCOME TAXES'!$I$37,(SUM(BH20:BH23)-'[1]INCOME TAXES'!$I$37)*BH1,0)*IF('[1]GENERAL ASSUMPTIONS'!$C$34="m",1,0) ->  | BI2: =IF(SUM(BI20:BI23)>'[1]INCOME TAXES'!$I$37,(SUM(BI20:BI23)-'[1]INCOME TAXES'!$I$37)*BI1,0)*IF('[1]GENERAL ASSUMPTIONS'!$C$34="m",1,0) ->  | BJ2: =IF(SUM(BJ20:BJ23)>'[1]INCOME TAXES'!$I$37,(SUM(BJ20:BJ23)-'[1]INCOME TAXES'!$I$37)*BJ1,0)*IF('[1]GENERAL ASSUMPTIONS'!$C$34="m",1,0) ->  | BK2: =IF(SUM(BK20:BK23)>'[1]INCOME TAXES'!$I$37,(SUM(BK20:BK23)-'[1]INCOME TAXES'!$I$37)*BK1,0)*IF('[1]GENERAL ASSUMPTIONS'!$C$34="m",1,0) ->  | BL2: =IF(SUM(BL20:BL23)>'[1]INCOME TAXES'!$I$37,(SUM(BL20:BL23)-'[1]INCOME TAXES'!$I$37)*BL1,0)*IF('[1]GENERAL ASSUMPTIONS'!$C$34="m",1,0) ->  | BM2: =IF(SUM(BM20:BM23)>'[1]INCOME TAXES'!$I$37,(SUM(BM20:BM23)-'[1]INCOME TAXES'!$I$37)*BM1,0)*IF('[1]GENERAL ASSUMPTIONS'!$C$34="m",1,0) ->  | BN2: =IF(SUM(BN20:BN23)>'[1]INCOME TAXES'!$I$37,(SUM(BN20:BN23)-'[1]INCOME TAXES'!$I$37)*BN1,0)*IF('[1]GENERAL ASSUMPTIONS'!$C$34="m",1,0) ->  | BO2: =IF(SUM(BO20:BO23)>'[1]INCOME TAXES'!$I$37,(SUM(BO20:BO23)-'[1]INCOME TAXES'!$I$37)*BO1,0)*IF('[1]GENERAL ASSUMPTIONS'!$C$34="m",1,0) ->  | BP2: =IF(SUM(BP20:BP23)>'[1]INCOME TAXES'!$I$37,(SUM(BP20:BP23)-'[1]INCOME TAXES'!$I$37)*BP1,0)*IF('[1]GENERAL ASSUMPTIONS'!$C$34="m",1,0) ->  | BQ2: =IF(SUM(BQ20:BQ23)>'[1]INCOME TAXES'!$I$37,(SUM(BQ20:BQ23)-'[1]INCOME TAXES'!$I$37)*BQ1,0)*IF('[1]GENERAL ASSUMPTIONS'!$C$34="m",1,0) ->  | BR2: =IF(SUM(BR20:BR23)>'[1]INCOME TAXES'!$I$37,(SUM(BR20:BR23)-'[1]INCOME TAXES'!$I$37)*BR1,0)*IF('[1]GENERAL ASSUMPTIONS'!$C$34="m",1,0) ->  | BS2: =IF(SUM(BS20:BS23)>'[1]INCOME TAXES'!$I$37,(SUM(BS20:BS23)-'[1]INCOME TAXES'!$I$37)*BS1,0)*IF('[1]GENERAL ASSUMPTIONS'!$C$34="m",1,0) ->  | BT2: =IF(SUM(BT20:BT23)>'[1]INCOME TAXES'!$I$37,(SUM(BT20:BT23)-'[1]INCOME TAXES'!$I$37)*BT1,0)*IF('[1]GENERAL ASSUMPTIONS'!$C$34="m",1,0) ->  | BU2: =IF(SUM(BU20:BU23)>'[1]INCOME TAXES'!$I$37,(SUM(BU20:BU23)-'[1]INCOME TAXES'!$I$37)*BU1,0)*IF('[1]GENERAL ASSUMPTIONS'!$C$34="m",1,0) ->  | BV2: =IF(SUM(BV20:BV23)>'[1]INCOME TAXES'!$I$37,(SUM(BV20:BV23)-'[1]INCOME TAXES'!$I$37)*BV1,0)*IF('[1]GENERAL ASSUMPTIONS'!$C$34="m",1,0) ->  | BW2: =IF(SUM(BW20:BW23)>'[1]INCOME TAXES'!$I$37,(SUM(BW20:BW23)-'[1]INCOME TAXES'!$I$37)*BW1,0)*IF('[1]GENERAL ASSUMPTIONS'!$C$34="m",1,0) ->  | BX2: =IF(SUM(BX20:BX23)>'[1]INCOME TAXES'!$I$37,(SUM(BX20:BX23)-'[1]INCOME TAXES'!$I$37)*BX1,0)*IF('[1]GENERAL ASSUMPTIONS'!$C$34="m",1,0) -> 
N3: client 2 - tax $$ over threshold | P3: =IF(SUM(P24:P27)>'[1]INCOME TAXES'!$I$37,(SUM(P24:P27)-'[1]INCOME TAXES'!$I$37)*P1,0)*IF('[1]GENERAL ASSUMPTIONS'!$C$34="m",1,0) ->  | Q3: =IF(SUM(Q24:Q27)>'[1]INCOME TAXES'!$I$37,(SUM(Q24:Q27)-'[1]INCOME TAXES'!$I$37)*Q1,0)*IF('[1]GENERAL ASSUMPTIONS'!$C$34="m",1,0) ->  | R3: =IF(SUM(R24:R27)>'[1]INCOME TAXES'!$I$37,(SUM(R24:R27)-'[1]INCOME TAXES'!$I$37)*R1,0)*IF('[1]GENERAL ASSUMPTIONS'!$C$34="m",1,0) ->  | S3: =IF(SUM(S24:S27)>'[1]INCOME TAXES'!$I$37,(SUM(S24:S27)-'[1]INCOME TAXES'!$I$37)*S1,0)*IF('[1]GENERAL ASSUMPTIONS'!$C$34="m",1,0) ->  | T3: =IF(SUM(T24:T27)>'[1]INCOME TAXES'!$I$37,(SUM(T24:T27)-'[1]INCOME TAXES'!$I$37)*T1,0)*IF('[1]GENERAL ASSUMPTIONS'!$C$34="m",1,0) ->  | U3: =IF(SUM(U24:U27)>'[1]INCOME TAXES'!$I$37,(SUM(U24:U27)-'[1]INCOME TAXES'!$I$37)*U1,0)*IF('[1]GENERAL ASSUMPTIONS'!$C$34="m",1,0) ->  | V3: =IF(SUM(V24:V27)>'[1]INCOME TAXES'!$I$37,(SUM(V24:V27)-'[1]INCOME TAXES'!$I$37)*V1,0)*IF('[1]GENERAL ASSUMPTIONS'!$C$34="m",1,0) ->  | W3: =IF(SUM(W24:W27)>'[1]INCOME TAXES'!$I$37,(SUM(W24:W27)-'[1]INCOME TAXES'!$I$37)*W1,0)*IF('[1]GENERAL ASSUMPTIONS'!$C$34="m",1,0) ->  | X3: =IF(SUM(X24:X27)>'[1]INCOME TAXES'!$I$37,(SUM(X24:X27)-'[1]INCOME TAXES'!$I$37)*X1,0)*IF('[1]GENERAL ASSUMPTIONS'!$C$34="m",1,0) ->  | Y3: =IF(SUM(Y24:Y27)>'[1]INCOME TAXES'!$I$37,(SUM(Y24:Y27)-'[1]INCOME TAXES'!$I$37)*Y1,0)*IF('[1]GENERAL ASSUMPTIONS'!$C$34="m",1,0) ->  | Z3: =IF(SUM(Z24:Z27)>'[1]INCOME TAXES'!$I$37,(SUM(Z24:Z27)-'[1]INCOME TAXES'!$I$37)*Z1,0)*IF('[1]GENERAL ASSUMPTIONS'!$C$34="m",1,0) ->  | AA3: =IF(SUM(AA24:AA27)>'[1]INCOME TAXES'!$I$37,(SUM(AA24:AA27)-'[1]INCOME TAXES'!$I$37)*AA1,0)*IF('[1]GENERAL ASSUMPTIONS'!$C$34="m",1,0) ->  | AB3: =IF(SUM(AB24:AB27)>'[1]INCOME TAXES'!$I$37,(SUM(AB24:AB27)-'[1]INCOME TAXES'!$I$37)*AB1,0)*IF('[1]GENERAL ASSUMPTIONS'!$C$34="m",1,0) ->  | AC3: =IF(SUM(AC24:AC27)>'[1]INCOME TAXES'!$I$37,(SUM(AC24:AC27)-'[1]INCOME TAXES'!$I$37)*AC1,0)*IF('[1]GENERAL ASSUMPTIONS'!$C$34="m",1,0) ->  | AD3: =IF(SUM(AD24:AD27)>'[1]INCOME TAXES'!$I$37,(SUM(AD24:AD27)-'[1]INCOME TAXES'!$I$37)*AD1,0)*IF('[1]GENERAL ASSUMPTIONS'!$C$34="m",1,0) ->  | AE3: =IF(SUM(AE24:AE27)>'[1]INCOME TAXES'!$I$37,(SUM(AE24:AE27)-'[1]INCOME TAXES'!$I$37)*AE1,0)*IF('[1]GENERAL ASSUMPTIONS'!$C$34="m",1,0) ->  | AF3: =IF(SUM(AF24:AF27)>'[1]INCOME TAXES'!$I$37,(SUM(AF24:AF27)-'[1]INCOME TAXES'!$I$37)*AF1,0)*IF('[1]GENERAL ASSUMPTIONS'!$C$34="m",1,0) ->  | AG3: =IF(SUM(AG24:AG27)>'[1]INCOME TAXES'!$I$37,(SUM(AG24:AG27)-'[1]INCOME TAXES'!$I$37)*AG1,0)*IF('[1]GENERAL ASSUMPTIONS'!$C$34="m",1,0) ->  | AH3: =IF(SUM(AH24:AH27)>'[1]INCOME TAXES'!$I$37,(SUM(AH24:AH27)-'[1]INCOME TAXES'!$I$37)*AH1,0)*IF('[1]GENERAL ASSUMPTIONS'!$C$34="m",1,0) ->  | AI3: =IF(SUM(AI24:AI27)>'[1]INCOME TAXES'!$I$37,(SUM(AI24:AI27)-'[1]INCOME TAXES'!$I$37)*AI1,0)*IF('[1]GENERAL ASSUMPTIONS'!$C$34="m",1,0) ->  | AJ3: =IF(SUM(AJ24:AJ27)>'[1]INCOME TAXES'!$I$37,(SUM(AJ24:AJ27)-'[1]INCOME TAXES'!$I$37)*AJ1,0)*IF('[1]GENERAL ASSUMPTIONS'!$C$34="m",1,0) ->  | AK3: =IF(SUM(AK24:AK27)>'[1]INCOME TAXES'!$I$37,(SUM(AK24:AK27)-'[1]INCOME TAXES'!$I$37)*AK1,0)*IF('[1]GENERAL ASSUMPTIONS'!$C$34="m",1,0) ->  | AL3: =IF(SUM(AL24:AL27)>'[1]INCOME TAXES'!$I$37,(SUM(AL24:AL27)-'[1]INCOME TAXES'!$I$37)*AL1,0)*IF('[1]GENERAL ASSUMPTIONS'!$C$34="m",1,0) ->  | AM3: =IF(SUM(AM24:AM27)>'[1]INCOME TAXES'!$I$37,(SUM(AM24:AM27)-'[1]INCOME TAXES'!$I$37)*AM1,0)*IF('[1]GENERAL ASSUMPTIONS'!$C$34="m",1,0) ->  | AN3: =IF(SUM(AN24:AN27)>'[1]INCOME TAXES'!$I$37,(SUM(AN24:AN27)-'[1]INCOME TAXES'!$I$37)*AN1,0)*IF('[1]GENERAL ASSUMPTIONS'!$C$34="m",1,0) ->  | AO3: =IF(SUM(AO24:AO27)>'[1]INCOME TAXES'!$I$37,(SUM(AO24:AO27)-'[1]INCOME TAXES'!$I$37)*AO1,0)*IF('[1]GENERAL ASSUMPTIONS'!$C$34="m",1,0) ->  | AP3: =IF(SUM(AP24:AP27)>'[1]INCOME TAXES'!$I$37,(SUM(AP24:AP27)-'[1]INCOME TAXES'!$I$37)*AP1,0)*IF('[1]GENERAL ASSUMPTIONS'!$C$34="m",1,0) ->  | AQ3: =IF(SUM(AQ24:AQ27)>'[1]INCOME TAXES'!$I$37,(SUM(AQ24:AQ27)-'[1]INCOME TAXES'!$I$37)*AQ1,0)*IF('[1]GENERAL ASSUMPTIONS'!$C$34="m",1,0) ->  | AR3: =IF(SUM(AR24:AR27)>'[1]INCOME TAXES'!$I$37,(SUM(AR24:AR27)-'[1]INCOME TAXES'!$I$37)*AR1,0)*IF('[1]GENERAL ASSUMPTIONS'!$C$34="m",1,0) ->  | AS3: =IF(SUM(AS24:AS27)>'[1]INCOME TAXES'!$I$37,(SUM(AS24:AS27)-'[1]INCOME TAXES'!$I$37)*AS1,0)*IF('[1]GENERAL ASSUMPTIONS'!$C$34="m",1,0) ->  | AT3: =IF(SUM(AT24:AT27)>'[1]INCOME TAXES'!$I$37,(SUM(AT24:AT27)-'[1]INCOME TAXES'!$I$37)*AT1,0)*IF('[1]GENERAL ASSUMPTIONS'!$C$34="m",1,0) ->  | AU3: =IF(SUM(AU24:AU27)>'[1]INCOME TAXES'!$I$37,(SUM(AU24:AU27)-'[1]INCOME TAXES'!$I$37)*AU1,0)*IF('[1]GENERAL ASSUMPTIONS'!$C$34="m",1,0) ->  | AV3: =IF(SUM(AV24:AV27)>'[1]INCOME TAXES'!$I$37,(SUM(AV24:AV27)-'[1]INCOME TAXES'!$I$37)*AV1,0)*IF('[1]GENERAL ASSUMPTIONS'!$C$34="m",1,0) ->  | AW3: =IF(SUM(AW24:AW27)>'[1]INCOME TAXES'!$I$37,(SUM(AW24:AW27)-'[1]INCOME TAXES'!$I$37)*AW1,0)*IF('[1]GENERAL ASSUMPTIONS'!$C$34="m",1,0) ->  | AX3: =IF(SUM(AX24:AX27)>'[1]INCOME TAXES'!$I$37,(SUM(AX24:AX27)-'[1]INCOME TAXES'!$I$37)*AX1,0)*IF('[1]GENERAL ASSUMPTIONS'!$C$34="m",1,0) ->  | AY3: =IF(SUM(AY24:AY27)>'[1]INCOME TAXES'!$I$37,(SUM(AY24:AY27)-'[1]INCOME TAXES'!$I$37)*AY1,0)*IF('[1]GENERAL ASSUMPTIONS'!$C$34="m",1,0) ->  | AZ3: =IF(SUM(AZ24:AZ27)>'[1]INCOME TAXES'!$I$37,(SUM(AZ24:AZ27)-'[1]INCOME TAXES'!$I$37)*AZ1,0)*IF('[1]GENERAL ASSUMPTIONS'!$C$34="m",1,0) ->  | BA3: =IF(SUM(BA24:BA27)>'[1]INCOME TAXES'!$I$37,(SUM(BA24:BA27)-'[1]INCOME TAXES'!$I$37)*BA1,0)*IF('[1]GENERAL ASSUMPTIONS'!$C$34="m",1,0) ->  | BB3: =IF(SUM(BB24:BB27)>'[1]INCOME TAXES'!$I$37,(SUM(BB24:BB27)-'[1]INCOME TAXES'!$I$37)*BB1,0)*IF('[1]GENERAL ASSUMPTIONS'!$C$34="m",1,0) ->  | BC3: =IF(SUM(BC24:BC27)>'[1]INCOME TAXES'!$I$37,(SUM(BC24:BC27)-'[1]INCOME TAXES'!$I$37)*BC1,0)*IF('[1]GENERAL ASSUMPTIONS'!$C$34="m",1,0) ->  | BD3: =IF(SUM(BD24:BD27)>'[1]INCOME TAXES'!$I$37,(SUM(BD24:BD27)-'[1]INCOME TAXES'!$I$37)*BD1,0)*IF('[1]GENERAL ASSUMPTIONS'!$C$34="m",1,0) ->  | BE3: =IF(SUM(BE24:BE27)>'[1]INCOME TAXES'!$I$37,(SUM(BE24:BE27)-'[1]INCOME TAXES'!$I$37)*BE1,0)*IF('[1]GENERAL ASSUMPTIONS'!$C$34="m",1,0) ->  | BF3: =IF(SUM(BF24:BF27)>'[1]INCOME TAXES'!$I$37,(SUM(BF24:BF27)-'[1]INCOME TAXES'!$I$37)*BF1,0)*IF('[1]GENERAL ASSUMPTIONS'!$C$34="m",1,0) ->  | BG3: =IF(SUM(BG24:BG27)>'[1]INCOME TAXES'!$I$37,(SUM(BG24:BG27)-'[1]INCOME TAXES'!$I$37)*BG1,0)*IF('[1]GENERAL ASSUMPTIONS'!$C$34="m",1,0) ->  | BH3: =IF(SUM(BH24:BH27)>'[1]INCOME TAXES'!$I$37,(SUM(BH24:BH27)-'[1]INCOME TAXES'!$I$37)*BH1,0)*IF('[1]GENERAL ASSUMPTIONS'!$C$34="m",1,0) ->  | BI3: =IF(SUM(BI24:BI27)>'[1]INCOME TAXES'!$I$37,(SUM(BI24:BI27)-'[1]INCOME TAXES'!$I$37)*BI1,0)*IF('[1]GENERAL ASSUMPTIONS'!$C$34="m",1,0) ->  | BJ3: =IF(SUM(BJ24:BJ27)>'[1]INCOME TAXES'!$I$37,(SUM(BJ24:BJ27)-'[1]INCOME TAXES'!$I$37)*BJ1,0)*IF('[1]GENERAL ASSUMPTIONS'!$C$34="m",1,0) ->  | BK3: =IF(SUM(BK24:BK27)>'[1]INCOME TAXES'!$I$37,(SUM(BK24:BK27)-'[1]INCOME TAXES'!$I$37)*BK1,0)*IF('[1]GENERAL ASSUMPTIONS'!$C$34="m",1,0) ->  | BL3: =IF(SUM(BL24:BL27)>'[1]INCOME TAXES'!$I$37,(SUM(BL24:BL27)-'[1]INCOME TAXES'!$I$37)*BL1,0)*IF('[1]GENERAL ASSUMPTIONS'!$C$34="m",1,0) ->  | BM3: =IF(SUM(BM24:BM27)>'[1]INCOME TAXES'!$I$37,(SUM(BM24:BM27)-'[1]INCOME TAXES'!$I$37)*BM1,0)*IF('[1]GENERAL ASSUMPTIONS'!$C$34="m",1,0) ->  | BN3: =IF(SUM(BN24:BN27)>'[1]INCOME TAXES'!$I$37,(SUM(BN24:BN27)-'[1]INCOME TAXES'!$I$37)*BN1,0)*IF('[1]GENERAL ASSUMPTIONS'!$C$34="m",1,0) ->  | BO3: =IF(SUM(BO24:BO27)>'[1]INCOME TAXES'!$I$37,(SUM(BO24:BO27)-'[1]INCOME TAXES'!$I$37)*BO1,0)*IF('[1]GENERAL ASSUMPTIONS'!$C$34="m",1,0) ->  | BP3: =IF(SUM(BP24:BP27)>'[1]INCOME TAXES'!$I$37,(SUM(BP24:BP27)-'[1]INCOME TAXES'!$I$37)*BP1,0)*IF('[1]GENERAL ASSUMPTIONS'!$C$34="m",1,0) ->  | BQ3: =IF(SUM(BQ24:BQ27)>'[1]INCOME TAXES'!$I$37,(SUM(BQ24:BQ27)-'[1]INCOME TAXES'!$I$37)*BQ1,0)*IF('[1]GENERAL ASSUMPTIONS'!$C$34="m",1,0) ->  | BR3: =IF(SUM(BR24:BR27)>'[1]INCOME TAXES'!$I$37,(SUM(BR24:BR27)-'[1]INCOME TAXES'!$I$37)*BR1,0)*IF('[1]GENERAL ASSUMPTIONS'!$C$34="m",1,0) ->  | BS3: =IF(SUM(BS24:BS27)>'[1]INCOME TAXES'!$I$37,(SUM(BS24:BS27)-'[1]INCOME TAXES'!$I$37)*BS1,0)*IF('[1]GENERAL ASSUMPTIONS'!$C$34="m",1,0) ->  | BT3: =IF(SUM(BT24:BT27)>'[1]INCOME TAXES'!$I$37,(SUM(BT24:BT27)-'[1]INCOME TAXES'!$I$37)*BT1,0)*IF('[1]GENERAL ASSUMPTIONS'!$C$34="m",1,0) ->  | BU3: =IF(SUM(BU24:BU27)>'[1]INCOME TAXES'!$I$37,(SUM(BU24:BU27)-'[1]INCOME TAXES'!$I$37)*BU1,0)*IF('[1]GENERAL ASSUMPTIONS'!$C$34="m",1,0) ->  | BV3: =IF(SUM(BV24:BV27)>'[1]INCOME TAXES'!$I$37,(SUM(BV24:BV27)-'[1]INCOME TAXES'!$I$37)*BV1,0)*IF('[1]GENERAL ASSUMPTIONS'!$C$34="m",1,0) ->  | BW3: =IF(SUM(BW24:BW27)>'[1]INCOME TAXES'!$I$37,(SUM(BW24:BW27)-'[1]INCOME TAXES'!$I$37)*BW1,0)*IF('[1]GENERAL ASSUMPTIONS'!$C$34="m",1,0) ->  | BX3: =IF(SUM(BX24:BX27)>'[1]INCOME TAXES'!$I$37,(SUM(BX24:BX27)-'[1]INCOME TAXES'!$I$37)*BX1,0)*IF('[1]GENERAL ASSUMPTIONS'!$C$34="m",1,0) -> 
N4: ='[1]INCOME TAXES'!G36 ->  | P4: ='[1]INCOME TAXES'!H36 ->  | Q4: =P4 ->  | AW4: =AV4 -> 
N5: client 1 - tax $$ over threshold | P5: =IF(SUM(P20:P23)>'[1]INCOME TAXES'!$I$36,(SUM(P20:P23)-'[1]INCOME TAXES'!$I$36)*P4,0)*IF('[1]GENERAL ASSUMPTIONS'!$C$34="s",1,0) ->  | Q5: =IF(SUM(Q20:Q23)>'[1]INCOME TAXES'!$I$36,(SUM(Q20:Q23)-'[1]INCOME TAXES'!$I$36)*Q4,0)*IF('[1]GENERAL ASSUMPTIONS'!$C$34="s",1,0) ->  | R5: =IF(SUM(R20:R23)>'[1]INCOME TAXES'!$I$36,(SUM(R20:R23)-'[1]INCOME TAXES'!$I$36)*R4,0)*IF('[1]GENERAL ASSUMPTIONS'!$C$34="s",1,0) ->  | S5: =IF(SUM(S20:S23)>'[1]INCOME TAXES'!$I$36,(SUM(S20:S23)-'[1]INCOME TAXES'!$I$36)*S4,0)*IF('[1]GENERAL ASSUMPTIONS'!$C$34="s",1,0) ->  | T5: =IF(SUM(T20:T23)>'[1]INCOME TAXES'!$I$36,(SUM(T20:T23)-'[1]INCOME TAXES'!$I$36)*T4,0)*IF('[1]GENERAL ASSUMPTIONS'!$C$34="s",1,0) ->  | U5: =IF(SUM(U20:U23)>'[1]INCOME TAXES'!$I$36,(SUM(U20:U23)-'[1]INCOME TAXES'!$I$36)*U4,0)*IF('[1]GENERAL ASSUMPTIONS'!$C$34="s",1,0) ->  | V5: =IF(SUM(V20:V23)>'[1]INCOME TAXES'!$I$36,(SUM(V20:V23)-'[1]INCOME TAXES'!$I$36)*V4,0)*IF('[1]GENERAL ASSUMPTIONS'!$C$34="s",1,0) ->  | W5: =IF(SUM(W20:W23)>'[1]INCOME TAXES'!$I$36,(SUM(W20:W23)-'[1]INCOME TAXES'!$I$36)*W4,0)*IF('[1]GENERAL ASSUMPTIONS'!$C$34="s",1,0) ->  | X5: =IF(SUM(X20:X23)>'[1]INCOME TAXES'!$I$36,(SUM(X20:X23)-'[1]INCOME TAXES'!$I$36)*X4,0)*IF('[1]GENERAL ASSUMPTIONS'!$C$34="s",1,0) ->  | Y5: =IF(SUM(Y20:Y23)>'[1]INCOME TAXES'!$I$36,(SUM(Y20:Y23)-'[1]INCOME TAXES'!$I$36)*Y4,0)*IF('[1]GENERAL ASSUMPTIONS'!$C$34="s",1,0) ->  | Z5: =IF(SUM(Z20:Z23)>'[1]INCOME TAXES'!$I$36,(SUM(Z20:Z23)-'[1]INCOME TAXES'!$I$36)*Z4,0)*IF('[1]GENERAL ASSUMPTIONS'!$C$34="s",1,0) ->  | AA5: =IF(SUM(AA20:AA23)>'[1]INCOME TAXES'!$I$36,(SUM(AA20:AA23)-'[1]INCOME TAXES'!$I$36)*AA4,0)*IF('[1]GENERAL ASSUMPTIONS'!$C$34="s",1,0) ->  | AB5: =IF(SUM(AB20:AB23)>'[1]INCOME TAXES'!$I$36,(SUM(AB20:AB23)-'[1]INCOME TAXES'!$I$36)*AB4,0)*IF('[1]GENERAL ASSUMPTIONS'!$C$34="s",1,0) ->  | AC5: =IF(SUM(AC20:AC23)>'[1]INCOME TAXES'!$I$36,(SUM(AC20:AC23)-'[1]INCOME TAXES'!$I$36)*AC4,0)*IF('[1]GENERAL ASSUMPTIONS'!$C$34="s",1,0) ->  | AD5: =IF(SUM(AD20:AD23)>'[1]INCOME TAXES'!$I$36,(SUM(AD20:AD23)-'[1]INCOME TAXES'!$I$36)*AD4,0)*IF('[1]GENERAL ASSUMPTIONS'!$C$34="s",1,0) ->  | AE5: =IF(SUM(AE20:AE23)>'[1]INCOME TAXES'!$I$36,(SUM(AE20:AE23)-'[1]INCOME TAXES'!$I$36)*AE4,0)*IF('[1]GENERAL ASSUMPTIONS'!$C$34="s",1,0) ->  | AF5: =IF(SUM(AF20:AF23)>'[1]INCOME TAXES'!$I$36,(SUM(AF20:AF23)-'[1]INCOME TAXES'!$I$36)*AF4,0)*IF('[1]GENERAL ASSUMPTIONS'!$C$34="s",1,0) ->  | AG5: =IF(SUM(AG20:AG23)>'[1]INCOME TAXES'!$I$36,(SUM(AG20:AG23)-'[1]INCOME TAXES'!$I$36)*AG4,0)*IF('[1]GENERAL ASSUMPTIONS'!$C$34="s",1,0) ->  | AH5: =IF(SUM(AH20:AH23)>'[1]INCOME TAXES'!$I$36,(SUM(AH20:AH23)-'[1]INCOME TAXES'!$I$36)*AH4,0)*IF('[1]GENERAL ASSUMPTIONS'!$C$34="s",1,0) ->  | AI5: =IF(SUM(AI20:AI23)>'[1]INCOME TAXES'!$I$36,(SUM(AI20:AI23)-'[1]INCOME TAXES'!$I$36)*AI4,0)*IF('[1]GENERAL ASSUMPTIONS'!$C$34="s",1,0) ->  | AJ5: =IF(SUM(AJ20:AJ23)>'[1]INCOME TAXES'!$I$36,(SUM(AJ20:AJ23)-'[1]INCOME TAXES'!$I$36)*AJ4,0)*IF('[1]GENERAL ASSUMPTIONS'!$C$34="s",1,0) ->  | AK5: =IF(SUM(AK20:AK23)>'[1]INCOME TAXES'!$I$36,(SUM(AK20:AK23)-'[1]INCOME TAXES'!$I$36)*AK4,0)*IF('[1]GENERAL ASSUMPTIONS'!$C$34="s",1,0) ->  | AL5: =IF(SUM(AL20:AL23)>'[1]INCOME TAXES'!$I$36,(SUM(AL20:AL23)-'[1]INCOME TAXES'!$I$36)*AL4,0)*IF('[1]GENERAL ASSUMPTIONS'!$C$34="s",1,0) ->  | AM5: =IF(SUM(AM20:AM23)>'[1]INCOME TAXES'!$I$36,(SUM(AM20:AM23)-'[1]INCOME TAXES'!$I$36)*AM4,0)*IF('[1]GENERAL ASSUMPTIONS'!$C$34="s",1,0) ->  | AN5: =IF(SUM(AN20:AN23)>'[1]INCOME TAXES'!$I$36,(SUM(AN20:AN23)-'[1]INCOME TAXES'!$I$36)*AN4,0)*IF('[1]GENERAL ASSUMPTIONS'!$C$34="s",1,0) ->  | AO5: =IF(SUM(AO20:AO23)>'[1]INCOME TAXES'!$I$36,(SUM(AO20:AO23)-'[1]INCOME TAXES'!$I$36)*AO4,0)*IF('[1]GENERAL ASSUMPTIONS'!$C$34="s",1,0) ->  | AP5: =IF(SUM(AP20:AP23)>'[1]INCOME TAXES'!$I$36,(SUM(AP20:AP23)-'[1]INCOME TAXES'!$I$36)*AP4,0)*IF('[1]GENERAL ASSUMPTIONS'!$C$34="s",1,0) ->  | AQ5: =IF(SUM(AQ20:AQ23)>'[1]INCOME TAXES'!$I$36,(SUM(AQ20:AQ23)-'[1]INCOME TAXES'!$I$36)*AQ4,0)*IF('[1]GENERAL ASSUMPTIONS'!$C$34="s",1,0) ->  | AR5: =IF(SUM(AR20:AR23)>'[1]INCOME TAXES'!$I$36,(SUM(AR20:AR23)-'[1]INCOME TAXES'!$I$36)*AR4,0)*IF('[1]GENERAL ASSUMPTIONS'!$C$34="s",1,0) ->  | AS5: =IF(SUM(AS20:AS23)>'[1]INCOME TAXES'!$I$36,(SUM(AS20:AS23)-'[1]INCOME TAXES'!$I$36)*AS4,0)*IF('[1]GENERAL ASSUMPTIONS'!$C$34="s",1,0) ->  | AT5: =IF(SUM(AT20:AT23)>'[1]INCOME TAXES'!$I$36,(SUM(AT20:AT23)-'[1]INCOME TAXES'!$I$36)*AT4,0)*IF('[1]GENERAL ASSUMPTIONS'!$C$34="s",1,0) ->  | AU5: =IF(SUM(AU20:AU23)>'[1]INCOME TAXES'!$I$36,(SUM(AU20:AU23)-'[1]INCOME TAXES'!$I$36)*AU4,0)*IF('[1]GENERAL ASSUMPTIONS'!$C$34="s",1,0) ->  | AV5: =IF(SUM(AV20:AV23)>'[1]INCOME TAXES'!$I$36,(SUM(AV20:AV23)-'[1]INCOME TAXES'!$I$36)*AV4,0)*IF('[1]GENERAL ASSUMPTIONS'!$C$34="s",1,0) ->  | AW5: =IF(SUM(AW20:AW23)>'[1]INCOME TAXES'!$I$36,(SUM(AW20:AW23)-'[1]INCOME TAXES'!$I$36)*AW4,0)*IF('[1]GENERAL ASSUMPTIONS'!$C$34="s",1,0) ->  | AX5: =IF(SUM(AX20:AX23)>'[1]INCOME TAXES'!$I$36,(SUM(AX20:AX23)-'[1]INCOME TAXES'!$I$36)*AX4,0)*IF('[1]GENERAL ASSUMPTIONS'!$C$34="s",1,0) ->  | AY5: =IF(SUM(AY20:AY23)>'[1]INCOME TAXES'!$I$36,(SUM(AY20:AY23)-'[1]INCOME TAXES'!$I$36)*AY4,0)*IF('[1]GENERAL ASSUMPTIONS'!$C$34="s",1,0) ->  | AZ5: =IF(SUM(AZ20:AZ23)>'[1]INCOME TAXES'!$I$36,(SUM(AZ20:AZ23)-'[1]INCOME TAXES'!$I$36)*AZ4,0)*IF('[1]GENERAL ASSUMPTIONS'!$C$34="s",1,0) ->  | BA5: =IF(SUM(BA20:BA23)>'[1]INCOME TAXES'!$I$36,(SUM(BA20:BA23)-'[1]INCOME TAXES'!$I$36)*BA4,0)*IF('[1]GENERAL ASSUMPTIONS'!$C$34="s",1,0) ->  | BB5: =IF(SUM(BB20:BB23)>'[1]INCOME TAXES'!$I$36,(SUM(BB20:BB23)-'[1]INCOME TAXES'!$I$36)*BB4,0)*IF('[1]GENERAL ASSUMPTIONS'!$C$34="s",1,0) ->  | BC5: =IF(SUM(BC20:BC23)>'[1]INCOME TAXES'!$I$36,(SUM(BC20:BC23)-'[1]INCOME TAXES'!$I$36)*BC4,0)*IF('[1]GENERAL ASSUMPTIONS'!$C$34="s",1,0) ->  | BD5: =IF(SUM(BD20:BD23)>'[1]INCOME TAXES'!$I$36,(SUM(BD20:BD23)-'[1]INCOME TAXES'!$I$36)*BD4,0)*IF('[1]GENERAL ASSUMPTIONS'!$C$34="s",1,0) ->  | BE5: =IF(SUM(BE20:BE23)>'[1]INCOME TAXES'!$I$36,(SUM(BE20:BE23)-'[1]INCOME TAXES'!$I$36)*BE4,0)*IF('[1]GENERAL ASSUMPTIONS'!$C$34="s",1,0) ->  | BF5: =IF(SUM(BF20:BF23)>'[1]INCOME TAXES'!$I$36,(SUM(BF20:BF23)-'[1]INCOME TAXES'!$I$36)*BF4,0)*IF('[1]GENERAL ASSUMPTIONS'!$C$34="s",1,0) ->  | BG5: =IF(SUM(BG20:BG23)>'[1]INCOME TAXES'!$I$36,(SUM(BG20:BG23)-'[1]INCOME TAXES'!$I$36)*BG4,0)*IF('[1]GENERAL ASSUMPTIONS'!$C$34="s",1,0) ->  | BH5: =IF(SUM(BH20:BH23)>'[1]INCOME TAXES'!$I$36,(SUM(BH20:BH23)-'[1]INCOME TAXES'!$I$36)*BH4,0)*IF('[1]GENERAL ASSUMPTIONS'!$C$34="s",1,0) ->  | BI5: =IF(SUM(BI20:BI23)>'[1]INCOME TAXES'!$I$36,(SUM(BI20:BI23)-'[1]INCOME TAXES'!$I$36)*BI4,0)*IF('[1]GENERAL ASSUMPTIONS'!$C$34="s",1,0) ->  | BJ5: =IF(SUM(BJ20:BJ23)>'[1]INCOME TAXES'!$I$36,(SUM(BJ20:BJ23)-'[1]INCOME TAXES'!$I$36)*BJ4,0)*IF('[1]GENERAL ASSUMPTIONS'!$C$34="s",1,0) ->  | BK5: =IF(SUM(BK20:BK23)>'[1]INCOME TAXES'!$I$36,(SUM(BK20:BK23)-'[1]INCOME TAXES'!$I$36)*BK4,0)*IF('[1]GENERAL ASSUMPTIONS'!$C$34="s",1,0) ->  | BL5: =IF(SUM(BL20:BL23)>'[1]INCOME TAXES'!$I$36,(SUM(BL20:BL23)-'[1]INCOME TAXES'!$I$36)*BL4,0)*IF('[1]GENERAL ASSUMPTIONS'!$C$34="s",1,0) ->  | BM5: =IF(SUM(BM20:BM23)>'[1]INCOME TAXES'!$I$36,(SUM(BM20:BM23)-'[1]INCOME TAXES'!$I$36)*BM4,0)*IF('[1]GENERAL ASSUMPTIONS'!$C$34="s",1,0) ->  | BN5: =IF(SUM(BN20:BN23)>'[1]INCOME TAXES'!$I$36,(SUM(BN20:BN23)-'[1]INCOME TAXES'!$I$36)*BN4,0)*IF('[1]GENERAL ASSUMPTIONS'!$C$34="s",1,0) ->  | BO5: =IF(SUM(BO20:BO23)>'[1]INCOME TAXES'!$I$36,(SUM(BO20:BO23)-'[1]INCOME TAXES'!$I$36)*BO4,0)*IF('[1]GENERAL ASSUMPTIONS'!$C$34="s",1,0) ->  | BP5: =IF(SUM(BP20:BP23)>'[1]INCOME TAXES'!$I$36,(SUM(BP20:BP23)-'[1]INCOME TAXES'!$I$36)*BP4,0)*IF('[1]GENERAL ASSUMPTIONS'!$C$34="s",1,0) ->  | BQ5: =IF(SUM(BQ20:BQ23)>'[1]INCOME TAXES'!$I$36,(SUM(BQ20:BQ23)-'[1]INCOME TAXES'!$I$36)*BQ4,0)*IF('[1]GENERAL ASSUMPTIONS'!$C$34="s",1,0) ->  | BR5: =IF(SUM(BR20:BR23)>'[1]INCOME TAXES'!$I$36,(SUM(BR20:BR23)-'[1]INCOME TAXES'!$I$36)*BR4,0)*IF('[1]GENERAL ASSUMPTIONS'!$C$34="s",1,0) ->  | BS5: =IF(SUM(BS20:BS23)>'[1]INCOME TAXES'!$I$36,(SUM(BS20:BS23)-'[1]INCOME TAXES'!$I$36)*BS4,0)*IF('[1]GENERAL ASSUMPTIONS'!$C$34="s",1,0) ->  | BT5: =IF(SUM(BT20:BT23)>'[1]INCOME TAXES'!$I$36,(SUM(BT20:BT23)-'[1]INCOME TAXES'!$I$36)*BT4,0)*IF('[1]GENERAL ASSUMPTIONS'!$C$34="s",1,0) ->  | BU5: =IF(SUM(BU20:BU23)>'[1]INCOME TAXES'!$I$36,(SUM(BU20:BU23)-'[1]INCOME TAXES'!$I$36)*BU4,0)*IF('[1]GENERAL ASSUMPTIONS'!$C$34="s",1,0) ->  | BV5: =IF(SUM(BV20:BV23)>'[1]INCOME TAXES'!$I$36,(SUM(BV20:BV23)-'[1]INCOME TAXES'!$I$36)*BV4,0)*IF('[1]GENERAL ASSUMPTIONS'!$C$34="s",1,0) ->  | BW5: =IF(SUM(BW20:BW23)>'[1]INCOME TAXES'!$I$36,(SUM(BW20:BW23)-'[1]INCOME TAXES'!$I$36)*BW4,0)*IF('[1]GENERAL ASSUMPTIONS'!$C$34="s",1,0) ->  | BX5: =IF(SUM(BX20:BX23)>'[1]INCOME TAXES'!$I$36,(SUM(BX20:BX23)-'[1]INCOME TAXES'!$I$36)*BX4,0)*IF('[1]GENERAL ASSUMPTIONS'!$C$34="s",1,0) -> 
N6: client 2 - tax $$ over threshold | P6: =IF(SUM(P24:P27)>'[1]INCOME TAXES'!$I$36,(SUM(P24:P27)-'[1]INCOME TAXES'!$I$36)*P4,0)*IF('[1]GENERAL ASSUMPTIONS'!$C$34="s",1,0) ->  | Q6: =IF(SUM(Q24:Q27)>'[1]INCOME TAXES'!$I$36,(SUM(Q24:Q27)-'[1]INCOME TAXES'!$I$36)*Q4,0)*IF('[1]GENERAL ASSUMPTIONS'!$C$34="s",1,0) ->  | R6: =IF(SUM(R24:R27)>'[1]INCOME TAXES'!$I$36,(SUM(R24:R27)-'[1]INCOME TAXES'!$I$36)*R4,0)*IF('[1]GENERAL ASSUMPTIONS'!$C$34="s",1,0) ->  | S6: =IF(SUM(S24:S27)>'[1]INCOME TAXES'!$I$36,(SUM(S24:S27)-'[1]INCOME TAXES'!$I$36)*S4,0)*IF('[1]GENERAL ASSUMPTIONS'!$C$34="s",1,0) ->  | T6: =IF(SUM(T24:T27)>'[1]INCOME TAXES'!$I$36,(SUM(T24:T27)-'[1]INCOME TAXES'!$I$36)*T4,0)*IF('[1]GENERAL ASSUMPTIONS'!$C$34="s",1,0) ->  | U6: =IF(SUM(U24:U27)>'[1]INCOME TAXES'!$I$36,(SUM(U24:U27)-'[1]INCOME TAXES'!$I$36)*U4,0)*IF('[1]GENERAL ASSUMPTIONS'!$C$34="s",1,0) ->  | V6: =IF(SUM(V24:V27)>'[1]INCOME TAXES'!$I$36,(SUM(V24:V27)-'[1]INCOME TAXES'!$I$36)*V4,0)*IF('[1]GENERAL ASSUMPTIONS'!$C$34="s",1,0) ->  | W6: =IF(SUM(W24:W27)>'[1]INCOME TAXES'!$I$36,(SUM(W24:W27)-'[1]INCOME TAXES'!$I$36)*W4,0)*IF('[1]GENERAL ASSUMPTIONS'!$C$34="s",1,0) ->  | X6: =IF(SUM(X24:X27)>'[1]INCOME TAXES'!$I$36,(SUM(X24:X27)-'[1]INCOME TAXES'!$I$36)*X4,0)*IF('[1]GENERAL ASSUMPTIONS'!$C$34="s",1,0) ->  | Y6: =IF(SUM(Y24:Y27)>'[1]INCOME TAXES'!$I$36,(SUM(Y24:Y27)-'[1]INCOME TAXES'!$I$36)*Y4,0)*IF('[1]GENERAL ASSUMPTIONS'!$C$34="s",1,0) ->  | Z6: =IF(SUM(Z24:Z27)>'[1]INCOME TAXES'!$I$36,(SUM(Z24:Z27)-'[1]INCOME TAXES'!$I$36)*Z4,0)*IF('[1]GENERAL ASSUMPTIONS'!$C$34="s",1,0) ->  | AA6: =IF(SUM(AA24:AA27)>'[1]INCOME TAXES'!$I$36,(SUM(AA24:AA27)-'[1]INCOME TAXES'!$I$36)*AA4,0)*IF('[1]GENERAL ASSUMPTIONS'!$C$34="s",1,0) ->  | AB6: =IF(SUM(AB24:AB27)>'[1]INCOME TAXES'!$I$36,(SUM(AB24:AB27)-'[1]INCOME TAXES'!$I$36)*AB4,0)*IF('[1]GENERAL ASSUMPTIONS'!$C$34="s",1,0) ->  | AC6: =IF(SUM(AC24:AC27)>'[1]INCOME TAXES'!$I$36,(SUM(AC24:AC27)-'[1]INCOME TAXES'!$I$36)*AC4,0)*IF('[1]GENERAL ASSUMPTIONS'!$C$34="s",1,0) ->  | AD6: =IF(SUM(AD24:AD27)>'[1]INCOME TAXES'!$I$36,(SUM(AD24:AD27)-'[1]INCOME TAXES'!$I$36)*AD4,0)*IF('[1]GENERAL ASSUMPTIONS'!$C$34="s",1,0) ->  | AE6: =IF(SUM(AE24:AE27)>'[1]INCOME TAXES'!$I$36,(SUM(AE24:AE27)-'[1]INCOME TAXES'!$I$36)*AE4,0)*IF('[1]GENERAL ASSUMPTIONS'!$C$34="s",1,0) ->  | AF6: =IF(SUM(AF24:AF27)>'[1]INCOME TAXES'!$I$36,(SUM(AF24:AF27)-'[1]INCOME TAXES'!$I$36)*AF4,0)*IF('[1]GENERAL ASSUMPTIONS'!$C$34="s",1,0) ->  | AG6: =IF(SUM(AG24:AG27)>'[1]INCOME TAXES'!$I$36,(SUM(AG24:AG27)-'[1]INCOME TAXES'!$I$36)*AG4,0)*IF('[1]GENERAL ASSUMPTIONS'!$C$34="s",1,0) ->  | AH6: =IF(SUM(AH24:AH27)>'[1]INCOME TAXES'!$I$36,(SUM(AH24:AH27)-'[1]INCOME TAXES'!$I$36)*AH4,0)*IF('[1]GENERAL ASSUMPTIONS'!$C$34="s",1,0) ->  | AI6: =IF(SUM(AI24:AI27)>'[1]INCOME TAXES'!$I$36,(SUM(AI24:AI27)-'[1]INCOME TAXES'!$I$36)*AI4,0)*IF('[1]GENERAL ASSUMPTIONS'!$C$34="s",1,0) ->  | AJ6: =IF(SUM(AJ24:AJ27)>'[1]INCOME TAXES'!$I$36,(SUM(AJ24:AJ27)-'[1]INCOME TAXES'!$I$36)*AJ4,0)*IF('[1]GENERAL ASSUMPTIONS'!$C$34="s",1,0) ->  | AK6: =IF(SUM(AK24:AK27)>'[1]INCOME TAXES'!$I$36,(SUM(AK24:AK27)-'[1]INCOME TAXES'!$I$36)*AK4,0)*IF('[1]GENERAL ASSUMPTIONS'!$C$34="s",1,0) ->  | AL6: =IF(SUM(AL24:AL27)>'[1]INCOME TAXES'!$I$36,(SUM(AL24:AL27)-'[1]INCOME TAXES'!$I$36)*AL4,0)*IF('[1]GENERAL ASSUMPTIONS'!$C$34="s",1,0) ->  | AM6: =IF(SUM(AM24:AM27)>'[1]INCOME TAXES'!$I$36,(SUM(AM24:AM27)-'[1]INCOME TAXES'!$I$36)*AM4,0)*IF('[1]GENERAL ASSUMPTIONS'!$C$34="s",1,0) ->  | AN6: =IF(SUM(AN24:AN27)>'[1]INCOME TAXES'!$I$36,(SUM(AN24:AN27)-'[1]INCOME TAXES'!$I$36)*AN4,0)*IF('[1]GENERAL ASSUMPTIONS'!$C$34="s",1,0) ->  | AO6: =IF(SUM(AO24:AO27)>'[1]INCOME TAXES'!$I$36,(SUM(AO24:AO27)-'[1]INCOME TAXES'!$I$36)*AO4,0)*IF('[1]GENERAL ASSUMPTIONS'!$C$34="s",1,0) ->  | AP6: =IF(SUM(AP24:AP27)>'[1]INCOME TAXES'!$I$36,(SUM(AP24:AP27)-'[1]INCOME TAXES'!$I$36)*AP4,0)*IF('[1]GENERAL ASSUMPTIONS'!$C$34="s",1,0) ->  | AQ6: =IF(SUM(AQ24:AQ27)>'[1]INCOME TAXES'!$I$36,(SUM(AQ24:AQ27)-'[1]INCOME TAXES'!$I$36)*AQ4,0)*IF('[1]GENERAL ASSUMPTIONS'!$C$34="s",1,0) ->  | AR6: =IF(SUM(AR24:AR27)>'[1]INCOME TAXES'!$I$36,(SUM(AR24:AR27)-'[1]INCOME TAXES'!$I$36)*AR4,0)*IF('[1]GENERAL ASSUMPTIONS'!$C$34="s",1,0) ->  | AS6: =IF(SUM(AS24:AS27)>'[1]INCOME TAXES'!$I$36,(SUM(AS24:AS27)-'[1]INCOME TAXES'!$I$36)*AS4,0)*IF('[1]GENERAL ASSUMPTIONS'!$C$34="s",1,0) ->  | AT6: =IF(SUM(AT24:AT27)>'[1]INCOME TAXES'!$I$36,(SUM(AT24:AT27)-'[1]INCOME TAXES'!$I$36)*AT4,0)*IF('[1]GENERAL ASSUMPTIONS'!$C$34="s",1,0) ->  | AU6: =IF(SUM(AU24:AU27)>'[1]INCOME TAXES'!$I$36,(SUM(AU24:AU27)-'[1]INCOME TAXES'!$I$36)*AU4,0)*IF('[1]GENERAL ASSUMPTIONS'!$C$34="s",1,0) ->  | AV6: =IF(SUM(AV24:AV27)>'[1]INCOME TAXES'!$I$36,(SUM(AV24:AV27)-'[1]INCOME TAXES'!$I$36)*AV4,0)*IF('[1]GENERAL ASSUMPTIONS'!$C$34="s",1,0) ->  | AW6: =IF(SUM(AW24:AW27)>'[1]INCOME TAXES'!$I$36,(SUM(AW24:AW27)-'[1]INCOME TAXES'!$I$36)*AW4,0)*IF('[1]GENERAL ASSUMPTIONS'!$C$34="s",1,0) ->  | AX6: =IF(SUM(AX24:AX27)>'[1]INCOME TAXES'!$I$36,(SUM(AX24:AX27)-'[1]INCOME TAXES'!$I$36)*AX4,0)*IF('[1]GENERAL ASSUMPTIONS'!$C$34="s",1,0) ->  | AY6: =IF(SUM(AY24:AY27)>'[1]INCOME TAXES'!$I$36,(SUM(AY24:AY27)-'[1]INCOME TAXES'!$I$36)*AY4,0)*IF('[1]GENERAL ASSUMPTIONS'!$C$34="s",1,0) ->  | AZ6: =IF(SUM(AZ24:AZ27)>'[1]INCOME TAXES'!$I$36,(SUM(AZ24:AZ27)-'[1]INCOME TAXES'!$I$36)*AZ4,0)*IF('[1]GENERAL ASSUMPTIONS'!$C$34="s",1,0) ->  | BA6: =IF(SUM(BA24:BA27)>'[1]INCOME TAXES'!$I$36,(SUM(BA24:BA27)-'[1]INCOME TAXES'!$I$36)*BA4,0)*IF('[1]GENERAL ASSUMPTIONS'!$C$34="s",1,0) ->  | BB6: =IF(SUM(BB24:BB27)>'[1]INCOME TAXES'!$I$36,(SUM(BB24:BB27)-'[1]INCOME TAXES'!$I$36)*BB4,0)*IF('[1]GENERAL ASSUMPTIONS'!$C$34="s",1,0) ->  | BC6: =IF(SUM(BC24:BC27)>'[1]INCOME TAXES'!$I$36,(SUM(BC24:BC27)-'[1]INCOME TAXES'!$I$36)*BC4,0)*IF('[1]GENERAL ASSUMPTIONS'!$C$34="s",1,0) ->  | BD6: =IF(SUM(BD24:BD27)>'[1]INCOME TAXES'!$I$36,(SUM(BD24:BD27)-'[1]INCOME TAXES'!$I$36)*BD4,0)*IF('[1]GENERAL ASSUMPTIONS'!$C$34="s",1,0) ->  | BE6: =IF(SUM(BE24:BE27)>'[1]INCOME TAXES'!$I$36,(SUM(BE24:BE27)-'[1]INCOME TAXES'!$I$36)*BE4,0)*IF('[1]GENERAL ASSUMPTIONS'!$C$34="s",1,0) ->  | BF6: =IF(SUM(BF24:BF27)>'[1]INCOME TAXES'!$I$36,(SUM(BF24:BF27)-'[1]INCOME TAXES'!$I$36)*BF4,0)*IF('[1]GENERAL ASSUMPTIONS'!$C$34="s",1,0) ->  | BG6: =IF(SUM(BG24:BG27)>'[1]INCOME TAXES'!$I$36,(SUM(BG24:BG27)-'[1]INCOME TAXES'!$I$36)*BG4,0)*IF('[1]GENERAL ASSUMPTIONS'!$C$34="s",1,0) ->  | BH6: =IF(SUM(BH24:BH27)>'[1]INCOME TAXES'!$I$36,(SUM(BH24:BH27)-'[1]INCOME TAXES'!$I$36)*BH4,0)*IF('[1]GENERAL ASSUMPTIONS'!$C$34="s",1,0) ->  | BI6: =IF(SUM(BI24:BI27)>'[1]INCOME TAXES'!$I$36,(SUM(BI24:BI27)-'[1]INCOME TAXES'!$I$36)*BI4,0)*IF('[1]GENERAL ASSUMPTIONS'!$C$34="s",1,0) ->  | BJ6: =IF(SUM(BJ24:BJ27)>'[1]INCOME TAXES'!$I$36,(SUM(BJ24:BJ27)-'[1]INCOME TAXES'!$I$36)*BJ4,0)*IF('[1]GENERAL ASSUMPTIONS'!$C$34="s",1,0) ->  | BK6: =IF(SUM(BK24:BK27)>'[1]INCOME TAXES'!$I$36,(SUM(BK24:BK27)-'[1]INCOME TAXES'!$I$36)*BK4,0)*IF('[1]GENERAL ASSUMPTIONS'!$C$34="s",1,0) ->  | BL6: =IF(SUM(BL24:BL27)>'[1]INCOME TAXES'!$I$36,(SUM(BL24:BL27)-'[1]INCOME TAXES'!$I$36)*BL4,0)*IF('[1]GENERAL ASSUMPTIONS'!$C$34="s",1,0) ->  | BM6: =IF(SUM(BM24:BM27)>'[1]INCOME TAXES'!$I$36,(SUM(BM24:BM27)-'[1]INCOME TAXES'!$I$36)*BM4,0)*IF('[1]GENERAL ASSUMPTIONS'!$C$34="s",1,0) ->  | BN6: =IF(SUM(BN24:BN27)>'[1]INCOME TAXES'!$I$36,(SUM(BN24:BN27)-'[1]INCOME TAXES'!$I$36)*BN4,0)*IF('[1]GENERAL ASSUMPTIONS'!$C$34="s",1,0) ->  | BO6: =IF(SUM(BO24:BO27)>'[1]INCOME TAXES'!$I$36,(SUM(BO24:BO27)-'[1]INCOME TAXES'!$I$36)*BO4,0)*IF('[1]GENERAL ASSUMPTIONS'!$C$34="s",1,0) ->  | BP6: =IF(SUM(BP24:BP27)>'[1]INCOME TAXES'!$I$36,(SUM(BP24:BP27)-'[1]INCOME TAXES'!$I$36)*BP4,0)*IF('[1]GENERAL ASSUMPTIONS'!$C$34="s",1,0) ->  | BQ6: =IF(SUM(BQ24:BQ27)>'[1]INCOME TAXES'!$I$36,(SUM(BQ24:BQ27)-'[1]INCOME TAXES'!$I$36)*BQ4,0)*IF('[1]GENERAL ASSUMPTIONS'!$C$34="s",1,0) ->  | BR6: =IF(SUM(BR24:BR27)>'[1]INCOME TAXES'!$I$36,(SUM(BR24:BR27)-'[1]INCOME TAXES'!$I$36)*BR4,0)*IF('[1]GENERAL ASSUMPTIONS'!$C$34="s",1,0) ->  | BS6: =IF(SUM(BS24:BS27)>'[1]INCOME TAXES'!$I$36,(SUM(BS24:BS27)-'[1]INCOME TAXES'!$I$36)*BS4,0)*IF('[1]GENERAL ASSUMPTIONS'!$C$34="s",1,0) ->  | BT6: =IF(SUM(BT24:BT27)>'[1]INCOME TAXES'!$I$36,(SUM(BT24:BT27)-'[1]INCOME TAXES'!$I$36)*BT4,0)*IF('[1]GENERAL ASSUMPTIONS'!$C$34="s",1,0) ->  | BU6: =IF(SUM(BU24:BU27)>'[1]INCOME TAXES'!$I$36,(SUM(BU24:BU27)-'[1]INCOME TAXES'!$I$36)*BU4,0)*IF('[1]GENERAL ASSUMPTIONS'!$C$34="s",1,0) ->  | BV6: =IF(SUM(BV24:BV27)>'[1]INCOME TAXES'!$I$36,(SUM(BV24:BV27)-'[1]INCOME TAXES'!$I$36)*BV4,0)*IF('[1]GENERAL ASSUMPTIONS'!$C$34="s",1,0) ->  | BW6: =IF(SUM(BW24:BW27)>'[1]INCOME TAXES'!$I$36,(SUM(BW24:BW27)-'[1]INCOME TAXES'!$I$36)*BW4,0)*IF('[1]GENERAL ASSUMPTIONS'!$C$34="s",1,0) ->  | BX6: =IF(SUM(BX24:BX27)>'[1]INCOME TAXES'!$I$36,(SUM(BX24:BX27)-'[1]INCOME TAXES'!$I$36)*BX4,0)*IF('[1]GENERAL ASSUMPTIONS'!$C$34="s",1,0) -> 
B7: ='GENERAL ASSUMPTIONS'!$C$13 -> © 2016 GROSSMAN FINANCIAL MANAGEMENT | N7: ='[1]INCOME TAXES'!G34 ->  | P7: ='[1]INCOME TAXES'!H34 ->  | Q7: =P7 ->  | AW7: =AV7 -> 
B8: ='GENERAL ASSUMPTIONS'!$C$16 -> PERSONAL FINANCIAL CALCULATING PROGRAM™ | N8: ='[1]INCOME TAXES'!G35 ->  | P8: ='[1]INCOME TAXES'!H35 ->  | Q8: =P8 ->  | AW8: =AV8 -> 
B9: CASHFLOW ASSUMPTIONS | N9: ='[1]INCOME TAXES'!G32 ->  | P9: ='[1]INCOME TAXES'!H32 ->  | Q9: =P9*(1+inflate) ->  | AW9: =AV9*(1+inflate) -> 
N12: INCOME FORECAST
P13: 0 | Q13: =P13+1 -> 1 | R13: 2 | S13: 3 | T13: 4 | U13: 5 | V13: 6 | W13: 7 | X13: 8 | Y13: 9 | Z13: 10 | AA13: 11 | AB13: 12 | AC13: 13 | AD13: 14 | AE13: 15 | AF13: 16 | AG13: 17 | AH13: 18 | AI13: 19 | AJ13: 20 | AK13: 21 | AL13: 22 | AM13: 23 | AN13: 24 | AO13: 25 | AP13: 26 | AQ13: 27 | AR13: 28 | AS13: 29 | AT13: 30 | AU13: 31 | AV13: 32 | AW13: =AV13+1 -> 33 | AX13: 34 | AY13: 35 | AZ13: 36 | BA13: 37 | BB13: 38 | BC13: 39 | BD13: 40 | BE13: 41 | BF13: 42 | BG13: 43 | BH13: 44 | BI13: 45 | BJ13: 46 | BK13: 47 | BL13: 48 | BM13: 49 | BN13: 50 | BO13: 51 | BP13: 52 | BQ13: 53 | BR13: 54 | BS13: 55 | BT13: 56 | BU13: 57 | BV13: 58 | BW13: 59 | BX13: 60
F14: FIRST YEAR | G14: LAST YEAR | N14: YEAR | P14: ='[1]FULL VIEW'!H12 ->  | Q14: =P14+1 ->  | AW14: =AV14+1 -> 
D16: AMOUNT | I16: INFLATION PLUS | J16: TOTAL INFLATOR
B18: INCOME SOURCES
B20: EARNED INCOME - 1a | C20: PERSON1 | E20: SUBJECT TO FICA | F20: =baseyear -> 2016 | G20: =F20+60 -> 2076 | I20: 0 | J20: =INVESTMENTS!$E$82+I20 -> 0 | N20: =B20 -> EARNED INCOME - 1a | P20: =IF(P$14>=$F20,IF(P$14<=$G20,$D20*(1+$J20)^P$13,0),0) ->  | Z20: =IF(Z$14>=$F20,IF(Z$14<=$G20,$D20*(1+$J20)^Z$13,0),0) ->  | AJ20: =IF(AJ$14>=$F20,IF(AJ$14<=$G20,$D20*(1+$J20)^AJ$13,0),0) ->  | AT20: =IF(AT$14>=$F20,IF(AT$14<=$G20,$D20*(1+$J20)^AT$13,0),0) ->  | BD20: =IF(BD$14>=$F20,IF(BD$14<=$G20,$D20*(1+$J20)^BD$13,0),0) ->  | BN20: =IF(BN$14>=$F20,IF(BN$14<=$G20,$D20*(1+$J20)^BN$13,0),0) -> 
B21: EARNED INCOME - 1b | F21: 2016 | G21: 2076 | I21: 0 | J21: =INVESTMENTS!$E$82+I21 -> 0 | N21: EARNED INCOME - 1b
B22: EARNED INCOME - 1c | F22: 2016 | G22: 2076 | I22: 0 | J22: =INVESTMENTS!$E$82+I22 -> 0 | N22: EARNED INCOME - 1c
B23: EARNED INCOME - 1d | F23: 2016 | G23: 2076 | I23: 0 | J23: =INVESTMENTS!$E$82+I23 -> 0 | N23: EARNED INCOME - 1d
B24: EARNED INCOME - 2a | C24: PERSON2 | F24: 2016 | G24: 2076 | I24: 0 | J24: =INVESTMENTS!$E$82+I24 -> 0 | N24: EARNED INCOME - 2a
B25: EARNED INCOME - 2b | F25: 2016 | G25: 2076 | I25: 0 | J25: =INVESTMENTS!$E$82+I25 -> 0 | N25: EARNED INCOME - 2b
B26: EARNED INCOME - 2c | F26: 2016 | G26: 2076 | I26: 0 | J26: =INVESTMENTS!$E$82+I26 -> 0 | N26: EARNED INCOME - 2c
B27: EARNED INCOME - 2d | F27: 2016 | G27: 2076 | I27: 0 | J27: =INVESTMENTS!$E$82+I27 -> 0 | N27: EARNED INCOME - 2d
B28: FICA (withholding): PERSON1 | D28: =(6.2%+1.45%)*C28 -> 0 | E28: =IF(D28>0,"ERROR","") ->  | N28: FICA (withholding): PERSON1 | P28: =(IF(SUM(P20:P23)<P9,SUM(P20:P23)*P7*-$C$28,P9*P7*-$C$28)+SUM(P20:P23)*P8*-$C$28+P2+P5)*-1 ->  | AV28: =(IF(SUM(AV20:AV23)<AV9,SUM(AV20:AV23)*AV7*-$C$28,AV9*AV7*-$C$28)+SUM(AV20:AV23)*AV8*-$C$28+AV2+AV5)*-1 -> 
B29: FICA (withholding): PERSON2 | C29: 0 | D29: =(6.2%+1.45%)*C29 -> 0 | E29: =IF(D29>0,"ERROR","") ->  | N29: FICA (withholding): PERSON2 | P29: =(IF(SUM(P24:P27)<P9,SUM(P24:P27)*P7*-$C$29,P9*P7*-$C$29)+SUM(P24:P27)*P8*-$C$29+P3+P6)*-1 ->  | AV29: =(IF(SUM(AV24:AV27)<AV9,SUM(AV24:AV27)*AV7*-$C$29,AV9*AV7*-$C$29)+SUM(AV24:AV27)*AV8*-$C$29+AV3+AV6)*-1 -> 
B30: PENSION - 1 | F30: 2016 | G30: =F30+60 -> 2076 | I30: 0 | J30: =INVESTMENTS!$E$82+I30 -> 0 | N30: PENSION - 1 | P30: =IF(P$14>=$F30,IF(P$14<=$G30,$D30*(1+$J30)^P$13,0),0) ->  | Z30: =IF(Z$14>=$F30,IF(Z$14<=$G30,$D30*(1+$J30)^Z$13,0),0) ->  | AJ30: =IF(AJ$14>=$F30,IF(AJ$14<=$G30,$D30*(1+$J30)^AJ$13,0),0) ->  | AT30: =IF(AT$14>=$F30,IF(AT$14<=$G30,$D30*(1+$J30)^AT$13,0),0) ->  | BD30: =IF(BD$14>=$F30,IF(BD$14<=$G30,$D30*(1+$J30)^BD$13,0),0) ->  | BN30: =IF(BN$14>=$F30,IF(BN$14<=$G30,$D30*(1+$J30)^BN$13,0),0) -> 
B31: PENSION - 2 | F31: 2016 | G31: 2076 | I31: 0 | J31: =INVESTMENTS!$E$82+I31 -> 0 | N31: PENSION - 2
B32: PENSION - 3 | F32: 2016 | G32: 2076 | I32: 0 | J32: =INVESTMENTS!$E$82+I32 -> 0 | N32: PENSION - 3
B33: SOCIAL SECURITY - 1 (start age & $) | D33: ='CF ASSUMPTIONS'!D33 -> 0 | F33: ='CF ASSUMPTIONS'!F33 -> 2000 | G33: 2060 | I33: 0 | J33: =INVESTMENTS!$E$82+I33 -> 0 | N33: SOCIAL SECURITY - 1 (start age & $)
B34: SOCIAL SECURITY - 2 (start age & $) | D34: ='CF ASSUMPTIONS'!D34 -> 0 | F34: ='CF ASSUMPTIONS'!F34 -> 2000 | G34: 2060 | I34: 0 | J34: =INVESTMENTS!$E$82+I34 -> 0 | N34: SOCIAL SECURITY - 2 (start age & $)
G35: 60 | I35: 0
B36: OTHER 1 | F36: =baseyear -> 2016 | G36: 2076 | I36: 0 | J36: =INVESTMENTS!$E$82+I36 -> 0 | N36: OTHER 1
B37: OTHER 2 | F37: 2016 | G37: 2076 | I37: 0 | J37: =INVESTMENTS!$E$82+I37 -> 0 | N37: OTHER 2
B38: OTHER 3 | F38: 2016 | G38: 2076 | I38: 0 | J38: =INVESTMENTS!$E$82+I38 -> 0 | N38: OTHER 3
B39: OTHER 4 | F39: 2016 | G39: 2076 | I39: 0 | J39: =INVESTMENTS!$E$82+I39 -> 0 | N39: OTHER 4
B40: OTHER 5 | F40: 2016 | G40: 2076 | I40: 0 | J40: =INVESTMENTS!$E$82+I40 -> 0 | N40: OTHER 5
B41: OTHER 6 | F41: 2016 | G41: 2076 | I41: 0 | J41: =INVESTMENTS!$E$82+I41 -> 0 | N41: OTHER 6 | P41: =IF(P$14>=$F41,IF(P$14<=$G41,$D41*(1+$J41)^P$13,0),0) ->  | Z41: =IF(Z$14>=$F41,IF(Z$14<=$G41,$D41*(1+$J41)^Z$13,0),0) ->  | AJ41: =IF(AJ$14>=$F41,IF(AJ$14<=$G41,$D41*(1+$J41)^AJ$13,0),0) ->  | AT41: =IF(AT$14>=$F41,IF(AT$14<=$G41,$D41*(1+$J41)^AT$13,0),0) ->  | BD41: =IF(BD$14>=$F41,IF(BD$14<=$G41,$D41*(1+$J41)^BD$13,0),0) ->  | BN41: =IF(BN$14>=$F41,IF(BN$14<=$G41,$D41*(1+$J41)^BN$13,0),0) -> 
B42: NON-TAXABLE INCOME - 1 | C42: NOT TAXED | F42: 2016 | G42: 2076 | I42: 0 | J42: =INVESTMENTS!$E$82+I42 -> 0 | N42: NON-TAXABLE INCOME - 1
B43: NON-TAXABLE INCOME - 2 | F43: 2016 | G43: 2076 | I43: 0 | J43: =INVESTMENTS!$E$82+I43 -> 0 | N43: NON-TAXABLE INCOME - 2
B44: NON-TAXABLE INCOME - 3 | F44: 2016 | G44: 2076 | I44: 0 | J44: =INVESTMENTS!$E$82+I44 -> 0 | N44: NON-TAXABLE INCOME - 3
B45: NON-TAXABLE INCOME - 4 | F45: 2016 | G45: 2076 | I45: 0 | J45: =INVESTMENTS!$E$82+I45 -> 0 | N45: NON-TAXABLE INCOME - 4
B46: NON-TAXABLE INCOME - 5 | F46: 2016 | G46: 2076 | I46: 0 | J46: =INVESTMENTS!$E$82+I46 -> 0 | N46: NON-TAXABLE INCOME - 5
B47: NON-TAXABLE INCOME - 6 | F47: 2016 | G47: =F47+60 -> 2076 | I47: 0 | J47: =INVESTMENTS!$E$82+I47 -> 0 | N47: NON-TAXABLE INCOME - 6
B48: PRE-TAX SAVINGS | C48: =IF(D48>0,"ERROR","") ->  | F48: 2016 | G48: 2076 | I48: 0 | J48: =INVESTMENTS!$E$82+I48 -> 0 | N48: PRE-TAX SAVINGS
B49: PRE-TAX SAVINGS | C49: =IF(D49>0,"ERROR","") ->  | F49: 2016 | G49: 2076 | I49: 0 | J49: =INVESTMENTS!$E$82+I49 -> 0 | N49: PRE-TAX SAVINGS
B50: PRE-TAX SAVINGS | F50: 2016 | G50: 2076 | I50: 0 | J50: =INVESTMENTS!$E$82+I50 -> 0 | N50: PRE-TAX SAVINGS
N52: TOTAL INCOME | P52: =SUM(P20:P50) ->  | AV52: =SUM(AV20:AV50) -> 
B54: EXPENSES: RECURRING
B56: ACCOUNTING | F56: =baseyear -> 2016 | G56: =F56+60 -> 2076 | I56: 0 | J56: =INVESTMENTS!$E$82+I56 -> 0 | N56: =B56 -> ACCOUNTING | P56: =IF(P$14>=$F56,IF(P$14<=$G56,$D56*(1+$J56)^P$13,0),0) ->  | Z56: =IF(Z$14>=$F56,IF(Z$14<=$G56,$D56*(1+$J56)^Z$13,0),0) ->  | AJ56: =IF(AJ$14>=$F56,IF(AJ$14<=$G56,$D56*(1+$J56)^AJ$13,0),0) ->  | AT56: =IF(AT$14>=$F56,IF(AT$14<=$G56,$D56*(1+$J56)^AT$13,0),0) ->  | BD56: =IF(BD$14>=$F56,IF(BD$14<=$G56,$D56*(1+$J56)^BD$13,0),0) ->  | BN56: =IF(BN$14>=$F56,IF(BN$14<=$G56,$D56*(1+$J56)^BN$13,0),0) -> 
B57: AUTO, FUEL | F57: 2016 | G57: 2076 | I57: 0 | J57: =INVESTMENTS!$E$82+I57 -> 0 | N57: AUTO, FUEL
B58: AUTO, INSURANCE | F58: 2016 | G58: 2076 | I58: 0 | J58: =INVESTMENTS!$E$82+I58 -> 0 | N58: AUTO, INSURANCE
B59: AUTO, LICENSE/REGISTRATION | F59: 2016 | G59: 2076 | I59: 0 | J59: =INVESTMENTS!$E$82+I59 -> 0 | N59: AUTO, LICENSE/REGISTRATION
B60: AUTO, MAINTENANCE & REPAIRS | F60: 2016 | G60: 2076 | I60: 0 | J60: =INVESTMENTS!$E$82+I60 -> 0 | N60: AUTO, MAINTENANCE & REPAIRS
B61: AUTO, PARKING | F61: 2016 | G61: 2076 | I61: 0 | J61: =INVESTMENTS!$E$82+I61 -> 0 | N61: AUTO, PARKING
B62: AUTO, TOLL | F62: 2016 | G62: 2076 | I62: 0 | J62: =INVESTMENTS!$E$82+I62 -> 0 | N62: AUTO, TOLL
B63: CHARITABLE GIVING | F63: 2016 | G63: 2076 | I63: 0 | J63: =INVESTMENTS!$E$82+I63 -> 0 | N63: CHARITABLE GIVING
B64: CLOTHING | F64: 2016 | G64: =F64+60 -> 2076 | I64: 0 | J64: =INVESTMENTS!$E$82+I64 -> 0 | N64: CLOTHING
B65: DEBT REPAYMENT, OTHER | F65: 2016 | G65: 2076 | I65: 0 | J65: =INVESTMENTS!$E$82+I65 -> 0 | N65: DEBT REPAYMENT, OTHER
B66: DEPENDENT CARE | F66: 2016 | G66: 2076 | I66: 0 | J66: =INVESTMENTS!$E$82+I66 -> 0 | N66: DEPENDENT CARE | P66: =IF(P$14>=$F66,IF(P$14<=$G66,$D66*(1+$J66)^P$13,0),0) ->  | Z66: =IF(Z$14>=$F66,IF(Z$14<=$G66,$D66*(1+$J66)^Z$13,0),0) ->  | AJ66: =IF(AJ$14>=$F66,IF(AJ$14<=$G66,$D66*(1+$J66)^AJ$13,0),0) ->  | AT66: =IF(AT$14>=$F66,IF(AT$14<=$G66,$D66*(1+$J66)^AT$13,0),0) ->  | BD66: =IF(BD$14>=$F66,IF(BD$14<=$G66,$D66*(1+$J66)^BD$13,0),0) ->  | BN66: =IF(BN$14>=$F66,IF(BN$14<=$G66,$D66*(1+$J66)^BN$13,0),0) -> 
B67: DINING OUT | F67: 2016 | G67: 2076 | I67: 0 | J67: =INVESTMENTS!$E$82+I67 -> 0 | N67: DINING OUT
B68: DISABILITY INSURANCE | F68: 2016 | G68: =G20 -> 2076 | I68: 0 | J68: =INVESTMENTS!$E$82+I68 -> 0 | N68: DISABILITY INSURANCE
B69: EDUCATION | F69: 2016 | G69: 2076 | I69: 0 | J69: =INVESTMENTS!$E$82+I69 -> 0 | N69: EDUCATION
B70: ENTERTAINMENT, CABLE, INTERNET | F70: 2016 | G70: 2076 | I70: 0 | J70: =INVESTMENTS!$E$82+I70 -> 0 | N70: ENTERTAINMENT, CABLE, INTERNET
B71: FOOD | F71: 2016 | G71: 2076 | I71: 0 | J71: =INVESTMENTS!$E$82+I71 -> 0 | N71: FOOD
B72: GIFTS | F72: 2016 | G72: 2076 | I72: 0 | J72: =INVESTMENTS!$E$82+I72 -> 0 | N72: GIFTS
B73: HOME, REPAIR | F73: 2016 | G73: 2076 | I73: 0 | J73: =INVESTMENTS!$E$82+I73 -> 0 | N73: HOME, REPAIR
B74: HOME, MAINTENANCE - ROUTINE | F74: 2016 | G74: =F74+60 -> 2076 | I74: 0 | J74: =INVESTMENTS!$E$82+I74 -> 0 | N74: HOME, MAINTENANCE - ROUTINE
B75: HOME, INSURANCE | F75: 2016 | G75: 2076 | I75: 0 | J75: =INVESTMENTS!$E$82+I75 -> 0 | N75: HOME, INSURANCE
B76: LAUNDRY, CLEANING | F76: 2016 | G76: 2076 | I76: 0 | J76: =INVESTMENTS!$E$82+I76 -> 0 | N76: LAUNDRY, CLEANING | P76: =IF(P$14>=$F76,IF(P$14<=$G76,$D76*(1+$J76)^P$13,0),0) ->  | Z76: =IF(Z$14>=$F76,IF(Z$14<=$G76,$D76*(1+$J76)^Z$13,0),0) ->  | AJ76: =IF(AJ$14>=$F76,IF(AJ$14<=$G76,$D76*(1+$J76)^AJ$13,0),0) ->  | AT76: =IF(AT$14>=$F76,IF(AT$14<=$G76,$D76*(1+$J76)^AT$13,0),0) ->  | BD76: =IF(BD$14>=$F76,IF(BD$14<=$G76,$D76*(1+$J76)^BD$13,0),0) ->  | BN76: =IF(BN$14>=$F76,IF(BN$14<=$G76,$D76*(1+$J76)^BN$13,0),0) -> 
B77: LIFE INSURANCE | F77: 2016 | G77: 2076 | I77: 0 | J77: =INVESTMENTS!$E$82+I77 -> 0 | N77: LIFE INSURANCE
B78: LONG TERM CARE INS., if deductible | F78: 2016 | G78: 2076 | I78: 0 | J78: =INVESTMENTS!$E$82+I78 -> 0 | N78: LONG TERM CARE INS., if deductible
B79: MEDICAL/DENTAL INSURANCE | F79: 2016 | G79: 2076 | I79: 0 | J79: =INVESTMENTS!$E$82+I79 -> 0 | N79: MEDICAL/DENTAL INSURANCE
B80: MEDICARE &/OR MEDIGAP PERSON1 | F80: 2016 | G80: 2076 | I80: 0 | J80: =INVESTMENTS!$E$82+I80 -> 0 | N80: MEDICARE &/OR MEDIGAP PERSON1
B81: MEDICARE &/OR MEDIGAP PERSON2 | F81: 2016 | G81: 2076 | I81: 0 | J81: =INVESTMENTS!$E$82+I81 -> 0 | N81: MEDICARE &/OR MEDIGAP PERSON2
B82: MEDICAL, TAX DEDUCTIBLE, OTHER | F82: 2016 | G82: 2076 | I82: 0 | J82: =INVESTMENTS!$E$82+I82 -> 0 | N82: MEDICAL, TAX DEDUCTIBLE, OTHER
B83: OTHER - 0 | F83: 2016 | G83: =F83+60 -> 2076 | I83: 0 | J83: =INVESTMENTS!$E$82+I83 -> 0 | N83: OTHER - 0
B84: OTHER - 1 | F84: 2016 | G84: 2076 | I84: 0 | J84: =INVESTMENTS!$E$82+I84 -> 0 | N84: OTHER - 1
B85: OTHER - 2 | F85: 2016 | G85: 2076 | I85: 0 | J85: =INVESTMENTS!$E$82+I85 -> 0 | N85: OTHER - 2
B86: OTHER - 3 | F86: 2016 | G86: 2076 | I86: 0 | J86: =INVESTMENTS!$E$82+I86 -> 0 | N86: OTHER - 3 | P86: =IF(P$14>=$F86,IF(P$14<=$G86,$D86*(1+$J86)^P$13,0),0) ->  | Z86: =IF(Z$14>=$F86,IF(Z$14<=$G86,$D86*(1+$J86)^Z$13,0),0) ->  | AJ86: =IF(AJ$14>=$F86,IF(AJ$14<=$G86,$D86*(1+$J86)^AJ$13,0),0) ->  | AT86: =IF(AT$14>=$F86,IF(AT$14<=$G86,$D86*(1+$J86)^AT$13,0),0) ->  | BD86: =IF(BD$14>=$F86,IF(BD$14<=$G86,$D86*(1+$J86)^BD$13,0),0) ->  | BN86: =IF(BN$14>=$F86,IF(BN$14<=$G86,$D86*(1+$J86)^BN$13,0),0) -> 
B87: OTHER - 4 | F87: 2016 | G87: 2076 | I87: 0 | J87: =INVESTMENTS!$E$82+I87 -> 0 | N87: OTHER - 4
B88: OTHER - 5 | F88: 2016 | G88: 2076 | I88: 0 | J88: =INVESTMENTS!$E$82+I88 -> 0 | N88: OTHER - 5
B89: OTHER - 6 | F89: 2016 | G89: 2076 | I89: 0 | J89: =INVESTMENTS!$E$82+I89 -> 0 | N89: OTHER - 6
B90: OTHER - 7 | F90: 2016 | G90: 2076 | I90: 0 | J90: =INVESTMENTS!$E$82+I90 -> 0 | N90: OTHER - 7
B91: OTHER - 8 | F91: 2016 | G91: 2076 | I91: 0 | J91: =INVESTMENTS!$E$82+I91 -> 0 | N91: OTHER - 8
B92: OTHER - 9 | F92: 2016 | G92: 2076 | I92: 0 | J92: =INVESTMENTS!$E$82+I92 -> 0 | N92: OTHER - 9
B93: OTHER - 10 | F93: 2016 | G93: 2076 | I93: 0 | J93: =INVESTMENTS!$E$82+I93 -> 0 | N93: OTHER - 10
B94: PERSONAL CARE, GYM, ETC | F94: 2016 | G94: 2076 | I94: 0 | J94: =INVESTMENTS!$E$82+I94 -> 0 | N94: PERSONAL CARE, GYM, ETC
B99: =B1 -> BETA 05142017 - FOR TESTING ONLY
B101: CASHFLOW ASSUMPTIONS (page 2)
B105: EXPENSES: RECURRING (CONTINUED)
B107: PETS ETC | F107: =baseyear -> 2016 | G107: =F107+60 -> 2076 | I107: 0 | J107: =INVESTMENTS!$E$82+I107 -> 0 | N107: =B107 -> PETS ETC | P107: =IF(P$14>=$F107,IF(P$14<=$G107,$D107*(1+$J107)^P$13,0),0) ->  | Z107: =IF(Z$14>=$F107,IF(Z$14<=$G107,$D107*(1+$J107)^Z$13,0),0) ->  | AJ107: =IF(AJ$14>=$F107,IF(AJ$14<=$G107,$D107*(1+$J107)^AJ$13,0),0) ->  | AT107: =IF(AT$14>=$F107,IF(AT$14<=$G107,$D107*(1+$J107)^AT$13,0),0) ->  | BD107: =IF(BD$14>=$F107,IF(BD$14<=$G107,$D107*(1+$J107)^BD$13,0),0) ->  | BN107: =IF(BN$14>=$F107,IF(BN$14<=$G107,$D107*(1+$J107)^BN$13,0),0) -> 
B108: TAXES - PROPERTY | C108: DEDUCTION | F108: 2016 | G108: 2076 | I108: 0 | J108: =INVESTMENTS!$E$82+I108 -> 0 | N108: TAXES - PROPERTY
B109: TAXES - AGI ADJUSTMENTS - OTHER 1 | F109: 2016 | G109: 2076 | I109: 0 | J109: =INVESTMENTS!$E$82+I109 -> 0 | N109: TAXES - AGI ADJUSTMENTS - OTHER 1
B110: TAXES - AGI ADJUSTMENTS - OTHER 2 | F110: 2016 | G110: 2076 | I110: 0 | J110: =INVESTMENTS!$E$82+I110 -> 0 | N110: TAXES - AGI ADJUSTMENTS - OTHER 2
B111: TAXES - ITEM'D DEDUCT'S OVER 2% AGI | F111: 2016 | G111: 2076 | I111: 0 | J111: =INVESTMENTS!$E$82+I111 -> 0 | N111: TAXES - ITEM'D DEDUCT'S OVER 2% AGI
B112: TAXES - ROTH IRA CONTRIBUTIONS | F112: 2016 | G112: 2076 | I112: 0 | J112: =INVESTMENTS!$E$82+I112 -> 0 | N112: TAXES - ROTH IRA CONTRIBUTIONS
B113: TELEPHONE | F113: 2016 | G113: 2076 | I113: 0 | J113: =INVESTMENTS!$E$82+I113 -> 0 | N113: TELEPHONE
B114: TRAVEL | F114: 2016 | G114: 2078 | I114: 0 | J114: =INVESTMENTS!$E$82+I114 -> 0 | N114: TRAVEL
B115: UTILITIES | F115: 2016 | G115: 2076 | I115: 0 | J115: =INVESTMENTS!$E$82+I115 -> 0 | N115: UTILITIES
B116: VACATION | F116: 2016 | G116: 2076 | I116: 0 | J116: =INVESTMENTS!$E$82+I116 -> 0 | N116: VACATION
B117: WHATEVER | F117: 2016 | G117: 2076 | I117: 0 | J117: =INVESTMENTS!$E$82+I117 -> 0 | N117: WHATEVER
N118: TOTAL RECURRING EXPENSES | P118: =SUM(P56:P117) ->  | AV118: =SUM(AV56:AV117) -> 
B120: EXPENSES: NON-RECURRING
B122: ECONOMIZE TRIGGER #1 | D122: 0 | N122: =B122 -> ECONOMIZE TRIGGER #1 | P122: =IF(P$14>=$F122,IF(P$14<=$G122,$D122*(1+$J122)^P$13,0),0) ->  | AV122: =IF(AV$14>=$F122,IF(AV$14<=$G122,$D122*(1+$J122)^AV$13,0),0) -> 
B123: 5 YEAR RETURN LAG TRIGGER #1 | D123: 0
B124: ECONOMIZE TRIGGER #2 | D124: 0 | N124: =B124 -> ECONOMIZE TRIGGER #2 | P124: =IF(P$14>=$F124,IF(P$14<=$G124,$D124*(1+$J124)^P$13,0),0) ->  | AV124: =IF(AV$14>=$F124,IF(AV$14<=$G124,$D124*(1+$J124)^AV$13,0),0) -> 
B125: 10 YEAR RETURN LAG TRIGGER #2 | D125: 0
B126: OTHER1 | F126: =baseyear -> 2016 | G126: =F126+60 -> 2076 | I126: 0 | J126: =INVESTMENTS!$E$82+I126 -> 0 | N126: =B126 -> OTHER1 | P126: =IF(P$14>=$F126,IF(P$14<=$G126,$D126*(1+$J126)^P$13,0),0) ->  | Z126: =IF(Z$14>=$F126,IF(Z$14<=$G126,$D126*(1+$J126)^Z$13,0),0) ->  | AJ126: =IF(AJ$14>=$F126,IF(AJ$14<=$G126,$D126*(1+$J126)^AJ$13,0),0) ->  | AT126: =IF(AT$14>=$F126,IF(AT$14<=$G126,$D126*(1+$J126)^AT$13,0),0) ->  | BD126: =IF(BD$14>=$F126,IF(BD$14<=$G126,$D126*(1+$J126)^BD$13,0),0) ->  | BN126: =IF(BN$14>=$F126,IF(BN$14<=$G126,$D126*(1+$J126)^BN$13,0),0) -> 
B127: OTHER 2 | F127: 2016 | G127: 2076 | I127: 0 | J127: =INVESTMENTS!$E$82+I127 -> 0 | N127: OTHER 2
B128: OTHER 3 | F128: 2016 | G128: 2076 | I128: 0 | J128: =INVESTMENTS!$E$82+I128 -> 0 | N128: OTHER 3
B129: OTHER 4 | F129: 2016 | G129: 2076 | I129: 0 | J129: =INVESTMENTS!$E$82+I129 -> 0 | N129: OTHER 4
B130: OTHER 5 | F130: 2016 | G130: 2076 | I130: 0 | J130: =INVESTMENTS!$E$82+I130 -> 0 | N130: OTHER 5
B131: OTHER 6 | F131: 2016 | G131: 2076 | I131: 0 | J131: =INVESTMENTS!$E$82+I131 -> 0 | N131: OTHER 6
B132: OTHER 7 | F132: 2016 | G132: 2076 | I132: 0 | J132: =INVESTMENTS!$E$82+I132 -> 0 | N132: OTHER 7
B133: OTHER 8 | F133: 2016 | G133: 2076 | I133: 0 | J133: =INVESTMENTS!$E$82+I133 -> 0 | N133: OTHER 8
B134: OTHER 9 | F134: 2016 | G134: 2076 | I134: 0 | J134: =INVESTMENTS!$E$82+I134 -> 0 | N134: OTHER 9
B135: OTHER 10 | F135: =baseyear -> 2016 | G135: =F135+60 -> 2076 | I135: 0 | J135: =INVESTMENTS!$E$82+I135 -> 0 | N135: OTHER 10
B136: OTHER 11 | F136: 2016 | G136: 2076 | I136: 0 | J136: =INVESTMENTS!$E$82+I136 -> 0 | N136: OTHER 11 | P136: =IF(P$14>=$F136,IF(P$14<=$G136,$D136*(1+$J136)^P$13,0),0) ->  | Z136: =IF(Z$14>=$F136,IF(Z$14<=$G136,$D136*(1+$J136)^Z$13,0),0) ->  | AJ136: =IF(AJ$14>=$F136,IF(AJ$14<=$G136,$D136*(1+$J136)^AJ$13,0),0) ->  | AT136: =IF(AT$14>=$F136,IF(AT$14<=$G136,$D136*(1+$J136)^AT$13,0),0) ->  | BD136: =IF(BD$14>=$F136,IF(BD$14<=$G136,$D136*(1+$J136)^BD$13,0),0) ->  | BN136: =IF(BN$14>=$F136,IF(BN$14<=$G136,$D136*(1+$J136)^BN$13,0),0) -> 
B137: OTHER 12 | F137: 2016 | G137: 2076 | I137: 0 | J137: =INVESTMENTS!$E$82+I137 -> 0 | N137: OTHER 12
B138: OTHER 13 | F138: 2016 | G138: 2076 | I138: 0 | J138: =INVESTMENTS!$E$82+I138 -> 0 | N138: OTHER 13
B139: OTHER 14 | F139: 2016 | G139: 2076 | I139: 0 | J139: =INVESTMENTS!$E$82+I139 -> 0 | N139: OTHER 14
B140: OTHER 15 | F140: 2016 | G140: 2076 | I140: 0 | J140: =INVESTMENTS!$E$82+I140 -> 0 | N140: OTHER 15
B141: OTHER 16 | F141: 2016 | G141: 2076 | I141: 0 | J141: =INVESTMENTS!$E$82+I141 -> 0 | N141: OTHER 16
B142: OTHER 17 | F142: 2016 | G142: 2076 | I142: 0 | J142: =INVESTMENTS!$E$82+I142 -> 0 | N142: OTHER 17
B143: OTHER 18 | F143: 2016 | G143: 2076 | I143: 0 | J143: =INVESTMENTS!$E$82+I143 -> 0 | N143: OTHER 18
B144: OTHER 11 | F144: 2016 | G144: =F144+60 -> 2076 | I144: 0 | J144: =[1]INVESTMENTS!$E$82+I144 ->  | N144: OTHER 11
B145: OTHER 12 | F145: 2016 | G145: 2076 | I145: 0 | J145: =[1]INVESTMENTS!$E$82+I145 ->  | N145: OTHER 12
B146: OTHER 13 | F146: 2016 | G146: 2076 | I146: 0 | J146: =[1]INVESTMENTS!$E$82+I146 ->  | N146: OTHER 13 | P146: =IF(P$14>=$F146,IF(P$14<=$G146,$D146*(1+$J146)^P$13,0),0) ->  | Z146: =IF(Z$14>=$F146,IF(Z$14<=$G146,$D146*(1+$J146)^Z$13,0),0) ->  | AJ146: =IF(AJ$14>=$F146,IF(AJ$14<=$G146,$D146*(1+$J146)^AJ$13,0),0) ->  | AT146: =IF(AT$14>=$F146,IF(AT$14<=$G146,$D146*(1+$J146)^AT$13,0),0) ->  | BD146: =IF(BD$14>=$F146,IF(BD$14<=$G146,$D146*(1+$J146)^BD$13,0),0) ->  | BN146: =IF(BN$14>=$F146,IF(BN$14<=$G146,$D146*(1+$J146)^BN$13,0),0) -> 
B147: OTHER 14 | F147: 2016 | G147: 2076 | I147: 0 | J147: =[1]INVESTMENTS!$E$82+I147 ->  | N147: OTHER 14
B148: OTHER 15 | F148: 2016 | G148: 2076 | I148: 0 | J148: =[1]INVESTMENTS!$E$82+I148 ->  | N148: OTHER 15
B149: OTHER 16 | F149: 2016 | G149: 2076 | I149: 0 | J149: =[1]INVESTMENTS!$E$82+I149 ->  | N149: OTHER 16
B150: OTHER 17 | F150: 2016 | G150: 2076 | I150: 0 | J150: =[1]INVESTMENTS!$E$82+I150 ->  | N150: OTHER 17
B151: OTHER 18 | F151: 2016 | G151: 2076 | I151: 0 | J151: =[1]INVESTMENTS!$E$82+I151 ->  | N151: OTHER 18
B152: OTHER 19 | F152: 2016 | G152: 2076 | I152: 0 | J152: =[1]INVESTMENTS!$E$82+I152 ->  | N152: OTHER 19
B153: OTHER 20 | F153: 2016 | G153: 2076 | I153: 0 | J153: =[1]INVESTMENTS!$E$82+I153 ->  | N153: OTHER 20
B154: OTHER 21 | F154: 2016 | G154: 2076 | I154: 0 | J154: =[1]INVESTMENTS!$E$82+I154 ->  | N154: OTHER 21
B155: OTHER 22 | F155: 2016 | G155: 2076 | I155: 0 | J155: =[1]INVESTMENTS!$E$82+I155 ->  | N155: OTHER 22
B156: OTHER 23 | F156: 2016 | G156: 2076 | I156: 0 | J156: =[1]INVESTMENTS!$E$82+I156 ->  | N156: OTHER 23 | P156: =IF(P$14>=$F156,IF(P$14<=$G156,$D156*(1+$J156)^P$13,0),0) ->  | Z156: =IF(Z$14>=$F156,IF(Z$14<=$G156,$D156*(1+$J156)^Z$13,0),0) ->  | AJ156: =IF(AJ$14>=$F156,IF(AJ$14<=$G156,$D156*(1+$J156)^AJ$13,0),0) ->  | AT156: =IF(AT$14>=$F156,IF(AT$14<=$G156,$D156*(1+$J156)^AT$13,0),0) ->  | BD156: =IF(BD$14>=$F156,IF(BD$14<=$G156,$D156*(1+$J156)^BD$13,0),0) ->  | BN156: =IF(BN$14>=$F156,IF(BN$14<=$G156,$D156*(1+$J156)^BN$13,0),0) -> 
B157: OTHER 24 | F157: 2016 | G157: 2076 | I157: 0 | J157: =[1]INVESTMENTS!$E$82+I157 ->  | N157: OTHER 24
B158: OTHER 25 | F158: 2016 | G158: 2076 | I158: 0 | J158: =[1]INVESTMENTS!$E$82+I158 ->  | N158: OTHER 25
B159: OTHER 26 | F159: 2016 | G159: 2076 | I159: 0 | J159: =[1]INVESTMENTS!$E$82+I159 ->  | N159: OTHER 26
B160: OTHER 27 | F160: 2016 | G160: 2076 | I160: 0 | J160: =[1]INVESTMENTS!$E$82+I160 ->  | N160: OTHER 27
B161: OTHER 28 | F161: 2016 | G161: 2076 | I161: 0 | J161: =[1]INVESTMENTS!$E$82+I161 ->  | N161: OTHER 28
N163: TOTAL NON-RECURRING | P163: =SUM(P122:P161) ->  | AV163: =SUM(AV122:AV161) -> 
N169: =N50 -> PRE-TAX SAVINGS | P169: =-P50-P49-P48 ->  | AV169: =-AV50-AV49-AV48 -> 
N173: AGI | P173: =P52-P28-P29-SUM(P42:P47)-(P33+P34+#REF!)*0.15+IF(C28=-2,P28/2,0)-IF(C29=-2,P29/2,0)-P109-P110 ->  | Q173: =Q52-Q28-Q29-SUM(Q42:Q47)-(Q33+Q34+#REF!)*0.15+IF(D28=-2,Q28/2,0)-IF(D29=-2,Q29/2,0)-Q109-Q110 ->  | R173: =R52-R28-R29-SUM(R42:R47)-(R33+R34+#REF!)*0.15+IF(E28=-2,R28/2,0)-IF(E29=-2,R29/2,0)-R109-R110 ->  | S173: =S52-S28-S29-SUM(S42:S47)-(S33+S34+#REF!)*0.15+IF(F28=-2,S28/2,0)-IF(F29=-2,S29/2,0)-S109-S110 ->  | T173: =T52-T28-T29-SUM(T42:T47)-(T33+T34+#REF!)*0.15+IF(G28=-2,T28/2,0)-IF(G29=-2,T29/2,0)-T109-T110 ->  | U173: =U52-U28-U29-SUM(U42:U47)-(U33+U34+#REF!)*0.15+IF(H28=-2,U28/2,0)-IF(H29=-2,U29/2,0)-U109-U110 ->  | V173: =V52-V28-V29-SUM(V42:V47)-(V33+V34+#REF!)*0.15+IF(I28=-2,V28/2,0)-IF(I29=-2,V29/2,0)-V109-V110 ->  | W173: =W52-W28-W29-SUM(W42:W47)-(W33+W34+#REF!)*0.15+IF(J28=-2,W28/2,0)-IF(J29=-2,W29/2,0)-W109-W110 ->  | X173: =X52-X28-X29-SUM(X42:X47)-(X33+X34+#REF!)*0.15+IF(K28=-2,X28/2,0)-IF(K29=-2,X29/2,0)-X109-X110 ->  | Y173: =Y52-Y28-Y29-SUM(Y42:Y47)-(Y33+Y34+#REF!)*0.15+IF(L28=-2,Y28/2,0)-IF(L29=-2,Y29/2,0)-Y109-Y110 ->  | Z173: =Z52-Z28-Z29-SUM(Z42:Z47)-(Z33+Z34+#REF!)*0.15+IF(M28=-2,Z28/2,0)-IF(M29=-2,Z29/2,0)-Z109-Z110 ->  | AA173: =AA52-AA28-AA29-SUM(AA42:AA47)-(AA33+AA34+#REF!)*0.15+IF(N28=-2,AA28/2,0)-IF(N29=-2,AA29/2,0)-AA109-AA110 ->  | AB173: =AB52-AB28-AB29-SUM(AB42:AB47)-(AB33+AB34+#REF!)*0.15+IF(O28=-2,AB28/2,0)-IF(O29=-2,AB29/2,0)-AB109-AB110 ->  | AC173: =AC52-AC28-AC29-SUM(AC42:AC47)-(AC33+AC34+#REF!)*0.15+IF(P28=-2,AC28/2,0)-IF(P29=-2,AC29/2,0)-AC109-AC110 ->  | AD173: =AD52-AD28-AD29-SUM(AD42:AD47)-(AD33+AD34+#REF!)*0.15+IF(Q28=-2,AD28/2,0)-IF(Q29=-2,AD29/2,0)-AD109-AD110 ->  | AE173: =AE52-AE28-AE29-SUM(AE42:AE47)-(AE33+AE34+#REF!)*0.15+IF(R28=-2,AE28/2,0)-IF(R29=-2,AE29/2,0)-AE109-AE110 ->  | AF173: =AF52-AF28-AF29-SUM(AF42:AF47)-(AF33+AF34+#REF!)*0.15+IF(S28=-2,AF28/2,0)-IF(S29=-2,AF29/2,0)-AF109-AF110 ->  | AG173: =AG52-AG28-AG29-SUM(AG42:AG47)-(AG33+AG34+#REF!)*0.15+IF(T28=-2,AG28/2,0)-IF(T29=-2,AG29/2,0)-AG109-AG110 ->  | AH173: =AH52-AH28-AH29-SUM(AH42:AH47)-(AH33+AH34+#REF!)*0.15+IF(U28=-2,AH28/2,0)-IF(U29=-2,AH29/2,0)-AH109-AH110 ->  | AI173: =AI52-AI28-AI29-SUM(AI42:AI47)-(AI33+AI34+#REF!)*0.15+IF(V28=-2,AI28/2,0)-IF(V29=-2,AI29/2,0)-AI109-AI110 ->  | AJ173: =AJ52-AJ28-AJ29-SUM(AJ42:AJ47)-(AJ33+AJ34+#REF!)*0.15+IF(W28=-2,AJ28/2,0)-IF(W29=-2,AJ29/2,0)-AJ109-AJ110 ->  | AK173: =AK52-AK28-AK29-SUM(AK42:AK47)-(AK33+AK34+#REF!)*0.15+IF(X28=-2,AK28/2,0)-IF(X29=-2,AK29/2,0)-AK109-AK110 ->  | AL173: =AL52-AL28-AL29-SUM(AL42:AL47)-(AL33+AL34+#REF!)*0.15+IF(Y28=-2,AL28/2,0)-IF(Y29=-2,AL29/2,0)-AL109-AL110 ->  | AM173: =AM52-AM28-AM29-SUM(AM42:AM47)-(AM33+AM34+#REF!)*0.15+IF(Z28=-2,AM28/2,0)-IF(Z29=-2,AM29/2,0)-AM109-AM110 ->  | AN173: =AN52-AN28-AN29-SUM(AN42:AN47)-(AN33+AN34+#REF!)*0.15+IF(AA28=-2,AN28/2,0)-IF(AA29=-2,AN29/2,0)-AN109-AN110 ->  | AO173: =AO52-AO28-AO29-SUM(AO42:AO47)-(AO33+AO34+#REF!)*0.15+IF(AB28=-2,AO28/2,0)-IF(AB29=-2,AO29/2,0)-AO109-AO110 ->  | AP173: =AP52-AP28-AP29-SUM(AP42:AP47)-(AP33+AP34+#REF!)*0.15+IF(AC28=-2,AP28/2,0)-IF(AC29=-2,AP29/2,0)-AP109-AP110 ->  | AQ173: =AQ52-AQ28-AQ29-SUM(AQ42:AQ47)-(AQ33+AQ34+#REF!)*0.15+IF(AD28=-2,AQ28/2,0)-IF(AD29=-2,AQ29/2,0)-AQ109-AQ110 ->  | AR173: =AR52-AR28-AR29-SUM(AR42:AR47)-(AR33+AR34+#REF!)*0.15+IF(AE28=-2,AR28/2,0)-IF(AE29=-2,AR29/2,0)-AR109-AR110 ->  | AS173: =AS52-AS28-AS29-SUM(AS42:AS47)-(AS33+AS34+#REF!)*0.15+IF(AF28=-2,AS28/2,0)-IF(AF29=-2,AS29/2,0)-AS109-AS110 ->  | AT173: =AT52-AT28-AT29-SUM(AT42:AT47)-(AT33+AT34+#REF!)*0.15+IF(AG28=-2,AT28/2,0)-IF(AG29=-2,AT29/2,0)-AT109-AT110 ->  | AU173: =AU52-AU28-AU29-SUM(AU42:AU47)-(AU33+AU34+#REF!)*0.15+IF(AH28=-2,AU28/2,0)-IF(AH29=-2,AU29/2,0)-AU109-AU110 ->  | AV173: =AV52-AV28-AV29-SUM(AV42:AV47)-(AV33+AV34+#REF!)*0.15+IF(AI28=-2,AV28/2,0)-IF(AI29=-2,AV29/2,0)-AV109-AV110 ->  | AW173: =AW52-AW28-AW29-SUM(AW42:AW47)-(AW33+AW34+#REF!)*0.15+IF(AJ28=-2,AW28/2,0)-IF(AJ29=-2,AW29/2,0)-AW109-AW110 ->  | AX173: =AX52-AX28-AX29-SUM(AX42:AX47)-(AX33+AX34+#REF!)*0.15+IF(AK28=-2,AX28/2,0)-IF(AK29=-2,AX29/2,0)-AX109-AX110 ->  | AY173: =AY52-AY28-AY29-SUM(AY42:AY47)-(AY33+AY34+#REF!)*0.15+IF(AL28=-2,AY28/2,0)-IF(AL29=-2,AY29/2,0)-AY109-AY110 ->  | AZ173: =AZ52-AZ28-AZ29-SUM(AZ42:AZ47)-(AZ33+AZ34+#REF!)*0.15+IF(AM28=-2,AZ28/2,0)-IF(AM29=-2,AZ29/2,0)-AZ109-AZ110 ->  | BA173: =BA52-BA28-BA29-SUM(BA42:BA47)-(BA33+BA34+#REF!)*0.15+IF(AN28=-2,BA28/2,0)-IF(AN29=-2,BA29/2,0)-BA109-BA110 ->  | BB173: =BB52-BB28-BB29-SUM(BB42:BB47)-(BB33+BB34+#REF!)*0.15+IF(AO28=-2,BB28/2,0)-IF(AO29=-2,BB29/2,0)-BB109-BB110 ->  | BC173: =BC52-BC28-BC29-SUM(BC42:BC47)-(BC33+BC34+#REF!)*0.15+IF(AP28=-2,BC28/2,0)-IF(AP29=-2,BC29/2,0)-BC109-BC110 ->  | BD173: =BD52-BD28-BD29-SUM(BD42:BD47)-(BD33+BD34+#REF!)*0.15+IF(AQ28=-2,BD28/2,0)-IF(AQ29=-2,BD29/2,0)-BD109-BD110 ->  | BE173: =BE52-BE28-BE29-SUM(BE42:BE47)-(BE33+BE34+#REF!)*0.15+IF(AR28=-2,BE28/2,0)-IF(AR29=-2,BE29/2,0)-BE109-BE110 ->  | BF173: =BF52-BF28-BF29-SUM(BF42:BF47)-(BF33+BF34+#REF!)*0.15+IF(AS28=-2,BF28/2,0)-IF(AS29=-2,BF29/2,0)-BF109-BF110 ->  | BG173: =BG52-BG28-BG29-SUM(BG42:BG47)-(BG33+BG34+#REF!)*0.15+IF(AT28=-2,BG28/2,0)-IF(AT29=-2,BG29/2,0)-BG109-BG110 ->  | BH173: =BH52-BH28-BH29-SUM(BH42:BH47)-(BH33+BH34+#REF!)*0.15+IF(AU28=-2,BH28/2,0)-IF(AU29=-2,BH29/2,0)-BH109-BH110 ->  | BI173: =BI52-BI28-BI29-SUM(BI42:BI47)-(BI33+BI34+#REF!)*0.15+IF(AV28=-2,BI28/2,0)-IF(AV29=-2,BI29/2,0)-BI109-BI110 ->  | BJ173: =BJ52-BJ28-BJ29-SUM(BJ42:BJ47)-(BJ33+BJ34+#REF!)*0.15+IF(AW28=-2,BJ28/2,0)-IF(AW29=-2,BJ29/2,0)-BJ109-BJ110 ->  | BK173: =BK52-BK28-BK29-SUM(BK42:BK47)-(BK33+BK34+#REF!)*0.15+IF(AX28=-2,BK28/2,0)-IF(AX29=-2,BK29/2,0)-BK109-BK110 ->  | BL173: =BL52-BL28-BL29-SUM(BL42:BL47)-(BL33+BL34+#REF!)*0.15+IF(AY28=-2,BL28/2,0)-IF(AY29=-2,BL29/2,0)-BL109-BL110 ->  | BM173: =BM52-BM28-BM29-SUM(BM42:BM47)-(BM33+BM34+#REF!)*0.15+IF(AZ28=-2,BM28/2,0)-IF(AZ29=-2,BM29/2,0)-BM109-BM110 ->  | BN173: =BN52-BN28-BN29-SUM(BN42:BN47)-(BN33+BN34+#REF!)*0.15+IF(BA28=-2,BN28/2,0)-IF(BA29=-2,BN29/2,0)-BN109-BN110 ->  | BO173: =BO52-BO28-BO29-SUM(BO42:BO47)-(BO33+BO34+#REF!)*0.15+IF(BB28=-2,BO28/2,0)-IF(BB29=-2,BO29/2,0)-BO109-BO110 ->  | BP173: =BP52-BP28-BP29-SUM(BP42:BP47)-(BP33+BP34+#REF!)*0.15+IF(BC28=-2,BP28/2,0)-IF(BC29=-2,BP29/2,0)-BP109-BP110 ->  | BQ173: =BQ52-BQ28-BQ29-SUM(BQ42:BQ47)-(BQ33+BQ34+#REF!)*0.15+IF(BD28=-2,BQ28/2,0)-IF(BD29=-2,BQ29/2,0)-BQ109-BQ110 ->  | BR173: =BR52-BR28-BR29-SUM(BR42:BR47)-(BR33+BR34+#REF!)*0.15+IF(BE28=-2,BR28/2,0)-IF(BE29=-2,BR29/2,0)-BR109-BR110 ->  | BS173: =BS52-BS28-BS29-SUM(BS42:BS47)-(BS33+BS34+#REF!)*0.15+IF(BF28=-2,BS28/2,0)-IF(BF29=-2,BS29/2,0)-BS109-BS110 ->  | BT173: =BT52-BT28-BT29-SUM(BT42:BT47)-(BT33+BT34+#REF!)*0.15+IF(BG28=-2,BT28/2,0)-IF(BG29=-2,BT29/2,0)-BT109-BT110 ->  | BU173: =BU52-BU28-BU29-SUM(BU42:BU47)-(BU33+BU34+#REF!)*0.15+IF(BH28=-2,BU28/2,0)-IF(BH29=-2,BU29/2,0)-BU109-BU110 ->  | BV173: =BV52-BV28-BV29-SUM(BV42:BV47)-(BV33+BV34+#REF!)*0.15+IF(BI28=-2,BV28/2,0)-IF(BI29=-2,BV29/2,0)-BV109-BV110 ->  | BW173: =BW52-BW28-BW29-SUM(BW42:BW47)-(BW33+BW34+#REF!)*0.15+IF(BJ28=-2,BW28/2,0)-IF(BJ29=-2,BW29/2,0)-BW109-BW110 ->  | BX173: =BX52-BX28-BX29-SUM(BX42:BX47)-(BX33+BX34+#REF!)*0.15+IF(BK28=-2,BX28/2,0)-IF(BK29=-2,BX29/2,0)-BX109-BX110 -> 
N176: MEDICAL TAX DEDUCTIBLE | P176: =SUM(P78:P82) ->  | AV176: =SUM(AV78:AV82) -> 

Sheet CF ASSUMPTIONS (hidden)
B1: ='GENERAL ASSUMPTIONS'!C10 -> BETA 05142017 - FOR TESTING ONLY | N1: ='INCOME TAXES'!G37 -> MEDICARE of FICA - married threshold add'l tax | P1: ='INCOME TAXES'!H37 -> 0.009 | Q1: =P1 -> 0.009 | R1: =Q1 -> 0.009 | S1: 0.009 | T1: 0.009 | U1: 0.009 | V1: 0.009 | W1: 0.009 | X1: 0.009 | Y1: 0.009 | Z1: 0.009 | AA1: 0.009 | AB1: 0.009 | AC1: 0.009 | AD1: 0.009 | AE1: 0.009 | AF1: 0.009 | AG1: 0.009 | AH1: 0.009 | AI1: 0.009 | AJ1: 0.009 | AK1: 0.009 | AL1: 0.009 | AM1: 0.009 | AN1: 0.009 | AO1: 0.009 | AP1: 0.009 | AQ1: 0.009 | AR1: 0.009 | AS1: 0.009 | AT1: 0.009 | AU1: 0.009 | AV1: 0.009 | AW1: 0.009 | AX1: 0.009 | AY1: 0.009 | AZ1: 0.009 | BA1: 0.009 | BB1: 0.009 | BC1: 0.009 | BD1: 0.009 | BE1: 0.009 | BF1: 0.009 | BG1: 0.009 | BH1: 0.009 | BI1: 0.009 | BJ1: 0.009 | BK1: 0.009 | BL1: 0.009 | BM1: 0.009 | BN1: 0.009 | BO1: 0.009 | BP1: 0.009 | BQ1: 0.009 | BR1: 0.009 | BS1: 0.009 | BT1: 0.009 | BU1: 0.009 | BV1: 0.009 | BW1: 0.009 | BX1: 0.009
N2: client 1 - tax $$ over threshold | P2: =IF(SUM(P20:P23)>'INCOME TAXES'!$I$37,(SUM(P20:P23)-'INCOME TAXES'!$I$37)*P1,0)*IF('GENERAL ASSUMPTIONS'!$C$34="m",1,0) -> 0 | Q2: =IF(SUM(Q20:Q23)>'INCOME TAXES'!$I$37,(SUM(Q20:Q23)-'INCOME TAXES'!$I$37)*Q1,0)*IF('GENERAL ASSUMPTIONS'!$C$34="m",1,0) -> 0 | R2: =IF(SUM(R20:R23)>'INCOME TAXES'!$I$37,(SUM(R20:R23)-'INCOME TAXES'!$I$37)*R1,0)*IF('GENERAL ASSUMPTIONS'!$C$34="m",1,0) -> 0 | S2: =IF(SUM(S20:S23)>'INCOME TAXES'!$I$37,(SUM(S20:S23)-'INCOME TAXES'!$I$37)*S1,0)*IF('GENERAL ASSUMPTIONS'!$C$34="m",1,0) -> 0 | T2: =IF(SUM(T20:T23)>'INCOME TAXES'!$I$37,(SUM(T20:T23)-'INCOME TAXES'!$I$37)*T1,0)*IF('GENERAL ASSUMPTIONS'!$C$34="m",1,0) -> 0 | U2: =IF(SUM(U20:U23)>'INCOME TAXES'!$I$37,(SUM(U20:U23)-'INCOME TAXES'!$I$37)*U1,0)*IF('GENERAL ASSUMPTIONS'!$C$34="m",1,0) -> 0 | V2: =IF(SUM(V20:V23)>'INCOME TAXES'!$I$37,(SUM(V20:V23)-'INCOME TAXES'!$I$37)*V1,0)*IF('GENERAL ASSUMPTIONS'!$C$34="m",1,0) -> 0 | W2: =IF(SUM(W20:W23)>'INCOME TAXES'!$I$37,(SUM(W20:W23)-'INCOME TAXES'!$I$37)*W1,0)*IF('GENERAL ASSUMPTIONS'!$C$34="m",1,0) -> 0 | X2: =IF(SUM(X20:X23)>'INCOME TAXES'!$I$37,(SUM(X20:X23)-'INCOME TAXES'!$I$37)*X1,0)*IF('GENERAL ASSUMPTIONS'!$C$34="m",1,0) -> 0 | Y2: =IF(SUM(Y20:Y23)>'INCOME TAXES'!$I$37,(SUM(Y20:Y23)-'INCOME TAXES'!$I$37)*Y1,0)*IF('GENERAL ASSUMPTIONS'!$C$34="m",1,0) -> 0 | Z2: =IF(SUM(Z20:Z23)>'INCOME TAXES'!$I$37,(SUM(Z20:Z23)-'INCOME TAXES'!$I$37)*Z1,0)*IF('GENERAL ASSUMPTIONS'!$C$34="m",1,0) -> 0 | AA2: =IF(SUM(AA20:AA23)>'INCOME TAXES'!$I$37,(SUM(AA20:AA23)-'INCOME TAXES'!$I$37)*AA1,0)*IF('GENERAL ASSUMPTIONS'!$C$34="m",1,0) -> 0 | AB2: =IF(SUM(AB20:AB23)>'INCOME TAXES'!$I$37,(SUM(AB20:AB23)-'INCOME TAXES'!$I$37)*AB1,0)*IF('GENERAL ASSUMPTIONS'!$C$34="m",1,0) -> 0 | AC2: =IF(SUM(AC20:AC23)>'INCOME TAXES'!$I$37,(SUM(AC20:AC23)-'INCOME TAXES'!$I$37)*AC1,0)*IF('GENERAL ASSUMPTIONS'!$C$34="m",1,0) -> 0 | AD2: =IF(SUM(AD20:AD23)>'INCOME TAXES'!$I$37,(SUM(AD20:AD23)-'INCOME TAXES'!$I$37)*AD1,0)*IF('GENERAL ASSUMPTIONS'!$C$34="m",1,0) -> 0 | AE2: =IF(SUM(AE20:AE23)>'INCOME TAXES'!$I$37,(SUM(AE20:AE23)-'INCOME TAXES'!$I$37)*AE1,0)*IF('GENERAL ASSUMPTIONS'!$C$34="m",1,0) -> 0 | AF2: =IF(SUM(AF20:AF23)>'INCOME TAXES'!$I$37,(SUM(AF20:AF23)-'INCOME TAXES'!$I$37)*AF1,0)*IF('GENERAL ASSUMPTIONS'!$C$34="m",1,0) -> 0 | AG2: =IF(SUM(AG20:AG23)>'INCOME TAXES'!$I$37,(SUM(AG20:AG23)-'INCOME TAXES'!$I$37)*AG1,0)*IF('GENERAL ASSUMPTIONS'!$C$34="m",1,0) -> 0 | AH2: =IF(SUM(AH20:AH23)>'INCOME TAXES'!$I$37,(SUM(AH20:AH23)-'INCOME TAXES'!$I$37)*AH1,0)*IF('GENERAL ASSUMPTIONS'!$C$34="m",1,0) -> 0 | AI2: =IF(SUM(AI20:AI23)>'INCOME TAXES'!$I$37,(SUM(AI20:AI23)-'INCOME TAXES'!$I$37)*AI1,0)*IF('GENERAL ASSUMPTIONS'!$C$34="m",1,0) -> 0 | AJ2: =IF(SUM(AJ20:AJ23)>'INCOME TAXES'!$I$37,(SUM(AJ20:AJ23)-'INCOME TAXES'!$I$37)*AJ1,0)*IF('GENERAL ASSUMPTIONS'!$C$34="m",1,0) -> 0 | AK2: =IF(SUM(AK20:AK23)>'INCOME TAXES'!$I$37,(SUM(AK20:AK23)-'INCOME TAXES'!$I$37)*AK1,0)*IF('GENERAL ASSUMPTIONS'!$C$34="m",1,0) -> 0 | AL2: =IF(SUM(AL20:AL23)>'INCOME TAXES'!$I$37,(SUM(AL20:AL23)-'INCOME TAXES'!$I$37)*AL1,0)*IF('GENERAL ASSUMPTIONS'!$C$34="m",1,0) -> 0 | AM2: =IF(SUM(AM20:AM23)>'INCOME TAXES'!$I$37,(SUM(AM20:AM23)-'INCOME TAXES'!$I$37)*AM1,0)*IF('GENERAL ASSUMPTIONS'!$C$34="m",1,0) -> 0 | AN2: =IF(SUM(AN20:AN23)>'INCOME TAXES'!$I$37,(SUM(AN20:AN23)-'INCOME TAXES'!$I$37)*AN1,0)*IF('GENERAL ASSUMPTIONS'!$C$34="m",1,0) -> 0 | AO2: =IF(SUM(AO20:AO23)>'INCOME TAXES'!$I$37,(SUM(AO20:AO23)-'INCOME TAXES'!$I$37)*AO1,0)*IF('GENERAL ASSUMPTIONS'!$C$34="m",1,0) -> 0 | AP2: =IF(SUM(AP20:AP23)>'INCOME TAXES'!$I$37,(SUM(AP20:AP23)-'INCOME TAXES'!$I$37)*AP1,0)*IF('GENERAL ASSUMPTIONS'!$C$34="m",1,0) -> 0 | AQ2: =IF(SUM(AQ20:AQ23)>'INCOME TAXES'!$I$37,(SUM(AQ20:AQ23)-'INCOME TAXES'!$I$37)*AQ1,0)*IF('GENERAL ASSUMPTIONS'!$C$34="m",1,0) -> 0 | AR2: =IF(SUM(AR20:AR23)>'INCOME TAXES'!$I$37,(SUM(AR20:AR23)-'INCOME TAXES'!$I$37)*AR1,0)*IF('GENERAL ASSUMPTIONS'!$C$34="m",1,0) -> 0 | AS2: =IF(SUM(AS20:AS23)>'INCOME TAXES'!$I$37,(SUM(AS20:AS23)-'INCOME TAXES'!$I$37)*AS1,0)*IF('GENERAL ASSUMPTIONS'!$C$34="m",1,0) -> 0 | AT2: =IF(SUM(AT20:AT23)>'INCOME TAXES'!$I$37,(SUM(AT20:AT23)-'INCOME TAXES'!$I$37)*AT1,0)*IF('GENERAL ASSUMPTIONS'!$C$34="m",1,0) -> 0 | AU2: =IF(SUM(AU20:AU23)>'INCOME TAXES'!$I$37,(SUM(AU20:AU23)-'INCOME TAXES'!$I$37)*AU1,0)*IF('GENERAL ASSUMPTIONS'!$C$34="m",1,0) -> 0 | AV2: =IF(SUM(AV20:AV23)>'INCOME TAXES'!$I$37,(SUM(AV20:AV23)-'INCOME TAXES'!$I$37)*AV1,0)*IF('GENERAL ASSUMPTIONS'!$C$34="m",1,0) -> 0 | AW2: =IF(SUM(AW20:AW23)>'INCOME TAXES'!$I$37,(SUM(AW20:AW23)-'INCOME TAXES'!$I$37)*AW1,0)*IF('GENERAL ASSUMPTIONS'!$C$34="m",1,0) -> 0 | AX2: =IF(SUM(AX20:AX23)>'INCOME TAXES'!$I$37,(SUM(AX20:AX23)-'INCOME TAXES'!$I$37)*AX1,0)*IF('GENERAL ASSUMPTIONS'!$C$34="m",1,0) -> 0 | AY2: =IF(SUM(AY20:AY23)>'INCOME TAXES'!$I$37,(SUM(AY20:AY23)-'INCOME TAXES'!$I$37)*AY1,0)*IF('GENERAL ASSUMPTIONS'!$C$34="m",1,0) -> 0 | AZ2: =IF(SUM(AZ20:AZ23)>'INCOME TAXES'!$I$37,(SUM(AZ20:AZ23)-'INCOME TAXES'!$I$37)*AZ1,0)*IF('GENERAL ASSUMPTIONS'!$C$34="m",1,0) -> 0 | BA2: =IF(SUM(BA20:BA23)>'INCOME TAXES'!$I$37,(SUM(BA20:BA23)-'INCOME TAXES'!$I$37)*BA1,0)*IF('GENERAL ASSUMPTIONS'!$C$34="m",1,0) -> 0 | BB2: =IF(SUM(BB20:BB23)>'INCOME TAXES'!$I$37,(SUM(BB20:BB23)-'INCOME TAXES'!$I$37)*BB1,0)*IF('GENERAL ASSUMPTIONS'!$C$34="m",1,0) -> 0 | BC2: =IF(SUM(BC20:BC23)>'INCOME TAXES'!$I$37,(SUM(BC20:BC23)-'INCOME TAXES'!$I$37)*BC1,0)*IF('GENERAL ASSUMPTIONS'!$C$34="m",1,0) -> 0 | BD2: =IF(SUM(BD20:BD23)>'INCOME TAXES'!$I$37,(SUM(BD20:BD23)-'INCOME TAXES'!$I$37)*BD1,0)*IF('GENERAL ASSUMPTIONS'!$C$34="m",1,0) -> 0 | BE2: =IF(SUM(BE20:BE23)>'INCOME TAXES'!$I$37,(SUM(BE20:BE23)-'INCOME TAXES'!$I$37)*BE1,0)*IF('GENERAL ASSUMPTIONS'!$C$34="m",1,0) -> 0 | BF2: =IF(SUM(BF20:BF23)>'INCOME TAXES'!$I$37,(SUM(BF20:BF23)-'INCOME TAXES'!$I$37)*BF1,0)*IF('GENERAL ASSUMPTIONS'!$C$34="m",1,0) -> 0 | BG2: =IF(SUM(BG20:BG23)>'INCOME TAXES'!$I$37,(SUM(BG20:BG23)-'INCOME TAXES'!$I$37)*BG1,0)*IF('GENERAL ASSUMPTIONS'!$C$34="m",1,0) -> 0 | BH2: =IF(SUM(BH20:BH23)>'INCOME TAXES'!$I$37,(SUM(BH20:BH23)-'INCOME TAXES'!$I$37)*BH1,0)*IF('GENERAL ASSUMPTIONS'!$C$34="m",1,0) -> 0 | BI2: =IF(SUM(BI20:BI23)>'INCOME TAXES'!$I$37,(SUM(BI20:BI23)-'INCOME TAXES'!$I$37)*BI1,0)*IF('GENERAL ASSUMPTIONS'!$C$34="m",1,0) -> 0 | BJ2: =IF(SUM(BJ20:BJ23)>'INCOME TAXES'!$I$37,(SUM(BJ20:BJ23)-'INCOME TAXES'!$I$37)*BJ1,0)*IF('GENERAL ASSUMPTIONS'!$C$34="m",1,0) -> 0 | BK2: =IF(SUM(BK20:BK23)>'INCOME TAXES'!$I$37,(SUM(BK20:BK23)-'INCOME TAXES'!$I$37)*BK1,0)*IF('GENERAL ASSUMPTIONS'!$C$34="m",1,0) -> 0 | BL2: =IF(SUM(BL20:BL23)>'INCOME TAXES'!$I$37,(SUM(BL20:BL23)-'INCOME TAXES'!$I$37)*BL1,0)*IF('GENERAL ASSUMPTIONS'!$C$34="m",1,0) -> 0 | BM2: =IF(SUM(BM20:BM23)>'INCOME TAXES'!$I$37,(SUM(BM20:BM23)-'INCOME TAXES'!$I$37)*BM1,0)*IF('GENERAL ASSUMPTIONS'!$C$34="m",1,0) -> 0 | BN2: =IF(SUM(BN20:BN23)>'INCOME TAXES'!$I$37,(SUM(BN20:BN23)-'INCOME TAXES'!$I$37)*BN1,0)*IF('GENERAL ASSUMPTIONS'!$C$34="m",1,0) -> 0 | BO2: =IF(SUM(BO20:BO23)>'INCOME TAXES'!$I$37,(SUM(BO20:BO23)-'INCOME TAXES'!$I$37)*BO1,0)*IF('GENERAL ASSUMPTIONS'!$C$34="m",1,0) -> 0 | BP2: =IF(SUM(BP20:BP23)>'INCOME TAXES'!$I$37,(SUM(BP20:BP23)-'INCOME TAXES'!$I$37)*BP1,0)*IF('GENERAL ASSUMPTIONS'!$C$34="m",1,0) -> 0 | BQ2: =IF(SUM(BQ20:BQ23)>'INCOME TAXES'!$I$37,(SUM(BQ20:BQ23)-'INCOME TAXES'!$I$37)*BQ1,0)*IF('GENERAL ASSUMPTIONS'!$C$34="m",1,0) -> 0 | BR2: =IF(SUM(BR20:BR23)>'INCOME TAXES'!$I$37,(SUM(BR20:BR23)-'INCOME TAXES'!$I$37)*BR1,0)*IF('GENERAL ASSUMPTIONS'!$C$34="m",1,0) -> 0 | BS2: =IF(SUM(BS20:BS23)>'INCOME TAXES'!$I$37,(SUM(BS20:BS23)-'INCOME TAXES'!$I$37)*BS1,0)*IF('GENERAL ASSUMPTIONS'!$C$34="m",1,0) -> 0 | BT2: =IF(SUM(BT20:BT23)>'INCOME TAXES'!$I$37,(SUM(BT20:BT23)-'INCOME TAXES'!$I$37)*BT1,0)*IF('GENERAL ASSUMPTIONS'!$C$34="m",1,0) -> 0 | BU2: =IF(SUM(BU20:BU23)>'INCOME TAXES'!$I$37,(SUM(BU20:BU23)-'INCOME TAXES'!$I$37)*BU1,0)*IF('GENERAL ASSUMPTIONS'!$C$34="m",1,0) -> 0 | BV2: =IF(SUM(BV20:BV23)>'INCOME TAXES'!$I$37,(SUM(BV20:BV23)-'INCOME TAXES'!$I$37)*BV1,0)*IF('GENERAL ASSUMPTIONS'!$C$34="m",1,0) -> 0 | BW2: =IF(SUM(BW20:BW23)>'INCOME TAXES'!$I$37,(SUM(BW20:BW23)-'INCOME TAXES'!$I$37)*BW1,0)*IF('GENERAL ASSUMPTIONS'!$C$34="m",1,0) -> 0 | BX2: =IF(SUM(BX20:BX23)>'INCOME TAXES'!$I$37,(SUM(BX20:BX23)-'INCOME TAXES'!$I$37)*BX1,0)*IF('GENERAL ASSUMPTIONS'!$C$34="m",1,0) -> 0
N3: client 2 - tax $$ over threshold | P3: =IF(SUM(P24:P27)>'INCOME TAXES'!$I$37,(SUM(P24:P27)-'INCOME TAXES'!$I$37)*P1,0)*IF('GENERAL ASSUMPTIONS'!$C$34="m",1,0) -> 0 | Q3: =IF(SUM(Q24:Q27)>'INCOME TAXES'!$I$37,(SUM(Q24:Q27)-'INCOME TAXES'!$I$37)*Q1,0)*IF('GENERAL ASSUMPTIONS'!$C$34="m",1,0) -> 0 | R3: =IF(SUM(R24:R27)>'INCOME TAXES'!$I$37,(SUM(R24:R27)-'INCOME TAXES'!$I$37)*R1,0)*IF('GENERAL ASSUMPTIONS'!$C$34="m",1,0) -> 0 | S3: =IF(SUM(S24:S27)>'INCOME TAXES'!$I$37,(SUM(S24:S27)-'INCOME TAXES'!$I$37)*S1,0)*IF('GENERAL ASSUMPTIONS'!$C$34="m",1,0) -> 0 | T3: =IF(SUM(T24:T27)>'INCOME TAXES'!$I$37,(SUM(T24:T27)-'INCOME TAXES'!$I$37)*T1,0)*IF('GENERAL ASSUMPTIONS'!$C$34="m",1,0) -> 0 | U3: =IF(SUM(U24:U27)>'INCOME TAXES'!$I$37,(SUM(U24:U27)-'INCOME TAXES'!$I$37)*U1,0)*IF('GENERAL ASSUMPTIONS'!$C$34="m",1,0) -> 0 | V3: =IF(SUM(V24:V27)>'INCOME TAXES'!$I$37,(SUM(V24:V27)-'INCOME TAXES'!$I$37)*V1,0)*IF('GENERAL ASSUMPTIONS'!$C$34="m",1,0) -> 0 | W3: =IF(SUM(W24:W27)>'INCOME TAXES'!$I$37,(SUM(W24:W27)-'INCOME TAXES'!$I$37)*W1,0)*IF('GENERAL ASSUMPTIONS'!$C$34="m",1,0) -> 0 | X3: =IF(SUM(X24:X27)>'INCOME TAXES'!$I$37,(SUM(X24:X27)-'INCOME TAXES'!$I$37)*X1,0)*IF('GENERAL ASSUMPTIONS'!$C$34="m",1,0) -> 0 | Y3: =IF(SUM(Y24:Y27)>'INCOME TAXES'!$I$37,(SUM(Y24:Y27)-'INCOME TAXES'!$I$37)*Y1,0)*IF('GENERAL ASSUMPTIONS'!$C$34="m",1,0) -> 0 | Z3: =IF(SUM(Z24:Z27)>'INCOME TAXES'!$I$37,(SUM(Z24:Z27)-'INCOME TAXES'!$I$37)*Z1,0)*IF('GENERAL ASSUMPTIONS'!$C$34="m",1,0) -> 0 | AA3: =IF(SUM(AA24:AA27)>'INCOME TAXES'!$I$37,(SUM(AA24:AA27)-'INCOME TAXES'!$I$37)*AA1,0)*IF('GENERAL ASSUMPTIONS'!$C$34="m",1,0) -> 0 | AB3: =IF(SUM(AB24:AB27)>'INCOME TAXES'!$I$37,(SUM(AB24:AB27)-'INCOME TAXES'!$I$37)*AB1,0)*IF('GENERAL ASSUMPTIONS'!$C$34="m",1,0) -> 0 | AC3: =IF(SUM(AC24:AC27)>'INCOME TAXES'!$I$37,(SUM(AC24:AC27)-'INCOME TAXES'!$I$37)*AC1,0)*IF('GENERAL ASSUMPTIONS'!$C$34="m",1,0) -> 0 | AD3: =IF(SUM(AD24:AD27)>'INCOME TAXES'!$I$37,(SUM(AD24:AD27)-'INCOME TAXES'!$I$37)*AD1,0)*IF('GENERAL ASSUMPTIONS'!$C$34="m",1,0) -> 0 | AE3: =IF(SUM(AE24:AE27)>'INCOME TAXES'!$I$37,(SUM(AE24:AE27)-'INCOME TAXES'!$I$37)*AE1,0)*IF('GENERAL ASSUMPTIONS'!$C$34="m",1,0) -> 0 | AF3: =IF(SUM(AF24:AF27)>'INCOME TAXES'!$I$37,(SUM(AF24:AF27)-'INCOME TAXES'!$I$37)*AF1,0)*IF('GENERAL ASSUMPTIONS'!$C$34="m",1,0) -> 0 | AG3: =IF(SUM(AG24:AG27)>'INCOME TAXES'!$I$37,(SUM(AG24:AG27)-'INCOME TAXES'!$I$37)*AG1,0)*IF('GENERAL ASSUMPTIONS'!$C$34="m",1,0) -> 0 | AH3: =IF(SUM(AH24:AH27)>'INCOME TAXES'!$I$37,(SUM(AH24:AH27)-'INCOME TAXES'!$I$37)*AH1,0)*IF('GENERAL ASSUMPTIONS'!$C$34="m",1,0) -> 0 | AI3: =IF(SUM(AI24:AI27)>'INCOME TAXES'!$I$37,(SUM(AI24:AI27)-'INCOME TAXES'!$I$37)*AI1,0)*IF('GENERAL ASSUMPTIONS'!$C$34="m",1,0) -> 0 | AJ3: =IF(SUM(AJ24:AJ27)>'INCOME TAXES'!$I$37,(SUM(AJ24:AJ27)-'INCOME TAXES'!$I$37)*AJ1,0)*IF('GENERAL ASSUMPTIONS'!$C$34="m",1,0) -> 0 | AK3: =IF(SUM(AK24:AK27)>'INCOME TAXES'!$I$37,(SUM(AK24:AK27)-'INCOME TAXES'!$I$37)*AK1,0)*IF('GENERAL ASSUMPTIONS'!$C$34="m",1,0) -> 0 | AL3: =IF(SUM(AL24:AL27)>'INCOME TAXES'!$I$37,(SUM(AL24:AL27)-'INCOME TAXES'!$I$37)*AL1,0)*IF('GENERAL ASSUMPTIONS'!$C$34="m",1,0) -> 0 | AM3: =IF(SUM(AM24:AM27)>'INCOME TAXES'!$I$37,(SUM(AM24:AM27)-'INCOME TAXES'!$I$37)*AM1,0)*IF('GENERAL ASSUMPTIONS'!$C$34="m",1,0) -> 0 | AN3: =IF(SUM(AN24:AN27)>'INCOME TAXES'!$I$37,(SUM(AN24:AN27)-'INCOME TAXES'!$I$37)*AN1,0)*IF('GENERAL ASSUMPTIONS'!$C$34="m",1,0) -> 0 | AO3: =IF(SUM(AO24:AO27)>'INCOME TAXES'!$I$37,(SUM(AO24:AO27)-'INCOME TAXES'!$I$37)*AO1,0)*IF('GENERAL ASSUMPTIONS'!$C$34="m",1,0) -> 0 | AP3: =IF(SUM(AP24:AP27)>'INCOME TAXES'!$I$37,(SUM(AP24:AP27)-'INCOME TAXES'!$I$37)*AP1,0)*IF('GENERAL ASSUMPTIONS'!$C$34="m",1,0) -> 0 | AQ3: =IF(SUM(AQ24:AQ27)>'INCOME TAXES'!$I$37,(SUM(AQ24:AQ27)-'INCOME TAXES'!$I$37)*AQ1,0)*IF('GENERAL ASSUMPTIONS'!$C$34="m",1,0) -> 0 | AR3: =IF(SUM(AR24:AR27)>'INCOME TAXES'!$I$37,(SUM(AR24:AR27)-'INCOME TAXES'!$I$37)*AR1,0)*IF('GENERAL ASSUMPTIONS'!$C$34="m",1,0) -> 0 | AS3: =IF(SUM(AS24:AS27)>'INCOME TAXES'!$I$37,(SUM(AS24:AS27)-'INCOME TAXES'!$I$37)*AS1,0)*IF('GENERAL ASSUMPTIONS'!$C$34="m",1,0) -> 0 | AT3: =IF(SUM(AT24:AT27)>'INCOME TAXES'!$I$37,(SUM(AT24:AT27)-'INCOME TAXES'!$I$37)*AT1,0)*IF('GENERAL ASSUMPTIONS'!$C$34="m",1,0) -> 0 | AU3: =IF(SUM(AU24:AU27)>'INCOME TAXES'!$I$37,(SUM(AU24:AU27)-'INCOME TAXES'!$I$37)*AU1,0)*IF('GENERAL ASSUMPTIONS'!$C$34="m",1,0) -> 0 | AV3: =IF(SUM(AV24:AV27)>'INCOME TAXES'!$I$37,(SUM(AV24:AV27)-'INCOME TAXES'!$I$37)*AV1,0)*IF('GENERAL ASSUMPTIONS'!$C$34="m",1,0) -> 0 | AW3: =IF(SUM(AW24:AW27)>'INCOME TAXES'!$I$37,(SUM(AW24:AW27)-'INCOME TAXES'!$I$37)*AW1,0)*IF('GENERAL ASSUMPTIONS'!$C$34="m",1,0) -> 0 | AX3: =IF(SUM(AX24:AX27)>'INCOME TAXES'!$I$37,(SUM(AX24:AX27)-'INCOME TAXES'!$I$37)*AX1,0)*IF('GENERAL ASSUMPTIONS'!$C$34="m",1,0) -> 0 | AY3: =IF(SUM(AY24:AY27)>'INCOME TAXES'!$I$37,(SUM(AY24:AY27)-'INCOME TAXES'!$I$37)*AY1,0)*IF('GENERAL ASSUMPTIONS'!$C$34="m",1,0) -> 0 | AZ3: =IF(SUM(AZ24:AZ27)>'INCOME TAXES'!$I$37,(SUM(AZ24:AZ27)-'INCOME TAXES'!$I$37)*AZ1,0)*IF('GENERAL ASSUMPTIONS'!$C$34="m",1,0) -> 0 | BA3: =IF(SUM(BA24:BA27)>'INCOME TAXES'!$I$37,(SUM(BA24:BA27)-'INCOME TAXES'!$I$37)*BA1,0)*IF('GENERAL ASSUMPTIONS'!$C$34="m",1,0) -> 0 | BB3: =IF(SUM(BB24:BB27)>'INCOME TAXES'!$I$37,(SUM(BB24:BB27)-'INCOME TAXES'!$I$37)*BB1,0)*IF('GENERAL ASSUMPTIONS'!$C$34="m",1,0) -> 0 | BC3: =IF(SUM(BC24:BC27)>'INCOME TAXES'!$I$37,(SUM(BC24:BC27)-'INCOME TAXES'!$I$37)*BC1,0)*IF('GENERAL ASSUMPTIONS'!$C$34="m",1,0) -> 0 | BD3: =IF(SUM(BD24:BD27)>'INCOME TAXES'!$I$37,(SUM(BD24:BD27)-'INCOME TAXES'!$I$37)*BD1,0)*IF('GENERAL ASSUMPTIONS'!$C$34="m",1,0) -> 0 | BE3: =IF(SUM(BE24:BE27)>'INCOME TAXES'!$I$37,(SUM(BE24:BE27)-'INCOME TAXES'!$I$37)*BE1,0)*IF('GENERAL ASSUMPTIONS'!$C$34="m",1,0) -> 0 | BF3: =IF(SUM(BF24:BF27)>'INCOME TAXES'!$I$37,(SUM(BF24:BF27)-'INCOME TAXES'!$I$37)*BF1,0)*IF('GENERAL ASSUMPTIONS'!$C$34="m",1,0) -> 0 | BG3: =IF(SUM(BG24:BG27)>'INCOME TAXES'!$I$37,(SUM(BG24:BG27)-'INCOME TAXES'!$I$37)*BG1,0)*IF('GENERAL ASSUMPTIONS'!$C$34="m",1,0) -> 0 | BH3: =IF(SUM(BH24:BH27)>'INCOME TAXES'!$I$37,(SUM(BH24:BH27)-'INCOME TAXES'!$I$37)*BH1,0)*IF('GENERAL ASSUMPTIONS'!$C$34="m",1,0) -> 0 | BI3: =IF(SUM(BI24:BI27)>'INCOME TAXES'!$I$37,(SUM(BI24:BI27)-'INCOME TAXES'!$I$37)*BI1,0)*IF('GENERAL ASSUMPTIONS'!$C$34="m",1,0) -> 0 | BJ3: =IF(SUM(BJ24:BJ27)>'INCOME TAXES'!$I$37,(SUM(BJ24:BJ27)-'INCOME TAXES'!$I$37)*BJ1,0)*IF('GENERAL ASSUMPTIONS'!$C$34="m",1,0) -> 0 | BK3: =IF(SUM(BK24:BK27)>'INCOME TAXES'!$I$37,(SUM(BK24:BK27)-'INCOME TAXES'!$I$37)*BK1,0)*IF('GENERAL ASSUMPTIONS'!$C$34="m",1,0) -> 0 | BL3: =IF(SUM(BL24:BL27)>'INCOME TAXES'!$I$37,(SUM(BL24:BL27)-'INCOME TAXES'!$I$37)*BL1,0)*IF('GENERAL ASSUMPTIONS'!$C$34="m",1,0) -> 0 | BM3: =IF(SUM(BM24:BM27)>'INCOME TAXES'!$I$37,(SUM(BM24:BM27)-'INCOME TAXES'!$I$37)*BM1,0)*IF('GENERAL ASSUMPTIONS'!$C$34="m",1,0) -> 0 | BN3: =IF(SUM(BN24:BN27)>'INCOME TAXES'!$I$37,(SUM(BN24:BN27)-'INCOME TAXES'!$I$37)*BN1,0)*IF('GENERAL ASSUMPTIONS'!$C$34="m",1,0) -> 0 | BO3: =IF(SUM(BO24:BO27)>'INCOME TAXES'!$I$37,(SUM(BO24:BO27)-'INCOME TAXES'!$I$37)*BO1,0)*IF('GENERAL ASSUMPTIONS'!$C$34="m",1,0) -> 0 | BP3: =IF(SUM(BP24:BP27)>'INCOME TAXES'!$I$37,(SUM(BP24:BP27)-'INCOME TAXES'!$I$37)*BP1,0)*IF('GENERAL ASSUMPTIONS'!$C$34="m",1,0) -> 0 | BQ3: =IF(SUM(BQ24:BQ27)>'INCOME TAXES'!$I$37,(SUM(BQ24:BQ27)-'INCOME TAXES'!$I$37)*BQ1,0)*IF('GENERAL ASSUMPTIONS'!$C$34="m",1,0) -> 0 | BR3: =IF(SUM(BR24:BR27)>'INCOME TAXES'!$I$37,(SUM(BR24:BR27)-'INCOME TAXES'!$I$37)*BR1,0)*IF('GENERAL ASSUMPTIONS'!$C$34="m",1,0) -> 0 | BS3: =IF(SUM(BS24:BS27)>'INCOME TAXES'!$I$37,(SUM(BS24:BS27)-'INCOME TAXES'!$I$37)*BS1,0)*IF('GENERAL ASSUMPTIONS'!$C$34="m",1,0) -> 0 | BT3: =IF(SUM(BT24:BT27)>'INCOME TAXES'!$I$37,(SUM(BT24:BT27)-'INCOME TAXES'!$I$37)*BT1,0)*IF('GENERAL ASSUMPTIONS'!$C$34="m",1,0) -> 0 | BU3: =IF(SUM(BU24:BU27)>'INCOME TAXES'!$I$37,(SUM(BU24:BU27)-'INCOME TAXES'!$I$37)*BU1,0)*IF('GENERAL ASSUMPTIONS'!$C$34="m",1,0) -> 0 | BV3: =IF(SUM(BV24:BV27)>'INCOME TAXES'!$I$37,(SUM(BV24:BV27)-'INCOME TAXES'!$I$37)*BV1,0)*IF('GENERAL ASSUMPTIONS'!$C$34="m",1,0) -> 0 | BW3: =IF(SUM(BW24:BW27)>'INCOME TAXES'!$I$37,(SUM(BW24:BW27)-'INCOME TAXES'!$I$37)*BW1,0)*IF('GENERAL ASSUMPTIONS'!$C$34="m",1,0) -> 0 | BX3: =IF(SUM(BX24:BX27)>'INCOME TAXES'!$I$37,(SUM(BX24:BX27)-'INCOME TAXES'!$I$37)*BX1,0)*IF('GENERAL ASSUMPTIONS'!$C$34="m",1,0) -> 0
N4: ='INCOME TAXES'!G36 -> MEDICARE of FICA - single threshold add'l tax | P4: ='INCOME TAXES'!H36 -> 0.009 | Q4: =P4 -> 0.009 | R4: =Q4 -> 0.009 | S4: 0.009 | T4: 0.009 | U4: 0.009 | V4: 0.009 | W4: 0.009 | X4: 0.009 | Y4: 0.009 | Z4: 0.009 | AA4: 0.009 | AB4: 0.009 | AC4: 0.009 | AD4: 0.009 | AE4: 0.009 | AF4: 0.009 | AG4: 0.009 | AH4: 0.009 | AI4: 0.009 | AJ4: 0.009 | AK4: 0.009 | AL4: 0.009 | AM4: 0.009 | AN4: 0.009 | AO4: 0.009 | AP4: 0.009 | AQ4: 0.009 | AR4: 0.009 | AS4: 0.009 | AT4: 0.009 | AU4: 0.009 | AV4: 0.009 | AW4: 0.009 | AX4: 0.009 | AY4: 0.009 | AZ4: 0.009 | BA4: 0.009 | BB4: 0.009 | BC4: 0.009 | BD4: 0.009 | BE4: 0.009 | BF4: 0.009 | BG4: 0.009 | BH4: 0.009 | BI4: 0.009 | BJ4: 0.009 | BK4: 0.009 | BL4: 0.009 | BM4: 0.009 | BN4: 0.009 | BO4: 0.009 | BP4: 0.009 | BQ4: 0.009 | BR4: 0.009 | BS4: 0.009 | BT4: 0.009 | BU4: 0.009 | BV4: 0.009 | BW4: 0.009 | BX4: 0.009
N5: client 1 - tax $$ over threshold | P5: =IF(SUM(P20:P23)>'INCOME TAXES'!$I$36,(SUM(P20:P23)-'INCOME TAXES'!$I$36)*P4,0)*IF('GENERAL ASSUMPTIONS'!$C$34="s",1,0) -> 0 | Q5: =IF(SUM(Q20:Q23)>'INCOME TAXES'!$I$36,(SUM(Q20:Q23)-'INCOME TAXES'!$I$36)*Q4,0)*IF('GENERAL ASSUMPTIONS'!$C$34="s",1,0) -> 0 | R5: =IF(SUM(R20:R23)>'INCOME TAXES'!$I$36,(SUM(R20:R23)-'INCOME TAXES'!$I$36)*R4,0)*IF('GENERAL ASSUMPTIONS'!$C$34="s",1,0) -> 0 | S5: =IF(SUM(S20:S23)>'INCOME TAXES'!$I$36,(SUM(S20:S23)-'INCOME TAXES'!$I$36)*S4,0)*IF('GENERAL ASSUMPTIONS'!$C$34="s",1,0) -> 0 | T5: =IF(SUM(T20:T23)>'INCOME TAXES'!$I$36,(SUM(T20:T23)-'INCOME TAXES'!$I$36)*T4,0)*IF('GENERAL ASSUMPTIONS'!$C$34="s",1,0) -> 0 | U5: =IF(SUM(U20:U23)>'INCOME TAXES'!$I$36,(SUM(U20:U23)-'INCOME TAXES'!$I$36)*U4,0)*IF('GENERAL ASSUMPTIONS'!$C$34="s",1,0) -> 0 | V5: =IF(SUM(V20:V23)>'INCOME TAXES'!$I$36,(SUM(V20:V23)-'INCOME TAXES'!$I$36)*V4,0)*IF('GENERAL ASSUMPTIONS'!$C$34="s",1,0) -> 0 | W5: =IF(SUM(W20:W23)>'INCOME TAXES'!$I$36,(SUM(W20:W23)-'INCOME TAXES'!$I$36)*W4,0)*IF('GENERAL ASSUMPTIONS'!$C$34="s",1,0) -> 0 | X5: =IF(SUM(X20:X23)>'INCOME TAXES'!$I$36,(SUM(X20:X23)-'INCOME TAXES'!$I$36)*X4,0)*IF('GENERAL ASSUMPTIONS'!$C$34="s",1,0) -> 0 | Y5: =IF(SUM(Y20:Y23)>'INCOME TAXES'!$I$36,(SUM(Y20:Y23)-'INCOME TAXES'!$I$36)*Y4,0)*IF('GENERAL ASSUMPTIONS'!$C$34="s",1,0) -> 0 | Z5: =IF(SUM(Z20:Z23)>'INCOME TAXES'!$I$36,(SUM(Z20:Z23)-'INCOME TAXES'!$I$36)*Z4,0)*IF('GENERAL ASSUMPTIONS'!$C$34="s",1,0) -> 0 | AA5: =IF(SUM(AA20:AA23)>'INCOME TAXES'!$I$36,(SUM(AA20:AA23)-'INCOME TAXES'!$I$36)*AA4,0)*IF('GENERAL ASSUMPTIONS'!$C$34="s",1,0) -> 0 | AB5: =IF(SUM(AB20:AB23)>'INCOME TAXES'!$I$36,(SUM(AB20:AB23)-'INCOME TAXES'!$I$36)*AB4,0)*IF('GENERAL ASSUMPTIONS'!$C$34="s",1,0) -> 0 | AC5: =IF(SUM(AC20:AC23)>'INCOME TAXES'!$I$36,(SUM(AC20:AC23)-'INCOME TAXES'!$I$36)*AC4,0)*IF('GENERAL ASSUMPTIONS'!$C$34="s",1,0) -> 0 | AD5: =IF(SUM(AD20:AD23)>'INCOME TAXES'!$I$36,(SUM(AD20:AD23)-'INCOME TAXES'!$I$36)*AD4,0)*IF('GENERAL ASSUMPTIONS'!$C$34="s",1,0) -> 0 | AE5: =IF(SUM(AE20:AE23)>'INCOME TAXES'!$I$36,(SUM(AE20:AE23)-'INCOME TAXES'!$I$36)*AE4,0)*IF('GENERAL ASSUMPTIONS'!$C$34="s",1,0) -> 0 | AF5: =IF(SUM(AF20:AF23)>'INCOME TAXES'!$I$36,(SUM(AF20:AF23)-'INCOME TAXES'!$I$36)*AF4,0)*IF('GENERAL ASSUMPTIONS'!$C$34="s",1,0) -> 0 | AG5: =IF(SUM(AG20:AG23)>'INCOME TAXES'!$I$36,(SUM(AG20:AG23)-'INCOME TAXES'!$I$36)*AG4,0)*IF('GENERAL ASSUMPTIONS'!$C$34="s",1,0) -> 0 | AH5: =IF(SUM(AH20:AH23)>'INCOME TAXES'!$I$36,(SUM(AH20:AH23)-'INCOME TAXES'!$I$36)*AH4,0)*IF('GENERAL ASSUMPTIONS'!$C$34="s",1,0) -> 0 | AI5: =IF(SUM(AI20:AI23)>'INCOME TAXES'!$I$36,(SUM(AI20:AI23)-'INCOME TAXES'!$I$36)*AI4,0)*IF('GENERAL ASSUMPTIONS'!$C$34="s",1,0) -> 0 | AJ5: =IF(SUM(AJ20:AJ23)>'INCOME TAXES'!$I$36,(SUM(AJ20:AJ23)-'INCOME TAXES'!$I$36)*AJ4,0)*IF('GENERAL ASSUMPTIONS'!$C$34="s",1,0) -> 0 | AK5: =IF(SUM(AK20:AK23)>'INCOME TAXES'!$I$36,(SUM(AK20:AK23)-'INCOME TAXES'!$I$36)*AK4,0)*IF('GENERAL ASSUMPTIONS'!$C$34="s",1,0) -> 0 | AL5: =IF(SUM(AL20:AL23)>'INCOME TAXES'!$I$36,(SUM(AL20:AL23)-'INCOME TAXES'!$I$36)*AL4,0)*IF('GENERAL ASSUMPTIONS'!$C$34="s",1,0) -> 0 | AM5: =IF(SUM(AM20:AM23)>'INCOME TAXES'!$I$36,(SUM(AM20:AM23)-'INCOME TAXES'!$I$36)*AM4,0)*IF('GENERAL ASSUMPTIONS'!$C$34="s",1,0) -> 0 | AN5: =IF(SUM(AN20:AN23)>'INCOME TAXES'!$I$36,(SUM(AN20:AN23)-'INCOME TAXES'!$I$36)*AN4,0)*IF('GENERAL ASSUMPTIONS'!$C$34="s",1,0) -> 0 | AO5: =IF(SUM(AO20:AO23)>'INCOME TAXES'!$I$36,(SUM(AO20:AO23)-'INCOME TAXES'!$I$36)*AO4,0)*IF('GENERAL ASSUMPTIONS'!$C$34="s",1,0) -> 0 | AP5: =IF(SUM(AP20:AP23)>'INCOME TAXES'!$I$36,(SUM(AP20:AP23)-'INCOME TAXES'!$I$36)*AP4,0)*IF('GENERAL ASSUMPTIONS'!$C$34="s",1,0) -> 0 | AQ5: =IF(SUM(AQ20:AQ23)>'INCOME TAXES'!$I$36,(SUM(AQ20:AQ23)-'INCOME TAXES'!$I$36)*AQ4,0)*IF('GENERAL ASSUMPTIONS'!$C$34="s",1,0) -> 0 | AR5: =IF(SUM(AR20:AR23)>'INCOME TAXES'!$I$36,(SUM(AR20:AR23)-'INCOME TAXES'!$I$36)*AR4,0)*IF('GENERAL ASSUMPTIONS'!$C$34="s",1,0) -> 0 | AS5: =IF(SUM(AS20:AS23)>'INCOME TAXES'!$I$36,(SUM(AS20:AS23)-'INCOME TAXES'!$I$36)*AS4,0)*IF('GENERAL ASSUMPTIONS'!$C$34="s",1,0) -> 0 | AT5: =IF(SUM(AT20:AT23)>'INCOME TAXES'!$I$36,(SUM(AT20:AT23)-'INCOME TAXES'!$I$36)*AT4,0)*IF('GENERAL ASSUMPTIONS'!$C$34="s",1,0) -> 0 | AU5: =IF(SUM(AU20:AU23)>'INCOME TAXES'!$I$36,(SUM(AU20:AU23)-'INCOME TAXES'!$I$36)*AU4,0)*IF('GENERAL ASSUMPTIONS'!$C$34="s",1,0) -> 0 | AV5: =IF(SUM(AV20:AV23)>'INCOME TAXES'!$I$36,(SUM(AV20:AV23)-'INCOME TAXES'!$I$36)*AV4,0)*IF('GENERAL ASSUMPTIONS'!$C$34="s",1,0) -> 0 | AW5: =IF(SUM(AW20:AW23)>'INCOME TAXES'!$I$36,(SUM(AW20:AW23)-'INCOME TAXES'!$I$36)*AW4,0)*IF('GENERAL ASSUMPTIONS'!$C$34="s",1,0) -> 0 | AX5: =IF(SUM(AX20:AX23)>'INCOME TAXES'!$I$36,(SUM(AX20:AX23)-'INCOME TAXES'!$I$36)*AX4,0)*IF('GENERAL ASSUMPTIONS'!$C$34="s",1,0) -> 0 | AY5: =IF(SUM(AY20:AY23)>'INCOME TAXES'!$I$36,(SUM(AY20:AY23)-'INCOME TAXES'!$I$36)*AY4,0)*IF('GENERAL ASSUMPTIONS'!$C$34="s",1,0) -> 0 | AZ5: =IF(SUM(AZ20:AZ23)>'INCOME TAXES'!$I$36,(SUM(AZ20:AZ23)-'INCOME TAXES'!$I$36)*AZ4,0)*IF('GENERAL ASSUMPTIONS'!$C$34="s",1,0) -> 0 | BA5: =IF(SUM(BA20:BA23)>'INCOME TAXES'!$I$36,(SUM(BA20:BA23)-'INCOME TAXES'!$I$36)*BA4,0)*IF('GENERAL ASSUMPTIONS'!$C$34="s",1,0) -> 0 | BB5: =IF(SUM(BB20:BB23)>'INCOME TAXES'!$I$36,(SUM(BB20:BB23)-'INCOME TAXES'!$I$36)*BB4,0)*IF('GENERAL ASSUMPTIONS'!$C$34="s",1,0) -> 0 | BC5: =IF(SUM(BC20:BC23)>'INCOME TAXES'!$I$36,(SUM(BC20:BC23)-'INCOME TAXES'!$I$36)*BC4,0)*IF('GENERAL ASSUMPTIONS'!$C$34="s",1,0) -> 0 | BD5: =IF(SUM(BD20:BD23)>'INCOME TAXES'!$I$36,(SUM(BD20:BD23)-'INCOME TAXES'!$I$36)*BD4,0)*IF('GENERAL ASSUMPTIONS'!$C$34="s",1,0) -> 0 | BE5: =IF(SUM(BE20:BE23)>'INCOME TAXES'!$I$36,(SUM(BE20:BE23)-'INCOME TAXES'!$I$36)*BE4,0)*IF('GENERAL ASSUMPTIONS'!$C$34="s",1,0) -> 0 | BF5: =IF(SUM(BF20:BF23)>'INCOME TAXES'!$I$36,(SUM(BF20:BF23)-'INCOME TAXES'!$I$36)*BF4,0)*IF('GENERAL ASSUMPTIONS'!$C$34="s",1,0) -> 0 | BG5: =IF(SUM(BG20:BG23)>'INCOME TAXES'!$I$36,(SUM(BG20:BG23)-'INCOME TAXES'!$I$36)*BG4,0)*IF('GENERAL ASSUMPTIONS'!$C$34="s",1,0) -> 0 | BH5: =IF(SUM(BH20:BH23)>'INCOME TAXES'!$I$36,(SUM(BH20:BH23)-'INCOME TAXES'!$I$36)*BH4,0)*IF('GENERAL ASSUMPTIONS'!$C$34="s",1,0) -> 0 | BI5: =IF(SUM(BI20:BI23)>'INCOME TAXES'!$I$36,(SUM(BI20:BI23)-'INCOME TAXES'!$I$36)*BI4,0)*IF('GENERAL ASSUMPTIONS'!$C$34="s",1,0) -> 0 | BJ5: =IF(SUM(BJ20:BJ23)>'INCOME TAXES'!$I$36,(SUM(BJ20:BJ23)-'INCOME TAXES'!$I$36)*BJ4,0)*IF('GENERAL ASSUMPTIONS'!$C$34="s",1,0) -> 0 | BK5: =IF(SUM(BK20:BK23)>'INCOME TAXES'!$I$36,(SUM(BK20:BK23)-'INCOME TAXES'!$I$36)*BK4,0)*IF('GENERAL ASSUMPTIONS'!$C$34="s",1,0) -> 0 | BL5: =IF(SUM(BL20:BL23)>'INCOME TAXES'!$I$36,(SUM(BL20:BL23)-'INCOME TAXES'!$I$36)*BL4,0)*IF('GENERAL ASSUMPTIONS'!$C$34="s",1,0) -> 0 | BM5: =IF(SUM(BM20:BM23)>'INCOME TAXES'!$I$36,(SUM(BM20:BM23)-'INCOME TAXES'!$I$36)*BM4,0)*IF('GENERAL ASSUMPTIONS'!$C$34="s",1,0) -> 0 | BN5: =IF(SUM(BN20:BN23)>'INCOME TAXES'!$I$36,(SUM(BN20:BN23)-'INCOME TAXES'!$I$36)*BN4,0)*IF('GENERAL ASSUMPTIONS'!$C$34="s",1,0) -> 0 | BO5: =IF(SUM(BO20:BO23)>'INCOME TAXES'!$I$36,(SUM(BO20:BO23)-'INCOME TAXES'!$I$36)*BO4,0)*IF('GENERAL ASSUMPTIONS'!$C$34="s",1,0) -> 0 | BP5: =IF(SUM(BP20:BP23)>'INCOME TAXES'!$I$36,(SUM(BP20:BP23)-'INCOME TAXES'!$I$36)*BP4,0)*IF('GENERAL ASSUMPTIONS'!$C$34="s",1,0) -> 0 | BQ5: =IF(SUM(BQ20:BQ23)>'INCOME TAXES'!$I$36,(SUM(BQ20:BQ23)-'INCOME TAXES'!$I$36)*BQ4,0)*IF('GENERAL ASSUMPTIONS'!$C$34="s",1,0) -> 0 | BR5: =IF(SUM(BR20:BR23)>'INCOME TAXES'!$I$36,(SUM(BR20:BR23)-'INCOME TAXES'!$I$36)*BR4,0)*IF('GENERAL ASSUMPTIONS'!$C$34="s",1,0) -> 0 | BS5: =IF(SUM(BS20:BS23)>'INCOME TAXES'!$I$36,(SUM(BS20:BS23)-'INCOME TAXES'!$I$36)*BS4,0)*IF('GENERAL ASSUMPTIONS'!$C$34="s",1,0) -> 0 | BT5: =IF(SUM(BT20:BT23)>'INCOME TAXES'!$I$36,(SUM(BT20:BT23)-'INCOME TAXES'!$I$36)*BT4,0)*IF('GENERAL ASSUMPTIONS'!$C$34="s",1,0) -> 0 | BU5: =IF(SUM(BU20:BU23)>'INCOME TAXES'!$I$36,(SUM(BU20:BU23)-'INCOME TAXES'!$I$36)*BU4,0)*IF('GENERAL ASSUMPTIONS'!$C$34="s",1,0) -> 0 | BV5: =IF(SUM(BV20:BV23)>'INCOME TAXES'!$I$36,(SUM(BV20:BV23)-'INCOME TAXES'!$I$36)*BV4,0)*IF('GENERAL ASSUMPTIONS'!$C$34="s",1,0) -> 0 | BW5: =IF(SUM(BW20:BW23)>'INCOME TAXES'!$I$36,(SUM(BW20:BW23)-'INCOME TAXES'!$I$36)*BW4,0)*IF('GENERAL ASSUMPTIONS'!$C$34="s",1,0) -> 0 | BX5: =IF(SUM(BX20:BX23)>'INCOME TAXES'!$I$36,(SUM(BX20:BX23)-'INCOME TAXES'!$I$36)*BX4,0)*IF('GENERAL ASSUMPTIONS'!$C$34="s",1,0) -> 0
N6: client 2 - tax $$ over threshold | P6: =IF(SUM(P24:P27)>'INCOME TAXES'!$I$36,(SUM(P24:P27)-'INCOME TAXES'!$I$36)*P4,0)*IF('GENERAL ASSUMPTIONS'!$C$34="s",1,0) -> 0 | Q6: =IF(SUM(Q24:Q27)>'INCOME TAXES'!$I$36,(SUM(Q24:Q27)-'INCOME TAXES'!$I$36)*Q4,0)*IF('GENERAL ASSUMPTIONS'!$C$34="s",1,0) -> 0 | R6: =IF(SUM(R24:R27)>'INCOME TAXES'!$I$36,(SUM(R24:R27)-'INCOME TAXES'!$I$36)*R4,0)*IF('GENERAL ASSUMPTIONS'!$C$34="s",1,0) -> 0 | S6: =IF(SUM(S24:S27)>'INCOME TAXES'!$I$36,(SUM(S24:S27)-'INCOME TAXES'!$I$36)*S4,0)*IF('GENERAL ASSUMPTIONS'!$C$34="s",1,0) -> 0 | T6: =IF(SUM(T24:T27)>'INCOME TAXES'!$I$36,(SUM(T24:T27)-'INCOME TAXES'!$I$36)*T4,0)*IF('GENERAL ASSUMPTIONS'!$C$34="s",1,0) -> 0 | U6: =IF(SUM(U24:U27)>'INCOME TAXES'!$I$36,(SUM(U24:U27)-'INCOME TAXES'!$I$36)*U4,0)*IF('GENERAL ASSUMPTIONS'!$C$34="s",1,0) -> 0 | V6: =IF(SUM(V24:V27)>'INCOME TAXES'!$I$36,(SUM(V24:V27)-'INCOME TAXES'!$I$36)*V4,0)*IF('GENERAL ASSUMPTIONS'!$C$34="s",1,0) -> 0 | W6: =IF(SUM(W24:W27)>'INCOME TAXES'!$I$36,(SUM(W24:W27)-'INCOME TAXES'!$I$36)*W4,0)*IF('GENERAL ASSUMPTIONS'!$C$34="s",1,0) -> 0 | X6: =IF(SUM(X24:X27)>'INCOME TAXES'!$I$36,(SUM(X24:X27)-'INCOME TAXES'!$I$36)*X4,0)*IF('GENERAL ASSUMPTIONS'!$C$34="s",1,0) -> 0 | Y6: =IF(SUM(Y24:Y27)>'INCOME TAXES'!$I$36,(SUM(Y24:Y27)-'INCOME TAXES'!$I$36)*Y4,0)*IF('GENERAL ASSUMPTIONS'!$C$34="s",1,0) -> 0 | Z6: =IF(SUM(Z24:Z27)>'INCOME TAXES'!$I$36,(SUM(Z24:Z27)-'INCOME TAXES'!$I$36)*Z4,0)*IF('GENERAL ASSUMPTIONS'!$C$34="s",1,0) -> 0 | AA6: =IF(SUM(AA24:AA27)>'INCOME TAXES'!$I$36,(SUM(AA24:AA27)-'INCOME TAXES'!$I$36)*AA4,0)*IF('GENERAL ASSUMPTIONS'!$C$34="s",1,0) -> 0 | AB6: =IF(SUM(AB24:AB27)>'INCOME TAXES'!$I$36,(SUM(AB24:AB27)-'INCOME TAXES'!$I$36)*AB4,0)*IF('GENERAL ASSUMPTIONS'!$C$34="s",1,0) -> 0 | AC6: =IF(SUM(AC24:AC27)>'INCOME TAXES'!$I$36,(SUM(AC24:AC27)-'INCOME TAXES'!$I$36)*AC4,0)*IF('GENERAL ASSUMPTIONS'!$C$34="s",1,0) -> 0 | AD6: =IF(SUM(AD24:AD27)>'INCOME TAXES'!$I$36,(SUM(AD24:AD27)-'INCOME TAXES'!$I$36)*AD4,0)*IF('GENERAL ASSUMPTIONS'!$C$34="s",1,0) -> 0 | AE6: =IF(SUM(AE24:AE27)>'INCOME TAXES'!$I$36,(SUM(AE24:AE27)-'INCOME TAXES'!$I$36)*AE4,0)*IF('GENERAL ASSUMPTIONS'!$C$34="s",1,0) -> 0 | AF6: =IF(SUM(AF24:AF27)>'INCOME TAXES'!$I$36,(SUM(AF24:AF27)-'INCOME TAXES'!$I$36)*AF4,0)*IF('GENERAL ASSUMPTIONS'!$C$34="s",1,0) -> 0 | AG6: =IF(SUM(AG24:AG27)>'INCOME TAXES'!$I$36,(SUM(AG24:AG27)-'INCOME TAXES'!$I$36)*AG4,0)*IF('GENERAL ASSUMPTIONS'!$C$34="s",1,0) -> 0 | AH6: =IF(SUM(AH24:AH27)>'INCOME TAXES'!$I$36,(SUM(AH24:AH27)-'INCOME TAXES'!$I$36)*AH4,0)*IF('GENERAL ASSUMPTIONS'!$C$34="s",1,0) -> 0 | AI6: =IF(SUM(AI24:AI27)>'INCOME TAXES'!$I$36,(SUM(AI24:AI27)-'INCOME TAXES'!$I$36)*AI4,0)*IF('GENERAL ASSUMPTIONS'!$C$34="s",1,0) -> 0 | AJ6: =IF(SUM(AJ24:AJ27)>'INCOME TAXES'!$I$36,(SUM(AJ24:AJ27)-'INCOME TAXES'!$I$36)*AJ4,0)*IF('GENERAL ASSUMPTIONS'!$C$34="s",1,0) -> 0 | AK6: =IF(SUM(AK24:AK27)>'INCOME TAXES'!$I$36,(SUM(AK24:AK27)-'INCOME TAXES'!$I$36)*AK4,0)*IF('GENERAL ASSUMPTIONS'!$C$34="s",1,0) -> 0 | AL6: =IF(SUM(AL24:AL27)>'INCOME TAXES'!$I$36,(SUM(AL24:AL27)-'INCOME TAXES'!$I$36)*AL4,0)*IF('GENERAL ASSUMPTIONS'!$C$34="s",1,0) -> 0 | AM6: =IF(SUM(AM24:AM27)>'INCOME TAXES'!$I$36,(SUM(AM24:AM27)-'INCOME TAXES'!$I$36)*AM4,0)*IF('GENERAL ASSUMPTIONS'!$C$34="s",1,0) -> 0 | AN6: =IF(SUM(AN24:AN27)>'INCOME TAXES'!$I$36,(SUM(AN24:AN27)-'INCOME TAXES'!$I$36)*AN4,0)*IF('GENERAL ASSUMPTIONS'!$C$34="s",1,0) -> 0 | AO6: =IF(SUM(AO24:AO27)>'INCOME TAXES'!$I$36,(SUM(AO24:AO27)-'INCOME TAXES'!$I$36)*AO4,0)*IF('GENERAL ASSUMPTIONS'!$C$34="s",1,0) -> 0 | AP6: =IF(SUM(AP24:AP27)>'INCOME TAXES'!$I$36,(SUM(AP24:AP27)-'INCOME TAXES'!$I$36)*AP4,0)*IF('GENERAL ASSUMPTIONS'!$C$34="s",1,0) -> 0 | AQ6: =IF(SUM(AQ24:AQ27)>'INCOME TAXES'!$I$36,(SUM(AQ24:AQ27)-'INCOME TAXES'!$I$36)*AQ4,0)*IF('GENERAL ASSUMPTIONS'!$C$34="s",1,0) -> 0 | AR6: =IF(SUM(AR24:AR27)>'INCOME TAXES'!$I$36,(SUM(AR24:AR27)-'INCOME TAXES'!$I$36)*AR4,0)*IF('GENERAL ASSUMPTIONS'!$C$34="s",1,0) -> 0 | AS6: =IF(SUM(AS24:AS27)>'INCOME TAXES'!$I$36,(SUM(AS24:AS27)-'INCOME TAXES'!$I$36)*AS4,0)*IF('GENERAL ASSUMPTIONS'!$C$34="s",1,0) -> 0 | AT6: =IF(SUM(AT24:AT27)>'INCOME TAXES'!$I$36,(SUM(AT24:AT27)-'INCOME TAXES'!$I$36)*AT4,0)*IF('GENERAL ASSUMPTIONS'!$C$34="s",1,0) -> 0 | AU6: =IF(SUM(AU24:AU27)>'INCOME TAXES'!$I$36,(SUM(AU24:AU27)-'INCOME TAXES'!$I$36)*AU4,0)*IF('GENERAL ASSUMPTIONS'!$C$34="s",1,0) -> 0 | AV6: =IF(SUM(AV24:AV27)>'INCOME TAXES'!$I$36,(SUM(AV24:AV27)-'INCOME TAXES'!$I$36)*AV4,0)*IF('GENERAL ASSUMPTIONS'!$C$34="s",1,0) -> 0 | AW6: =IF(SUM(AW24:AW27)>'INCOME TAXES'!$I$36,(SUM(AW24:AW27)-'INCOME TAXES'!$I$36)*AW4,0)*IF('GENERAL ASSUMPTIONS'!$C$34="s",1,0) -> 0 | AX6: =IF(SUM(AX24:AX27)>'INCOME TAXES'!$I$36,(SUM(AX24:AX27)-'INCOME TAXES'!$I$36)*AX4,0)*IF('GENERAL ASSUMPTIONS'!$C$34="s",1,0) -> 0 | AY6: =IF(SUM(AY24:AY27)>'INCOME TAXES'!$I$36,(SUM(AY24:AY27)-'INCOME TAXES'!$I$36)*AY4,0)*IF('GENERAL ASSUMPTIONS'!$C$34="s",1,0) -> 0 | AZ6: =IF(SUM(AZ24:AZ27)>'INCOME TAXES'!$I$36,(SUM(AZ24:AZ27)-'INCOME TAXES'!$I$36)*AZ4,0)*IF('GENERAL ASSUMPTIONS'!$C$34="s",1,0) -> 0 | BA6: =IF(SUM(BA24:BA27)>'INCOME TAXES'!$I$36,(SUM(BA24:BA27)-'INCOME TAXES'!$I$36)*BA4,0)*IF('GENERAL ASSUMPTIONS'!$C$34="s",1,0) -> 0 | BB6: =IF(SUM(BB24:BB27)>'INCOME TAXES'!$I$36,(SUM(BB24:BB27)-'INCOME TAXES'!$I$36)*BB4,0)*IF('GENERAL ASSUMPTIONS'!$C$34="s",1,0) -> 0 | BC6: =IF(SUM(BC24:BC27)>'INCOME TAXES'!$I$36,(SUM(BC24:BC27)-'INCOME TAXES'!$I$36)*BC4,0)*IF('GENERAL ASSUMPTIONS'!$C$34="s",1,0) -> 0 | BD6: =IF(SUM(BD24:BD27)>'INCOME TAXES'!$I$36,(SUM(BD24:BD27)-'INCOME TAXES'!$I$36)*BD4,0)*IF('GENERAL ASSUMPTIONS'!$C$34="s",1,0) -> 0 | BE6: =IF(SUM(BE24:BE27)>'INCOME TAXES'!$I$36,(SUM(BE24:BE27)-'INCOME TAXES'!$I$36)*BE4,0)*IF('GENERAL ASSUMPTIONS'!$C$34="s",1,0) -> 0 | BF6: =IF(SUM(BF24:BF27)>'INCOME TAXES'!$I$36,(SUM(BF24:BF27)-'INCOME TAXES'!$I$36)*BF4,0)*IF('GENERAL ASSUMPTIONS'!$C$34="s",1,0) -> 0 | BG6: =IF(SUM(BG24:BG27)>'INCOME TAXES'!$I$36,(SUM(BG24:BG27)-'INCOME TAXES'!$I$36)*BG4,0)*IF('GENERAL ASSUMPTIONS'!$C$34="s",1,0) -> 0 | BH6: =IF(SUM(BH24:BH27)>'INCOME TAXES'!$I$36,(SUM(BH24:BH27)-'INCOME TAXES'!$I$36)*BH4,0)*IF('GENERAL ASSUMPTIONS'!$C$34="s",1,0) -> 0 | BI6: =IF(SUM(BI24:BI27)>'INCOME TAXES'!$I$36,(SUM(BI24:BI27)-'INCOME TAXES'!$I$36)*BI4,0)*IF('GENERAL ASSUMPTIONS'!$C$34="s",1,0) -> 0 | BJ6: =IF(SUM(BJ24:BJ27)>'INCOME TAXES'!$I$36,(SUM(BJ24:BJ27)-'INCOME TAXES'!$I$36)*BJ4,0)*IF('GENERAL ASSUMPTIONS'!$C$34="s",1,0) -> 0 | BK6: =IF(SUM(BK24:BK27)>'INCOME TAXES'!$I$36,(SUM(BK24:BK27)-'INCOME TAXES'!$I$36)*BK4,0)*IF('GENERAL ASSUMPTIONS'!$C$34="s",1,0) -> 0 | BL6: =IF(SUM(BL24:BL27)>'INCOME TAXES'!$I$36,(SUM(BL24:BL27)-'INCOME TAXES'!$I$36)*BL4,0)*IF('GENERAL ASSUMPTIONS'!$C$34="s",1,0) -> 0 | BM6: =IF(SUM(BM24:BM27)>'INCOME TAXES'!$I$36,(SUM(BM24:BM27)-'INCOME TAXES'!$I$36)*BM4,0)*IF('GENERAL ASSUMPTIONS'!$C$34="s",1,0) -> 0 | BN6: =IF(SUM(BN24:BN27)>'INCOME TAXES'!$I$36,(SUM(BN24:BN27)-'INCOME TAXES'!$I$36)*BN4,0)*IF('GENERAL ASSUMPTIONS'!$C$34="s",1,0) -> 0 | BO6: =IF(SUM(BO24:BO27)>'INCOME TAXES'!$I$36,(SUM(BO24:BO27)-'INCOME TAXES'!$I$36)*BO4,0)*IF('GENERAL ASSUMPTIONS'!$C$34="s",1,0) -> 0 | BP6: =IF(SUM(BP24:BP27)>'INCOME TAXES'!$I$36,(SUM(BP24:BP27)-'INCOME TAXES'!$I$36)*BP4,0)*IF('GENERAL ASSUMPTIONS'!$C$34="s",1,0) -> 0 | BQ6: =IF(SUM(BQ24:BQ27)>'INCOME TAXES'!$I$36,(SUM(BQ24:BQ27)-'INCOME TAXES'!$I$36)*BQ4,0)*IF('GENERAL ASSUMPTIONS'!$C$34="s",1,0) -> 0 | BR6: =IF(SUM(BR24:BR27)>'INCOME TAXES'!$I$36,(SUM(BR24:BR27)-'INCOME TAXES'!$I$36)*BR4,0)*IF('GENERAL ASSUMPTIONS'!$C$34="s",1,0) -> 0 | BS6: =IF(SUM(BS24:BS27)>'INCOME TAXES'!$I$36,(SUM(BS24:BS27)-'INCOME TAXES'!$I$36)*BS4,0)*IF('GENERAL ASSUMPTIONS'!$C$34="s",1,0) -> 0 | BT6: =IF(SUM(BT24:BT27)>'INCOME TAXES'!$I$36,(SUM(BT24:BT27)-'INCOME TAXES'!$I$36)*BT4,0)*IF('GENERAL ASSUMPTIONS'!$C$34="s",1,0) -> 0 | BU6: =IF(SUM(BU24:BU27)>'INCOME TAXES'!$I$36,(SUM(BU24:BU27)-'INCOME TAXES'!$I$36)*BU4,0)*IF('GENERAL ASSUMPTIONS'!$C$34="s",1,0) -> 0 | BV6: =IF(SUM(BV24:BV27)>'INCOME TAXES'!$I$36,(SUM(BV24:BV27)-'INCOME TAXES'!$I$36)*BV4,0)*IF('GENERAL ASSUMPTIONS'!$C$34="s",1,0) -> 0 | BW6: =IF(SUM(BW24:BW27)>'INCOME TAXES'!$I$36,(SUM(BW24:BW27)-'INCOME TAXES'!$I$36)*BW4,0)*IF('GENERAL ASSUMPTIONS'!$C$34="s",1,0) -> 0 | BX6: =IF(SUM(BX24:BX27)>'INCOME TAXES'!$I$36,(SUM(BX24:BX27)-'INCOME TAXES'!$I$36)*BX4,0)*IF('GENERAL ASSUMPTIONS'!$C$34="s",1,0) -> 0
B7: ='GENERAL ASSUMPTIONS'!$C$13 -> © 2016 GROSSMAN FINANCIAL MANAGEMENT | N7: ='INCOME TAXES'!G34 -> SOCIAL SECURITY of FICA | P7: ='INCOME TAXES'!H34 -> 0.062 | Q7: =P7 -> 0.062 | R7: =Q7 -> 0.062 | S7: 0.062 | T7: 0.062 | U7: 0.062 | V7: 0.062 | W7: 0.062 | X7: 0.062 | Y7: 0.062 | Z7: 0.062 | AA7: 0.062 | AB7: 0.062 | AC7: 0.062 | AD7: 0.062 | AE7: 0.062 | AF7: 0.062 | AG7: 0.062 | AH7: 0.062 | AI7: 0.062 | AJ7: 0.062 | AK7: 0.062 | AL7: 0.062 | AM7: 0.062 | AN7: 0.062 | AO7: 0.062 | AP7: 0.062 | AQ7: 0.062 | AR7: 0.062 | AS7: 0.062 | AT7: 0.062 | AU7: 0.062 | AV7: 0.062 | AW7: 0.062 | AX7: 0.062 | AY7: 0.062 | AZ7: 0.062 | BA7: 0.062 | BB7: 0.062 | BC7: 0.062 | BD7: 0.062 | BE7: 0.062 | BF7: 0.062 | BG7: 0.062 | BH7: 0.062 | BI7: 0.062 | BJ7: 0.062 | BK7: 0.062 | BL7: 0.062 | BM7: 0.062 | BN7: 0.062 | BO7: 0.062 | BP7: 0.062 | BQ7: 0.062 | BR7: 0.062 | BS7: 0.062 | BT7: 0.062 | BU7: 0.062 | BV7: 0.062 | BW7: 0.062 | BX7: 0.062
B8: ='GENERAL ASSUMPTIONS'!$C$16 -> PERSONAL FINANCIAL CALCULATING PROGRAM™ | N8: ='INCOME TAXES'!G35 -> MEDICARE of FICA - base | P8: ='INCOME TAXES'!H35 -> 0.0145 | Q8: =P8 -> 0.0145 | R8: =Q8 -> 0.0145 | S8: 0.0145 | T8: 0.0145 | U8: 0.0145 | V8: 0.0145 | W8: 0.0145 | X8: 0.0145 | Y8: 0.0145 | Z8: 0.0145 | AA8: 0.0145 | AB8: 0.0145 | AC8: 0.0145 | AD8: 0.0145 | AE8: 0.0145 | AF8: 0.0145 | AG8: 0.0145 | AH8: 0.0145 | AI8: 0.0145 | AJ8: 0.0145 | AK8: 0.0145 | AL8: 0.0145 | AM8: 0.0145 | AN8: 0.0145 | AO8: 0.0145 | AP8: 0.0145 | AQ8: 0.0145 | AR8: 0.0145 | AS8: 0.0145 | AT8: 0.0145 | AU8: 0.0145 | AV8: 0.0145 | AW8: 0.0145 | AX8: 0.0145 | AY8: 0.0145 | AZ8: 0.0145 | BA8: 0.0145 | BB8: 0.0145 | BC8: 0.0145 | BD8: 0.0145 | BE8: 0.0145 | BF8: 0.0145 | BG8: 0.0145 | BH8: 0.0145 | BI8: 0.0145 | BJ8: 0.0145 | BK8: 0.0145 | BL8: 0.0145 | BM8: 0.0145 | BN8: 0.0145 | BO8: 0.0145 | BP8: 0.0145 | BQ8: 0.0145 | BR8: 0.0145 | BS8: 0.0145 | BT8: 0.0145 | BU8: 0.0145 | BV8: 0.0145 | BW8: 0.0145 | BX8: 0.0145
B9: CASHFLOW ASSUMPTIONS | N9: ='INCOME TAXES'!G32 -> SOCIAL SECURITY WAGE BASE | P9: ='INCOME TAXES'!H32 -> 118500 | Q9: =P9*(1+inflate) -> 118500 | R9: =Q9*(1+inflate) -> 118500 | S9: 118500 | T9: 118500 | U9: 118500 | V9: 118500 | W9: 118500 | X9: 118500 | Y9: 118500 | Z9: 118500 | AA9: 118500 | AB9: 118500 | AC9: 118500 | AD9: 118500 | AE9: 118500 | AF9: 118500 | AG9: 118500 | AH9: 118500 | AI9: 118500 | AJ9: 118500 | AK9: 118500 | AL9: 118500 | AM9: 118500 | AN9: 118500 | AO9: 118500 | AP9: 118500 | AQ9: 118500 | AR9: 118500 | AS9: 118500 | AT9: 118500 | AU9: 118500 | AV9: 118500 | AW9: 118500 | AX9: 118500 | AY9: 118500 | AZ9: 118500 | BA9: 118500 | BB9: 118500 | BC9: 118500 | BD9: 118500 | BE9: 118500 | BF9: 118500 | BG9: 118500 | BH9: 118500 | BI9: 118500 | BJ9: 118500 | BK9: 118500 | BL9: 118500 | BM9: 118500 | BN9: 118500 | BO9: 118500 | BP9: 118500 | BQ9: 118500 | BR9: 118500 | BS9: 118500 | BT9: 118500 | BU9: 118500 | BV9: 118500 | BW9: 118500 | BX9: 118500
N12: INCOME FORECAST
P13: 0 | Q13: =P13+1 -> 1 | R13: =Q13+1 -> 2 | S13: 3 | T13: 4 | U13: 5 | V13: 6 | W13: 7 | X13: 8 | Y13: 9 | Z13: 10 | AA13: 11 | AB13: 12 | AC13: 13 | AD13: 14 | AE13: 15 | AF13: 16 | AG13: 17 | AH13: =AG13+1 -> 18 | AI13: 19 | AJ13: 20 | AK13: 21 | AL13: 22 | AM13: 23 | AN13: 24 | AO13: 25 | AP13: 26 | AQ13: 27 | AR13: 28 | AS13: 29 | AT13: 30 | AU13: 31 | AV13: 32 | AW13: 33 | AX13: =AW13+1 -> 34 | AY13: 35 | AZ13: 36 | BA13: 37 | BB13: 38 | BC13: 39 | BD13: 40 | BE13: 41 | BF13: 42 | BG13: 43 | BH13: 44 | BI13: 45 | BJ13: 46 | BK13: 47 | BL13: 48 | BM13: 49 | BN13: 50 | BO13: =BN13+1 -> 51 | BP13: 52 | BQ13: 53 | BR13: 54 | BS13: 55 | BT13: 56 | BU13: 57 | BV13: 58 | BW13: 59 | BX13: 60
F14: FIRST YEAR | G14: LAST YEAR | N14: YEAR | P14: ='FULL VIEW'!H12 -> 2016 | Q14: =P14+1 -> 2017 | R14: 2018 | S14: 2019 | T14: 2020 | U14: 2021 | V14: 2022 | W14: 2023 | X14: 2024 | Y14: 2025 | Z14: 2026 | AA14: 2027 | AB14: 2028 | AC14: 2029 | AD14: 2030 | AE14: 2031 | AF14: 2032 | AG14: 2033 | AH14: 2034 | AI14: 2035 | AJ14: 2036 | AK14: 2037 | AL14: 2038 | AM14: 2039 | AN14: 2040 | AO14: 2041 | AP14: 2042 | AQ14: 2043 | AR14: 2044 | AS14: 2045 | AT14: 2046 | AU14: 2047 | AV14: 2048 | AW14: 2049 | AX14: 2050 | AY14: 2051 | AZ14: 2052 | BA14: 2053 | BB14: 2054 | BC14: 2055 | BD14: 2056 | BE14: 2057 | BF14: 2058 | BG14: 2059 | BH14: 2060 | BI14: 2061 | BJ14: 2062 | BK14: 2063 | BL14: 2064 | BM14: 2065 | BN14: 2066 | BO14: 2067 | BP14: 2068 | BQ14: 2069 | BR14: 2070 | BS14: 2071 | BT14: 2072 | BU14: 2073 | BV14: 2074 | BW14: 2075 | BX14: 2076
D16: AMOUNT | I16: INFLATION PLUS | J16: INFLATOR
B18: INCOME SOURCES
B20: ='CF ASSUMPTIONS+'!B20 -> EARNED INCOME - 1a | C20: CLIENT #1 | D20: ='CF ASSUMPTIONS+'!D20 -> 0 | E20: SUBJECT TO FICA | F20: ='CF ASSUMPTIONS+'!F20 -> 2016 | G20: ='CF ASSUMPTIONS+'!G20 -> 2076 | I20: ='CF ASSUMPTIONS+'!I20 -> 0 | J20: =INVESTMENTS!$E$82+I20 -> 0 | N20: =B20 -> EARNED INCOME - 1a | P20: =IF(P$14>=$F20,IF(P$14<=$G20,$D20*(1+$J20)^P$13,0),0) -> 0 | Q20: =IF(Q$14>=$F20,IF(Q$14<=$G20,$D20*(1+$J20)^Q$13,0),0) -> 0 | R20: 0 | S20: 0 | T20: 0 | U20: 0 | V20: 0 | W20: 0 | X20: 0 | Y20: 0 | Z20: 0 | AA20: 0 | AB20: 0 | AC20: 0 | AD20: 0 | AE20: 0 | AF20: 0 | AG20: 0 | AH20: 0 | AI20: 0 | AJ20: 0 | AK20: 0 | AL20: 0 | AM20: 0 | AN20: 0 | AO20: 0 | AP20: 0 | AQ20: 0 | AR20: 0 | AS20: 0 | AT20: 0 | AU20: 0 | AV20: 0 | AW20: 0 | AX20: 0 | AY20: 0 | AZ20: 0 | BA20: 0 | BB20: 0 | BC20: 0 | BD20: 0 | BE20: 0 | BF20: 0 | BG20: 0 | BH20: 0 | BI20: 0 | BJ20: 0 | BK20: 0 | BL20: =IF(BL$14>=$F20,IF(BL$14<=$G20,$D20*(1+$J20)^BL$13,0),0) -> 0 | BM20: 0 | BN20: 0 | BO20: 0 | BP20: 0 | BQ20: 0 | BR20: 0 | BS20: 0 | BT20: 0 | BU20: 0 | BV20: 0 | BW20: 0 | BX20: 0
B21: ='CF ASSUMPTIONS+'!B21 -> EARNED INCOME - 1b | D21: ='CF ASSUMPTIONS+'!D21 -> 0 | F21: ='CF ASSUMPTIONS+'!F21 -> 2016 | G21: ='CF ASSUMPTIONS+'!G21 -> 2076 | I21: ='CF ASSUMPTIONS+'!I21 -> 0 | J21: =INVESTMENTS!$E$82+I21 -> 0 | N21: EARNED INCOME - 1b | P21: 0 | Q21: 0 | R21: 0 | S21: 0 | T21: 0 | U21: 0 | V21: 0 | W21: 0 | X21: 0 | Y21: 0 | Z21: =IF(Z$14>=$F21,IF(Z$14<=$G21,$D21*(1+$J21)^Z$13,0),0) -> 0 | AA21: 0 | AB21: 0 | AC21: 0 | AD21: 0 | AE21: 0 | AF21: 0 | AG21: 0 | AH21: 0 | AI21: 0 | AJ21: =IF(AJ$14>=$F21,IF(AJ$14<=$G21,$D21*(1+$J21)^AJ$13,0),0) -> 0 | AK21: 0 | AL21: 0 | AM21: 0 | AN21: 0 | AO21: 0 | AP21: 0 | AQ21: 0 | AR21: 0 | AS21: 0 | AT21: 0 | AU21: 0 | AV21: =IF(AV$14>=$F21,IF(AV$14<=$G21,$D21*(1+$J21)^AV$13,0),0) -> 0 | AW21: 0 | AX21: 0 | AY21: 0 | AZ21: 0 | BA21: 0 | BB21: 0 | BC21: 0 | BD21: 0 | BE21: 0 | BF21: 0 | BG21: 0 | BH21: 0 | BI21: 0 | BJ21: 0 | BK21: 0 | BL21: =IF(BL$14>=$F21,IF(BL$14<=$G21,$D21*(1+$J21)^BL$13,0),0) -> 0 | BM21: 0 | BN21: 0 | BO21: 0 | BP21: 0 | BQ21: 0 | BR21: 0 | BS21: 0 | BT21: 0 | BU21: 0 | BV21: 0 | BW21: 0 | BX21: 0
B22: ='CF ASSUMPTIONS+'!B22 -> EARNED INCOME - 1c | D22: ='CF ASSUMPTIONS+'!D22 -> 0 | F22: ='CF ASSUMPTIONS+'!F22 -> 2016 | G22: ='CF ASSUMPTIONS+'!G22 -> 2076 | I22: ='CF ASSUMPTIONS+'!I22 -> 0 | J22: =INVESTMENTS!$E$82+I22 -> 0 | N22: EARNED INCOME - 1c | P22: 0 | Q22: 0 | R22: 0 | S22: 0 | T22: 0 | U22: 0 | V22: 0 | W22: 0 | X22: 0 | Y22: 0 | Z22: 0 | AA22: 0 | AB22: 0 | AC22: 0 | AD22: 0 | AE22: 0 | AF22: 0 | AG22: 0 | AH22: 0 | AI22: 0 | AJ22: 0 | AK22: 0 | AL22: 0 | AM22: 0 | AN22: 0 | AO22: 0 | AP22: 0 | AQ22: 0 | AR22: 0 | AS22: 0 | AT22: 0 | AU22: 0 | AV22: 0 | AW22: 0 | AX22: 0 | AY22: 0 | AZ22: 0 | BA22: 0 | BB22: 0 | BC22: 0 | BD22: 0 | BE22: 0 | BF22: 0 | BG22: 0 | BH22: 0 | BI22: 0 | BJ22: 0 | BK22: 0 | BL22: 0 | BM22: 0 | BN22: 0 | BO22: 0 | BP22: 0 | BQ22: 0 | BR22: 0 | BS22: 0 | BT22: 0 | BU22: 0 | BV22: 0 | BW22: 0 | BX22: 0
B23: ='CF ASSUMPTIONS+'!B23 -> EARNED INCOME - 1d | D23: ='CF ASSUMPTIONS+'!D23 -> 0 | F23: ='CF ASSUMPTIONS+'!F23 -> 2016 | G23: ='CF ASSUMPTIONS+'!G23 -> 2076 | I23: ='CF ASSUMPTIONS+'!I23 -> 0 | J23: =INVESTMENTS!$E$82+I23 -> 0 | N23: EARNED INCOME - 1d | P23: =IF(P$14>=$F23,IF(P$14<=$G23,$D23*(1+$J23)^P$13,0),0) -> 0 | Q23: 0 | R23: 0 | S23: 0 | T23: 0 | U23: 0 | V23: 0 | W23: 0 | X23: 0 | Y23: 0 | Z23: 0 | AA23: 0 | AB23: 0 | AC23: 0 | AD23: 0 | AE23: 0 | AF23: 0 | AG23: 0 | AH23: 0 | AI23: 0 | AJ23: 0 | AK23: 0 | AL23: 0 | AM23: 0 | AN23: 0 | AO23: 0 | AP23: 0 | AQ23: 0 | AR23: 0 | AS23: 0 | AT23: 0 | AU23: 0 | AV23: 0 | AW23: 0 | AX23: 0 | AY23: 0 | AZ23: 0 | BA23: 0 | BB23: 0 | BC23: 0 | BD23: 0 | BE23: 0 | BF23: 0 | BG23: 0 | BH23: 0 | BI23: 0 | BJ23: 0 | BK23: 0 | BL23: 0 | BM23: 0 | BN23: 0 | BO23: 0 | BP23: 0 | BQ23: 0 | BR23: 0 | BS23: 0 | BT23: 0 | BU23: 0 | BV23: 0 | BW23: 0 | BX23: 0
B24: ='CF ASSUMPTIONS+'!B24 -> EARNED INCOME - 2a | C24: CLIENT #2 | D24: ='CF ASSUMPTIONS+'!D24 -> 0 | F24: ='CF ASSUMPTIONS+'!F24 -> 2016 | G24: ='CF ASSUMPTIONS+'!G24 -> 2076 | I24: ='CF ASSUMPTIONS+'!I24 -> 0 | J24: =INVESTMENTS!$E$82+I24 -> 0 | N24: EARNED INCOME - 2a | P24: =IF(P$14>=$F24,IF(P$14<=$G24,$D24*(1+$J24)^P$13,0),0) -> 0 | Q24: 0 | R24: 0 | S24: 0 | T24: 0 | U24: 0 | V24: 0 | W24: 0 | X24: 0 | Y24: 0 | Z24: =IF(Z$14>=$F24,IF(Z$14<=$G24,$D24*(1+$J24)^Z$13,0),0) -> 0 | AA24: 0 | AB24: 0 | AC24: 0 | AD24: 0 | AE24: 0 | AF24: 0 | AG24: 0 | AH24: 0 | AI24: 0 | AJ24: =IF(AJ$14>=$F24,IF(AJ$14<=$G24,$D24*(1+$J24)^AJ$13,0),0) -> 0 | AK24: 0 | AL24: 0 | AM24: 0 | AN24: 0 | AO24: 0 | AP24: 0 | AQ24: 0 | AR24: 0 | AS24: 0 | AT24: =IF(AT$14>=$F24,IF(AT$14<=$G24,$D24*(1+$J24)^AT$13,0),0) -> 0 | AU24: 0 | AV24: 0 | AW24: 0 | AX24: 0 | AY24: 0 | AZ24: 0 | BA24: 0 | BB24: 0 | BC24: 0 | BD24: =IF(BD$14>=$F24,IF(BD$14<=$G24,$D24*(1+$J24)^BD$13,0),0) -> 0 | BE24: 0 | BF24: 0 | BG24: 0 | BH24: 0 | BI24: 0 | BJ24: 0 | BK24: 0 | BL24: 0 | BM24: 0 | BN24: 0 | BO24: 0 | BP24: 0 | BQ24: 0 | BR24: 0 | BS24: 0 | BT24: 0 | BU24: 0 | BV24: 0 | BW24: 0 | BX24: 0
B25: ='CF ASSUMPTIONS+'!B25 -> EARNED INCOME - 2b | D25: ='CF ASSUMPTIONS+'!D25 -> 0 | F25: ='CF ASSUMPTIONS+'!F25 -> 2016 | G25: ='CF ASSUMPTIONS+'!G25 -> 2076 | I25: ='CF ASSUMPTIONS+'!I25 -> 0 | J25: =INVESTMENTS!$E$82+I25 -> 0 | N25: EARNED INCOME - 2b | P25: 0 | Q25: 0 | R25: 0 | S25: 0 | T25: 0 | U25: 0 | V25: 0 | W25: 0 | X25: 0 | Y25: 0 | Z25: 0 | AA25: 0 | AB25: 0 | AC25: 0 | AD25: 0 | AE25: 0 | AF25: 0 | AG25: 0 | AH25: 0 | AI25: 0 | AJ25: 0 | AK25: 0 | AL25: 0 | AM25: 0 | AN25: 0 | AO25: 0 | AP25: 0 | AQ25: 0 | AR25: 0 | AS25: 0 | AT25: 0 | AU25: 0 | AV25: 0 | AW25: 0 | AX25: 0 | AY25: 0 | AZ25: 0 | BA25: 0 | BB25: 0 | BC25: 0 | BD25: 0 | BE25: 0 | BF25: 0 | BG25: 0 | BH25: 0 | BI25: 0 | BJ25: 0 | BK25: 0 | BL25: 0 | BM25: 0 | BN25: 0 | BO25: 0 | BP25: 0 | BQ25: 0 | BR25: 0 | BS25: 0 | BT25: 0 | BU25: 0 | BV25: 0 | BW25: 0 | BX25: 0
B26: ='CF ASSUMPTIONS+'!B26 -> EARNED INCOME - 2c | D26: ='CF ASSUMPTIONS+'!D26 -> 0 | F26: ='CF ASSUMPTIONS+'!F26 -> 2016 | G26: ='CF ASSUMPTIONS+'!G26 -> 2076 | I26: ='CF ASSUMPTIONS+'!I26 -> 0 | J26: =INVESTMENTS!$E$82+I26 -> 0 | N26: EARNED INCOME - 2c | P26: =IF(P$14>=$F26,IF(P$14<=$G26,$D26*(1+$J26)^P$13,0),0) -> 0 | Q26: 0 | R26: 0 | S26: 0 | T26: 0 | U26: 0 | V26: 0 | W26: 0 | X26: 0 | Y26: 0 | Z26: 0 | AA26: 0 | AB26: 0 | AC26: 0 | AD26: 0 | AE26: 0 | AF26: 0 | AG26: 0 | AH26: 0 | AI26: 0 | AJ26: 0 | AK26: 0 | AL26: 0 | AM26: 0 | AN26: 0 | AO26: 0 | AP26: 0 | AQ26: 0 | AR26: 0 | AS26: 0 | AT26: 0 | AU26: 0 | AV26: 0 | AW26: 0 | AX26: 0 | AY26: 0 | AZ26: 0 | BA26: 0 | BB26: 0 | BC26: 0 | BD26: 0 | BE26: 0 | BF26: 0 | BG26: 0 | BH26: 0 | BI26: 0 | BJ26: 0 | BK26: 0 | BL26: 0 | BM26: 0 | BN26: 0 | BO26: 0 | BP26: 0 | BQ26: 0 | BR26: 0 | BS26: 0 | BT26: 0 | BU26: 0 | BV26: 0 | BW26: 0 | BX26: 0
B27: ='CF ASSUMPTIONS+'!B27 -> EARNED INCOME - 2d | D27: ='CF ASSUMPTIONS+'!D27 -> 0 | F27: ='CF ASSUMPTIONS+'!F27 -> 2016 | G27: ='CF ASSUMPTIONS+'!G27 -> 2076 | I27: ='CF ASSUMPTIONS+'!I27 -> 0 | J27: =INVESTMENTS!$E$82+I27 -> 0 | N27: EARNED INCOME - 2d | P27: =IF(P$14>=$F27,IF(P$14<=$G27,$D27*(1+$J27)^P$13,0),0) -> 0 | Q27: 0 | R27: 0 | S27: 0 | T27: 0 | U27: 0 | V27: 0 | W27: 0 | X27: 0 | Y27: 0 | Z27: =IF(Z$14>=$F27,IF(Z$14<=$G27,$D27*(1+$J27)^Z$13,0),0) -> 0 | AA27: 0 | AB27: 0 | AC27: 0 | AD27: 0 | AE27: 0 | AF27: 0 | AG27: 0 | AH27: 0 | AI27: 0 | AJ27: =IF(AJ$14>=$F27,IF(AJ$14<=$G27,$D27*(1+$J27)^AJ$13,0),0) -> 0 | AK27: 0 | AL27: 0 | AM27: 0 | AN27: 0 | AO27: 0 | AP27: 0 | AQ27: 0 | AR27: 0 | AS27: 0 | AT27: =IF(AT$14>=$F27,IF(AT$14<=$G27,$D27*(1+$J27)^AT$13,0),0) -> 0 | AU27: 0 | AV27: 0 | AW27: 0 | AX27: 0 | AY27: 0 | AZ27: 0 | BA27: 0 | BB27: 0 | BC27: 0 | BD27: =IF(BD$14>=$F27,IF(BD$14<=$G27,$D27*(1+$J27)^BD$13,0),0) -> 0 | BE27: 0 | BF27: 0 | BG27: 0 | BH27: 0 | BI27: 0 | BJ27: 0 | BK27: 0 | BL27: 0 | BM27: 0 | BN27: 0 | BO27: 0 | BP27: 0 | BQ27: 0 | BR27: 0 | BS27: 0 | BT27: 0 | BU27: 0 | BV27: 0 | BW27: 0 | BX27: 0
B28: ='CF ASSUMPTIONS+'!B28 -> FICA (withholding): PERSON1 | C28: ='CF ASSUMPTIONS+'!C28 -> 0 | D28: =(6.2%+1.45%)*C28 -> 0 | E28: =IF(D28>0,"ERROR","") ->  | N28: =B28 -> FICA (withholding): PERSON1 | P28: =(IF(SUM(P20:P23)<P9,SUM(P20:P23)*P7*-$C$28,P9*P7*-$C$28)+SUM(P20:P23)*P8*-$C$28+P2+P5)*-1 -> 0 | Q28: =(IF(SUM(Q20:Q23)<Q9,SUM(Q20:Q23)*Q7*-$C$28,Q9*Q7*-$C$28)+SUM(Q20:Q23)*Q8*-$C$28+Q2+Q5)*-1 -> 0 | R28: 0 | S28: 0 | T28: 0 | U28: 0 | V28: 0 | W28: 0 | X28: 0 | Y28: 0 | Z28: 0 | AA28: 0 | AB28: 0 | AC28: 0 | AD28: 0 | AE28: 0 | AF28: 0 | AG28: 0 | AH28: 0 | AI28: 0 | AJ28: 0 | AK28: 0 | AL28: 0 | AM28: 0 | AN28: 0 | AO28: 0 | AP28: 0 | AQ28: 0 | AR28: 0 | AS28: 0 | AT28: 0 | AU28: 0 | AV28: 0 | AW28: 0 | AX28: 0 | AY28: 0 | AZ28: 0 | BA28: 0 | BB28: 0 | BC28: 0 | BD28: 0 | BE28: 0 | BF28: 0 | BG28: 0 | BH28: 0 | BI28: 0 | BJ28: 0 | BK28: 0 | BL28: 0 | BM28: 0 | BN28: 0 | BO28: 0 | BP28: 0 | BQ28: 0 | BR28: 0 | BS28: 0 | BT28: 0 | BU28: 0 | BV28: 0 | BW28: 0 | BX28: 0
B29: ='CF ASSUMPTIONS+'!B29 -> FICA (withholding): PERSON2 | C29: ='CF ASSUMPTIONS+'!C29 -> 0 | D29: =(6.2%+1.45%)*C29 -> 0 | E29: =IF(D29>0,"ERROR","") ->  | N29: =B29 -> FICA (withholding): PERSON2 | P29: =(IF(SUM(P24:P27)<P9,SUM(P24:P27)*P7*-$C$29,P9*P7*-$C$29)+SUM(P24:P27)*P8*-$C$29+P3+P6)*-1 -> 0 | Q29: =(IF(SUM(Q24:Q27)<Q9,SUM(Q24:Q27)*Q7*-$C$29,Q9*Q7*-$C$29)+SUM(Q24:Q27)*Q8*-$C$29+Q3+Q6)*-1 -> 0 | R29: 0 | S29: 0 | T29: 0 | U29: 0 | V29: 0 | W29: 0 | X29: 0 | Y29: 0 | Z29: 0 | AA29: 0 | AB29: 0 | AC29: 0 | AD29: 0 | AE29: 0 | AF29: 0 | AG29: 0 | AH29: 0 | AI29: 0 | AJ29: 0 | AK29: 0 | AL29: 0 | AM29: 0 | AN29: 0 | AO29: 0 | AP29: 0 | AQ29: 0 | AR29: 0 | AS29: 0 | AT29: 0 | AU29: 0 | AV29: 0 | AW29: 0 | AX29: 0 | AY29: 0 | AZ29: 0 | BA29: 0 | BB29: 0 | BC29: 0 | BD29: 0 | BE29: 0 | BF29: 0 | BG29: 0 | BH29: 0 | BI29: 0 | BJ29: 0 | BK29: 0 | BL29: 0 | BM29: 0 | BN29: 0 | BO29: 0 | BP29: 0 | BQ29: 0 | BR29: 0 | BS29: 0 | BT29: 0 | BU29: 0 | BV29: 0 | BW29: 0 | BX29: 0
B30: ='CF ASSUMPTIONS+'!B30 -> PENSION - 1 | D30: ='CF ASSUMPTIONS+'!D30 -> 0 | F30: ='CF ASSUMPTIONS+'!F30 -> 2016 | G30: ='CF ASSUMPTIONS+'!G30 -> 2076 | I30: ='CF ASSUMPTIONS+'!I30 -> 0 | J30: =INVESTMENTS!$E$82+I30 -> 0 | N30: PENSION - 1 | P30: 0 | Q30: 0 | R30: 0 | S30: 0 | T30: 0 | U30: 0 | V30: 0 | W30: 0 | X30: 0 | Y30: 0 | Z30: 0 | AA30: 0 | AB30: 0 | AC30: 0 | AD30: 0 | AE30: 0 | AF30: 0 | AG30: 0 | AH30: 0 | AI30: 0 | AJ30: 0 | AK30: 0 | AL30: 0 | AM30: 0 | AN30: 0 | AO30: 0 | AP30: 0 | AQ30: 0 | AR30: 0 | AS30: 0 | AT30: 0 | AU30: 0 | AV30: 0 | AW30: 0 | AX30: 0 | AY30: 0 | AZ30: 0 | BA30: 0 | BB30: 0 | BC30: 0 | BD30: 0 | BE30: 0 | BF30: 0 | BG30: 0 | BH30: 0 | BI30: 0 | BJ30: 0 | BK30: 0 | BL30: 0 | BM30: 0 | BN30: 0 | BO30: 0 | BP30: 0 | BQ30: 0 | BR30: 0 | BS30: 0 | BT30: 0 | BU30: 0 | BV30: 0 | BW30: 0 | BX30: 0
B31: ='CF ASSUMPTIONS+'!B31 -> PENSION - 2 | D31: ='CF ASSUMPTIONS+'!D31 -> 0 | F31: ='CF ASSUMPTIONS+'!F31 -> 2016 | G31: ='CF ASSUMPTIONS+'!G31 -> 2076 | I31: ='CF ASSUMPTIONS+'!I31 -> 0 | J31: =INVESTMENTS!$E$82+I31 -> 0 | N31: PENSION - 2 | P31: 0 | Q31: 0 | R31: 0 | S31: 0 | T31: 0 | U31: 0 | V31: 0 | W31: 0 | X31: 0 | Y31: 0 | Z31: 0 | AA31: 0 | AB31: 0 | AC31: 0 | AD31: 0 | AE31: 0 | AF31: 0 | AG31: 0 | AH31: 0 | AI31: 0 | AJ31: 0 | AK31: 0 | AL31: 0 | AM31: 0 | AN31: 0 | AO31: 0 | AP31: 0 | AQ31: 0 | AR31: 0 | AS31: 0 | AT31: 0 | AU31: 0 | AV31: 0 | AW31: 0 | AX31: 0 | AY31: 0 | AZ31: 0 | BA31: 0 | BB31: 0 | BC31: 0 | BD31: 0 | BE31: 0 | BF31: 0 | BG31: 0 | BH31: 0 | BI31: 0 | BJ31: 0 | BK31: 0 | BL31: 0 | BM31: 0 | BN31: 0 | BO31: 0 | BP31: 0 | BQ31: 0 | BR31: 0 | BS31: 0 | BT31: 0 | BU31: 0 | BV31: 0 | BW31: 0 | BX31: 0
B32: ='CF ASSUMPTIONS+'!B32 -> PENSION - 3 | D32: ='CF ASSUMPTIONS+'!D32 -> 0 | F32: ='CF ASSUMPTIONS+'!F32 -> 2016 | G32: ='CF ASSUMPTIONS+'!G32 -> 2076 | I32: ='CF ASSUMPTIONS+'!I32 -> 0 | J32: =INVESTMENTS!$E$82+I32 -> 0 | N32: =B32 -> PENSION - 3 | P32: =IF(P$14>=$F32,IF(P$14<=$G32,$D32*(1+$J32)^P$13,0),0) -> 0 | Q32: 0 | R32: 0 | S32: 0 | T32: 0 | U32: 0 | V32: 0 | W32: 0 | X32: 0 | Y32: 0 | Z32: 0 | AA32: 0 | AB32: 0 | AC32: 0 | AD32: 0 | AE32: 0 | AF32: 0 | AG32: 0 | AH32: 0 | AI32: 0 | AJ32: 0 | AK32: 0 | AL32: 0 | AM32: 0 | AN32: 0 | AO32: 0 | AP32: 0 | AQ32: 0 | AR32: 0 | AS32: 0 | AT32: 0 | AU32: 0 | AV32: 0 | AW32: 0 | AX32: 0 | AY32: 0 | AZ32: 0 | BA32: 0 | BB32: 0 | BC32: 0 | BD32: 0 | BE32: 0 | BF32: 0 | BG32: 0 | BH32: 0 | BI32: 0 | BJ32: 0 | BK32: 0 | BL32: 0 | BM32: 0 | BN32: 0 | BO32: 0 | BP32: 0 | BQ32: 0 | BR32: 0 | BS32: 0 | BT32: 0 | BU32: 0 | BV32: 0 | BW32: 0 | BX32: 0
B33: ='CF ASSUMPTIONS+'!B33 -> SOCIAL SECURITY - 1 (start age & $) | C33: ='CF ASSUMPTIONS+'!C33 -> 0 | D33: =IF(C33=62,'GENERAL ASSUMPTIONS'!C54,IF(C33=63,'GENERAL ASSUMPTIONS'!D54,IF(C33=64,'GENERAL ASSUMPTIONS'!E54,IF(C33=65,'GENERAL ASSUMPTIONS'!F54,IF(C33=66,'GENERAL ASSUMPTIONS'!G54,IF(C33=67,'GENERAL ASSUMPTIONS'!H54,IF(C33=68,'GENERAL ASSUMPTIONS'!I54,IF(C33=69,'GENERAL ASSUMPTIONS'!J54,IF(C33=70,'GENERAL ASSUMPTIONS'!K54)))))))))*12 -> 0 | F33: =IF('GENERAL ASSUMPTIONS'!C27="","",baseyear-ROUND('GENERAL ASSUMPTIONS'!C27,0))+C33 -> 2000 | G33: ='CF ASSUMPTIONS+'!G33 -> 2060 | I33: ='CF ASSUMPTIONS+'!I33 -> 0 | J33: =INVESTMENTS!$E$82+I33 -> 0 | N33: SOCIAL SECURITY - 1 (start age & $) | P33: =IF(P$14>=$F33,IF(P$14<=$G33,$D33*(1+$J33)^P$13,0),0) -> 0 | Q33: =IF(Q$14>=$F33,IF(Q$14<=$G33,$D33*(1+$J33)^Q$13,0),0) -> 0 | R33: 0 | S33: 0 | T33: 0 | U33: 0 | V33: 0 | W33: 0 | X33: 0 | Y33: 0 | Z33: =IF(Z$14>=$F33,IF(Z$14<=$G33,$D33*(1+$J33)^Z$13,0),0) -> 0 | AA33: 0 | AB33: 0 | AC33: 0 | AD33: 0 | AE33: 0 | AF33: 0 | AG33: 0 | AH33: 0 | AI33: 0 | AJ33: =IF(AJ$14>=$F33,IF(AJ$14<=$G33,$D33*(1+$J33)^AJ$13,0),0) -> 0 | AK33: 0 | AL33: 0 | AM33: 0 | AN33: 0 | AO33: 0 | AP33: 0 | AQ33: 0 | AR33: 0 | AS33: 0 | AT33: =IF(AT$14>=$F33,IF(AT$14<=$G33,$D33*(1+$J33)^AT$13,0),0) -> 0 | AU33: 0 | AV33: 0 | AW33: 0 | AX33: 0 | AY33: 0 | AZ33: 0 | BA33: 0 | BB33: 0 | BC33: 0 | BD33: =IF(BD$14>=$F33,IF(BD$14<=$G33,$D33*(1+$J33)^BD$13,0),0) -> 0 | BE33: 0 | BF33: 0 | BG33: 0 | BH33: 0 | BI33: 0 | BJ33: 0 | BK33: 0 | BL33: 0 | BM33: 0 | BN33: 0 | BO33: 0 | BP33: 0 | BQ33: 0 | BR33: 0 | BS33: 0 | BT33: 0 | BU33: 0 | BV33: 0 | BW33: 0 | BX33: 0
B34: ='CF ASSUMPTIONS+'!B34 -> SOCIAL SECURITY - 2 (start age & $) | C34: ='CF ASSUMPTIONS+'!C34 -> 0 | D34: =IF(C34=62,'GENERAL ASSUMPTIONS'!C55,IF(C34=63,'GENERAL ASSUMPTIONS'!D55,IF(C34=64,'GENERAL ASSUMPTIONS'!E55,IF(C34=65,'GENERAL ASSUMPTIONS'!F55,IF(C34=66,'GENERAL ASSUMPTIONS'!G55,IF(C34=67,'GENERAL ASSUMPTIONS'!H55,IF(C34=68,'GENERAL ASSUMPTIONS'!I55,IF(C34=69,'GENERAL ASSUMPTIONS'!J55,IF(C34=70,'GENERAL ASSUMPTIONS'!K55)))))))))*12 -> 0 | F34: =IF('GENERAL ASSUMPTIONS'!C28="","",baseyear-ROUND('GENERAL ASSUMPTIONS'!C28,0))+C34 -> 2000 | G34: ='CF ASSUMPTIONS+'!G34 -> 2060 | I34: ='CF ASSUMPTIONS+'!I34 -> 0 | J34: =INVESTMENTS!$E$82+I34 -> 0 | N34: =B34 -> SOCIAL SECURITY - 2 (start age & $) | P34: 0 | Q34: 0 | R34: 0 | S34: 0 | T34: 0 | U34: 0 | V34: 0 | W34: 0 | X34: 0 | Y34: 0 | Z34: 0 | AA34: 0 | AB34: 0 | AC34: 0 | AD34: 0 | AE34: 0 | AF34: 0 | AG34: 0 | AH34: 0 | AI34: 0 | AJ34: 0 | AK34: 0 | AL34: 0 | AM34: 0 | AN34: 0 | AO34: 0 | AP34: 0 | AQ34: 0 | AR34: 0 | AS34: 0 | AT34: 0 | AU34: 0 | AV34: 0 | AW34: 0 | AX34: 0 | AY34: 0 | AZ34: 0 | BA34: 0 | BB34: 0 | BC34: 0 | BD34: 0 | BE34: 0 | BF34: 0 | BG34: 0 | BH34: 0 | BI34: 0 | BJ34: 0 | BK34: 0 | BL34: 0 | BM34: 0 | BN34: 0 | BO34: 0 | BP34: 0 | BQ34: 0 | BR34: 0 | BS34: 0 | BT34: 0 | BU34: 0 | BV34: 0 | BW34: 0 | BX34: 0
B36: ='CF ASSUMPTIONS+'!B36 -> OTHER 1 | D36: ='CF ASSUMPTIONS+'!D36 -> 0 | F36: ='CF ASSUMPTIONS+'!F36 -> 2016 | G36: ='CF ASSUMPTIONS+'!G36 -> 2076 | I36: ='CF ASSUMPTIONS+'!I36 -> 0 | J36: =INVESTMENTS!$E$82+I36 -> 0 | N36: OTHER 1 | P36: 0 | Q36: 0 | R36: 0 | S36: 0 | T36: 0 | U36: 0 | V36: 0 | W36: 0 | X36: 0 | Y36: 0 | Z36: 0 | AA36: 0 | AB36: 0 | AC36: 0 | AD36: 0 | AE36: 0 | AF36: 0 | AG36: 0 | AH36: 0 | AI36: 0 | AJ36: 0 | AK36: 0 | AL36: 0 | AM36: 0 | AN36: 0 | AO36: 0 | AP36: 0 | AQ36: 0 | AR36: 0 | AS36: 0 | AT36: 0 | AU36: 0 | AV36: 0 | AW36: 0 | AX36: 0 | AY36: 0 | AZ36: 0 | BA36: 0 | BB36: 0 | BC36: 0 | BD36: 0 | BE36: 0 | BF36: 0 | BG36: 0 | BH36: 0 | BI36: 0 | BJ36: 0 | BK36: 0 | BL36: =IF(BL$14>=$F36,IF(BL$14<=$G36,$D36*(1+$J36)^BL$13,0),0) -> 0 | BM36: 0 | BN36: 0 | BO36: 0 | BP36: 0 | BQ36: 0 | BR36: 0 | BS36: 0 | BT36: 0 | BU36: 0 | BV36: 0 | BW36: 0 | BX36: 0
B37: ='CF ASSUMPTIONS+'!B37 -> OTHER 2 | D37: ='CF ASSUMPTIONS+'!D37 -> 0 | F37: ='CF ASSUMPTIONS+'!F37 -> 2016 | G37: ='CF ASSUMPTIONS+'!G37 -> 2076 | I37: ='CF ASSUMPTIONS+'!I37 -> 0 | J37: =INVESTMENTS!$E$82+I37 -> 0 | N37: OTHER 2 | P37: 0 | Q37: 0 | R37: 0 | S37: 0 | T37: 0 | U37: 0 | V37: 0 | W37: 0 | X37: 0 | Y37: 0 | Z37: 0 | AA37: 0 | AB37: 0 | AC37: 0 | AD37: 0 | AE37: 0 | AF37: 0 | AG37: 0 | AH37: 0 | AI37: 0 | AJ37: 0 | AK37: 0 | AL37: 0 | AM37: 0 | AN37: 0 | AO37: 0 | AP37: 0 | AQ37: 0 | AR37: 0 | AS37: 0 | AT37: 0 | AU37: 0 | AV37: 0 | AW37: 0 | AX37: 0 | AY37: 0 | AZ37: 0 | BA37: 0 | BB37: 0 | BC37: 0 | BD37: 0 | BE37: 0 | BF37: 0 | BG37: 0 | BH37: 0 | BI37: 0 | BJ37: 0 | BK37: 0 | BL37: 0 | BM37: 0 | BN37: 0 | BO37: 0 | BP37: 0 | BQ37: 0 | BR37: 0 | BS37: 0 | BT37: 0 | BU37: 0 | BV37: 0 | BW37: 0 | BX37: 0
B38: ='CF ASSUMPTIONS+'!B38 -> OTHER 3 | D38: ='CF ASSUMPTIONS+'!D38 -> 0 | F38: ='CF ASSUMPTIONS+'!F38 -> 2016 | G38: ='CF ASSUMPTIONS+'!G38 -> 2076 | I38: ='CF ASSUMPTIONS+'!I38 -> 0 | J38: =INVESTMENTS!$E$82+I38 -> 0 | N38: OTHER 3 | P38: 0 | Q38: 0 | R38: 0 | S38: 0 | T38: 0 | U38: 0 | V38: 0 | W38: 0 | X38: 0 | Y38: 0 | Z38: 0 | AA38: 0 | AB38: 0 | AC38: 0 | AD38: 0 | AE38: 0 | AF38: 0 | AG38: 0 | AH38: 0 | AI38: 0 | AJ38: 0 | AK38: 0 | AL38: 0 | AM38: 0 | AN38: 0 | AO38: 0 | AP38: 0 | AQ38: 0 | AR38: 0 | AS38: 0 | AT38: 0 | AU38: 0 | AV38: 0 | AW38: 0 | AX38: 0 | AY38: 0 | AZ38: 0 | BA38: 0 | BB38: 0 | BC38: 0 | BD38: 0 | BE38: 0 | BF38: 0 | BG38: 0 | BH38: 0 | BI38: 0 | BJ38: 0 | BK38: 0 | BL38: 0 | BM38: 0 | BN38: 0 | BO38: 0 | BP38: 0 | BQ38: 0 | BR38: 0 | BS38: 0 | BT38: 0 | BU38: 0 | BV38: 0 | BW38: 0 | BX38: 0
B39: ='CF ASSUMPTIONS+'!B39 -> OTHER 4 | D39: ='CF ASSUMPTIONS+'!D39 -> 0 | F39: ='CF ASSUMPTIONS+'!F39 -> 2016 | G39: ='CF ASSUMPTIONS+'!G39 -> 2076 | I39: ='CF ASSUMPTIONS+'!I39 -> 0 | J39: =INVESTMENTS!$E$82+I39 -> 0 | N39: =B39 -> OTHER 4 | P39: =IF(P$14>=$F39,IF(P$14<=$G39,$D39*(1+$J39)^P$13,0),0) -> 0 | Q39: 0 | R39: 0 | S39: 0 | T39: 0 | U39: 0 | V39: 0 | W39: 0 | X39: 0 | Y39: 0 | Z39: 0 | AA39: 0 | AB39: 0 | AC39: 0 | AD39: 0 | AE39: 0 | AF39: =IF(AF$14>=$F39,IF(AF$14<=$G39,$D39*(1+$J39)^AF$13,0),0) -> 0 | AG39: 0 | AH39: 0 | AI39: 0 | AJ39: 0 | AK39: 0 | AL39: 0 | AM39: 0 | AN39: 0 | AO39: 0 | AP39: 0 | AQ39: 0 | AR39: 0 | AS39: 0 | AT39: 0 | AU39: 0 | AV39: =IF(AV$14>=$F39,IF(AV$14<=$G39,$D39*(1+$J39)^AV$13,0),0) -> 0 | AW39: 0 | AX39: 0 | AY39: 0 | AZ39: 0 | BA39: 0 | BB39: 0 | BC39: 0 | BD39: 0 | BE39: 0 | BF39: 0 | BG39: 0 | BH39: 0 | BI39: 0 | BJ39: 0 | BK39: 0 | BL39: =IF(BL$14>=$F39,IF(BL$14<=$G39,$D39*(1+$J39)^BL$13,0),0) -> 0 | BM39: 0 | BN39: 0 | BO39: 0 | BP39: 0 | BQ39: 0 | BR39: 0 | BS39: 0 | BT39: 0 | BU39: 0 | BV39: 0 | BW39: 0 | BX39: 0
B40: ='CF ASSUMPTIONS+'!B40 -> OTHER 5 | D40: ='CF ASSUMPTIONS+'!D40 -> 0 | F40: ='CF ASSUMPTIONS+'!F40 -> 2016 | G40: ='CF ASSUMPTIONS+'!G40 -> 2076 | I40: ='CF ASSUMPTIONS+'!I40 -> 0 | J40: =INVESTMENTS!$E$82+I40 -> 0 | N40: =B40 -> OTHER 5 | P40: 0 | Q40: 0 | R40: 0 | S40: 0 | T40: 0 | U40: 0 | V40: 0 | W40: 0 | X40: 0 | Y40: 0 | Z40: 0 | AA40: 0 | AB40: 0 | AC40: 0 | AD40: 0 | AE40: 0 | AF40: 0 | AG40: 0 | AH40: 0 | AI40: 0 | AJ40: 0 | AK40: 0 | AL40: 0 | AM40: 0 | AN40: 0 | AO40: 0 | AP40: 0 | AQ40: 0 | AR40: 0 | AS40: 0 | AT40: 0 | AU40: 0 | AV40: 0 | AW40: 0 | AX40: 0 | AY40: 0 | AZ40: 0 | BA40: 0 | BB40: 0 | BC40: 0 | BD40: 0 | BE40: 0 | BF40: 0 | BG40: 0 | BH40: 0 | BI40: 0 | BJ40: 0 | BK40: 0 | BL40: 0 | BM40: 0 | BN40: 0 | BO40: 0 | BP40: 0 | BQ40: 0 | BR40: 0 | BS40: 0 | BT40: 0 | BU40: 0 | BV40: 0 | BW40: 0 | BX40: 0
B41: ='CF ASSUMPTIONS+'!B41 -> OTHER 6 | D41: ='CF ASSUMPTIONS+'!D41 -> 0 | F41: ='CF ASSUMPTIONS+'!F41 -> 2016 | G41: ='CF ASSUMPTIONS+'!G41 -> 2076 | I41: ='CF ASSUMPTIONS+'!I41 -> 0 | J41: =INVESTMENTS!$E$82+I41 -> 0 | N41: =B41 -> OTHER 6 | P41: 0 | Q41: 0 | R41: 0 | S41: 0 | T41: 0 | U41: 0 | V41: 0 | W41: 0 | X41: 0 | Y41: 0 | Z41: 0 | AA41: 0 | AB41: 0 | AC41: 0 | AD41: 0 | AE41: 0 | AF41: 0 | AG41: 0 | AH41: 0 | AI41: 0 | AJ41: 0 | AK41: 0 | AL41: 0 | AM41: 0 | AN41: 0 | AO41: 0 | AP41: 0 | AQ41: 0 | AR41: 0 | AS41: 0 | AT41: 0 | AU41: 0 | AV41: 0 | AW41: 0 | AX41: 0 | AY41: 0 | AZ41: 0 | BA41: 0 | BB41: 0 | BC41: 0 | BD41: 0 | BE41: 0 | BF41: 0 | BG41: 0 | BH41: 0 | BI41: 0 | BJ41: 0 | BK41: 0 | BL41: 0 | BM41: 0 | BN41: 0 | BO41: 0 | BP41: 0 | BQ41: 0 | BR41: 0 | BS41: 0 | BT41: 0 | BU41: 0 | BV41: 0 | BW41: 0 | BX41: 0
B42: ='CF ASSUMPTIONS+'!B42 -> NON-TAXABLE INCOME - 1 | C42: NOT TAXED | D42: ='CF ASSUMPTIONS+'!D42 -> 0 | F42: ='CF ASSUMPTIONS+'!F42 -> 2016 | G42: ='CF ASSUMPTIONS+'!G42 -> 2076 | I42: ='CF ASSUMPTIONS+'!I42 -> 0 | J42: =INVESTMENTS!$E$82+I42 -> 0 | N42: =B42 -> NON-TAXABLE INCOME - 1 | P42: =IF(P$14>=$F42,IF(P$14<=$G42,$D42*(1+$J42)^P$13,0),0) -> 0 | Q42: 0 | R42: 0 | S42: 0 | T42: 0 | U42: 0 | V42: 0 | W42: 0 | X42: 0 | Y42: 0 | Z42: 0 | AA42: 0 | AB42: 0 | AC42: 0 | AD42: 0 | AE42: 0 | AF42: 0 | AG42: 0 | AH42: 0 | AI42: 0 | AJ42: 0 | AK42: 0 | AL42: 0 | AM42: 0 | AN42: 0 | AO42: 0 | AP42: 0 | AQ42: 0 | AR42: 0 | AS42: 0 | AT42: 0 | AU42: 0 | AV42: =IF(AV$14>=$F42,IF(AV$14<=$G42,$D42*(1+$J42)^AV$13,0),0) -> 0 | AW42: 0 | AX42: 0 | AY42: 0 | AZ42: 0 | BA42: 0 | BB42: 0 | BC42: 0 | BD42: 0 | BE42: 0 | BF42: 0 | BG42: 0 | BH42: 0 | BI42: 0 | BJ42: 0 | BK42: 0 | BL42: 0 | BM42: 0 | BN42: 0 | BO42: 0 | BP42: 0 | BQ42: 0 | BR42: 0 | BS42: 0 | BT42: 0 | BU42: 0 | BV42: 0 | BW42: 0 | BX42: 0
B43: ='CF ASSUMPTIONS+'!B43 -> NON-TAXABLE INCOME - 2 | D43: ='CF ASSUMPTIONS+'!D43 -> 0 | F43: ='CF ASSUMPTIONS+'!F43 -> 2016 | G43: ='CF ASSUMPTIONS+'!G43 -> 2076 | I43: ='CF ASSUMPTIONS+'!I43 -> 0 | J43: =INVESTMENTS!$E$82+I43 -> 0 | N43: NON-TAXABLE INCOME - 2 | P43: 0 | Q43: 0 | R43: 0 | S43: 0 | T43: 0 | U43: 0 | V43: 0 | W43: 0 | X43: 0 | Y43: 0 | Z43: 0 | AA43: 0 | AB43: 0 | AC43: 0 | AD43: 0 | AE43: 0 | AF43: 0 | AG43: 0 | AH43: 0 | AI43: 0 | AJ43: 0 | AK43: 0 | AL43: 0 | AM43: 0 | AN43: 0 | AO43: 0 | AP43: 0 | AQ43: 0 | AR43: 0 | AS43: 0 | AT43: 0 | AU43: 0 | AV43: =IF(AV$14>=$F43,IF(AV$14<=$G43,$D43*(1+$J43)^AV$13,0),0) -> 0 | AW43: 0 | AX43: 0 | AY43: 0 | AZ43: 0 | BA43: 0 | BB43: 0 | BC43: 0 | BD43: 0 | BE43: 0 | BF43: 0 | BG43: 0 | BH43: 0 | BI43: 0 | BJ43: 0 | BK43: =IF(BK$14>=$F43,IF(BK$14<=$G43,$D43*(1+$J43)^BK$13,0),0) -> 0 | BL43: 0 | BM43: 0 | BN43: 0 | BO43: 0 | BP43: 0 | BQ43: 0 | BR43: 0 | BS43: 0 | BT43: 0 | BU43: 0 | BV43: 0 | BW43: 0 | BX43: 0
B44: ='CF ASSUMPTIONS+'!B44 -> NON-TAXABLE INCOME - 3 | D44: ='CF ASSUMPTIONS+'!D44 -> 0 | F44: ='CF ASSUMPTIONS+'!F44 -> 2016 | G44: ='CF ASSUMPTIONS+'!G44 -> 2076 | I44: ='CF ASSUMPTIONS+'!I44 -> 0 | J44: =INVESTMENTS!$E$82+I44 -> 0 | N44: NON-TAXABLE INCOME - 3 | P44: 0 | Q44: 0 | R44: 0 | S44: 0 | T44: 0 | U44: 0 | V44: 0 | W44: 0 | X44: 0 | Y44: 0 | Z44: 0 | AA44: 0 | AB44: 0 | AC44: 0 | AD44: 0 | AE44: 0 | AF44: 0 | AG44: 0 | AH44: 0 | AI44: 0 | AJ44: 0 | AK44: 0 | AL44: 0 | AM44: 0 | AN44: 0 | AO44: 0 | AP44: 0 | AQ44: 0 | AR44: 0 | AS44: 0 | AT44: 0 | AU44: 0 | AV44: 0 | AW44: 0 | AX44: 0 | AY44: 0 | AZ44: 0 | BA44: 0 | BB44: 0 | BC44: 0 | BD44: 0 | BE44: 0 | BF44: 0 | BG44: 0 | BH44: 0 | BI44: 0 | BJ44: 0 | BK44: =IF(BK$14>=$F44,IF(BK$14<=$G44,$D44*(1+$J44)^BK$13,0),0) -> 0 | BL44: 0 | BM44: 0 | BN44: 0 | BO44: 0 | BP44: 0 | BQ44: 0 | BR44: 0 | BS44: 0 | BT44: 0 | BU44: 0 | BV44: 0 | BW44: 0 | BX44: 0
B45: ='CF ASSUMPTIONS+'!B45 -> NON-TAXABLE INCOME - 4 | D45: ='CF ASSUMPTIONS+'!D45 -> 0 | F45: ='CF ASSUMPTIONS+'!F45 -> 2016 | G45: ='CF ASSUMPTIONS+'!G45 -> 2076 | I45: ='CF ASSUMPTIONS+'!I45 -> 0 | J45: =INVESTMENTS!$E$82+I45 -> 0 | N45: NON-TAXABLE INCOME - 4 | P45: 0 | Q45: 0 | R45: 0 | S45: 0 | T45: 0 | U45: 0 | V45: 0 | W45: 0 | X45: 0 | Y45: 0 | Z45: 0 | AA45: 0 | AB45: 0 | AC45: 0 | AD45: 0 | AE45: 0 | AF45: 0 | AG45: 0 | AH45: 0 | AI45: 0 | AJ45: 0 | AK45: 0 | AL45: 0 | AM45: 0 | AN45: 0 | AO45: 0 | AP45: 0 | AQ45: 0 | AR45: 0 | AS45: 0 | AT45: 0 | AU45: 0 | AV45: =IF(AV$14>=$F45,IF(AV$14<=$G45,$D45*(1+$J45)^AV$13,0),0) -> 0 | AW45: 0 | AX45: 0 | AY45: 0 | AZ45: 0 | BA45: 0 | BB45: 0 | BC45: 0 | BD45: 0 | BE45: 0 | BF45: 0 | BG45: 0 | BH45: 0 | BI45: 0 | BJ45: 0 | BK45: =IF(BK$14>=$F45,IF(BK$14<=$G45,$D45*(1+$J45)^BK$13,0),0) -> 0 | BL45: 0 | BM45: 0 | BN45: 0 | BO45: 0 | BP45: 0 | BQ45: 0 | BR45: 0 | BS45: 0 | BT45: 0 | BU45: 0 | BV45: 0 | BW45: 0 | BX45: 0
B46: ='CF ASSUMPTIONS+'!B46 -> NON-TAXABLE INCOME - 5 | D46: ='CF ASSUMPTIONS+'!D46 -> 0 | F46: ='CF ASSUMPTIONS+'!F46 -> 2016 | G46: ='CF ASSUMPTIONS+'!G46 -> 2076 | I46: ='CF ASSUMPTIONS+'!I46 -> 0 | J46: =INVESTMENTS!$E$82+I46 -> 0 | N46: NON-TAXABLE INCOME - 5 | P46: 0 | Q46: 0 | R46: 0 | S46: 0 | T46: 0 | U46: 0 | V46: 0 | W46: 0 | X46: 0 | Y46: 0 | Z46: 0 | AA46: 0 | AB46: 0 | AC46: 0 | AD46: 0 | AE46: 0 | AF46: 0 | AG46: 0 | AH46: 0 | AI46: 0 | AJ46: 0 | AK46: 0 | AL46: 0 | AM46: 0 | AN46: 0 | AO46: 0 | AP46: 0 | AQ46: 0 | AR46: 0 | AS46: 0 | AT46: 0 | AU46: 0 | AV46: 0 | AW46: 0 | AX46: 0 | AY46: 0 | AZ46: 0 | BA46: 0 | BB46: 0 | BC46: 0 | BD46: 0 | BE46: 0 | BF46: 0 | BG46: 0 | BH46: 0 | BI46: 0 | BJ46: 0 | BK46: =IF(BK$14>=$F46,IF(BK$14<=$G46,$D46*(1+$J46)^BK$13,0),0) -> 0 | BL46: 0 | BM46: 0 | BN46: 0 | BO46: 0 | BP46: 0 | BQ46: 0 | BR46: 0 | BS46: 0 | BT46: 0 | BU46: 0 | BV46: 0 | BW46: 0 | BX46: 0
B47: ='CF ASSUMPTIONS+'!B47 -> NON-TAXABLE INCOME - 6 | D47: ='CF ASSUMPTIONS+'!D47 -> 0 | F47: ='CF ASSUMPTIONS+'!F47 -> 2016 | G47: ='CF ASSUMPTIONS+'!G47 -> 2076 | I47: ='CF ASSUMPTIONS+'!I47 -> 0 | J47: =INVESTMENTS!$E$82+I47 -> 0 | N47: NON-TAXABLE INCOME - 6 | P47: 0 | Q47: 0 | R47: 0 | S47: 0 | T47: 0 | U47: 0 | V47: 0 | W47: 0 | X47: 0 | Y47: 0 | Z47: 0 | AA47: 0 | AB47: 0 | AC47: 0 | AD47: 0 | AE47: 0 | AF47: 0 | AG47: 0 | AH47: 0 | AI47: 0 | AJ47: 0 | AK47: 0 | AL47: 0 | AM47: 0 | AN47: 0 | AO47: 0 | AP47: 0 | AQ47: 0 | AR47: 0 | AS47: 0 | AT47: 0 | AU47: 0 | AV47: 0 | AW47: 0 | AX47: 0 | AY47: 0 | AZ47: 0 | BA47: 0 | BB47: 0 | BC47: 0 | BD47: 0 | BE47: 0 | BF47: 0 | BG47: 0 | BH47: 0 | BI47: 0 | BJ47: 0 | BK47: =IF(BK$14>=$F47,IF(BK$14<=$G47,$D47*(1+$J47)^BK$13,0),0) -> 0 | BL47: 0 | BM47: 0 | BN47: 0 | BO47: 0 | BP47: 0 | BQ47: 0 | BR47: 0 | BS47: 0 | BT47: 0 | BU47: 0 | BV47: 0 | BW47: 0 | BX47: 0
B48: ='CF ASSUMPTIONS+'!B48 -> PRE-TAX SAVINGS | C48: =IF(D48>0,"ERROR","") ->  | D48: ='CF ASSUMPTIONS+'!D48 -> 0 | F48: ='CF ASSUMPTIONS+'!F48 -> 2016 | G48: ='CF ASSUMPTIONS+'!G48 -> 2076 | I48: ='CF ASSUMPTIONS+'!I48 -> 0 | J48: =INVESTMENTS!$E$82+I48 -> 0 | N48: PRE-TAX SAVINGS | P48: =IF(P$14>=$F48,IF(P$14<=$G48,$D48*(1+$J48)^P$13,0),0) -> 0 | Q48: 0 | R48: 0 | S48: 0 | T48: 0 | U48: 0 | V48: 0 | W48: 0 | X48: 0 | Y48: 0 | Z48: =IF(Z$14>=$F48,IF(Z$14<=$G48,$D48*(1+$J48)^Z$13,0),0) -> 0 | AA48: 0 | AB48: 0 | AC48: 0 | AD48: 0 | AE48: 0 | AF48: 0 | AG48: 0 | AH48: 0 | AI48: 0 | AJ48: =IF(AJ$14>=$F48,IF(AJ$14<=$G48,$D48*(1+$J48)^AJ$13,0),0) -> 0 | AK48: 0 | AL48: 0 | AM48: 0 | AN48: 0 | AO48: 0 | AP48: 0 | AQ48: 0 | AR48: 0 | AS48: 0 | AT48: 0 | AU48: 0 | AV48: =IF(AV$14>=$F48,IF(AV$14<=$G48,$D48*(1+$J48)^AV$13,0),0) -> 0 | AW48: 0 | AX48: 0 | AY48: 0 | AZ48: 0 | BA48: 0 | BB48: 0 | BC48: 0 | BD48: 0 | BE48: 0 | BF48: 0 | BG48: 0 | BH48: 0 | BI48: 0 | BJ48: 0 | BK48: 0 | BL48: 0 | BM48: 0 | BN48: 0 | BO48: 0 | BP48: 0 | BQ48: 0 | BR48: 0 | BS48: 0 | BT48: 0 | BU48: 0 | BV48: 0 | BW48: 0 | BX48: 0
B49: ='CF ASSUMPTIONS+'!B49 -> PRE-TAX SAVINGS | C49: =IF(D49>0,"ERROR","") ->  | D49: ='CF ASSUMPTIONS+'!D49 -> 0 | F49: ='CF ASSUMPTIONS+'!F49 -> 2016 | G49: ='CF ASSUMPTIONS+'!G49 -> 2076 | I49: ='CF ASSUMPTIONS+'!I49 -> 0 | J49: =INVESTMENTS!$E$82+I49 -> 0 | N49: PRE-TAX SAVINGS | P49: 0 | Q49: 0 | R49: 0 | S49: 0 | T49: 0 | U49: 0 | V49: 0 | W49: 0 | X49: 0 | Y49: 0 | Z49: 0 | AA49: 0 | AB49: 0 | AC49: 0 | AD49: 0 | AE49: 0 | AF49: 0 | AG49: 0 | AH49: 0 | AI49: 0 | AJ49: 0 | AK49: 0 | AL49: 0 | AM49: 0 | AN49: 0 | AO49: 0 | AP49: 0 | AQ49: 0 | AR49: 0 | AS49: 0 | AT49: 0 | AU49: 0 | AV49: 0 | AW49: 0 | AX49: 0 | AY49: 0 | AZ49: 0 | BA49: 0 | BB49: 0 | BC49: 0 | BD49: 0 | BE49: 0 | BF49: 0 | BG49: 0 | BH49: 0 | BI49: 0 | BJ49: 0 | BK49: 0 | BL49: 0 | BM49: 0 | BN49: 0 | BO49: 0 | BP49: 0 | BQ49: 0 | BR49: 0 | BS49: 0 | BT49: =IF(BT$14>=$F49,IF(BT$14<=$G49,$D49*(1+$J49)^BT$13,0),0) -> 0 | BU49: =IF(BU$14>=$F49,IF(BU$14<=$G49,$D49*(1+$J49)^BU$13,0),0) -> 0 | BV49: =IF(BV$14>=$F49,IF(BV$14<=$G49,$D49*(1+$J49)^BV$13,0),0) -> 0 | BW49: =IF(BW$14>=$F49,IF(BW$14<=$G49,$D49*(1+$J49)^BW$13,0),0) -> 0 | BX49: =IF(BX$14>=$F49,IF(BX$14<=$G49,$D49*(1+$J49)^BX$13,0),0) -> 0
B50: ='CF ASSUMPTIONS+'!B50 -> PRE-TAX SAVINGS | C50: =IF(D50>0,"ERROR","") ->  | D50: ='CF ASSUMPTIONS+'!D50 -> 0 | F50: ='CF ASSUMPTIONS+'!F50 -> 2016 | G50: ='CF ASSUMPTIONS+'!G50 -> 2076 | I50: ='CF ASSUMPTIONS+'!I50 -> 0 | J50: =INVESTMENTS!$E$82+I50 -> 0 | N50: =B50 -> PRE-TAX SAVINGS | P50: 0 | Q50: 0 | R50: 0 | S50: 0 | T50: 0 | U50: 0 | V50: 0 | W50: 0 | X50: 0 | Y50: 0 | Z50: 0 | AA50: 0 | AB50: 0 | AC50: 0 | AD50: 0 | AE50: 0 | AF50: 0 | AG50: 0 | AH50: 0 | AI50: 0 | AJ50: 0 | AK50: 0 | AL50: 0 | AM50: 0 | AN50: 0 | AO50: 0 | AP50: 0 | AQ50: 0 | AR50: 0 | AS50: 0 | AT50: 0 | AU50: 0 | AV50: =IF(AV$14>=$F50,IF(AV$14<=$G50,$D50*(1+$J50)^AV$13,0),0) -> 0 | AW50: 0 | AX50: 0 | AY50: 0 | AZ50: 0 | BA50: 0 | BB50: 0 | BC50: 0 | BD50: 0 | BE50: 0 | BF50: 0 | BG50: 0 | BH50: 0 | BI50: 0 | BJ50: 0 | BK50: 0 | BL50: 0 | BM50: 0 | BN50: 0 | BO50: 0 | BP50: 0 | BQ50: 0 | BR50: 0 | BS50: 0 | BT50: 0 | BU50: 0 | BV50: 0 | BW50: 0 | BX50: 0
N52: TOTAL INCOME | P52: =SUM(P20:P50) -> 0 | Q52: =SUM(Q20:Q50) -> 0 | R52: 0 | S52: 0 | T52: 0 | U52: 0 | V52: 0 | W52: 0 | X52: 0 | Y52: 0 | Z52: 0 | AA52: 0 | AB52: 0 | AC52: 0 | AD52: 0 | AE52: 0 | AF52: 0 | AG52: 0 | AH52: 0 | AI52: 0 | AJ52: 0 | AK52: 0 | AL52: 0 | AM52: 0 | AN52: 0 | AO52: 0 | AP52: 0 | AQ52: 0 | AR52: 0 | AS52: 0 | AT52: 0 | AU52: 0 | AV52: 0 | AW52: 0 | AX52: 0 | AY52: 0 | AZ52: 0 | BA52: 0 | BB52: 0 | BC52: 0 | BD52: 0 | BE52: 0 | BF52: 0 | BG52: 0 | BH52: 0 | BI52: 0 | BJ52: 0 | BK52: 0 | BL52: 0 | BM52: 0 | BN52: 0 | BO52: 0 | BP52: 0 | BQ52: 0 | BR52: 0 | BS52: 0 | BT52: 0 | BU52: 0 | BV52: 0 | BW52: 0 | BX52: 0
B54: EXPENSES: RECURRING
B56: ='CF ASSUMPTIONS+'!B56 -> ACCOUNTING | D56: ='CF ASSUMPTIONS+'!D56 -> 0 | F56: ='CF ASSUMPTIONS+'!F56 -> 2016 | G56: ='CF ASSUMPTIONS+'!G56 -> 2076 | I56: ='CF ASSUMPTIONS+'!I56 -> 0 | J56: =INVESTMENTS!$E$82+I56 -> 0 | N56: =B56 -> ACCOUNTING | P56: =IF(P$14>=$F56,IF(P$14<=$G56,$D56*(1+$J56)^P$13,0),0) -> 0 | Q56: 0 | R56: 0 | S56: 0 | T56: 0 | U56: 0 | V56: 0 | W56: 0 | X56: 0 | Y56: 0 | Z56: 0 | AA56: 0 | AB56: 0 | AC56: 0 | AD56: 0 | AE56: 0 | AF56: =IF(AF$14>=$F56,IF(AF$14<=$G56,$D56*(1+$J56)^AF$13,0),0) -> 0 | AG56: 0 | AH56: 0 | AI56: 0 | AJ56: 0 | AK56: 0 | AL56: 0 | AM56: 0 | AN56: 0 | AO56: 0 | AP56: 0 | AQ56: 0 | AR56: 0 | AS56: 0 | AT56: 0 | AU56: 0 | AV56: =IF(AV$14>=$F56,IF(AV$14<=$G56,$D56*(1+$J56)^AV$13,0),0) -> 0 | AW56: 0 | AX56: 0 | AY56: 0 | AZ56: 0 | BA56: 0 | BB56: 0 | BC56: 0 | BD56: 0 | BE56: 0 | BF56: 0 | BG56: 0 | BH56: 0 | BI56: 0 | BJ56: 0 | BK56: 0 | BL56: =IF(BL$14>=$F56,IF(BL$14<=$G56,$D56*(1+$J56)^BL$13,0),0) -> 0 | BM56: 0 | BN56: 0 | BO56: 0 | BP56: 0 | BQ56: 0 | BR56: 0 | BS56: 0 | BT56: 0 | BU56: 0 | BV56: 0 | BW56: 0 | BX56: 0
B57: ='CF ASSUMPTIONS+'!B57 -> AUTO, FUEL | D57: ='CF ASSUMPTIONS+'!D57 -> 0 | F57: ='CF ASSUMPTIONS+'!F57 -> 2016 | G57: ='CF ASSUMPTIONS+'!G57 -> 2076 | I57: ='CF ASSUMPTIONS+'!I57 -> 0 | J57: =INVESTMENTS!$E$82+I57 -> 0 | N57: AUTO, FUEL | P57: 0 | Q57: 0 | R57: 0 | S57: 0 | T57: 0 | U57: 0 | V57: 0 | W57: 0 | X57: 0 | Y57: 0 | Z57: 0 | AA57: 0 | AB57: 0 | AC57: 0 | AD57: 0 | AE57: 0 | AF57: 0 | AG57: 0 | AH57: 0 | AI57: 0 | AJ57: 0 | AK57: 0 | AL57: 0 | AM57: 0 | AN57: 0 | AO57: 0 | AP57: 0 | AQ57: 0 | AR57: 0 | AS57: 0 | AT57: 0 | AU57: 0 | AV57: 0 | AW57: 0 | AX57: 0 | AY57: 0 | AZ57: 0 | BA57: 0 | BB57: 0 | BC57: 0 | BD57: 0 | BE57: 0 | BF57: 0 | BG57: 0 | BH57: 0 | BI57: 0 | BJ57: 0 | BK57: 0 | BL57: 0 | BM57: 0 | BN57: 0 | BO57: 0 | BP57: 0 | BQ57: 0 | BR57: 0 | BS57: 0 | BT57: 0 | BU57: 0 | BV57: 0 | BW57: 0 | BX57: 0
B58: ='CF ASSUMPTIONS+'!B58 -> AUTO, INSURANCE | D58: ='CF ASSUMPTIONS+'!D58 -> 0 | F58: ='CF ASSUMPTIONS+'!F58 -> 2016 | G58: ='CF ASSUMPTIONS+'!G58 -> 2076 | I58: ='CF ASSUMPTIONS+'!I58 -> 0 | J58: =INVESTMENTS!$E$82+I58 -> 0 | N58: AUTO, INSURANCE | P58: 0 | Q58: 0 | R58: 0 | S58: 0 | T58: 0 | U58: 0 | V58: 0 | W58: 0 | X58: 0 | Y58: 0 | Z58: 0 | AA58: 0 | AB58: 0 | AC58: 0 | AD58: 0 | AE58: 0 | AF58: 0 | AG58: 0 | AH58: 0 | AI58: 0 | AJ58: 0 | AK58: 0 | AL58: 0 | AM58: 0 | AN58: 0 | AO58: 0 | AP58: 0 | AQ58: 0 | AR58: 0 | AS58: 0 | AT58: 0 | AU58: 0 | AV58: 0 | AW58: 0 | AX58: 0 | AY58: 0 | AZ58: 0 | BA58: 0 | BB58: 0 | BC58: 0 | BD58: 0 | BE58: 0 | BF58: 0 | BG58: 0 | BH58: 0 | BI58: 0 | BJ58: 0 | BK58: 0 | BL58: 0 | BM58: 0 | BN58: 0 | BO58: 0 | BP58: 0 | BQ58: 0 | BR58: 0 | BS58: 0 | BT58: 0 | BU58: 0 | BV58: 0 | BW58: 0 | BX58: 0
B59: ='CF ASSUMPTIONS+'!B59 -> AUTO, LICENSE/REGISTRATION | D59: ='CF ASSUMPTIONS+'!D59 -> 0 | F59: ='CF ASSUMPTIONS+'!F59 -> 2016 | G59: ='CF ASSUMPTIONS+'!G59 -> 2076 | I59: ='CF ASSUMPTIONS+'!I59 -> 0 | J59: =INVESTMENTS!$E$82+I59 -> 0 | N59: AUTO, LICENSE/REGISTRATION | P59: 0 | Q59: 0 | R59: 0 | S59: 0 | T59: 0 | U59: 0 | V59: 0 | W59: 0 | X59: 0 | Y59: 0 | Z59: 0 | AA59: 0 | AB59: 0 | AC59: 0 | AD59: 0 | AE59: 0 | AF59: 0 | AG59: 0 | AH59: 0 | AI59: 0 | AJ59: 0 | AK59: 0 | AL59: 0 | AM59: 0 | AN59: 0 | AO59: 0 | AP59: 0 | AQ59: 0 | AR59: 0 | AS59: 0 | AT59: 0 | AU59: 0 | AV59: 0 | AW59: 0 | AX59: 0 | AY59: 0 | AZ59: 0 | BA59: 0 | BB59: 0 | BC59: 0 | BD59: 0 | BE59: 0 | BF59: 0 | BG59: 0 | BH59: 0 | BI59: 0 | BJ59: 0 | BK59: 0 | BL59: 0 | BM59: 0 | BN59: 0 | BO59: 0 | BP59: 0 | BQ59: 0 | BR59: 0 | BS59: 0 | BT59: 0 | BU59: 0 | BV59: 0 | BW59: 0 | BX59: 0
B60: ='CF ASSUMPTIONS+'!B60 -> AUTO, MAINTENANCE & REPAIRS | D60: ='CF ASSUMPTIONS+'!D60 -> 0 | F60: ='CF ASSUMPTIONS+'!F60 -> 2016 | G60: ='CF ASSUMPTIONS+'!G60 -> 2076 | I60: ='CF ASSUMPTIONS+'!I60 -> 0 | J60: =INVESTMENTS!$E$82+I60 -> 0 | N60: AUTO, MAINTENANCE & REPAIRS | P60: 0 | Q60: 0 | R60: 0 | S60: 0 | T60: 0 | U60: 0 | V60: 0 | W60: 0 | X60: 0 | Y60: 0 | Z60: 0 | AA60: 0 | AB60: 0 | AC60: 0 | AD60: 0 | AE60: 0 | AF60: 0 | AG60: 0 | AH60: 0 | AI60: 0 | AJ60: 0 | AK60: 0 | AL60: 0 | AM60: 0 | AN60: 0 | AO60: 0 | AP60: 0 | AQ60: 0 | AR60: 0 | AS60: 0 | AT60: 0 | AU60: 0 | AV60: 0 | AW60: 0 | AX60: 0 | AY60: 0 | AZ60: 0 | BA60: 0 | BB60: 0 | BC60: 0 | BD60: 0 | BE60: 0 | BF60: 0 | BG60: 0 | BH60: 0 | BI60: 0 | BJ60: 0 | BK60: 0 | BL60: 0 | BM60: 0 | BN60: 0 | BO60: 0 | BP60: 0 | BQ60: 0 | BR60: 0 | BS60: 0 | BT60: 0 | BU60: 0 | BV60: 0 | BW60: 0 | BX60: 0
B61: ='CF ASSUMPTIONS+'!B61 -> AUTO, PARKING | D61: ='CF ASSUMPTIONS+'!D61 -> 0 | F61: ='CF ASSUMPTIONS+'!F61 -> 2016 | G61: ='CF ASSUMPTIONS+'!G61 -> 2076 | I61: ='CF ASSUMPTIONS+'!I61 -> 0 | J61: =INVESTMENTS!$E$82+I61 -> 0 | N61: AUTO, PARKING | P61: 0 | Q61: 0 | R61: 0 | S61: 0 | T61: 0 | U61: 0 | V61: 0 | W61: 0 | X61: 0 | Y61: 0 | Z61: 0 | AA61: 0 | AB61: 0 | AC61: 0 | AD61: 0 | AE61: 0 | AF61: 0 | AG61: 0 | AH61: 0 | AI61: 0 | AJ61: 0 | AK61: 0 | AL61: 0 | AM61: 0 | AN61: 0 | AO61: 0 | AP61: 0 | AQ61: 0 | AR61: 0 | AS61: 0 | AT61: 0 | AU61: 0 | AV61: 0 | AW61: 0 | AX61: 0 | AY61: 0 | AZ61: 0 | BA61: 0 | BB61: 0 | BC61: 0 | BD61: 0 | BE61: 0 | BF61: 0 | BG61: 0 | BH61: 0 | BI61: 0 | BJ61: 0 | BK61: 0 | BL61: 0 | BM61: 0 | BN61: 0 | BO61: 0 | BP61: 0 | BQ61: 0 | BR61: 0 | BS61: 0 | BT61: 0 | BU61: 0 | BV61: 0 | BW61: 0 | BX61: 0
B62: ='CF ASSUMPTIONS+'!B62 -> AUTO, TOLL | D62: ='CF ASSUMPTIONS+'!D62 -> 0 | F62: ='CF ASSUMPTIONS+'!F62 -> 2016 | G62: ='CF ASSUMPTIONS+'!G62 -> 2076 | I62: ='CF ASSUMPTIONS+'!I62 -> 0 | J62: =INVESTMENTS!$E$82+I62 -> 0 | N62: AUTO, TOLL | P62: 0 | Q62: 0 | R62: 0 | S62: 0 | T62: 0 | U62: 0 | V62: 0 | W62: 0 | X62: 0 | Y62: 0 | Z62: 0 | AA62: 0 | AB62: 0 | AC62: 0 | AD62: 0 | AE62: 0 | AF62: 0 | AG62: 0 | AH62: 0 | AI62: 0 | AJ62: 0 | AK62: 0 | AL62: 0 | AM62: 0 | AN62: 0 | AO62: 0 | AP62: 0 | AQ62: 0 | AR62: 0 | AS62: 0 | AT62: 0 | AU62: 0 | AV62: 0 | AW62: 0 | AX62: 0 | AY62: 0 | AZ62: 0 | BA62: 0 | BB62: 0 | BC62: 0 | BD62: 0 | BE62: 0 | BF62: 0 | BG62: 0 | BH62: 0 | BI62: 0 | BJ62: 0 | BK62: 0 | BL62: 0 | BM62: 0 | BN62: 0 | BO62: 0 | BP62: 0 | BQ62: 0 | BR62: 0 | BS62: 0 | BT62: 0 | BU62: 0 | BV62: 0 | BW62: 0 | BX62: 0
B63: ='CF ASSUMPTIONS+'!B63 -> CHARITABLE GIVING | D63: ='CF ASSUMPTIONS+'!D63 -> 0 | F63: ='CF ASSUMPTIONS+'!F63 -> 2016 | G63: ='CF ASSUMPTIONS+'!G63 -> 2076 | I63: ='CF ASSUMPTIONS+'!I63 -> 0 | J63: =INVESTMENTS!$E$82+I63 -> 0 | N63: CHARITABLE GIVING | P63: 0 | Q63: 0 | R63: 0 | S63: 0 | T63: 0 | U63: 0 | V63: 0 | W63: 0 | X63: 0 | Y63: 0 | Z63: 0 | AA63: 0 | AB63: 0 | AC63: 0 | AD63: 0 | AE63: 0 | AF63: 0 | AG63: 0 | AH63: 0 | AI63: 0 | AJ63: 0 | AK63: 0 | AL63: 0 | AM63: 0 | AN63: 0 | AO63: 0 | AP63: 0 | AQ63: 0 | AR63: 0 | AS63: 0 | AT63: 0 | AU63: 0 | AV63: 0 | AW63: 0 | AX63: 0 | AY63: 0 | AZ63: 0 | BA63: 0 | BB63: 0 | BC63: 0 | BD63: 0 | BE63: 0 | BF63: 0 | BG63: 0 | BH63: 0 | BI63: 0 | BJ63: 0 | BK63: 0 | BL63: 0 | BM63: 0 | BN63: 0 | BO63: 0 | BP63: 0 | BQ63: 0 | BR63: 0 | BS63: 0 | BT63: 0 | BU63: 0 | BV63: 0 | BW63: 0 | BX63: 0
B64: ='CF ASSUMPTIONS+'!B64 -> CLOTHING | D64: ='CF ASSUMPTIONS+'!D64 -> 0 | F64: ='CF ASSUMPTIONS+'!F64 -> 2016 | G64: ='CF ASSUMPTIONS+'!G64 -> 2076 | I64: ='CF ASSUMPTIONS+'!I64 -> 0 | J64: =INVESTMENTS!$E$82+I64 -> 0 | N64: CLOTHING | P64: 0 | Q64: 0 | R64: 0 | S64: 0 | T64: 0 | U64: 0 | V64: 0 | W64: 0 | X64: 0 | Y64: 0 | Z64: 0 | AA64: 0 | AB64: 0 | AC64: 0 | AD64: 0 | AE64: 0 | AF64: 0 | AG64: 0 | AH64: 0 | AI64: 0 | AJ64: 0 | AK64: 0 | AL64: 0 | AM64: 0 | AN64: 0 | AO64: 0 | AP64: 0 | AQ64: 0 | AR64: 0 | AS64: 0 | AT64: 0 | AU64: 0 | AV64: 0 | AW64: 0 | AX64: 0 | AY64: 0 | AZ64: 0 | BA64: 0 | BB64: 0 | BC64: 0 | BD64: 0 | BE64: 0 | BF64: 0 | BG64: 0 | BH64: 0 | BI64: 0 | BJ64: 0 | BK64: 0 | BL64: 0 | BM64: 0 | BN64: 0 | BO64: 0 | BP64: 0 | BQ64: 0 | BR64: 0 | BS64: 0 | BT64: 0 | BU64: 0 | BV64: 0 | BW64: 0 | BX64: 0
B65: ='CF ASSUMPTIONS+'!B65 -> DEBT REPAYMENT, OTHER | D65: ='CF ASSUMPTIONS+'!D65 -> 0 | F65: ='CF ASSUMPTIONS+'!F65 -> 2016 | G65: ='CF ASSUMPTIONS+'!G65 -> 2076 | I65: ='CF ASSUMPTIONS+'!I65 -> 0 | J65: =INVESTMENTS!$E$82+I65 -> 0 | N65: DEBT REPAYMENT, OTHER | P65: 0 | Q65: 0 | R65: 0 | S65: 0 | T65: 0 | U65: 0 | V65: 0 | W65: 0 | X65: 0 | Y65: 0 | Z65: 0 | AA65: 0 | AB65: 0 | AC65: 0 | AD65: 0 | AE65: 0 | AF65: 0 | AG65: 0 | AH65: 0 | AI65: 0 | AJ65: 0 | AK65: 0 | AL65: 0 | AM65: 0 | AN65: 0 | AO65: 0 | AP65: 0 | AQ65: 0 | AR65: 0 | AS65: 0 | AT65: 0 | AU65: 0 | AV65: 0 | AW65: 0 | AX65: 0 | AY65: 0 | AZ65: 0 | BA65: 0 | BB65: 0 | BC65: 0 | BD65: 0 | BE65: 0 | BF65: 0 | BG65: 0 | BH65: 0 | BI65: 0 | BJ65: 0 | BK65: 0 | BL65: 0 | BM65: 0 | BN65: 0 | BO65: 0 | BP65: 0 | BQ65: 0 | BR65: 0 | BS65: 0 | BT65: 0 | BU65: 0 | BV65: 0 | BW65: 0 | BX65: 0
B66: ='CF ASSUMPTIONS+'!B66 -> DEPENDENT CARE | D66: ='CF ASSUMPTIONS+'!D66 -> 0 | F66: ='CF ASSUMPTIONS+'!F66 -> 2016 | G66: ='CF ASSUMPTIONS+'!G66 -> 2076 | I66: ='CF ASSUMPTIONS+'!I66 -> 0 | J66: =INVESTMENTS!$E$82+I66 -> 0 | N66: DEPENDENT CARE | P66: 0 | Q66: 0 | R66: 0 | S66: 0 | T66: 0 | U66: 0 | V66: 0 | W66: 0 | X66: 0 | Y66: 0 | Z66: 0 | AA66: 0 | AB66: 0 | AC66: 0 | AD66: 0 | AE66: 0 | AF66: 0 | AG66: 0 | AH66: 0 | AI66: 0 | AJ66: 0 | AK66: 0 | AL66: 0 | AM66: 0 | AN66: 0 | AO66: 0 | AP66: 0 | AQ66: 0 | AR66: 0 | AS66: 0 | AT66: 0 | AU66: 0 | AV66: 0 | AW66: 0 | AX66: 0 | AY66: 0 | AZ66: 0 | BA66: 0 | BB66: 0 | BC66: 0 | BD66: 0 | BE66: 0 | BF66: 0 | BG66: 0 | BH66: 0 | BI66: 0 | BJ66: 0 | BK66: 0 | BL66: 0 | BM66: 0 | BN66: 0 | BO66: 0 | BP66: 0 | BQ66: 0 | BR66: 0 | BS66: 0 | BT66: 0 | BU66: 0 | BV66: 0 | BW66: 0 | BX66: 0
B67: ='CF ASSUMPTIONS+'!B67 -> DINING OUT | D67: ='CF ASSUMPTIONS+'!D67 -> 0 | F67: ='CF ASSUMPTIONS+'!F67 -> 2016 | G67: ='CF ASSUMPTIONS+'!G67 -> 2076 | I67: ='CF ASSUMPTIONS+'!I67 -> 0 | J67: =INVESTMENTS!$E$82+I67 -> 0 | N67: DINING OUT | P67: 0 | Q67: 0 | R67: 0 | S67: 0 | T67: 0 | U67: 0 | V67: 0 | W67: 0 | X67: 0 | Y67: 0 | Z67: 0 | AA67: 0 | AB67: 0 | AC67: 0 | AD67: 0 | AE67: 0 | AF67: 0 | AG67: 0 | AH67: 0 | AI67: 0 | AJ67: 0 | AK67: 0 | AL67: 0 | AM67: 0 | AN67: 0 | AO67: 0 | AP67: 0 | AQ67: 0 | AR67: 0 | AS67: 0 | AT67: 0 | AU67: 0 | AV67: 0 | AW67: 0 | AX67: 0 | AY67: 0 | AZ67: 0 | BA67: 0 | BB67: 0 | BC67: 0 | BD67: 0 | BE67: 0 | BF67: 0 | BG67: 0 | BH67: 0 | BI67: 0 | BJ67: 0 | BK67: 0 | BL67: 0 | BM67: 0 | BN67: 0 | BO67: 0 | BP67: 0 | BQ67: 0 | BR67: 0 | BS67: 0 | BT67: 0 | BU67: 0 | BV67: 0 | BW67: 0 | BX67: 0
B68: ='CF ASSUMPTIONS+'!B68 -> DISABILITY INSURANCE | D68: ='CF ASSUMPTIONS+'!D68 -> 0 | F68: ='CF ASSUMPTIONS+'!F68 -> 2016 | G68: ='CF ASSUMPTIONS+'!G68 -> 2076 | I68: ='CF ASSUMPTIONS+'!I68 -> 0 | J68: =INVESTMENTS!$E$82+I68 -> 0 | N68: DISABILITY INSURANCE | P68: 0 | Q68: 0 | R68: 0 | S68: 0 | T68: 0 | U68: 0 | V68: 0 | W68: 0 | X68: 0 | Y68: 0 | Z68: 0 | AA68: 0 | AB68: 0 | AC68: 0 | AD68: 0 | AE68: 0 | AF68: 0 | AG68: 0 | AH68: 0 | AI68: 0 | AJ68: 0 | AK68: 0 | AL68: 0 | AM68: 0 | AN68: 0 | AO68: 0 | AP68: 0 | AQ68: 0 | AR68: 0 | AS68: 0 | AT68: 0 | AU68: 0 | AV68: 0 | AW68: 0 | AX68: 0 | AY68: 0 | AZ68: 0 | BA68: 0 | BB68: 0 | BC68: 0 | BD68: 0 | BE68: 0 | BF68: 0 | BG68: 0 | BH68: 0 | BI68: 0 | BJ68: 0 | BK68: 0 | BL68: 0 | BM68: 0 | BN68: 0 | BO68: 0 | BP68: 0 | BQ68: 0 | BR68: 0 | BS68: 0 | BT68: 0 | BU68: 0 | BV68: 0 | BW68: 0 | BX68: 0
B69: ='CF ASSUMPTIONS+'!B69 -> EDUCATION | D69: ='CF ASSUMPTIONS+'!D69 -> 0 | F69: ='CF ASSUMPTIONS+'!F69 -> 2016 | G69: ='CF ASSUMPTIONS+'!G69 -> 2076 | I69: ='CF ASSUMPTIONS+'!I69 -> 0 | J69: =INVESTMENTS!$E$82+I69 -> 0 | N69: EDUCATION | P69: 0 | Q69: 0 | R69: 0 | S69: 0 | T69: 0 | U69: 0 | V69: 0 | W69: 0 | X69: 0 | Y69: 0 | Z69: 0 | AA69: 0 | AB69: 0 | AC69: 0 | AD69: 0 | AE69: 0 | AF69: 0 | AG69: 0 | AH69: 0 | AI69: 0 | AJ69: 0 | AK69: 0 | AL69: 0 | AM69: 0 | AN69: 0 | AO69: 0 | AP69: 0 | AQ69: 0 | AR69: 0 | AS69: 0 | AT69: 0 | AU69: 0 | AV69: 0 | AW69: 0 | AX69: 0 | AY69: 0 | AZ69: 0 | BA69: 0 | BB69: 0 | BC69: 0 | BD69: 0 | BE69: 0 | BF69: 0 | BG69: 0 | BH69: 0 | BI69: 0 | BJ69: 0 | BK69: 0 | BL69: 0 | BM69: 0 | BN69: 0 | BO69: 0 | BP69: 0 | BQ69: 0 | BR69: 0 | BS69: 0 | BT69: 0 | BU69: 0 | BV69: 0 | BW69: 0 | BX69: 0
B70: ='CF ASSUMPTIONS+'!B70 -> ENTERTAINMENT, CABLE, INTERNET | D70: ='CF ASSUMPTIONS+'!D70 -> 0 | F70: ='CF ASSUMPTIONS+'!F70 -> 2016 | G70: ='CF ASSUMPTIONS+'!G70 -> 2076 | I70: ='CF ASSUMPTIONS+'!I70 -> 0 | J70: =INVESTMENTS!$E$82+I70 -> 0 | N70: ENTERTAINMENT, CABLE, INTERNET | P70: 0 | Q70: 0 | R70: 0 | S70: 0 | T70: 0 | U70: 0 | V70: 0 | W70: 0 | X70: 0 | Y70: 0 | Z70: 0 | AA70: 0 | AB70: 0 | AC70: 0 | AD70: 0 | AE70: =IF(AE$14>=$F70,IF(AE$14<=$G70,$D70*(1+$J70)^AE$13,0),0) -> 0 | AF70: 0 | AG70: 0 | AH70: 0 | AI70: 0 | AJ70: 0 | AK70: 0 | AL70: 0 | AM70: 0 | AN70: 0 | AO70: 0 | AP70: 0 | AQ70: 0 | AR70: 0 | AS70: 0 | AT70: 0 | AU70: =IF(AU$14>=$F70,IF(AU$14<=$G70,$D70*(1+$J70)^AU$13,0),0) -> 0 | AV70: 0 | AW70: 0 | AX70: 0 | AY70: 0 | AZ70: 0 | BA70: 0 | BB70: 0 | BC70: 0 | BD70: 0 | BE70: 0 | BF70: 0 | BG70: 0 | BH70: 0 | BI70: 0 | BJ70: 0 | BK70: =IF(BK$14>=$F70,IF(BK$14<=$G70,$D70*(1+$J70)^BK$13,0),0) -> 0 | BL70: 0 | BM70: 0 | BN70: 0 | BO70: 0 | BP70: 0 | BQ70: 0 | BR70: 0 | BS70: 0 | BT70: 0 | BU70: 0 | BV70: 0 | BW70: 0 | BX70: 0
B71: ='CF ASSUMPTIONS+'!B71 -> FOOD | D71: ='CF ASSUMPTIONS+'!D71 -> 0 | F71: ='CF ASSUMPTIONS+'!F71 -> 2016 | G71: ='CF ASSUMPTIONS+'!G71 -> 2076 | I71: ='CF ASSUMPTIONS+'!I71 -> 0 | J71: =INVESTMENTS!$E$82+I71 -> 0 | N71: =B71 -> FOOD | P71: =IF(P$14>=$F71,IF(P$14<=$G71,$D71*(1+$J71)^P$13,0),0) -> 0 | Q71: 0 | R71: 0 | S71: 0 | T71: 0 | U71: 0 | V71: 0 | W71: 0 | X71: 0 | Y71: 0 | Z71: 0 | AA71: 0 | AB71: 0 | AC71: 0 | AD71: 0 | AE71: =IF(AE$14>=$F71,IF(AE$14<=$G71,$D71*(1+$J71)^AE$13,0),0) -> 0 | AF71: =IF(AF$14>=$F71,IF(AF$14<=$G71,$D71*(1+$J71)^AF$13,0),0) -> 0 | AG71: 0 | AH71: 0 | AI71: 0 | AJ71: 0 | AK71: 0 | AL71: 0 | AM71: 0 | AN71: 0 | AO71: 0 | AP71: 0 | AQ71: 0 | AR71: 0 | AS71: 0 | AT71: 0 | AU71: =IF(AU$14>=$F71,IF(AU$14<=$G71,$D71*(1+$J71)^AU$13,0),0) -> 0 | AV71: =IF(AV$14>=$F71,IF(AV$14<=$G71,$D71*(1+$J71)^AV$13,0),0) -> 0 | AW71: 0 | AX71: 0 | AY71: 0 | AZ71: 0 | BA71: 0 | BB71: 0 | BC71: 0 | BD71: 0 | BE71: 0 | BF71: 0 | BG71: 0 | BH71: 0 | BI71: 0 | BJ71: 0 | BK71: =IF(BK$14>=$F71,IF(BK$14<=$G71,$D71*(1+$J71)^BK$13,0),0) -> 0 | BL71: =IF(BL$14>=$F71,IF(BL$14<=$G71,$D71*(1+$J71)^BL$13,0),0) -> 0 | BM71: 0 | BN71: 0 | BO71: 0 | BP71: 0 | BQ71: 0 | BR71: 0 | BS71: 0 | BT71: 0 | BU71: 0 | BV71: 0 | BW71: 0 | BX71: 0
B72: ='CF ASSUMPTIONS+'!B72 -> GIFTS | D72: ='CF ASSUMPTIONS+'!D72 -> 0 | F72: ='CF ASSUMPTIONS+'!F72 -> 2016 | G72: ='CF ASSUMPTIONS+'!G72 -> 2076 | I72: ='CF ASSUMPTIONS+'!I72 -> 0 | J72: =INVESTMENTS!$E$82+I72 -> 0 | N72: GIFTS | P72: 0 | Q72: 0 | R72: 0 | S72: 0 | T72: 0 | U72: 0 | V72: 0 | W72: 0 | X72: 0 | Y72: 0 | Z72: 0 | AA72: 0 | AB72: 0 | AC72: 0 | AD72: 0 | AE72: =IF(AE$14>=$F72,IF(AE$14<=$G72,$D72*(1+$J72)^AE$13,0),0) -> 0 | AF72: 0 | AG72: 0 | AH72: 0 | AI72: 0 | AJ72: 0 | AK72: 0 | AL72: 0 | AM72: 0 | AN72: 0 | AO72: 0 | AP72: 0 | AQ72: 0 | AR72: 0 | AS72: 0 | AT72: 0 | AU72: =IF(AU$14>=$F72,IF(AU$14<=$G72,$D72*(1+$J72)^AU$13,0),0) -> 0 | AV72: 0 | AW72: 0 | AX72: 0 | AY72: 0 | AZ72: 0 | BA72: 0 | BB72: 0 | BC72: 0 | BD72: 0 | BE72: 0 | BF72: 0 | BG72: 0 | BH72: 0 | BI72: 0 | BJ72: 0 | BK72: =IF(BK$14>=$F72,IF(BK$14<=$G72,$D72*(1+$J72)^BK$13,0),0) -> 0 | BL72: 0 | BM72: 0 | BN72: 0 | BO72: 0 | BP72: 0 | BQ72: 0 | BR72: 0 | BS72: 0 | BT72: 0 | BU72: 0 | BV72: 0 | BW72: 0 | BX72: 0
B73: ='CF ASSUMPTIONS+'!B73 -> HOME, REPAIR | D73: ='CF ASSUMPTIONS+'!D73 -> 0 | F73: ='CF ASSUMPTIONS+'!F73 -> 2016 | G73: ='CF ASSUMPTIONS+'!G73 -> 2076 | I73: ='CF ASSUMPTIONS+'!I73 -> 0 | J73: =INVESTMENTS!$E$82+I73 -> 0 | N73: HOME, REPAIR | P73: 0 | Q73: 0 | R73: 0 | S73: 0 | T73: 0 | U73: 0 | V73: 0 | W73: 0 | X73: 0 | Y73: 0 | Z73: 0 | AA73: 0 | AB73: 0 | AC73: 0 | AD73: 0 | AE73: =IF(AE$14>=$F73,IF(AE$14<=$G73,$D73*(1+$J73)^AE$13,0),0) -> 0 | AF73: 0 | AG73: 0 | AH73: 0 | AI73: 0 | AJ73: 0 | AK73: 0 | AL73: 0 | AM73: 0 | AN73: 0 | AO73: 0 | AP73: 0 | AQ73: 0 | AR73: 0 | AS73: 0 | AT73: 0 | AU73: =IF(AU$14>=$F73,IF(AU$14<=$G73,$D73*(1+$J73)^AU$13,0),0) -> 0 | AV73: 0 | AW73: 0 | AX73: 0 | AY73: 0 | AZ73: 0 | BA73: 0 | BB73: 0 | BC73: 0 | BD73: 0 | BE73: 0 | BF73: 0 | BG73: 0 | BH73: 0 | BI73: 0 | BJ73: 0 | BK73: =IF(BK$14>=$F73,IF(BK$14<=$G73,$D73*(1+$J73)^BK$13,0),0) -> 0 | BL73: 0 | BM73: 0 | BN73: 0 | BO73: 0 | BP73: 0 | BQ73: 0 | BR73: 0 | BS73: 0 | BT73: 0 | BU73: 0 | BV73: 0 | BW73: 0 | BX73: 0
B74: ='CF ASSUMPTIONS+'!B74 -> HOME, MAINTENANCE - ROUTINE | D74: ='CF ASSUMPTIONS+'!D74 -> 0 | F74: ='CF ASSUMPTIONS+'!F74 -> 2016 | G74: ='CF ASSUMPTIONS+'!G74 -> 2076 | I74: ='CF ASSUMPTIONS+'!I74 -> 0 | J74: =INVESTMENTS!$E$82+I74 -> 0 | N74: HOME, MAINTENANCE - ROUTINE | P74: =IF(P$14>=$F74,IF(P$14<=$G74,$D74*(1+$J74)^P$13,0),0) -> 0 | Q74: 0 | R74: 0 | S74: 0 | T74: 0 | U74: 0 | V74: 0 | W74: 0 | X74: 0 | Y74: 0 | Z74: 0 | AA74: 0 | AB74: 0 | AC74: 0 | AD74: =IF(AD$14>=$F74,IF(AD$14<=$G74,$D74*(1+$J74)^AD$13,0),0) -> 0 | AE74: 0 | AF74: =IF(AF$14>=$F74,IF(AF$14<=$G74,$D74*(1+$J74)^AF$13,0),0) -> 0 | AG74: 0 | AH74: 0 | AI74: 0 | AJ74: 0 | AK74: 0 | AL74: 0 | AM74: 0 | AN74: 0 | AO74: 0 | AP74: 0 | AQ74: 0 | AR74: 0 | AS74: 0 | AT74: =IF(AT$14>=$F74,IF(AT$14<=$G74,$D74*(1+$J74)^AT$13,0),0) -> 0 | AU74: 0 | AV74: =IF(AV$14>=$F74,IF(AV$14<=$G74,$D74*(1+$J74)^AV$13,0),0) -> 0 | AW74: 0 | AX74: 0 | AY74: 0 | AZ74: 0 | BA74: 0 | BB74: 0 | BC74: 0 | BD74: 0 | BE74: 0 | BF74: 0 | BG74: 0 | BH74: 0 | BI74: 0 | BJ74: =IF(BJ$14>=$F74,IF(BJ$14<=$G74,$D74*(1+$J74)^BJ$13,0),0) -> 0 | BK74: 0 | BL74: 0 | BM74: 0 | BN74: 0 | BO74: 0 | BP74: 0 | BQ74: 0 | BR74: 0 | BS74: 0 | BT74: 0 | BU74: 0 | BV74: 0 | BW74: 0 | BX74: 0
B75: ='CF ASSUMPTIONS+'!B75 -> HOME, INSURANCE | D75: ='CF ASSUMPTIONS+'!D75 -> 0 | F75: ='CF ASSUMPTIONS+'!F75 -> 2016 | G75: ='CF ASSUMPTIONS+'!G75 -> 2076 | I75: ='CF ASSUMPTIONS+'!I75 -> 0 | J75: =INVESTMENTS!$E$82+I75 -> 0 | N75: HOME, INSURANCE | P75: 0 | Q75: 0 | R75: 0 | S75: 0 | T75: 0 | U75: 0 | V75: 0 | W75: 0 | X75: 0 | Y75: 0 | Z75: 0 | AA75: 0 | AB75: 0 | AC75: 0 | AD75: 0 | AE75: 0 | AF75: 0 | AG75: 0 | AH75: 0 | AI75: 0 | AJ75: 0 | AK75: 0 | AL75: 0 | AM75: 0 | AN75: 0 | AO75: 0 | AP75: 0 | AQ75: 0 | AR75: 0 | AS75: 0 | AT75: 0 | AU75: 0 | AV75: 0 | AW75: 0 | AX75: 0 | AY75: 0 | AZ75: 0 | BA75: 0 | BB75: 0 | BC75: 0 | BD75: 0 | BE75: 0 | BF75: 0 | BG75: 0 | BH75: 0 | BI75: 0 | BJ75: 0 | BK75: 0 | BL75: 0 | BM75: 0 | BN75: 0 | BO75: 0 | BP75: 0 | BQ75: 0 | BR75: 0 | BS75: 0 | BT75: 0 | BU75: 0 | BV75: 0 | BW75: 0 | BX75: 0
B76: ='CF ASSUMPTIONS+'!B76 -> LAUNDRY, CLEANING | D76: ='CF ASSUMPTIONS+'!D76 -> 0 | F76: ='CF ASSUMPTIONS+'!F76 -> 2016 | G76: ='CF ASSUMPTIONS+'!G76 -> 2076 | I76: ='CF ASSUMPTIONS+'!I76 -> 0 | J76: =INVESTMENTS!$E$82+I76 -> 0 | N76: LAUNDRY, CLEANING | P76: =IF(P$14>=$F76,IF(P$14<=$G76,$D76*(1+$J76)^P$13,0),0) -> 0 | Q76: 0 | R76: 0 | S76: 0 | T76: 0 | U76: 0 | V76: 0 | W76: 0 | X76: 0 | Y76: 0 | Z76: 0 | AA76: 0 | AB76: 0 | AC76: 0 | AD76: 0 | AE76: 0 | AF76: 0 | AG76: 0 | AH76: 0 | AI76: 0 | AJ76: 0 | AK76: 0 | AL76: 0 | AM76: 0 | AN76: 0 | AO76: 0 | AP76: 0 | AQ76: 0 | AR76: 0 | AS76: 0 | AT76: 0 | AU76: 0 | AV76: =IF(AV$14>=$F76,IF(AV$14<=$G76,$D76*(1+$J76)^AV$13,0),0) -> 0 | AW76: 0 | AX76: 0 | AY76: 0 | AZ76: 0 | BA76: 0 | BB76: 0 | BC76: 0 | BD76: 0 | BE76: 0 | BF76: 0 | BG76: 0 | BH76: 0 | BI76: 0 | BJ76: 0 | BK76: 0 | BL76: 0 | BM76: 0 | BN76: 0 | BO76: 0 | BP76: 0 | BQ76: 0 | BR76: 0 | BS76: 0 | BT76: 0 | BU76: 0 | BV76: 0 | BW76: 0 | BX76: 0
